Workbook

Sheet Intro
G2: Post Tax Revenue Model
K3: Version: 02
K4: Date: 19 June 2009
B7: Introduction
C12: This model illustrates the basic elements of the AER's building block calculation and associated price and revenue constraints for distribution businesses.
C14: The model is intended to produce X factors that are applicable to revenue caps, price caps and revenue yield forms of control.
C16: Building block revenues and cash flows are modelled in nominal terms unless specified otherwise.
C18: Before using the PTRM, Excel’s iteration mode of calculation needs to be selected.
C19: To do so, select Options from the Tools menu in Excel, then select the Calculation tab.
C20: Make sure that Manual (rather than Automatic) is selected and tick the iteration box.
C22: To run the 'Fix_Te' macro manually, select Macro from the Tools menu, and then select Macros. Highlight 'Fix_Te' and click on Run.
C26: INSTRUCTIONS FOR USE
C28: 1. Fill out cells in "input" sheet. These cells are highlighted blue.
C29: Input data required include:
D30: by asset class-
E31: opening asset life
E32: remaining life
E33: useful life
E34: remaining tax life
E35: standard tax life
E36: forecast capex
E37: forecast disposals
E38: forecast customer contributions
D39: forecast total opex
D40: WACC parameters
D41: actual prices per each tariff component
D42: forecast quantities per each tariff component
C44: Input expenditure data should be valued in real terms of the year indicated, as at the end of that year.
C46: 2. Select X factors and P-0 on the "X factor" sheet
C47: Clause 6.2.6 requires that the form of control applicable to "standard direct control" services be of a CPI-X form.
C48: This sheet provides for the calculation of X factors under three basic forms of control, namely a weighted average price cap, revenue cap and revenue yield.
C49: These may be amended to suit the particular form of control applicable to the DNSP
C51: The value of X may differ for each year of the period but must be set such that the NPV of revenues is equal to the NPV of the total building block revenue requirement for the period.
C52: The X factor sheet provides input values for each X but contains macro buttons which can be used to goal seek a value of P0 for each form of control to equate the NPVs of forecast and required revenues
C57: AMENDMENT RECORD
C59: version no. | D59: date of issue | F59: details of amendments
C60: version 01 | D60: 2008-06-26 | F60: -
C62: version 02 | D62: 2009-06-19 | F62: 1. totals in row 37 of the "Input" sheet changed to sum rows 7 to 36
F63: 2. depreciation on capex calculated in rows 169 to 178 and 182 to 191 of the "Assets" sheet changed to refer to correct capex inputs for each year
F64: 3. tax depreciation totals in row 479 of the "Assets" sheet changed to include tax depreciation calculated for all asset classes

Sheet Input
E2: Input Variables | G2: Input cells are in blue | I2: Updated cells
E5: ="Opening Regulated Asset Base for "&Q7&" ($m Nominal)" -> Opening Regulated Asset Base for 2013 ($m Nominal)
G6: Asset Class Name | J6: Opening Asset Value | K6: Assets Under Construction | L6: Remaining Life | M6: Standard Life | N6: Opening Tax Value | O6: Tax Remaining Life | P6: Tax Standard Life | Q6: Base Financial Year
E7: Asset Class 1 | G7: Transmission Pipelines | J7: 50.93346364 | L7: ='SPI depreciation'!I41 -> 24.45374964 | M7: 60 | N7: n/a | O7: n/a | P7: n/a | Q7: 2013
E8: Asset Class 2 | G8: Distribution Pipelines | J8: 602.8143017 | L8: ='SPI depreciation'!I42 -> 32.45401241 | M8: 60 | N8: n/a | O8: n/a | P8: n/a
E9: Asset Class 3 | G9: Service Pipes | J9: 447.5790853 | L9: ='SPI depreciation'!I43 -> 35.77178969 | M9: 60 | N9: n/a | O9: n/a | P9: n/a
E10: Asset Class 4 | G10: Cathodic Protection | J10: 17.09777462 | L10: ='SPI depreciation'!I44 -> 26.69228535 | M10: 60 | N10: n/a | O10: n/a | P10: n/a
E11: Asset Class 5 | G11: Supply Regulators/Valve Stations | J11: 37.8003437 | L11: ='SPI depreciation'!I45 -> 33.31033236 | M11: 50 | N11: n/a | O11: n/a | P11: n/a
E12: Asset Class 6 | G12: Meters | J12: 83.675515 | L12: ='SPI depreciation'!I46 -> 11.20465696 | M12: 20 | N12: n/a | O12: n/a | P12: n/a
E13: Asset Class 7 | G13: SCADA and remote control | J13: 3.148895457 | L13: ='SPI depreciation'!I47 -> 11.09376523 | M13: 15 | N13: n/a | O13: n/a | P13: n/a
E14: Asset Class 8 | G14: Buildings | J14: 10.80059034 | L14: ='SPI depreciation'!I48 -> 25.23331173 | M14: 40 | N14: n/a | O14: n/a | P14: n/a
E15: Asset Class 9 | G15: Other - IT | J15: 20.59154102 | L15: ='SPI depreciation'!I49 -> 4.885511947 | M15: 5 | N15: n/a | O15: n/a | P15: n/a
E16: Asset Class 10 | G16: Other - non IT | J16: 0.8568436275 | L16: ='SPI depreciation'!I50 -> 4.732015086 | M16: 5 | N16: n/a | O16: n/a | P16: n/a
E17: Asset Class 11 | G17: Land | J17: 0 | L17: n/a | M17: n/a | N17: n/a | O17: n/a | P17: n/a
E18: Asset Class 12
E19: Asset Class 13
E20: Asset Class 14
E21: Asset Class 15
E22: Asset Class 16
E23: Asset Class 17
E24: Asset Class 18
E25: Asset Class 19
E26: Asset Class 20
E27: Asset Class 21
E28: Asset Class 22
E29: Asset Class 23
E30: Asset Class 24
E31: Asset Class 25
E32: Asset Class 26
E33: Asset Class 27
E34: Asset Class 28
E35: Asset Class 29
E36: Asset Class 30
E37: Total | J37: =SUM(J7:J36)+K37 -> 1275.298354 | K37: =SUM(K7:K36) -> 0 | N37: =SUM(N7:N36) -> 0
E39: ="Forecast Capital Expenditure – As Incurred ($m Real "&Q7-1&")" -> Forecast Capital Expenditure – As Incurred ($m Real 2012)
E40: Year | G40: =Q7 -> 2013 | H40: =G40+1 -> 2014 | I40: =H40+1 -> 2015 | J40: 2016 | K40: 2017 | L40: 2018 | M40: 2019 | N40: 2020 | O40: 2021 | P40: 2022
E41: =Asset1 -> Transmission Pipelines | G41: 0 | H41: 3.065594666 | I41: 0 | J41: 0 | K41: 0 | Q41: =SUM(G41:P41) -> 3.065594666
E42: =Asset2 -> Distribution Pipelines | G42: 51.94546599 | H42: 48.67951503 | I42: 53.29276977 | J42: 45.43616648 | K42: 39.07760724 | Q42: =SUM(G42:P42) -> 238.4315245
E43: =Asset3 -> Service Pipes | G43: 20.70983407 | H43: 21.18743483 | I43: 21.80097642 | J43: 21.28615392 | K43: 20.72139528 | Q43: =SUM(G43:P43) -> 105.7057945
E44: =Asset4 -> Cathodic Protection | G44: 0.3323285847 | H44: 0.3221521077 | I44: 0.3307777264 | J44: 0.3133595115 | K44: 0.2963841293 | Q44: 1.59500206
E45: =Asset5 -> Supply Regulators/Valve Stations | G45: 3.504581108 | H45: 5.372842394 | I45: 7.495307714 | J45: 4.602210452 | K45: 2.689897684 | Q45: 23.66483935
E46: =Asset6 -> Meters | G46: 10.79632357 | H46: 11.38975166 | I46: 10.79326171 | J46: 10.67606629 | K46: 10.47358159 | Q46: 54.12898482
E47: =Asset7 -> SCADA and remote control | G47: 1.00904859 | H47: 0.9908319616 | I47: 0.9894276973 | J47: 0.8952409622 | K47: 0.946514734 | Q47: 4.831063945
E48: =Asset8 -> Buildings | Q48: 0
E49: =Asset9 -> Other - IT | G49: 15.42510834 | H49: 14.69498992 | I49: 7.789840379 | J49: 8.659194729 | K49: 8.860503893 | Q49: 55.42963726
E50: =Asset10 -> Other - non IT | G50: 0.3860128801 | H50: 0.3855492334 | I50: 0.387416271 | J50: 0.3929400646 | K50: 0.3987673425 | Q50: 1.950685792
E51: =Asset11 -> Land | G51: 0 | H51: 0 | I51: 0 | J51: 0 | K51: 0 | Q51: 0
E52: =Asset12 -> 0
E53: =Asset13 -> 0
E54: =Asset14 -> 0
E55: =Asset15 -> 0
E56: =Asset16 -> 0
E57: =Asset17 -> 0
E58: =Asset18 -> 0
E59: =Asset19 -> 0
E60: =Asset20 -> 0
E61: =Asset21 -> 0
E62: =Asset22 -> 0
E63: =Asset23 -> 0
E64: =Asset24 -> 0
E65: =Asset25 -> 0
E66: =Asset26 -> 0
E67: =Asset27 -> 0
E68: =Asset28 -> 0
E69: =Asset29 -> 0
E70: =Asset30 -> 0
E71: Total | G71: =SUM(G41:G70) -> 104.1087031 | H71: 106.0886618 | I71: 102.8797777 | J71: 92.26133241 | K71: =SUM(K41:K70) -> 83.46465189 | L71: 0 | M71: =SUM(M41:M70) -> 0 | N71: 0 | O71: 0 | P71: 0
Q72: =SUM(G71:P71) -> 488.8031269
E73: ="Forecast Asset Disposal – as incurred ($m Real "&Q7-1&")" -> Forecast Asset Disposal – as incurred ($m Real 2012)
E74: Year | G74: =G40 -> 2013 | H74: =H40 -> 2014 | I74: 2015 | J74: 2016 | K74: 2017 | L74: 2018 | M74: 2019 | N74: 2020 | O74: 2021 | P74: 2022
E75: =Asset1 -> Transmission Pipelines
E76: =Asset2 -> Distribution Pipelines
E77: =Asset3 -> Service Pipes
E78: =Asset4 -> Cathodic Protection
E79: =Asset5 -> Supply Regulators/Valve Stations
E80: =Asset6 -> Meters
E81: =Asset7 -> SCADA and remote control
E82: =Asset8 -> Buildings
E83: =Asset9 -> Other - IT
E84: =Asset10 -> Other - non IT
E85: =Asset11 -> Land
E86: =Asset12 -> 0
E87: =Asset13 -> 0
E88: =Asset14 -> 0
E89: =Asset15 -> 0
E90: =Asset16 -> 0
E91: =Asset17 -> 0
E92: =Asset18 -> 0
E93: =Asset19 -> 0
E94: =Asset20 -> 0
E95: =Asset21 -> 0
E96: =Asset22 -> 0
E97: =Asset23 -> 0
E98: =Asset24 -> 0
E99: =Asset25 -> 0
E100: =Asset26 -> 0
E101: =Asset27 -> 0
E102: =Asset28 -> 0
E103: =Asset29 -> 0
E104: =Asset30 -> 0
E105: Total | G105: =SUM(G75:G104) -> 0 | H105: 0 | I105: 0 | J105: =SUM(J75:J104) -> 0 | K105: 0 | L105: 0 | M105: 0 | N105: 0 | O105: 0 | P105: 0
Q106: =SUM(G105:P105) -> 0
E107: ="Forecast Customer Contributions – As Incurred ($m Real "&Q7-1&")" -> Forecast Customer Contributions – As Incurred ($m Real 2012)
E108: Year | G108: =G74 -> 2013 | H108: =H74 -> 2014 | I108: 2015 | J108: 2016 | K108: 2017 | L108: 2018 | M108: 2019 | N108: 2020 | O108: 2021 | P108: 2022
E109: =Asset1 -> Transmission Pipelines | G109: 0 | H109: 0 | I109: 0 | J109: 0 | K109: 0
E110: =Asset2 -> Distribution Pipelines | G110: 3.048647054 | H110: 4.520100377 | I110: 3.218229245 | J110: 3.280957925 | K110: 3.324643663
E111: =Asset3 -> Service Pipes | G111: 0.420977634 | H111: 0.6596159475 | I111: 0.4508784968 | J111: 0.4557577668 | K111: 0.4558410836
E112: =Asset4 -> Cathodic Protection | G112: 0 | H112: 0 | I112: 0 | J112: 0 | K112: 0
E113: =Asset5 -> Supply Regulators/Valve Stations | G113: 0 | H113: 0 | I113: 0 | J113: 0 | K113: 0
E114: =Asset6 -> Meters | G114: 0.5344543488 | H114: 0.585641561 | I114: 0.5525556115 | J114: 0.5675518506 | K114: 0.5796609791
E115: =Asset7 -> SCADA and remote control | G115: 0 | H115: 0.02411061299 | I115: 0 | J115: 0 | K115: 0
E116: =Asset8 -> Buildings
E117: =Asset9 -> Other - IT | G117: 0 | H117: 0 | I117: 0 | J117: 0 | K117: 0
E118: =Asset10 -> Other - non IT | G118: 0 | H118: 0 | I118: 0 | J118: 0 | K118: 0
E119: =Asset11 -> Land | G119: 0 | H119: 0 | I119: 0 | J119: 0 | K119: 0
E120: =Asset12 -> 0
E121: =Asset13 -> 0
E122: =Asset14 -> 0
E123: =Asset15 -> 0
E124: =Asset16 -> 0
E125: =Asset17 -> 0
E126: =Asset18 -> 0
E127: =Asset19 -> 0
E128: =Asset20 -> 0
E129: =Asset21 -> 0
E130: =Asset22 -> 0
E131: =Asset23 -> 0
E132: =Asset24 -> 0
E133: =Asset25 -> 0
E134: =Asset26 -> 0
E135: =Asset27 -> 0
E136: =Asset28 -> 0
E137: =Asset29 -> 0
E138: =Asset30 -> 0
E139: Total | G139: =SUM(G109:G138) -> 4.004079036 | H139: 5.789468498 | I139: 4.221663353 | J139: 4.304267542 | K139: 4.360145726 | L139: 0 | M139: 0 | N139: 0 | O139: 0 | P139: 0
Q140: =SUM(G139:P139) -> 22.67962416
E141: ="Forecast Net Capital Expenditure – As Incurred ($m Real "&Q7-1&")" -> Forecast Net Capital Expenditure – As Incurred ($m Real 2012)
E142: Year | G142: =G40 -> 2013 | H142: =H40 -> 2014 | I142: 2015 | J142: 2016 | K142: 2017 | L142: 2018 | M142: 2019 | N142: 2020 | O142: 2021 | P142: 2022
E143: =Asset1 -> Transmission Pipelines | G143: =G41-G75-G109 -> 0 | H143: =H41-H75-H109 -> 3.065594666 | I143: 0 | J143: 0 | K143: 0 | L143: 0 | M143: 0 | N143: 0 | O143: 0 | P143: 0 | Q143: =SUM(G143:P143) -> 3.065594666
E144: =Asset2 -> Distribution Pipelines | G144: =G42-G76-G110 -> 48.89681894 | H144: 44.15941465 | I144: 50.07454053 | J144: 42.15520856 | K144: 35.75296358 | L144: 0 | M144: 0 | N144: 0 | O144: 0 | P144: 0 | Q144: =SUM(G144:P144) -> 221.0389462
E145: =Asset3 -> Service Pipes | G145: =G43-G77-G111 -> 20.28885644 | H145: 20.52781888 | I145: 21.35009793 | J145: 20.83039615 | K145: 20.2655542 | L145: 0 | M145: 0 | N145: 0 | O145: 0 | P145: 0 | Q145: 103.2627236
E146: =Asset4 -> Cathodic Protection | G146: =G44-G78-G112 -> 0.3323285847 | H146: 0.3221521077 | I146: 0.3307777264 | J146: 0.3133595115 | K146: 0.2963841293 | L146: 0 | M146: 0 | N146: 0 | O146: 0 | P146: 0 | Q146: 1.59500206
E147: =Asset5 -> Supply Regulators/Valve Stations | G147: =G45-G79-G113 -> 3.504581108 | H147: 5.372842394 | I147: 7.495307714 | J147: 4.602210452 | K147: 2.689897684 | L147: 0 | M147: 0 | N147: 0 | O147: 0 | P147: 0 | Q147: 23.66483935
E148: =Asset6 -> Meters | G148: =G46-G80-G114 -> 10.26186922 | H148: 10.8041101 | I148: 10.2407061 | J148: 10.10851444 | K148: 9.893920609 | L148: 0 | M148: 0 | N148: 0 | O148: 0 | P148: 0 | Q148: 51.30912047
E149: =Asset7 -> SCADA and remote control | G149: =G47-G81-G115 -> 1.00904859 | H149: 0.9667213486 | I149: 0.9894276973 | J149: 0.8952409622 | K149: 0.946514734 | L149: 0 | M149: 0 | N149: 0 | O149: 0 | P149: 0 | Q149: 4.806953332
E150: =Asset8 -> Buildings | G150: =G48-G82-G116 -> 0 | H150: 0 | I150: 0 | J150: 0 | K150: 0 | L150: =L48-L82-L116 -> 0 | M150: 0 | N150: 0 | O150: 0 | P150: 0 | Q150: 0
E151: =Asset9 -> Other - IT | G151: 15.42510834 | H151: 14.69498992 | I151: 7.789840379 | J151: 8.659194729 | K151: 8.860503893 | L151: 0 | M151: 0 | N151: 0 | O151: 0 | P151: 0 | Q151: 55.42963726
E152: =Asset10 -> Other - non IT | G152: 0.3860128801 | H152: 0.3855492334 | I152: 0.387416271 | J152: 0.3929400646 | K152: 0.3987673425 | L152: 0 | M152: 0 | N152: 0 | O152: 0 | P152: 0 | Q152: 1.950685792
E153: =Asset11 -> Land | G153: =G51-G85-G119 -> 0 | H153: 0 | I153: 0 | J153: 0 | K153: 0 | L153: 0 | M153: 0 | N153: 0 | O153: 0 | P153: 0 | Q153: 0
E154: =Asset12 -> 0 | G154: =G52-G86-G120 -> 0 | H154: 0 | I154: 0 | J154: 0 | K154: 0 | L154: 0 | M154: 0 | N154: 0 | O154: 0 | P154: 0 | Q154: =SUM(G154:P154) -> 0
E155: =Asset13 -> 0 | G155: =G53-G87-G121 -> 0 | H155: 0 | I155: 0 | J155: 0 | K155: 0 | L155: 0 | M155: 0 | N155: 0 | O155: 0 | P155: 0 | Q155: =SUM(G155:P155) -> 0
E156: =Asset14 -> 0 | G156: =G54-G88-G122 -> 0 | H156: 0 | I156: 0 | J156: 0 | K156: 0 | L156: 0 | M156: 0 | N156: 0 | O156: 0 | P156: 0 | Q156: 0
E157: =Asset15 -> 0 | G157: =G55-G89-G123 -> 0 | H157: 0 | I157: 0 | J157: 0 | K157: 0 | L157: 0 | M157: 0 | N157: 0 | O157: 0 | P157: 0 | Q157: 0
E158: =Asset16 -> 0 | G158: =G56-G90-G124 -> 0 | H158: 0 | I158: 0 | J158: 0 | K158: 0 | L158: 0 | M158: 0 | N158: 0 | O158: 0 | P158: 0 | Q158: 0
E159: =Asset17 -> 0 | G159: =G57-G91-G125 -> 0 | H159: 0 | I159: 0 | J159: 0 | K159: 0 | L159: 0 | M159: 0 | N159: 0 | O159: 0 | P159: 0 | Q159: 0
E160: =Asset18 -> 0 | G160: =G58-G92-G126 -> 0 | H160: 0 | I160: 0 | J160: 0 | K160: 0 | L160: 0 | M160: 0 | N160: 0 | O160: 0 | P160: 0 | Q160: 0
E161: =Asset19 -> 0 | G161: =G59-G93-G127 -> 0 | H161: 0 | I161: 0 | J161: 0 | K161: 0 | L161: 0 | M161: 0 | N161: 0 | O161: 0 | P161: 0 | Q161: 0
E162: =Asset20 -> 0 | G162: =G60-G94-G128 -> 0 | H162: 0 | I162: 0 | J162: 0 | K162: 0 | L162: 0 | M162: 0 | N162: 0 | O162: 0 | P162: 0 | Q162: 0
E163: =Asset21 -> 0 | G163: =G61-G95-G129 -> 0 | H163: 0 | I163: 0 | J163: 0 | K163: 0 | L163: 0 | M163: 0 | N163: 0 | O163: 0 | P163: 0 | Q163: 0
E164: =Asset22 -> 0 | G164: =G62-G96-G130 -> 0 | H164: 0 | I164: 0 | J164: 0 | K164: 0 | L164: 0 | M164: 0 | N164: 0 | O164: 0 | P164: 0 | Q164: 0
E165: =Asset23 -> 0 | G165: =G63-G97-G131 -> 0 | H165: 0 | I165: 0 | J165: 0 | K165: 0 | L165: 0 | M165: 0 | N165: 0 | O165: 0 | P165: 0 | Q165: 0
E166: =Asset24 -> 0 | G166: =G64-G98-G132 -> 0 | H166: 0 | I166: 0 | J166: 0 | K166: 0 | L166: 0 | M166: 0 | N166: 0 | O166: 0 | P166: 0 | Q166: 0
E167: =Asset25 -> 0 | G167: =G65-G99-G133 -> 0 | H167: 0 | I167: 0 | J167: 0 | K167: 0 | L167: 0 | M167: 0 | N167: 0 | O167: 0 | P167: 0 | Q167: 0
E168: =Asset26 -> 0 | G168: =G66-G100-G134 -> 0 | H168: 0 | I168: 0 | J168: 0 | K168: 0 | L168: 0 | M168: 0 | N168: 0 | O168: 0 | P168: 0 | Q168: 0
E169: =Asset27 -> 0 | G169: =G67-G101-G135 -> 0 | H169: 0 | I169: 0 | J169: 0 | K169: 0 | L169: 0 | M169: 0 | N169: 0 | O169: 0 | P169: 0 | Q169: 0
E170: =Asset28 -> 0 | G170: =G68-G102-G136 -> 0 | H170: 0 | I170: 0 | J170: 0 | K170: 0 | L170: 0 | M170: 0 | N170: 0 | O170: 0 | P170: 0 | Q170: 0
E171: =Asset29 -> 0 | G171: =G69-G103-G137 -> 0 | H171: 0 | I171: 0 | J171: 0 | K171: 0 | L171: 0 | M171: 0 | N171: 0 | O171: 0 | P171: 0 | Q171: 0
E172: =Asset30 -> 0 | G172: =G70-G104-G138 -> 0 | H172: 0 | I172: 0 | J172: 0 | K172: 0 | L172: 0 | M172: 0 | N172: 0 | O172: 0 | P172: 0 | Q172: 0
E173: Total | G173: =SUM(G143:G172) -> 100.1046241 | H173: 100.2991933 | I173: =SUM(I143:I172) -> 98.65811434 | J173: 87.95706487 | K173: 79.10450617 | L173: 0 | M173: 0 | N173: 0 | O173: 0 | P173: 0 | Q173: =SUM(G173:P173) -> 466.1235028
E175: ="Forecast Operating and Maintenance Expenditure ($m Real "&Q7-1&")" -> Forecast Operating and Maintenance Expenditure ($m Real 2012)
E176: Year | G176: =G40 -> 2013 | H176: =H40 -> 2014 | I176: 2015 | J176: 2016 | K176: 2017 | L176: 2018 | M176: 2019 | N176: 2020 | O176: 2021 | P176: 2022
E177: Opex | G177: 47.7539084 | H177: 49.87406203 | I177: 50.66305898 | J177: 51.66935842 | K177: 52.7312886
E180: Efficiency carryover | G180: ='Carry-over'!G45 -> 12.7770754 | H180: ='Carry-over'!H45 -> 2.576242129 | I180: ='Carry-over'!I45 -> 5.462702221 | J180: ='Carry-over'!J45 -> -1.481560668 | K180: ='Carry-over'!K45 -> 0
E182: Debt raising costs | G182: =(Dr*Dv*Assets!F474)/Assets!G7 -> 0.67932966 | H182: =(Dr*Dv*Assets!G474)/Assets!H7 -> 0.7085174175 | I182: =(Dr*Dv*Assets!H474)/Assets!I7 -> 0.7351045209 | J182: =(Dr*Dv*Assets!I474)/Assets!J7 -> 0.7581506464 | K182: =(Dr*Dv*Assets!J474)/Assets!K7 -> 0.7734328673 | L182: =IF(L177=0,0,(Dr*Dv*Assets!K474)/Assets!L7) -> 0 | M182: =IF(M177=0,0,(Dr*Dv*Assets!L474)/Assets!M7) -> 0 | N182: =IF(N177=0,0,(Dr*Dv*Assets!M474)/Assets!N7) -> 0 | O182: =IF(O177=0,0,(Dr*Dv*Assets!N474)/Assets!O7) -> 0 | P182: =IF(P177=0,0,(Dr*Dv*Assets!O474)/Assets!P7) -> 0
E183: Total | G183: =SUM(G177:G182) -> 61.21031346 | H183: =SUM(H177:H182) -> 53.15882158 | I183: 56.86086572 | J183: 50.9459484 | K183: 53.50472147 | L183: 0 | M183: 0 | N183: 0 | O183: 0 | P183: 0
Q184: =SUM(G183:P183) -> 275.6806706
E185: Cost of Capital
G186: Value | H186: Equity
E187: Nominal Risk Free Rate Rf | G187: 0.031428 | H187: 0.031428
E188: Inflation Rate f | G188: 0.025
E189: Debt Risk Premium DRP | G189: 0.033535
E190: Market Risk Premium MRP | G190: 0.06
E191: Utilisation of Imputation (Franking) Credits g | G191: 0.25
E192: Proportion of Debt Funding D/V | G192: 0.6
E193: Equity Beta βe | G193: 0.8
E194: Debt Raising Cost Benchmark Dr | F194: Dr | G194: 0.00091
E196: ="Price/ revenue constraint for "&Q7-1& " (Nominal)" -> Price/ revenue constraint for 2012 (Nominal)
G197: Value
E198: Maximum Allowed Revenue | G198: 210
E199: Revenue yield (c/Gj) | G199: 5
E202: Gas Delivered Forecast
E203: Year | F203: =Q7-1 -> 2012 | G203: =G40 -> 2013 | H203: =H40 -> 2014 | I203: 2015 | J203: 2016 | K203: 2017 | L203: 2018 | M203: 2019 | N203: 2020 | O203: 2021 | P203: 2022
E204: Energy (GJ) | F204: =SUM(G215:G223)+SUM(G227:G235)+SUM(G239:G247)+SUM(G251:G259)+SUM(G263:G271)+SUM(G275:G283)+SUM(G287:G295)+SUM(G299:G307) -> 35667144.47 | G204: 35859374.84 | H204: 36108915.47 | I204: 36340754.59 | J204: 36548439.52 | K204: 36703811.82
E207: ="Base year prices per tariff component for "&Q7-1& "" -> Base year prices per tariff component for 2012
F210: Prices | G210: Customer numbers and Quantity | H210: Customer numbers and Quantity | I210: Customer numbers and Quantity | J210: Customer numbers and Quantity | K210: Customer numbers and Quantity | L210: Customer numbers and Quantity
F211: 2012 | G211: 2012 | H211: 2013 | I211: 2014 | J211: 2015 | K211: 2016 | L211: 2017
E212: Domestic Tariff V Zone - SP AusNet Central
E213: Fixed charge | F213: 0.1035 | G213: 457260.15 | H213: 469431.8656 | I213: 482040.6042 | J213: 495105.5204 | K213: 508646.7031 | L213: 520167.4378
E214: Peak Volumes (GJ)
E215: 0 - 0.1 GJ | F215: 8.6879 | G215: 4868808.49 | H215: 4953220.59 | I215: 5036885.506 | J215: 5123649.301 | K215: 5211328.65 | L215: 5286386.944
... 187 more rows

Sheet Equity Raising Costs
F2: Equity Raising Costs Cash Flow Analysis
F4: $Nominal
F5: RAB and capex | G5: =Input!G40 -> 2013 | H5: =Input!H40 -> 2014 | I5: =Input!I40 -> 2015 | J5: =Input!J40 -> 2016 | K5: =Input!K40 -> 2017 | L5: Total
F6: Opening RAB | G6: =Assets!F474 -> 1275.298354 | H6: =Assets!G474 -> 1363.344527 | I6: =Assets!H474 -> 1449.866606 | J6: =Assets!I474 -> 1532.704133 | K6: =Assets!J474 -> 1602.689191 | L6: =SUM(G6:K6) -> 7223.902811
F7: Capex | G7: =Assets!G41 -> 104.872087 | H7: =Assets!H41 -> 107.7028205 | I7: =Assets!I41 -> 108.5891198 | J7: =Assets!J41 -> 99.23116637 | K7: =Assets!K41 -> 91.47500811 | L7: =SUM(G7:K7) -> 511.8702018
F8: Capex rate | G8: =G7/G6 -> 0.08223337434 | H8: 0.07899897525 | I8: 0.07489593822 | J8: 0.06474254505 | K8: 0.05707595 | L8: 0.07085784722
F10: Dividend assessment | G10: =G5 -> 2013 | H10: =H5 -> 2014 | I10: =I5 -> 2015 | J10: =J5 -> 2016 | K10: =K5 -> 2017 | L10: Total
F11: Tax payable | G11: =Analysis!G24 -> 2.297135177 | H11: =Analysis!H24 -> 5.359419119 | I11: =Analysis!I24 -> 6.649992994 | J11: =Analysis!J24 -> 7.944565951 | K11: =Analysis!K24 -> 9.327301819 | L11: =SUM(G11:K11) -> 31.57841506
F12: Dividends | G12: =(G11/$G$57)*(1-$G$57)*$G$52 -> 3.751987456 | H12: =(H11/$G$57)*(1-$G$57)*$G$52 -> 8.753717894 | I12: =(I11/$G$58)*(1-$G$58)*$G$52 -> 10.86165522 | J12: =(J11/$G$59)*(1-$G$59)*$G$52 -> 12.97612439 | K12: =(K11/$G$60)*(1-$G$60)*$G$52 -> 15.23459297 | L12: =SUM(G12:K12) -> 51.57807793
F13: Dividend reinvestment | G13: =G12*$G$55 -> 1.125596237 | H13: =H12*$G$55 -> 2.626115368 | I13: =I12*$G$55 -> 3.258496567 | J13: =J12*$G$55 -> 3.892837316 | K13: =K12*$G$55 -> 4.570377892 | L13: =SUM(G13:K13) -> 15.47342338
F15: Benchmark cash flows | G15: =G5 -> 2013 | H15: =H5 -> 2014 | I15: =I5 -> 2015 | J15: =J5 -> 2016 | K15: =K5 -> 2017 | L15: Total
F16: Revenue (smoothed) | G16: ='X factor'!E25 -> 194.0914134 | H16: ='X factor'!F25 -> 175.6838011 | I16: ='X factor'!G25 -> 183.4976363 | J16: ='X factor'!H25 -> 193.5456242 | K16: ='X factor'!I25 -> 205.5878122 | L16: =SUM(G16:K16) -> 952.4062871
F17: Opex | G17: =Analysis!G114 -> 49.64406902 | H17: =Analysis!H114 -> 53.14332254 | I17: =Analysis!I114 -> 55.35020042 | J17: =Analysis!J114 -> 57.87016034 | K17: =Analysis!K114 -> 60.5356813 | L17: 276.5434336
F18: Interest payment | G18: =Analysis!G59 -> 49.7083242 | H18: =Analysis!H59 -> 53.14017031 | I18: =Analysis!I59 -> 56.5126106 | J18: =Analysis!J59 -> 59.74143515 | K18: =Analysis!K59 -> 62.46929874 | L18: 281.571839
F19: Tax payable | G19: =Analysis!G24 -> 2.297135177 | H19: =Analysis!H24 -> 5.359419119 | I19: =Analysis!I24 -> 6.649992994 | J19: =Analysis!J24 -> 7.944565951 | K19: =Analysis!K24 -> 9.327301819 | L19: 31.57841506
F20: Internal cash flow | G20: =G16-G17-G18-G19 -> 92.44188499 | H20: =H16-H17-H18-H19 -> 64.0408891 | I20: =I16-I17-I18-I19 -> 64.98483227 | J20: =J16-J17-J18-J19 -> 67.98946276 | K20: =K16-K17-K18-K19 -> 73.25553033 | L20: 362.7125994
F21: Dividends | G21: =G12 -> 3.751987456 | H21: =H12 -> 8.753717894 | I21: =I12 -> 10.86165522 | J21: =J12 -> 12.97612439 | K21: =K12 -> 15.23459297 | L21: 51.57807793
F22: Retained cash flow (Excl. Dividend reivestment) | G22: =G20-G21 -> 88.68989754 | H22: =H20-H21 -> 55.28717121 | I22: =I20-I21 -> 54.12317704 | J22: =J20-J21 -> 55.01333837 | K22: =K20-K21 -> 58.02093736 | L22: 311.1345215
F24: Benchmark capex funding | G24: =G5 -> 2013 | H24: =H5 -> 2014 | I24: =I5 -> 2015 | J24: =J5 -> 2016 | K24: =K5 -> 2017 | L24: Total
F25: Capex funding requirement | G25: =G7/(1+vanilla)^0.5 -> 101.3482075 | H25: =H7/(1+vanilla)^0.5 -> 104.0838236 | I25: =I7/(1+vanilla)^0.5 -> 104.9403417 | J25: =J7/(1+vanilla)^0.5 -> 95.89683136 | K25: =K7/(1+vanilla)^0.5 -> 88.40129314 | L25: =SUM(G25:K25) -> 494.6704973
F26: Debt component | G26: =-Analysis!G60 -> 52.82770362 | H26: =-Analysis!H60 -> 51.91324746 | I26: =-Analysis!I60 -> 49.702516 | J26: =-Analysis!J60 -> 41.99103477 | K26: =-Analysis!K60 -> 35.29011894 | L26: =SUM(G26:K26) -> 231.7246208
F27: Equity component | G27: =G25-G26 -> 48.52050386 | H27: =H25-H26 -> 52.17057617 | I27: =I25-I26 -> 55.2378257 | J27: =J25-J26 -> 53.90579658 | K27: =K25-K26 -> 53.1111742 | L27: =SUM(G27:K27) -> 262.9458765
F28: Retained cash flow (Excl. Dividend reivestment) | G28: =G22 -> 88.68989754 | H28: =H22 -> 55.28717121 | I28: =I22 -> 54.12317704 | J28: =J22 -> 55.01333837 | K28: =K22 -> 58.02093736 | L28: =SUM(G28:K28) -> 311.1345215
F29: Equity requirement (SEO) | G29: =G27-G28 -> -40.16939367 | H29: =H27-H28 -> -3.116595042 | I29: =I27-I28 -> 1.114648659 | J29: =J27-J28 -> -1.107541787 | K29: =K27-K28 -> -4.90976316 | L29: =SUM(G29:K29) -> -48.188645
F31: Equity raising costs ($m real 2012) | G31: =G5 -> 2013 | H31: 2014 | I31: 2015 | J31: 2016 | K31: 2017 | L31: Total
F32: Equity component | G32: =G27/Analysis!G8 -> 47.33707694 | H32: =H27/Analysis!H8 -> 49.65670545 | I32: =I27/Analysis!I8 -> 51.29381241 | J32: =J27/Analysis!J8 -> 48.83599117 | K32: =K27/Analysis!K8 -> 46.94253904 | L32: =SUM(G32:K32) -> 244.066125
F33: Retained Cash Flows (Excl. Dividen reinvestment) | G33: =G28/Analysis!G8 -> 86.5267293 | H33: =H28/Analysis!H8 -> 52.62312548 | I33: =I28/Analysis!I8 -> 50.25875032 | J33: =J28/Analysis!J8 -> 49.83936937 | K33: =K28/Analysis!K8 -> 51.28205426 | L33: =SUM(G33:K33) -> 290.5300287
F34: Equity requirement | G34: =G32-G33 -> -39.18965237 | H34: =H32-H33 -> -2.966420028 | I34: =I32-I33 -> 1.035062088 | J34: =J32-J33 -> -1.003378196 | K34: =K32-K33 -> -4.33951522 | L34: =SUM(G34:K34) -> -46.46390372
F36: Dividend reinvestment | G36: =G13/Analysis!G8 -> 1.09814267 | H36: =H13/Analysis!H8 -> 2.499574413 | I36: =I13/Analysis!I8 -> 3.025837993 | J36: =J13/Analysis!J8 -> 3.526718476 | K36: =K13/Analysis!K8 -> 4.039548095 | L36: =SUM(G36:K36) -> 14.18982165
F38: ($m Real 2012)
F39: Dividend Reinvestment Plan Requirement | L39: =IF(L34>0,MIN(L34,L36),0) -> 0
F40: External Equity (SEO) Requirement | L40: =IF((L34-L36)>0,(L34-L36),0) -> 0
F41: Total Equity Requirement | L41: =L39+L40 -> 0
F43: Dividend Reinvestment Plan Cost | L43: =L39*G54 -> 0
F44: External Equity Raising (SEO) Cost | L44: =L40*G53 -> 0
F45: Total Equity Raising Cost | L45: =L43+L44 -> 0
F51: Assumptions
F52: Dividend/imputation payout ratio | G52: 0.7
F53: Benchmark SEO raising cost | G53: 0.03
F54: Benchmark DRP cost | G54: 0.01
F55: Benchmark DRP takeup | G55: 0.3
F56: Corporate tax rates
F57: 2013 to 2014 | G57: =WACC!F14 -> 0.3
F58: 2015 | G58: =G57 -> 0.3
F59: 2016 | G59: =G58 -> 0.3
F60: 2017+ | G60: =G59 -> 0.3
F61: Inflation forecast | G61: =WACC!F9 -> 0.025
F63: Input linked to PTRM

Sheet Ancillary
B3: ANCILLARY REFERENCE SERVICES
B5: Service Name | C5: Price $ (1/1/12) | D5: Actual Quantity 2011 | E5: Price $ from 1/7/13
F6: Customer growth
B7: Disconnection - locks & plugs at the meter installation | C7: 52 | D7: 10012 | E7: =C7+(C7*Assets!$G$6)*2 -> 54.6 | F7: 2012 | G7: 2013 | H7: 2014 | I7: 2015 | J7: 2016 | K7: 2017
B8: Reconnection - following meter removal/ following insertion of locks & plugs at the meter installation | C8: 52 | D8: 6810 | E8: =C8+(C8*Assets!$G$6)*2 -> 54.6 | F8: 0.02541071408 | G8: 0.02458894594 | H8: 0.02473651053 | I8: 0.02491175573 | J8: 0.02497061516 | K8: 0.02117631545
B11: Special Meter Read (SMR) | C11: 8.06 | D11: 146503 | E11: =C11+(C11*Assets!$G$6)*2 -> 8.463 | F11: =D11*(1+F8) -> 150225.7458 | G11: =F11*(1+G8) -> 153919.6386 | H11: =G11*(1+H8) -> 157727.0733 | I11: =H11*(1+I8) -> 161656.3317 | J11: =I11*(1+J8) -> 165692.9897 | K11: =J11*(1+K8) -> 169201.7567
B12: Meter and gas installation test | C12: 156 | D12: 46 | E12: =C12+(C12*Assets!$G$6)*2 -> 163.8
B14: Total proposed ARS
B17: BUILDING BLOCK REVENUE REQUIREMENT - ANCILLARY SERVICES
B18: Ancillary Revenue $m (2012) | C18: 2012 | D18: 2013 | E18: 2014 | F18: 2015 | G18: 2016 | H18: 2017
B20: Disconnection - remove meter | C20: =$C7*$D7/10^6 -> 0.520624 | D20: =$C7*$D7/10^6 -> 0.520624 | E20: =$C7*$D7/10^6 -> 0.520624 | F20: 0.520624 | G20: 0.520624 | H20: 0.520624
B21: Reconnection - following meter removal/ following insertion of locks & plugs at the meter installation | C21: 0.35412 | D21: 0.35412 | E21: 0.35412 | F21: 0.35412 | G21: 0.35412 | H21: 0.35412
B24: Special Meter Read (SMR) | C24: =$C11*F11/10^6 -> 1.210819512 | D24: 1.240592287 | E24: 1.271280211 | F24: 1.302950033 | G24: 1.335485497 | H24: 1.363766159
B25: Meter and gas installation test | C25: =$C12*$D12/10^6 -> 0.007176 | D25: 0.007176 | E25: 0.007176 | F25: 0.007176 | G25: 0.007176 | H25: 0.007176
B27: Total proposed ARS
C28: =SUM(C19:C26) -> 2.092739512 | D28: 2.122512287 | E28: 2.153200211 | F28: 2.184870033 | G28: 2.217405497 | H28: 2.245686159
B30: $m (Nominal) | C30: 2013 | D30: 2014 | E30: 2015 | F30: 2016 | G30: 2017
B31: Ancillary Revenue | C31: =D28*Assets!G7 -> 2.175575094 | D31: =E28*Assets!H7 -> 2.262205972 | E31: =F28*Assets!I7 -> 2.352866056 | F31: =G28*Assets!J7 -> 2.447600771 | G31: =H28*Assets!K7 -> 2.540787764

Sheet Carry-over
A3: EFFICIENCY CARRYOVER
A5: Operating and Maintenance Expenditure
B6: 2008 | C6: 2009 | D6: 2010 | E6: 2011 | F6: 2012 | G6: 2013 | H6: 2014 | I6: 2015 | J6: 2016 | K6: 2017
A7: O&M Benchmark ($m Real 2006) | B7: =B63 -> 42.99677689 | C7: =C63 -> 43.17500286 | D7: =D63 -> 43.92106028 | E7: =E63 -> 44.68017371 | F7: =F63 -> 45.79257163
A8: O&M Benchmark ($m Real 2012) | B8: =B7*$B$56 -> 51.49280223 | C8: =C7*$B$56 -> 51.70624508 | D8: =D7*$B$56 -> 52.59972106 | E8: =E7*$B$56 -> 53.50883287 | F8: =F7*$B$56 -> 54.84103705
A9: Adjustments to O&M ($m Real 2012) | B9: =B76 -> 0.1380810336 | C9: =C76 -> 0.2813815302 | D9: =D76 -> 0.4300497323 | E9: =E76 -> 0.5842376317 | F9: =F76 -> 0.7441010585
A10: Adjusted O&M Benchmark ($m Real 2012) | B10: =B8+B9 -> 51.63088326 | C10: =C8+C9 -> 51.98762661 | D10: =D8+D9 -> 53.02977079 | E10: =E8+E9 -> 54.0930705 | F10: =F8+F9 -> 55.58513811
A12: O&M Actual $m (MOD) | B12: =B68 -> 37.22108159 | C12: =C68 -> 42.70875018 | D12: =D68 -> 38.05897464 | E12: =E68 -> 41.05069919
A13: O&M Actual ($m Real 2012) | B13: =B12*D$56 -> 42.10253492 | C13: =C12*E$56 -> 46.01771641 | D13: =D12*F$56 -> 40.49691608 | E13: =E12*G$56 -> 42.4956459 | F13: =E13+(F10-E10) -> 43.9877135
A15: O&M Underspend ($m Real 2012) | B15: =B10-B13 -> 9.528348344 | C15: =C10-C13 -> 5.969910199 | D15: =D10-D13 -> 12.53285472 | E15: =E10-E13 -> 11.5974246 | F15: =F10-F13 -> 11.5974246
A16: O&M Incremental Gain ($m Real 2012) | B16: =B15 -> 9.528348344 | C16: =C15-B15 -> -3.558438145 | D16: =D15-C15 -> 6.562944519 | E16: =E15-D15 -> -0.9354301128 | F16: =F15-E15 -> 0
A18: Carry-Over - Year 2008 | C18: =$B$16 -> 9.528348344 | D18: =$B$16 -> 9.528348344 | E18: =$B$16 -> 9.528348344 | F18: =$B$16 -> 9.528348344 | G18: =$B$16 -> 9.528348344
A19: Carry-Over - Year 2009 | D19: =$C$16 -> -3.558438145 | E19: =$C$16 -> -3.558438145 | F19: =$C$16 -> -3.558438145 | G19: =$C$16 -> -3.558438145 | H19: =$C$16 -> -3.558438145
A20: Carry-Over - Year 2010 | E20: =$D$16 -> 6.562944519 | F20: =$D$16 -> 6.562944519 | G20: =$D$16 -> 6.562944519 | H20: =$D$16 -> 6.562944519 | I20: =$D$16 -> 6.562944519
A21: Carry-Over - Year 2011 | F21: =$E$16 -> -0.9354301128 | G21: =$E$16 -> -0.9354301128 | H21: =$E$16 -> -0.9354301128 | I21: =$E$16 -> -0.9354301128 | J21: =$E$16 -> -0.9354301128
A22: Carry-Over - Year 2012 | G22: =$F$16 -> 0 | H22: =$F$16 -> 0 | I22: =$F$16 -> 0 | J22: =$F$16 -> 0 | K22: =$F$16 -> 0
A23: O&M Efficiency Carry-Over ($m Real 2012) | G23: =SUM(G18:G22) -> 11.5974246 | H23: =SUM(H18:H22) -> 2.069076261 | I23: =SUM(I18:I22) -> 5.627514406 | J23: =SUM(J18:J22) -> -0.9354301128 | K23: =SUM(K18:K22) -> 0
A25: Capital Expenditure
B26: 2008 | C26: 2009 | D26: 2010 | E26: 2011 | F26: 2012 | G26: 2013 | H26: 2014 | I26: 2015 | J26: 2016 | K26: 2017
A27: Capex Benchmark ($m Real 2006) | B27: =B137-B138 -> 65.9869935 | C27: =C137-C138 -> 73.33095098 | D27: =D137-D138 -> 62.6786679 | E27: =E137-E138 -> 59.84771453 | F27: =F137-F138 -> 58.42776686
A28: Capex Benchmark ($m Real 2012) | B28: =B27*$B$56 -> 79.02581197 | C28: =C27*$B$56 -> 87.82091192 | D28: =D27*$B$56 -> 75.06377184 | E28: =E27*$B$56 -> 71.67343115 | F28: =F27*$B$56 -> 69.97290638
A29: Adjustments to Capex ($m Real 2012) | B29: =B200 -> 2.857115059 | C29: =C200 -> -1.476396091 | D29: =D200 -> 3.840494123 | E29: =E200 -> 0.2074800521 | F29: =F200 -> 6.314661339
A30: Adjusted Capex Benchmark ($m Real 2012) | B30: =B28+B29 -> 81.88292703 | C30: =C28+C29 -> 86.34451583 | D30: =D28+D29 -> 78.90426596 | E30: =E28+E29 -> 71.8809112 | F30: =F28+F29 -> 76.28756772
A32: Capex Actual $m (MOD) | B32: =B142-B143 -> 62.99117488 | C32: =C142-C143 -> 67.38391672 | D32: =D142-D143 -> 68.7490335 | E32: =E142-E143 -> 79.3426026
A33: Capex Actual ($m Real 2012) | B33: =B32*D$56 -> 71.25231257 | C33: =C32*E$56 -> 72.60465261 | D33: =D32*F$56 -> 73.15288618 | E33: =E32*G$56 -> 82.13538896 | F33: =F30 -> 76.28756772
A35: Capex Underspend ($m Real 2012) | B35: =B30-B33 -> 10.63061446 | C35: =C30-C33 -> 13.73986322 | D35: =D30-D33 -> 5.751379787 | E35: =E30-E33 -> -10.25447775 | F35: =F30-F33 -> 0
A36: Capex Incremental Gain ($m Real 2012) | B36: =B35*$B$48 -> 0.5473165856 | C36: =C35*$B$48 -> 0.7073960825 | D36: =D35*$B$48 -> 0.2961094637 | E36: =E35*$B$48 -> -0.5279512085 | F36: =F35*$B$48 -> 0
A38: Carry-Over - Year 2008 | C38: =$B$36 -> 0.5473165856 | D38: =$B$36 -> 0.5473165856 | E38: =$B$36 -> 0.5473165856 | F38: =$B$36 -> 0.5473165856 | G38: =$B$36 -> 0.5473165856
A39: Carry-Over - Year 2009 | D39: =$C$36 -> 0.7073960825 | E39: =$C$36 -> 0.7073960825 | F39: =$C$36 -> 0.7073960825 | G39: =$C$36 -> 0.7073960825 | H39: =$C$36 -> 0.7073960825
A40: Carry-Over - Year 2010 | E40: =$D$36 -> 0.2961094637 | F40: =$D$36 -> 0.2961094637 | G40: =$D$36 -> 0.2961094637 | H40: =$D$36 -> 0.2961094637 | I40: =$D$36 -> 0.2961094637
A41: Carry-Over - Year 2011 | F41: =$E$36 -> -0.5279512085 | G41: =$E$36 -> -0.5279512085 | H41: =$E$36 -> -0.5279512085 | I41: =$E$36 -> -0.5279512085 | J41: =$E$36 -> -0.5279512085
A42: Carry-Over - Year 2012 | G42: =$F$36 -> 0 | H42: =$F$36 -> 0 | I42: =$F$36 -> 0 | J42: =$F$36 -> 0 | K42: =$F$36 -> 0
A43: Capex Efficiency Carry-Over ($m Real 2012) | G43: =SUM(G38:G42) -> 1.022870923 | H43: =SUM(H38:H42) -> 0.4755543378 | I43: =SUM(I38:I42) -> -0.2318417447 | J43: =SUM(J38:J42) -> -0.5279512085 | K43: =SUM(K38:K42) -> 0
A45: Total Efficiency Carry-Over ($m Real 2012) | G45: =SUM(G23,G43)*(1+$B$49) -> 12.7770754 | H45: =SUM(H23,H43)*(1+$B$49) -> 2.576242129 | I45: =SUM(I23,I43)*(1+$B$49) -> 5.462702221 | J45: =SUM(J23,J43)*(1+$B$49) -> -1.481560668 | K45: =SUM(K23,K43)*(1+$B$49) -> 0
A48: Pre Tax WACC (Real) | B48: =WACC!F32 -> 0.05148494356
A49: 6 month adjustment to bring carry-over amount to the end of $2012 | B49: =(1+Assets!G6)^0.5-1 -> 0.01242283657
A51: CPI | B51: All groups – weighted average of eight capital cities
B52: 2006 | C52: 2007 | D52: 2008 | E52: 2009 | F52: 2010 | G52: 2011 | H52: 2012
B53: 2005-09-30 | C53: 2006-09-30 | D53: 2007-09-30 | E53: 2008-09-30 | F53: 2009-09-30 | G53: 2010-09-30 | H53: 2011-09-30
A54: CPI Index | B54: 149.8 | C54: 155.7 | D54: 158.6 | E54: 166.5 | F54: 168.6 | G54: 173.3 | H54: 179.4
A55: Actual CPI (lagged) | C55: =C54/B54-1 -> 0.0393858478 | D55: 0.01862556198 | E55: 0.04981084489 | F55: 0.01261261261 | G55: 0.02787663108 | H55: 0.03519907675
A56: Convert from $Nominal to $Real 2012 | B56: =C56*(1+C55) -> 1.197596796 | C56: 1.1522158 | D56: 1.131147541 | E56: 1.077477477 | F56: 1.06405694 | G56: 1.035199077 | H56: 1
A59: Efficiency Carry-over Benchmark Adjustments
A61: OPERATING EXPENDITURE
A62: O & M Benchmark ($m Real 2006) | B62: 2008 | C62: 2009 | D62: 2010 | E62: 2011 | F62: 2012
A63: Total O&M benchmark | B63: 42.99677689 | C63: 43.17500286 | D63: 43.92106028 | E63: 44.68017371 | F63: 45.79257163
A64: Base O&M benchmark | B64: 41.17801168 | C64: 41.17801168 | D64: 41.17801168 | E64: 41.17801168 | F64: 41.17801168
A67: O&M Actual $m (MOD) | B67: 2008 | C67: 2009 | D67: 2010 | E67: 2011
A68: Total O&M | B68: 37.22108159 | C68: 42.70875018 | D68: 38.05897464 | E68: 41.05069919
A71: O & M Benchmark Adjustment for Growth
A72: Rate of Change benchmark allowance ($m Real 2006) | B72: =B82 -> 0.7206152045 | C72: =C82 -> 1.453841175 | D72: =D82 -> 2.1998986 | E72: =E82 -> 2.95901203 | F72: =F82 -> 3.731409945
A73: Adjusted Rate of Change benchmark allowance ($m Real 2006) | B73: =B110 -> 0.8359136372 | C73: =C110 -> 1.688796321 | D73: =D110 -> 2.558992524 | E73: =E110 -> 3.446853709 | F73: =F110 -> 4.352738477
A74: Adjustment to O&M benchmark for actual Growth ($m Real 2006) | B74: =B73-B72 -> 0.1152984327 | C74: =C73-C72 -> 0.2349551462 | D74: =D73-D72 -> 0.3590939237 | E74: =E73-E72 -> 0.4878416791 | F74: =F73-F72 -> 0.6213285316
A76: Adjustment to O&M benchmark ($m Real 2012) | B76: =B74*$B$56 -> 0.1380810336 | C76: =C74*$B$56 -> 0.2813815302 | D76: =D74*$B$56 -> 0.4300497323 | E76: =E74*$B$56 -> 0.5842376317 | F76: =F74*$B$56 -> 0.7441010585
A79: Benchmark O & M Rate of Change Allowance | B79: 2008 | C79: 2009 | D79: 2010 | E79: 2011 | F79: 2012
A80: Base O&M benchmark ($m Real 2006) | B80: =B64 -> 41.17801168 | C80: =C64 -> 41.17801168 | D80: =D64 -> 41.17801168 | E80: =E64 -> 41.17801168 | F80: =F64 -> 41.17801168
A81: Rate of Change (%) | B81: =$B$92 -> 0.0175 | C81: =$B$92 -> 0.0175 | D81: =$B$92 -> 0.0175 | E81: =$B$92 -> 0.0175 | F81: =$B$92 -> 0.0175
A82: Rate of Change benchmark allowance ($m Real 2006) | B82: =B80*B81 -> 0.7206152045 | C82: =(C80+B82)*C81+B82 -> 1.453841175 | D82: =(D80+C82)*D81+C82 -> 2.1998986 | E82: =(E80+D82)*E81+D82 -> 2.95901203 | F82: =(F80+E82)*F81+E82 -> 3.731409945
A84: Rate of Change
A85: Labor Price [A] | B85: 0.057
A86: Labor Share [B] | B86: 0.62
A87: Non-labor Price [C] | B87: 0.026
A88: O&M Input Price [D] = [B * A + (1 - B) * C] | B88: =ROUND(B86*B85+(1-B86)*B87,4) -> 0.0452
A89: PFP [E] | B89: 0.0224
A90: Output [F] | B90: =B103 -> 0.0207
A91: CPI [G] | B91: 0.026
A92: Rate of Change [H] = [D - E + F - G] | B92: =ROUND(B88-B89+B90-B91,4) -> 0.0175
A95: Output Growth | B95: 2007 | C95: 2008 | D95: 2009 | E95: 2010 | F95: 2011 | G95: 2012
A96: Forecast Total Customers | B96: 526845.4144 | C96: 540470.3371 | D96: 554928.7257 | E96: 569507.0688 | F96: 583928.6687 | G96: 597141.984
A97: Forecast Total Delivery Volumes (GJ) | B97: 73093033.83 | C97: 74295931.46 | D97: 74239852.99 | E97: 74784566.24 | F97: 75128218.77 | G97: 76227309.45
A99: Customer Growth | B99: =ROUND(LN(G96/B96)/5,4) -> 0.025
A100: Delivery Growth | B100: =ROUND(LN(G97/B97)/5,4) -> 0.0084
A101: Weight - Customers | B101: 0.7421522193
A102: Weight - Deliveries | B102: 0.2578477807
A103: Output Growth | B103: =ROUND(B99*B101+B100*B102,4) -> 0.0207
A107: Adjusted Benchmark O & M Rate of Change Allowance | B107: 2008 | C107: 2009 | D107: 2010 | E107: 2011 | F107: 2012
A108: Base O&M benchmark ($m Real 2006) | B108: =B80 -> 41.17801168 | C108: =C80 -> 41.17801168 | D108: =D80 -> 41.17801168 | E108: =E80 -> 41.17801168 | F108: =F80 -> 41.17801168
A109: Rate of Change (%) | B109: =$B$120 -> 0.0203 | C109: =$B$120 -> 0.0203 | D109: =$B$120 -> 0.0203 | E109: =$B$120 -> 0.0203 | F109: =$B$120 -> 0.0203
A110: Adjusted Rate of Change benchmark allowance ($m Real 2006) | B110: =B108*B109 -> 0.8359136372 | C110: =(C108+B110)*C109+B110 -> 1.688796321 | D110: =(D108+C110)*D109+C110 -> 2.558992524 | E110: =(E108+D110)*E109+D110 -> 3.446853709 | F110: =(F108+E110)*F109+E110 -> 4.352738477
A112: Rate of Change
A113: Labor Price [A] | B113: =B85 -> 0.057
A114: Labor Share [B] | B114: =B86 -> 0.62
A115: Non-labor Price [C] | B115: =B87 -> 0.026
A116: O&M Input Price [D] = [B * A + (1 - B) * C] | B116: =ROUND(B114*B113+(1-B114)*B115,4) -> 0.0452
A117: PFP [E] | B117: =B89 -> 0.0224
A118: Output [F] | B118: =B131 -> 0.0235
A119: CPI [G] | B119: =B91 -> 0.026
A120: Rate of Change [H] = [D - E + F - G] | B120: =ROUND(B116-B117+B118-B119,4) -> 0.0203
A123: Output Growth | B123: 2007 | C123: 2008 | D123: 2009 | E123: 2010 | F123: 2011 | G123: 2012
A124: Actual \ Estimate Total Customers | B124: 528273.5 | C124: 543425 | D124: 560100.5 | E124: 577745.5 | F124: 594437.3232 | G124: 609156.7071
A125: Actual \ Estimate Total Delivery Volumes (GJ) | B125: 69610229.79 | C125: 75367109.12 | D125: 74882303.17 | E125: 72324813.34 | F125: 71072708.99 | G125: 72894585.41
A127: Customer Growth | B127: =ROUND(LN(G124/B124)/5,4) -> 0.0285
A128: Delivery Growth | B128: =ROUND(LN(G125/B125)/5,4) -> 0.0092
A129: Weight - Customers | B129: =B101 -> 0.7421522193
A130: Weight - Deliveries | B130: =B102 -> 0.2578477807
A131: Output Growth | B131: =ROUND(B127*B129+B128*B130,4) -> 0.0235
A135: CAPITAL EXPENDITURE
A136: Capex Benchmark ($m Real 2006) | B136: 2008 | C136: 2009 | D136: 2010 | E136: 2011 | F136: 2012
A137: Gross Capex | B137: 69.07010033 | C137: 76.5562615 | D137: 65.979655 | E137: 63.18509768 | F137: 61.77938309
A138: Customer Contributions | B138: 3.08310683 | C138: 3.225310523 | D138: 3.300987101 | E138: 3.337383156 | F138: 3.351616229
A141: Capex Actual $m (MOD) | B141: 2008 | C141: 2009 | D141: 2010 | E141: 2011
A142: Gross Capex | B142: 66.60197495 | C142: 70.50306347 | D142: 72.15210209 | E142: 82.84414218
A143: Customer Contributions | B143: 3.61080007 | C143: 3.11914675 | D143: 3.40306859 | E143: 3.50153958
A146: Benchmark Adjustment for Customer connections | B146: 2008 | C146: 2009 | D146: 2010 | E146: 2011 | F146: 2012
A147: Domestic
A148: Forecast Number of new connections | B148: 13299 | C148: 14082 | D148: 14301 | E148: 13943 | F148: 12773
A149: Actual \ Estimate Number of new connection | B149: 17069 | C149: 18016 | D149: 19115 | E149: 18466 | F149: 15854
B150: =B149-B148 -> 3770 | C150: =C149-C148 -> 3934 | D150: =D149-D148 -> 4814 | E150: =E149-E148 -> 4523 | F150: =F149-F148 -> 3081
A152: Capital expenditure per connection ($ Real 2006) | B152: 1610 | C152: 1643 | D152: 1677 | E152: 1712 | F152: 1748
A153: Capital expenditure per connection ($ Real 2012) | B153: =B152*$B$56 -> 1928.130841 | C153: =C152*$B$56 -> 1967.651535 | D153: =D152*$B$56 -> 2008.369826 | E153: =E152*$B$56 -> 2050.285714 | F153: =F152*$B$56 -> 2093.399199
A154: Adjustments to Capex Benchmark ($m Real 2012) | B154: =B150*B153/10^6 -> 7.269053271 | C154: =C150*C153/10^6 -> 7.74074114 | D154: =D150*D153/10^6 -> 9.668292344 | E154: =E150*E153/10^6 -> 9.273442286 | F154: =F150*F153/10^6 -> 6.449762932
A156: Non Domestic
A157: Forecast Number of replacements | B157: 345 | C157: 366.6787234 | D157: 387 | E157: 432 | F157: 445
A158: Actual \ Estimate Number of new connection | B158: 253 | C158: 260 | D158: 261 | E158: 300 | F158: 203.7421105
B159: =B158-B157 -> -92 | C159: =C158-C157 -> -106.6787234 | D159: =D158-D157 -> -126 | E159: =E158-E157 -> -132 | F159: =F158-F157 -> -241.2578895
A161: Capital expenditure per connection ($ Real 2006) | B161: 12213 | C161: 12466 | D161: 12724 | E161: 12987 | F161: 13256
A162: Capital expenditure per connection ($ Real 2012) | B162: =B161*$B$56 -> 14626.24967 | C162: =C161*$B$56 -> 14929.24166 | D162: =D161*$B$56 -> 15238.22163 | E162: =E161*$B$56 -> 15553.18959 | F162: =F161*$B$56 -> 15875.34312
A163: Adjustments to Capex Benchmark ($m Real 2012) | B163: =B159*B162/10^6 -> -1.345614969 | C163: =C159*C162/10^6 -> -1.592632441 | D163: =D159*D162/10^6 -> -1.920015925 | E163: =E159*E162/10^6 -> -2.053021025 | F163: =F159*F162/10^6 -> -3.830051777
A165: Adjustments to Capex Benchmark ($m Real 2012) | B165: =SUM(B154,B163) -> 5.923438302 | C165: =SUM(C154,C163) -> 6.148108699 | D165: =SUM(D154,D163) -> 7.748276419 | E165: =SUM(E154,E163) -> 7.22042126 | F165: =SUM(F154,F163) -> 2.619711155
A168: Benchmark Adjustment for LP replacement program | B168: 2008 | C168: 2009 | D168: 2010 | E168: 2011 | F168: 2012
A169: Forecast km replaced | B169: 90 | C169: 90 | D169: 90 | E169: 90 | F169: 90
A170: Actual \ Estimate km replaced | B170: 77 | C170: 66.2 | D170: 74.9 | E170: 72.7 | F170: 110
B171: =B170-B169 -> -13 | C171: =C170-C169 -> -23.8 | D171: =D170-D169 -> -15.1 | E171: =E170-E169 -> -17.3 | F171: =F170-F169 -> 20
A173: Capital Expenditure per metre ($ Real 2006) | B173: 140 | C173: 144 | D173: 148 | E173: 152 | F173: 156
A174: Capital Expenditure per metre ($ Real 2012) | B174: =B173*$B$56 -> 167.6635514 | C174: =C173*$B$56 -> 172.4539386 | D174: =D173*$B$56 -> 177.2443258 | E174: =E173*$B$56 -> 182.034713 | F174: =F173*$B$56 -> 186.8251001
A175: Adjustments to Capex Benchmark ($m Real 2012) | B175: =B174*B171/10^3 -> -2.179626168 | C175: =C174*C171/10^3 -> -4.104403738 | D175: =D174*D171/10^3 -> -2.676389319 | E175: =E174*E171/10^3 -> -3.149200534 | F175: =F174*F171/10^3 -> 3.736502003
A178: Benchmark Adjustment for Meter Replacement | B178: 2008 | C178: 2009 | D178: 2010 | E178: 2011 | F178: 2012
A179: Domestic
A180: Forecast Number of replacements | B180: 55529 | C180: 38727 | D180: 23484 | E180: 37381 | F180: 22843
A181: Actual \ Estimate Number of replacements | B181: 49408 | C181: 16798 | D181: 16934 | E181: 17142 | F181: 30853
B182: =B181-B180 -> -6121 | C182: =C181-C180 -> -21929 | D182: =D181-D180 -> -6550 | E182: =E181-E180 -> -20239 | F182: =F181-F180 -> 8010
A184: Capital expenditure per meter ($ Real 2006) | B184: 117 | C184: 110 | D184: 115 | E184: 123 | F184: 116
A185: Capital expenditure per meter ($ Real 2012) | B185: =B184*$B$56 -> 140.1188251 | C185: =C184*$B$56 -> 131.7356475 | D185: =D184*$B$56 -> 137.7236315 | E185: =E184*$B$56 -> 147.3044059 | F185: =F184*$B$56 -> 138.9212283
A186: Adjustments to Capex Benchmark ($m Real 2012) | B186: =B185*B182/10^6 -> -0.8576673284 | C186: =C185*C182/10^6 -> -2.888831015 | D186: =D185*D182/10^6 -> -0.9020897864 | E186: =E185*E182/10^6 -> -2.98129387 | F186: =F185*F182/10^6 -> 1.112759039
A188: Non Domestic
A189: Forecast Number of replacements | B189: 611 | C189: 708 | D189: 720 | E189: 1120 | F189: 1219
A190: Actual \ Estimate Number of replacements | B190: 599 | C190: 386 | D190: 565 | E190: 763 | F190: 656
B191: =B190-B189 -> -12 | C191: =C190-C189 -> -322 | D191: =D190-D189 -> -155 | E191: =E190-E189 -> -357 | F191: =F190-F189 -> -563
A193: Capital expenditure per meter ($ Real 2006) | B193: 2020 | C193: 1637 | D193: 1774 | E193: 2064 | F193: 1712
A194: Capital expenditure per meter ($ Real 2012) | B194: =B193*$B$56 -> 2419.145527 | C194: =C193*$B$56 -> 1960.465955 | D194: =D193*$B$56 -> 2124.536716 | E194: =E193*$B$56 -> 2471.839786 | F194: =F193*$B$56 -> 2050.285714
A195: Adjustments to Capex Benchmark ($m Real 2012) | B195: =B194*B191/10^6 -> -0.02902974633 | C195: =C194*C191/10^6 -> -0.6312700374 | D195: =D194*D191/10^6 -> -0.3293031909 | E195: =E194*E191/10^6 -> -0.8824468037 | F195: =F194*F191/10^6 -> -1.154310857
A197: Adjustments to Capex Benchmark ($m Real 2012) | B197: =SUM(B186,B195) -> -0.8866970748 | C197: =SUM(C186,C195) -> -3.520101052 | D197: =SUM(D186,D195) -> -1.231392977 | E197: =SUM(E186,E195) -> -3.863740674 | F197: =SUM(F186,F195) -> -0.04155181842
A200: Total Adjustments to Capex Benchmark ($m Real 2012) | B200: =SUM(B165,B175,B197) -> 2.857115059 | C200: =SUM(C165,C175,C197) -> -1.476396091 | D200: =SUM(D165,D175,D197) -> 3.840494123 | E200: =SUM(E165,E175,E197) -> 0.2074800521 | F200: =SUM(F165,F175,F197) -> 6.314661339

Sheet Tax Dep
A3: TAX DEPRECIATION - GROUP 1 ASSET CLASS
A5: Group 1 Asset Class | B5: OAV $m (MOD) | C5: Depn Life | D5: Depn Method
A6: Mains & Services | B6: =Input!J332 -> 536.092 | C6: =Input!F332 -> 7.501875469 | D6: Declining Balance
A7: Meters | B7: =Input!J333 -> 61.822 | C7: =Input!F333 -> 1 | D7: Fully Deductible
A8: Land & Buildings | B8: =Input!J334 -> 11.196 | C8: =Input!F334 -> 40 | D8: Straight Line
A9: Other Assets | B9: =Input!J335 -> 1.775 | C9: =Input!F335 -> 5 | D9: Declining Balance
B10: =SUM(B6:B9) -> 610.885
A12: Tax Depreciation Schedule $m (MOD)
A14: =A$6 -> Mains & Services
A15: OAV | B15: =B6 -> 536.092
A16: Depn Life | B16: =C6 -> 7.501875469
A17: Depn Method | B17: =D6 -> Declining Balance
A18: Depn Rate | B18: =IF(B17="Straight Line",1/B16,IF(B17="Declining Balance",1/B16*1.5,1)) -> 0.19995
B20: 1996 | C20: 1997 | D20: 1998 | E20: 1999 | F20: 2000 | G20: 2001 | H20: 2002 | I20: 2003 | J20: 2004 | K20: 2005 | L20: 2006 | M20: 2007 | N20: 2008 | O20: 2009 | P20: 2010 | Q20: 2011 | R20: 2012 | S20: 2013 | T20: 2014 | U20: 2015 | V20: 2016 | W20: 2017 | X20: =W20+1 -> 2018 | Y20: 2019 | Z20: 2020 | AA20: 2021 | AB20: 2022 | AC20: 2023 | AD20: 2024 | AE20: 2025 | AF20: 2026 | AG20: 2027 | AH20: 2028 | AI20: 2029 | AJ20: 2030 | AK20: 2031 | AL20: 2032 | AM20: 2033 | AN20: 2034 | AO20: 2035 | AP20: 2036 | AQ20: 2037 | AR20: 2038 | AS20: 2039 | AT20: 2040 | AU20: 2041 | AV20: 2042 | AW20: 2043 | AX20: 2044 | AY20: 2045 | AZ20: 2046 | BA20: 2047 | BB20: 2048 | BC20: 2049 | BD20: 2050 | BE20: 2051 | BF20: 2052 | BG20: 2053 | BH20: 2054 | BI20: 2055 | BJ20: 2056 | BK20: 2057 | BL20: 2058 | BM20: 2059 | BN20: 2060 | BO20: 2061 | BP20: 2062 | BQ20: 2063 | BR20: 2064 | BS20: 2065 | BT20: 2066 | BU20: 2067
A21: Opening Asset Value | B21: =B15 -> 536.092 | C21: =B23 -> 482.4962023 | D21: =C23 -> 386.0210867 | E21: 308.8361704 | F21: 247.0843781 | G21: 197.6798567 | H21: 158.1537694 | I21: 126.5309232 | J21: 101.2310651 | K21: 80.98991362 | L21: 64.79598039 | M21: 51.84002411 | N21: =M23 -> 41.47461129 | O21: 33.18176276 | P21: 26.5470693 | Q21: 21.23898279 | R21: 16.99224818 | S21: 13.59464816 | T21: 10.87639826 | U21: 8.701662428 | V21: 6.961765025 | W21: 5.569760109 | X21: 4.456086575 | Y21: =X23 -> 3.565092064 | Z21: 2.852251906 | AA21: 2.281944137 | AB21: 1.825669407 | AC21: 1.460626809 | AD21: 1.168574479 | AE21: 0.9349180116 | AF21: 0.7479811552 | AG21: 0.5984223232 | AH21: 0.4787677797 | AI21: 0.3830381622 | AJ21: 0.3064496816 | AK21: 0.2451750678 | AL21: 0.196152313 | AM21: 0.156931658 | AN21: 0.125553173 | AO21: 0.100448816 | AP21: 0.08036407528 | AQ21: 0.06429527843 | AR21: 0.0514394375 | AS21: 0.04115412198 | AT21: 0.03292535529 | AU21: 0.0263419305 | AV21: 0.02107486149 | AW21: 0.01686094294 | AX21: 0.0134895974 | AY21: 0.0107923524 | AZ21: 0.008634421536 | BA21: 0.00690796895 | BB21: 0.005526720558 | BC21: 0.004421652783 | BD21: 0.003537543309 | BE21: =BD23 -> 0.002830211524 | BF21: 0.00226431073 | BG21: 0.0018115618 | BH21: 0.001449340018 | BI21: 0.001159544481 | BJ21: 0.0009276935622 | BK21: 0.0007422012344 | BL21: 0.0005937980976 | BM21: 0.000475068168 | BN21: 0.0003800782878 | BO21: 0.0003040816341 | BP21: 0.0002432805114 | BQ21: 0.0001946365731 | BR21: 0.0001557189903 | BS21: 0.0001245829782 | BT21: 9.967261173e-05 | BU21: 7.974307301e-05
A22: Tax Depreciation | B22: =B18*B21*0.5 -> 53.5957977 | C22: =$B18*C21 -> 96.47511565 | D22: =$B18*D21 -> 77.18491628 | E22: 61.75179227 | F22: 49.4045214 | G22: 39.52608735 | H22: 31.62284618 | I22: 25.29985809 | J22: 20.24115146 | K22: 16.19393323 | L22: 12.95595628 | M22: 10.36541282 | N22: 8.292848528 | O22: 6.634693465 | P22: =$B18*P21 -> 5.308086506 | Q22: 4.246734609 | R22: 3.397600024 | S22: =$B18*S21 -> 2.718249899 | T22: 2.174735832 | U22: 1.739897402 | V22: 1.392004917 | W22: 1.113673534 | X22: 0.8909945106 | Y22: =$B18*Y21 -> 0.7128401582 | Z22: 0.5703077686 | AA22: 0.4562747303 | AB22: 0.3650425979 | AC22: 0.2920523305 | AD22: 0.233656467 | AE22: 0.1869368564 | AF22: 0.149558832 | AG22: 0.1196545435 | AH22: 0.09572961755 | AI22: 0.07658848052 | AJ22: 0.06127461384 | AK22: 0.0490227548 | AL22: 0.03922065498 | AM22: 0.03137848502 | AN22: 0.02510435694 | AO22: 0.02008474077 | AP22: 0.01606879685 | AQ22: 0.01285584092 | AR22: 0.01028531553 | AS22: 0.008228766689 | AT22: 0.00658342479 | AU22: 0.005267069003 | AV22: 0.004213918556 | AW22: 0.003371345541 | AX22: 0.002697245 | AY22: 0.002157930862 | AZ22: 0.001726452586 | BA22: 0.001381248392 | BB22: 0.001105067776 | BC22: 0.0008841094739 | BD22: 0.0007073317846 | BE22: 0.0005659007943 | BF22: 0.0004527489305 | BG22: 0.0003622217818 | BH22: 0.0002897955365 | BI22: 0.000231850919 | BJ22: 0.0001854923278 | BK22: 0.0001484031368 | BL22: 0.0001187299296 | BM22: 9.498988019e-05 | BN22: 7.599665364e-05 | BO22: 6.080112275e-05 | BP22: 4.864393825e-05 | BQ22: 3.89175828e-05 | BR22: 3.113601212e-05 | BS22: 2.49103665e-05 | BT22: 1.992953872e-05 | BU22: 1.594462745e-05
A23: Closing Asset Value | B23: =B21-B22 -> 482.4962023 | C23: =C21-C22 -> 386.0210867 | D23: =D21-D22 -> 308.8361704 | E23: 247.0843781 | F23: 197.6798567 | G23: 158.1537694 | H23: 126.5309232 | I23: 101.2310651 | J23: 80.98991362 | K23: 64.79598039 | L23: 51.84002411 | M23: 41.47461129 | N23: =N21-N22 -> 33.18176276 | O23: 26.5470693 | P23: 21.23898279 | Q23: 16.99224818 | R23: 13.59464816 | S23: 10.87639826 | T23: 8.701662428 | U23: 6.961765025 | V23: 5.569760109 | W23: 4.456086575 | X23: 3.565092064 | Y23: 2.852251906 | Z23: 2.281944137 | AA23: 1.825669407 | AB23: 1.460626809 | AC23: 1.168574479 | AD23: 0.9349180116 | AE23: 0.7479811552 | AF23: 0.5984223232 | AG23: 0.4787677797 | AH23: 0.3830381622 | AI23: 0.3064496816 | AJ23: 0.2451750678 | AK23: 0.196152313 | AL23: 0.156931658 | AM23: 0.125553173 | AN23: 0.100448816 | AO23: 0.08036407528 | AP23: 0.06429527843 | AQ23: 0.0514394375 | AR23: 0.04115412198 | AS23: 0.03292535529 | AT23: 0.0263419305 | AU23: 0.02107486149 | AV23: 0.01686094294 | AW23: 0.0134895974 | AX23: 0.0107923524 | AY23: 0.008634421536 | AZ23: 0.00690796895 | BA23: 0.005526720558 | BB23: 0.004421652783 | BC23: 0.003537543309 | BD23: 0.002830211524 | BE23: 0.00226431073 | BF23: 0.0018115618 | BG23: 0.001449340018 | BH23: 0.001159544481 | BI23: 0.0009276935622 | BJ23: 0.0007422012344 | BK23: 0.0005937980976 | BL23: 0.000475068168 | BM23: 0.0003800782878 | BN23: 0.0003040816341 | BO23: 0.0002432805114 | BP23: 0.0001946365731 | BQ23: 0.0001557189903 | BR23: 0.0001245829782 | BS23: 9.967261173e-05 | BT23: 7.974307301e-05 | BU23: 6.379844556e-05
A25: =A$7 -> Meters
A26: OAV | B26: =B7 -> 61.822
A27: Depn Life | B27: =C7 -> 1
A28: Depn Method | B28: =D7 -> Fully Deductible
A29: Depn Rate | B29: =IF(B28="Straight Line",1/B27,IF(B28="Declining Balance",1/B27*1.5,1)) -> 1
B31: 1996 | C31: 1997 | D31: 1998 | E31: 1999 | F31: 2000 | G31: 2001 | H31: 2002 | I31: 2003 | J31: 2004 | K31: 2005 | L31: 2006 | M31: 2007 | N31: 2008 | O31: 2009 | P31: 2010 | Q31: 2011 | R31: 2012 | S31: 2013 | T31: 2014 | U31: 2015 | V31: 2016 | W31: 2017 | X31: =W31+1 -> 2018 | Y31: 2019 | Z31: 2020 | AA31: 2021 | AB31: 2022 | AC31: 2023 | AD31: 2024 | AE31: 2025 | AF31: 2026 | AG31: 2027 | AH31: 2028 | AI31: 2029 | AJ31: 2030 | AK31: 2031 | AL31: 2032 | AM31: 2033 | AN31: 2034 | AO31: 2035 | AP31: 2036 | AQ31: 2037 | AR31: 2038 | AS31: 2039 | AT31: 2040 | AU31: 2041 | AV31: 2042 | AW31: 2043 | AX31: 2044 | AY31: 2045 | AZ31: 2046 | BA31: 2047 | BB31: 2048 | BC31: 2049 | BD31: =BC31+1 -> 2050 | BE31: 2051 | BF31: 2052 | BG31: 2053 | BH31: 2054 | BI31: 2055 | BJ31: 2056 | BK31: 2057 | BL31: 2058 | BM31: 2059 | BN31: 2060 | BO31: 2061 | BP31: 2062 | BQ31: 2063 | BR31: 2064 | BS31: 2065 | BT31: 2066 | BU31: 2067
A32: Opening Asset Value | B32: =B26 -> 61.822 | C32: =B34 -> 30.911 | D32: =C34 -> 0 | E32: 0 | F32: 0 | G32: 0 | H32: 0 | I32: 0 | J32: 0 | K32: 0 | L32: 0 | M32: 0 | N32: =M34 -> 0 | O32: 0 | P32: 0 | Q32: 0 | R32: 0 | S32: 0 | T32: 0 | U32: 0 | V32: 0 | W32: 0 | X32: =W34 -> 0 | Y32: 0 | Z32: 0 | AA32: 0 | AB32: 0 | AC32: 0 | AD32: 0 | AE32: 0 | AF32: 0 | AG32: 0 | AH32: 0 | AI32: 0 | AJ32: 0 | AK32: 0 | AL32: 0 | AM32: 0 | AN32: 0 | AO32: 0 | AP32: 0 | AQ32: 0 | AR32: 0 | AS32: 0 | AT32: 0 | AU32: 0 | AV32: 0 | AW32: 0 | AX32: 0 | AY32: 0 | AZ32: 0 | BA32: 0 | BB32: 0 | BC32: 0 | BD32: =BC34 -> 0 | BE32: 0 | BF32: 0 | BG32: 0 | BH32: 0 | BI32: 0 | BJ32: 0 | BK32: 0 | BL32: 0 | BM32: 0 | BN32: 0 | BO32: 0 | BP32: 0 | BQ32: 0 | BR32: 0 | BS32: 0 | BT32: 0 | BU32: 0
A33: Tax Depreciation | B33: =B29*B32*0.5 -> 30.911 | C33: =$B29*C32 -> 30.911 | D33: 0 | E33: 0 | F33: 0 | G33: 0 | H33: 0 | I33: 0 | J33: 0 | K33: 0 | L33: 0 | M33: 0 | N33: 0 | O33: 0 | P33: 0 | Q33: 0 | R33: 0 | S33: =$B29*S32 -> 0 | T33: =$B29*T32 -> 0 | U33: =$B29*U32 -> 0 | V33: =$B29*V32 -> 0 | W33: =$B29*W32 -> 0 | X33: =$B29*X32 -> 0 | Y33: 0 | Z33: 0 | AA33: 0 | AB33: 0 | AC33: 0 | AD33: 0 | AE33: 0 | AF33: 0 | AG33: 0 | AH33: 0 | AI33: 0 | AJ33: 0 | AK33: 0 | AL33: 0 | AM33: 0 | AN33: 0 | AO33: 0 | AP33: 0 | AQ33: 0 | AR33: 0 | AS33: 0 | AT33: 0 | AU33: 0 | AV33: 0 | AW33: 0 | AX33: 0 | AY33: 0 | AZ33: 0 | BA33: 0 | BB33: 0 | BC33: 0 | BD33: 0 | BE33: 0 | BF33: 0 | BG33: 0 | BH33: 0 | BI33: 0 | BJ33: 0 | BK33: 0 | BL33: 0 | BM33: 0 | BN33: 0 | BO33: 0 | BP33: 0 | BQ33: 0 | BR33: 0 | BS33: 0 | BT33: 0 | BU33: 0
A34: Closing Asset Value | B34: =B32-B33 -> 30.911 | C34: 0 | D34: 0 | E34: 0 | F34: 0 | G34: 0 | H34: 0 | I34: 0 | J34: 0 | K34: 0 | L34: 0 | M34: 0 | N34: =N32-N33 -> 0 | O34: 0 | P34: 0 | Q34: 0 | R34: 0 | S34: 0 | T34: 0 | U34: 0 | V34: 0 | W34: 0 | X34: 0 | Y34: 0 | Z34: 0 | AA34: 0 | AB34: 0 | AC34: 0 | AD34: 0 | AE34: 0 | AF34: 0 | AG34: 0 | AH34: 0 | AI34: 0 | AJ34: 0 | AK34: 0 | AL34: 0 | AM34: 0 | AN34: 0 | AO34: 0 | AP34: 0 | AQ34: 0 | AR34: 0 | AS34: 0 | AT34: 0 | AU34: 0 | AV34: 0 | AW34: 0 | AX34: 0 | AY34: 0 | AZ34: 0 | BA34: 0 | BB34: 0 | BC34: 0 | BD34: 0 | BE34: 0 | BF34: 0 | BG34: 0 | BH34: 0 | BI34: 0 | BJ34: 0 | BK34: 0 | BL34: 0 | BM34: 0 | BN34: 0 | BO34: 0 | BP34: 0 | BQ34: 0 | BR34: 0 | BS34: 0 | BT34: 0 | BU34: 0
A36: =A$8 -> Land & Buildings
A37: OAV | B37: =B8 -> 11.196
A38: Depn Life | B38: =C8 -> 40
A39: Depn Method | B39: =D8 -> Straight Line
A40: Depn Rate | B40: =IF(B39="Straight Line",1/B38,IF(B39="Declining Balance",1/B38*1.5,1)) -> 0.025
B42: 1996 | C42: 1997 | D42: 1998 | E42: 1999 | F42: 2000 | G42: 2001 | H42: 2002 | I42: 2003 | J42: 2004 | K42: 2005 | L42: 2006 | M42: 2007 | N42: 2008 | O42: 2009 | P42: 2010 | Q42: 2011 | R42: 2012 | S42: 2013 | T42: 2014 | U42: 2015 | V42: 2016 | W42: 2017 | X42: =W42+1 -> 2018 | Y42: 2019 | Z42: 2020 | AA42: 2021 | AB42: 2022 | AC42: 2023 | AD42: 2024 | AE42: 2025 | AF42: 2026 | AG42: 2027 | AH42: 2028 | AI42: 2029 | AJ42: 2030 | AK42: 2031 | AL42: 2032 | AM42: 2033 | AN42: 2034 | AO42: 2035 | AP42: 2036 | AQ42: 2037 | AR42: 2038 | AS42: 2039 | AT42: 2040 | AU42: 2041 | AV42: 2042 | AW42: 2043 | AX42: 2044 | AY42: 2045 | AZ42: 2046 | BA42: 2047 | BB42: 2048 | BC42: 2049 | BD42: =BC42+1 -> 2050 | BE42: 2051 | BF42: 2052 | BG42: 2053 | BH42: 2054 | BI42: 2055 | BJ42: 2056 | BK42: 2057 | BL42: 2058 | BM42: 2059 | BN42: 2060 | BO42: 2061 | BP42: 2062 | BQ42: 2063 | BR42: 2064 | BS42: 2065 | BT42: 2066 | BU42: 2067
A43: Opening Asset Value | B43: =B37 -> 11.196 | C43: =B45 -> 11.05605 | D43: =C45 -> 10.77615 | E43: 10.49625 | F43: 10.21635 | G43: 9.93645 | H43: 9.65655 | I43: 9.37665 | J43: 9.09675 | K43: 8.81685 | L43: 8.53695 | M43: 8.25705 | N43: =M45 -> 7.97715 | O43: 7.69725 | P43: 7.41735 | Q43: 7.13745 | R43: 6.85755 | S43: 6.57765 | T43: 6.29775 | U43: 6.01785 | V43: 5.73795 | W43: 5.45805 | X43: =W45 -> 5.17815 | Y43: 4.89825 | Z43: 4.61835 | AA43: 4.33845 | AB43: 4.05855 | AC43: 3.77865 | AD43: 3.49875 | AE43: 3.21885 | AF43: 2.93895 | AG43: 2.65905 | AH43: 2.37915 | AI43: 2.09925 | AJ43: 1.81935 | AK43: 1.53945 | AL43: 1.25955 | AM43: 0.97965 | AN43: 0.69975 | AO43: 0.41985 | AP43: 0.13995 | AQ43: 0 | AR43: 0 | AS43: 0 | AT43: 0 | AU43: 0 | AV43: 0 | AW43: 0 | AX43: 0 | AY43: 0 | AZ43: 0 | BA43: 0 | BB43: 0 | BC43: 0 | BD43: =BC45 -> 0 | BE43: 0 | BF43: 0 | BG43: 0 | BH43: 0 | BI43: 0 | BJ43: 0 | BK43: 0 | BL43: 0 | BM43: 0 | BN43: 0 | BO43: 0 | BP43: 0 | BQ43: 0 | BR43: 0 | BS43: 0 | BT43: 0 | BU43: 0
A44: Tax Depreciation | B44: =B40*B43*0.5 -> 0.13995 | C44: =IF(SUM($B44:B44)>=$B42,0,$B40*$B43) -> 0.2799 | D44: =IF(SUM($B44:C44)>=$B42,0,MIN(D43,$B40*$B43)) -> 0.2799 | E44: =IF(SUM($B44:D44)>=$B42,0,MIN(E43,$B40*$B43)) -> 0.2799 | F44: =IF(SUM($B44:E44)>=$B42,0,MIN(F43,$B40*$B43)) -> 0.2799 | G44: =IF(SUM($B44:F44)>=$B42,0,MIN(G43,$B40*$B43)) -> 0.2799 | H44: =IF(SUM($B44:G44)>=$B42,0,MIN(H43,$B40*$B43)) -> 0.2799 | I44: =IF(SUM($B44:H44)>=$B42,0,MIN(I43,$B40*$B43)) -> 0.2799 | J44: =IF(SUM($B44:I44)>=$B42,0,MIN(J43,$B40*$B43)) -> 0.2799 | K44: =IF(SUM($B44:J44)>=$B42,0,MIN(K43,$B40*$B43)) -> 0.2799 | L44: =IF(SUM($B44:K44)>=$B42,0,MIN(L43,$B40*$B43)) -> 0.2799 | M44: =IF(SUM($B44:L44)>=$B42,0,MIN(M43,$B40*$B43)) -> 0.2799 | N44: =IF(SUM($B44:M44)>=$B42,0,MIN(N43,$B40*$B43)) -> 0.2799 | O44: =IF(SUM($B44:N44)>=$B42,0,MIN(O43,$B40*$B43)) -> 0.2799 | P44: =IF(SUM($B44:O44)>=$B42,0,MIN(P43,$B40*$B43)) -> 0.2799 | Q44: =IF(SUM($B44:P44)>=$B42,0,MIN(Q43,$B40*$B43)) -> 0.2799 | R44: =IF(SUM($B44:Q44)>=$B42,0,MIN(R43,$B40*$B43)) -> 0.2799 | S44: =IF(SUM($B44:R44)>=$B42,0,MIN(S43,$B40*$B43)) -> 0.2799 | T44: =IF(SUM($B44:S44)>=$B42,0,MIN(T43,$B40*$B43)) -> 0.2799 | U44: =IF(SUM($B44:T44)>=$B42,0,MIN(U43,$B40*$B43)) -> 0.2799 | V44: =IF(SUM($B44:U44)>=$B42,0,MIN(V43,$B40*$B43)) -> 0.2799 | W44: =IF(SUM($B44:V44)>=$B42,0,MIN(W43,$B40*$B43)) -> 0.2799 | X44: =IF(SUM($B44:W44)>=$B42,0,MIN(X43,$B40*$B43)) -> 0.2799 | Y44: =IF(SUM($B44:X44)>=$B42,0,MIN(Y43,$B40*$B43)) -> 0.2799 | Z44: =IF(SUM($B44:Y44)>=$B42,0,MIN(Z43,$B40*$B43)) -> 0.2799 | AA44: =IF(SUM($B44:Z44)>=$B42,0,MIN(AA43,$B40*$B43)) -> 0.2799 | AB44: =IF(SUM($B44:AA44)>=$B42,0,MIN(AB43,$B40*$B43)) -> 0.2799 | AC44: =IF(SUM($B44:AB44)>=$B42,0,MIN(AC43,$B40*$B43)) -> 0.2799 | AD44: =IF(SUM($B44:AC44)>=$B42,0,MIN(AD43,$B40*$B43)) -> 0.2799 | AE44: =IF(SUM($B44:AD44)>=$B42,0,MIN(AE43,$B40*$B43)) -> 0.2799 | AF44: =IF(SUM($B44:AE44)>=$B42,0,MIN(AF43,$B40*$B43)) -> 0.2799 | AG44: =IF(SUM($B44:AF44)>=$B42,0,MIN(AG43,$B40*$B43)) -> 0.2799 | AH44: =IF(SUM($B44:AG44)>=$B42,0,MIN(AH43,$B40*$B43)) -> 0.2799 | AI44: =IF(SUM($B44:AH44)>=$B42,0,MIN(AI43,$B40*$B43)) -> 0.2799 | AJ44: =IF(SUM($B44:AI44)>=$B42,0,MIN(AJ43,$B40*$B43)) -> 0.2799 | AK44: =IF(SUM($B44:AJ44)>=$B42,0,MIN(AK43,$B40*$B43)) -> 0.2799 | AL44: =IF(SUM($B44:AK44)>=$B42,0,MIN(AL43,$B40*$B43)) -> 0.2799 | AM44: =IF(SUM($B44:AL44)>=$B42,0,MIN(AM43,$B40*$B43)) -> 0.2799 | AN44: =IF(SUM($B44:AM44)>=$B42,0,MIN(AN43,$B40*$B43)) -> 0.2799 | AO44: =IF(SUM($B44:AN44)>=$B42,0,MIN(AO43,$B40*$B43)) -> 0.2799 | AP44: =IF(SUM($B44:AO44)>=$B42,0,MIN(AP43,$B40*$B43)) -> 0.13995 | AQ44: =IF(SUM($B44:AP44)>=$B42,0,MIN(AQ43,$B40*$B43)) -> 0 | AR44: =IF(SUM($B44:AQ44)>=$B42,0,MIN(AR43,$B40*$B43)) -> 0 | AS44: =IF(SUM($B44:AR44)>=$B42,0,MIN(AS43,$B40*$B43)) -> 0 | AT44: =IF(SUM($B44:AS44)>=$B42,0,MIN(AT43,$B40*$B43)) -> 0 | AU44: =IF(SUM($B44:AT44)>=$B42,0,MIN(AU43,$B40*$B43)) -> 0 | AV44: =IF(SUM($B44:AU44)>=$B42,0,MIN(AV43,$B40*$B43)) -> 0 | AW44: =IF(SUM($B44:AV44)>=$B42,0,MIN(AW43,$B40*$B43)) -> 0 | AX44: =IF(SUM($B44:AW44)>=$B42,0,MIN(AX43,$B40*$B43)) -> 0 | AY44: =IF(SUM($B44:AX44)>=$B42,0,MIN(AY43,$B40*$B43)) -> 0 | AZ44: =IF(SUM($B44:AY44)>=$B42,0,MIN(AZ43,$B40*$B43)) -> 0 | BA44: =IF(SUM($B44:AZ44)>=$B42,0,MIN(BA43,$B40*$B43)) -> 0 | BB44: =IF(SUM($B44:BA44)>=$B42,0,MIN(BB43,$B40*$B43)) -> 0 | BC44: =IF(SUM($B44:BB44)>=$B42,0,MIN(BC43,$B40*$B43)) -> 0 | BD44: =IF(SUM($B44:BC44)>=$B42,0,MIN(BD43,$B40*$B43)) -> 0 | BE44: =IF(SUM($B44:BD44)>=$B42,0,MIN(BE43,$B40*$B43)) -> 0 | BF44: =IF(SUM($B44:BE44)>=$B42,0,MIN(BF43,$B40*$B43)) -> 0 | BG44: =IF(SUM($B44:BF44)>=$B42,0,MIN(BG43,$B40*$B43)) -> 0 | BH44: =IF(SUM($B44:BG44)>=$B42,0,MIN(BH43,$B40*$B43)) -> 0 | BI44: =IF(SUM($B44:BH44)>=$B42,0,MIN(BI43,$B40*$B43)) -> 0 | BJ44: =IF(SUM($B44:BI44)>=$B42,0,MIN(BJ43,$B40*$B43)) -> 0 | BK44: =IF(SUM($B44:BJ44)>=$B42,0,MIN(BK43,$B40*$B43)) -> 0 | BL44: =IF(SUM($B44:BK44)>=$B42,0,MIN(BL43,$B40*$B43)) -> 0 | BM44: =IF(SUM($B44:BL44)>=$B42,0,MIN(BM43,$B40*$B43)) -> 0 | BN44: =IF(SUM($B44:BM44)>=$B42,0,MIN(BN43,$B40*$B43)) -> 0 | BO44: =IF(SUM($B44:BN44)>=$B42,0,MIN(BO43,$B40*$B43)) -> 0 | BP44: =IF(SUM($B44:BO44)>=$B42,0,MIN(BP43,$B40*$B43)) -> 0 | BQ44: =IF(SUM($B44:BP44)>=$B42,0,MIN(BQ43,$B40*$B43)) -> 0 | BR44: =IF(SUM($B44:BQ44)>=$B42,0,MIN(BR43,$B40*$B43)) -> 0 | BS44: =IF(SUM($B44:BR44)>=$B42,0,MIN(BS43,$B40*$B43)) -> 0 | BT44: =IF(SUM($B44:BS44)>=$B42,0,MIN(BT43,$B40*$B43)) -> 0 | BU44: =IF(SUM($B44:BT44)>=$B42,0,MIN(BU43,$B40*$B43)) -> 0
A45: Closing Asset Value | B45: =B43-B44 -> 11.05605 | C45: 10.77615 | D45: 10.49625 | E45: 10.21635 | F45: 9.93645 | G45: 9.65655 | H45: 9.37665 | I45: 9.09675 | J45: 8.81685 | K45: 8.53695 | L45: 8.25705 | M45: 7.97715 | N45: =N43-N44 -> 7.69725 | O45: 7.41735 | P45: 7.13745 | Q45: 6.85755 | R45: 6.57765 | S45: 6.29775 | T45: 6.01785 | U45: 5.73795 | V45: 5.45805 | W45: 5.17815 | X45: 4.89825 | Y45: 4.61835 | Z45: 4.33845 | AA45: 4.05855 | AB45: 3.77865 | AC45: 3.49875 | AD45: 3.21885 | AE45: 2.93895 | AF45: 2.65905 | AG45: 2.37915 | AH45: 2.09925 | AI45: 1.81935 | AJ45: 1.53945 | AK45: 1.25955 | AL45: 0.97965 | AM45: 0.69975 | AN45: 0.41985 | AO45: 0.13995 | AP45: 0 | AQ45: 0 | AR45: 0 | AS45: 0 | AT45: 0 | AU45: 0 | AV45: 0 | AW45: 0 | AX45: 0 | AY45: 0 | AZ45: 0 | BA45: 0 | BB45: 0 | BC45: 0 | BD45: 0 | BE45: 0 | BF45: 0 | BG45: 0 | BH45: 0 | BI45: 0 | BJ45: 0 | BK45: 0 | BL45: 0 | BM45: 0 | BN45: 0 | BO45: 0 | BP45: 0 | BQ45: 0 | BR45: 0 | BS45: 0 | BT45: 0 | BU45: 0
A47: =A$9 -> Other Assets
A48: OAV | B48: =B9 -> 1.775
A49: Depn Life | B49: =C9 -> 5
A50: Depn Method | B50: =D9 -> Declining Balance
A51: Depn Rate | B51: =IF(B50="Straight Line",1/B49,IF(B50="Declining Balance",1/B49*1.5,1)) -> 0.3
B53: 1996 | C53: 1997 | D53: 1998 | E53: 1999 | F53: 2000 | G53: 2001 | H53: 2002 | I53: 2003 | J53: 2004 | K53: 2005 | L53: 2006 | M53: 2007 | N53: 2008 | O53: 2009 | P53: 2010 | Q53: 2011 | R53: 2012 | S53: 2013 | T53: 2014 | U53: 2015 | V53: 2016 | W53: 2017 | X53: =W53+1 -> 2018 | Y53: 2019 | Z53: 2020 | AA53: 2021 | AB53: 2022 | AC53: 2023 | AD53: 2024 | AE53: 2025 | AF53: 2026 | AG53: 2027 | AH53: 2028 | AI53: 2029 | AJ53: 2030 | AK53: 2031 | AL53: 2032 | AM53: 2033 | AN53: 2034 | AO53: 2035 | AP53: 2036 | AQ53: 2037 | AR53: 2038 | AS53: 2039 | AT53: 2040 | AU53: 2041 | AV53: 2042 | AW53: 2043 | AX53: 2044 | AY53: 2045 | AZ53: 2046 | BA53: 2047 | BB53: 2048 | BC53: 2049 | BD53: =BC53+1 -> 2050 | BE53: 2051 | BF53: 2052 | BG53: 2053 | BH53: 2054 | BI53: 2055 | BJ53: 2056 | BK53: 2057 | BL53: 2058 | BM53: 2059 | BN53: 2060 | BO53: 2061 | BP53: 2062 | BQ53: 2063 | BR53: 2064 | BS53: 2065 | BT53: 2066 | BU53: 2067
A54: Opening Asset Value | B54: =B48 -> 1.775 | C54: =B56 -> 1.50875 | D54: =C56 -> 1.056125 | E54: 0.7392875 | F54: 0.51750125 | G54: 0.362250875 | H54: 0.2535756125 | I54: 0.1775029287 | J54: 0.1242520501 | K54: 0.08697643509 | L54: 0.06088350456 | M54: 0.04261845319 | N54: =M56 -> 0.02983291724 | O54: 0.02088304206 | P54: 0.01461812945 | Q54: 0.01023269061 | R54: 0.007162883428 | S54: 0.0050140184 | T54: 0.00350981288 | U54: 0.002456869016 | V54: 0.001719808311 | W54: 0.001203865818 | X54: =W56 -> 0.0008427060724 | Y54: 0.0005898942507 | Z54: 0.0004129259755 | AA54: 0.0002890481828 | AB54: 0.000202333728 | AC54: 0.0001416336096 | AD54: 9.914352672e-05 | AE54: 6.94004687e-05 | AF54: 4.858032809e-05 | AG54: 3.400622966e-05 | AH54: 2.380436076e-05 | AI54: 1.666305254e-05 | AJ54: 1.166413677e-05 | AK54: 8.164895742e-06 | AL54: 5.71542702e-06 | AM54: 4.000798914e-06 | AN54: 2.80055924e-06 | AO54: 1.960391468e-06 | AP54: 1.372274027e-06 | AQ54: 9.605918192e-07 | AR54: 6.724142734e-07 | AS54: 4.706899914e-07 | AT54: 3.29482994e-07 | AU54: 2.306380958e-07 | AV54: 1.61446667e-07 | AW54: 1.130126669e-07 | AX54: 7.910886685e-08 | AY54: 5.53762068e-08 | AZ54: 3.876334476e-08 | BA54: 2.713434133e-08 | BB54: 1.899403893e-08 | BC54: 1.329582725e-08 | BD54: =BC56 -> 9.307079077e-09 | BE54: 6.514955354e-09 | BF54: 4.560468747e-09 | BG54: 3.192328123e-09 | BH54: 2.234629686e-09 | BI54: 1.56424078e-09 | BJ54: 1.094968546e-09 | BK54: 7.664779824e-10 | BL54: 5.365345877e-10 | BM54: 3.755742114e-10 | BN54: 2.62901948e-10 | BO54: 1.840313636e-10 | BP54: 1.288219545e-10 | BQ54: 9.017536815e-11 | BR54: 6.312275771e-11 | BS54: 4.418593039e-11 | BT54: 3.093015128e-11 | BU54: 2.165110589e-11
A55: Tax Depreciation | B55: =B51*B54*0.5 -> 0.26625 | C55: =$B51*C54 -> 0.452625 | D55: 0.3168375 | E55: 0.22178625 | F55: 0.155250375 | G55: 0.1086752625 | H55: 0.07607268375 | I55: 0.05325087862 | J55: 0.03727561504 | K55: 0.02609293053 | L55: 0.01826505137 | M55: 0.01278553596 | N55: 0.008949875171 | O55: 0.006264912619 | P55: 0.004385438834 | Q55: 0.003069807183 | R55: 0.002148865028 | S55: =$B51*S54 -> 0.00150420552 | T55: =$B51*T54 -> 0.001052943864 | U55: =$B51*U54 -> 0.0007370607048 | V55: =$B51*V54 -> 0.0005159424933 | W55: =$B51*W54 -> 0.0003611597453 | X55: =$B51*X54 -> 0.0002528118217 | Y55: 0.0001769682752 | Z55: 0.0001238777926 | AA55: 8.671445485e-05 | AB55: 6.07001184e-05 | AC55: 4.249008288e-05 | AD55: 2.974305801e-05 | AE55: 2.082014061e-05 | AF55: 1.457409843e-05 | AG55: 1.02018689e-05 | AH55: 7.141308229e-06 | AI55: 4.998915761e-06 | AJ55: 3.499241032e-06 | AK55: 2.449468723e-06 | AL55: 1.714628106e-06 | AM55: 1.200239674e-06 | AN55: 8.401677719e-07 | AO55: 5.881174403e-07 | AP55: 4.116822082e-07 | AQ55: 2.881775458e-07 | AR55: 2.01724282e-07 | AS55: 1.412069974e-07 | AT55: 9.884489819e-08 | AU55: 6.919142874e-08 | AV55: 4.843400011e-08 | AW55: 3.390380008e-08 | AX55: 2.373266006e-08 | AY55: 1.661286204e-08 | AZ55: 1.162900343e-08 | BA55: 8.140302399e-09 | BB55: 5.698211679e-09 | BC55: 3.988748176e-09 | BD55: 2.792123723e-09 | BE55: 1.954486606e-09 | BF55: 1.368140624e-09 | BG55: 9.57698437e-10 | BH55: 6.703889059e-10 | BI55: 4.692722341e-10 | BJ55: 3.284905639e-10 | BK55: 2.299433947e-10 | BL55: 1.609603763e-10 | BM55: 1.126722634e-10 | BN55: 7.887058439e-11 | BO55: 5.520940907e-11 | BP55: 3.864658635e-11 | BQ55: 2.705261045e-11 | BR55: 1.893682731e-11 | BS55: 1.325577912e-11 | BT55: 9.279045383e-12 | BU55: 6.495331768e-12
A56: Closing Asset Value | B56: =B54-B55 -> 1.50875 | C56: 1.056125 | D56: 0.7392875 | E56: 0.51750125 | F56: 0.362250875 | G56: 0.2535756125 | H56: 0.1775029287 | I56: 0.1242520501 | J56: 0.08697643509 | K56: 0.06088350456 | L56: 0.04261845319 | M56: 0.02983291724 | N56: =N54-N55 -> 0.02088304206 | O56: 0.01461812945 | P56: 0.01023269061 | Q56: 0.007162883428 | R56: 0.0050140184 | S56: 0.00350981288 | T56: 0.002456869016 | U56: 0.001719808311 | V56: 0.001203865818 | W56: 0.0008427060724 | X56: =X54-X55 -> 0.0005898942507 | Y56: 0.0004129259755 | Z56: 0.0002890481828 | AA56: 0.000202333728 | AB56: 0.0001416336096 | AC56: 9.914352672e-05 | AD56: 6.94004687e-05 | AE56: 4.858032809e-05 | AF56: 3.400622966e-05 | AG56: 2.380436076e-05 | AH56: 1.666305254e-05 | AI56: 1.166413677e-05 | AJ56: 8.164895742e-06 | AK56: 5.71542702e-06 | AL56: 4.000798914e-06 | AM56: 2.80055924e-06 | AN56: 1.960391468e-06 | AO56: 1.372274027e-06 | AP56: 9.605918192e-07 | AQ56: 6.724142734e-07 | AR56: 4.706899914e-07 | AS56: 3.29482994e-07 | AT56: 2.306380958e-07 | AU56: 1.61446667e-07 | AV56: 1.130126669e-07 | AW56: 7.910886685e-08 | AX56: 5.53762068e-08 | AY56: 3.876334476e-08 | AZ56: 2.713434133e-08 | BA56: 1.899403893e-08 | BB56: 1.329582725e-08 | BC56: 9.307079077e-09 | BD56: 6.514955354e-09 | BE56: 4.560468747e-09 | BF56: 3.192328123e-09 | BG56: 2.234629686e-09 | BH56: 1.56424078e-09 | BI56: 1.094968546e-09 | BJ56: 7.664779824e-10 | BK56: 5.365345877e-10 | BL56: 3.755742114e-10 | BM56: 2.62901948e-10 | BN56: 1.840313636e-10 | BO56: 1.288219545e-10 | BP56: 9.017536815e-11 | BQ56: 6.312275771e-11 | BR56: 4.418593039e-11 | BS56: 3.093015128e-11 | BT56: 2.165110589e-11 | BU56: 1.515577413e-11
A59: Total Group 1 Asset Class Tax Depreciation
B61: 1996 | C61: 1997 | D61: 1998 | E61: 1999 | F61: 2000 | G61: 2001 | H61: 2002 | I61: 2003 | J61: 2004 | K61: 2005 | L61: 2006 | M61: 2007 | N61: 2008 | O61: 2009 | P61: 2010 | Q61: 2011 | R61: 2012 | S61: 2013 | T61: 2014 | U61: 2015 | V61: 2016 | W61: 2017 | X61: =W61+1 -> 2018 | Y61: 2019 | Z61: 2020 | AA61: 2021 | AB61: 2022 | AC61: 2023 | AD61: 2024 | AE61: 2025 | AF61: 2026 | AG61: 2027 | AH61: 2028 | AI61: 2029 | AJ61: 2030 | AK61: 2031 | AL61: 2032 | AM61: 2033 | AN61: 2034 | AO61: 2035 | AP61: 2036 | AQ61: 2037 | AR61: 2038 | AS61: 2039 | AT61: 2040 | AU61: 2041 | AV61: 2042 | AW61: 2043 | AX61: 2044 | AY61: 2045 | AZ61: 2046 | BA61: 2047 | BB61: 2048 | BC61: 2049 | BD61: =BC61+1 -> 2050 | BE61: 2051 | BF61: 2052 | BG61: 2053 | BH61: 2054 | BI61: 2055 | BJ61: 2056 | BK61: 2057 | BL61: 2058 | BM61: 2059 | BN61: 2060 | BO61: 2061 | BP61: 2062 | BQ61: 2063 | BR61: 2064 | BS61: 2065 | BT61: 2066 | BU61: 2067
A62: Opening Asset Value | B62: =B21+B32+B43+B54 -> 610.885 | C62: =B64 -> 525.9720023 | D62: =C64 -> 397.8533617 | E62: 320.0717079 | F62: 257.8182294 | G62: 207.9785576 | H62: 168.063895 | I62: 136.0850761 | J62: 110.4520671 | K62: 89.89374006 | L62: 73.3938139 | M62: 60.13969257 | N62: =M64 -> 49.48159421 | O62: 40.89989581 | P62: 33.97903743 | Q62: 28.38666548 | R62: 23.85696107 | S62: 20.17731218 | T62: 17.17765807 | U62: 14.7219693 | V62: 12.70143483 | W62: 11.02901397 | X62: =W64 -> 9.635079281 | Y62: 8.463931958 | Z62: 7.471014832 | AA62: 6.620683186 | AB62: 5.884421741 | AC62: 5.239418443 | AD62: 4.667423622 | AE62: 4.153837412 | AF62: 3.686979736 | AG62: 3.257506329 | AH62: 2.857941584 | AI62: 2.482304825 | AJ62: 2.125811346 | AK62: 1.784633233 | AL62: 1.455708028 | AM62: 1.136585659 | AN62: 0.8253059735 | AO62: 0.5203007764 | AP62: 0.2203154476 | AQ62: 0.06429623902 | AR62: 0.05144010992 | AS62: 0.04115459267 | AT62: 0.03292568477 | AU62: 0.02634216114 | AV62: 0.02107502294 | AW62: 0.01686105595 | AX62: 0.01348967651 | AY62: 0.01079240777 | AZ62: 0.008634460299 | BA62: 0.006907996084 | BB62: 0.005526739552 | BC62: 0.004421666079 | BD62: =BC64 -> 0.003537552616 | BE62: 0.002830218039 | BF62: 0.00226431529 | BG62: 0.001811564992 | BH62: 0.001449342252 | BI62: 0.001159546045 | BJ62: 0.0009276946571 | BK62: 0.0007422020009 | BL62: 0.0005937986341 | BM62: 0.0004750685435 | BN62: 0.0003800785507 | BO62: 0.0003040818181 | BP62: 0.0002432806402 | BQ62: 0.0001946366633 | BR62: 0.0001557190534 | BS62: 0.0001245830224 | BT62: 9.967264263e-05 | BU62: 7.974309464e-05
A63: Tax Depreciation | B63: =B22+B33+B44+B55 -> 84.9129977 | C63: 128.1186406 | D63: 77.78165378 | E63: 62.25347852 | F63: 49.83967178 | G63: 39.91466261 | H63: 31.97881887 | I63: 25.63300897 | J63: 20.55832708 | K63: 16.49992616 | L63: 13.25412133 | M63: 10.65809836 | N63: =N22+N33+N44+N55 -> 8.581698403 | O63: 6.920858377 | P63: 5.592371945 | Q63: 4.529704417 | R63: 3.679648889 | S63: 2.999654105 | T63: 2.455688776 | U63: 2.020534463 | V63: 1.672420859 | W63: 1.393934693 | X63: =X22+X33+X44+X55 -> 1.171147322 | Y63: 0.9929171265 | Z63: 0.8503316464 | AA63: 0.7362614447 | AB63: 0.6450032981 | AC63: 0.5719948206 | AD63: 0.5135862101 | AE63: 0.4668576766 | AF63: 0.4294734061 | AG63: 0.3995647454 | AH63: 0.3756367589 | AI63: 0.3564934794 | AJ63: 0.3411781131 | AK63: 0.3289252043 | AL63: 0.3191223696 | AM63: 0.3112796853 | AN63: 0.3050051971 | AO63: 0.2999853289 | AP63: 0.1560192085 | AQ63: 0.0128561291 | AR63: 0.01028551725 | AS63: 0.008228907896 | AT63: 0.006583523634 | AU63: 0.005267138194 | AV63: 0.00421396699 | AW63: 0.003371379444 | AX63: 0.002697268732 | AY63: 0.002157947475 | AZ63: 0.001726464215 | BA63: 0.001381256532 | BB63: 0.001105073474 | BC63: 0.0008841134627 | BD63: 0.0007073345767 | BE63: 0.0005659027488 | BF63: 0.0004527502986 | BG63: 0.0003622227395 | BH63: 0.0002897962069 | BI63: 0.0002318513883 | BJ63: 0.0001854926562 | BK63: 0.0001484033668 | BL63: 0.0001187300906 | BM63: 9.498999286e-05 | BN63: 7.599673251e-05 | BO63: 6.080117796e-05 | BP63: 4.86439769e-05 | BQ63: 3.891760985e-05 | BR63: 3.113603106e-05 | BS63: 2.491037975e-05 | BT63: 1.992954799e-05 | BU63: 1.594463394e-05
A64: Closing Asset Value | B64: =B62-B63 -> 525.9720023 | C64: 397.8533617 | D64: 320.0717079 | E64: 257.8182294 | F64: 207.9785576 | G64: 168.063895 | H64: 136.0850761 | I64: 110.4520671 | J64: 89.89374006 | K64: 73.3938139 | L64: 60.13969257 | M64: 49.48159421 | N64: =N62-N63 -> 40.89989581 | O64: 33.97903743 | P64: 28.38666548 | Q64: 23.85696107 | R64: 20.17731218 | S64: 17.17765807 | T64: 14.7219693 | U64: 12.70143483 | V64: 11.02901397 | W64: 9.635079281 | X64: =X62-X63 -> 8.463931958 | Y64: 7.471014832 | Z64: 6.620683186 | AA64: 5.884421741 | AB64: 5.239418443 | AC64: 4.667423622 | AD64: 4.153837412 | AE64: 3.686979736 | AF64: 3.257506329 | AG64: 2.857941584 | AH64: 2.482304825 | AI64: 2.125811346 | AJ64: 1.784633233 | AK64: 1.455708028 | AL64: 1.136585659 | AM64: 0.8253059735 | AN64: 0.5203007764 | AO64: 0.2203154476 | AP64: 0.06429623902 | AQ64: 0.05144010992 | AR64: 0.04115459267 | AS64: 0.03292568477 | AT64: 0.02634216114 | AU64: 0.02107502294 | AV64: 0.01686105595 | AW64: 0.01348967651 | AX64: 0.01079240777 | AY64: 0.008634460299 | AZ64: 0.006907996084 | BA64: 0.005526739552 | BB64: 0.004421666079 | BC64: 0.003537552616 | BD64: 0.002830218039 | BE64: 0.00226431529 | BF64: 0.001811564992 | BG64: 0.001449342252 | BH64: 0.001159546045 | BI64: 0.0009276946571 | BJ64: 0.0007422020009 | BK64: 0.0005937986341 | BL64: 0.0004750685435 | BM64: 0.0003800785507 | BN64: 0.0003040818181 | BO64: 0.0002432806402 | BP64: 0.0001946366633 | BQ64: 0.0001557190534 | BR64: 0.0001245830224 | BS64: 9.967264263e-05 | BT64: 7.974309464e-05 | BU64: 6.379846069e-05
A70: TAX DEPRECIATION - GROUP 2 ASSET CLASS
A72: Group 2 Asset Class | B72: OAV $m (MOD) | C72: Depn Life | D72: Depn Method
A73: Mains & Services | B73: 0 | C73: =Input!F341 -> 7.501875469 | D73: Declining Balance
A74: Meters | B74: =B73 -> 0 | C74: =Input!F342 -> 1 | D74: Fully Deductible
A75: Land & Buildings | B75: =B74 -> 0 | C75: =Input!F343 -> 40 | D75: Straight Line
A76: Other Assets | B76: =B75 -> 0 | C76: =Input!F344 -> 5 | D76: Declining Balance
A77: Repairs | B77: =B76 -> 0 | C77: =Input!F345 -> 0 | D77: Fully Deductible
B78: =SUM(B73:B77) -> 0
A80: Tax Depreciation Schedule $m (MOD)
A82: =A73 -> Mains & Services
A83: OAV | B83: =B73 -> 0
A84: Depn Life | B84: =C73 -> 7.501875469
A85: Depn Method | B85: =D73 -> Declining Balance
A86: Depn Rate | B86: =IF(B85="Straight Line",1/B84,IF(B85="Declining Balance",1/B84*1.5,1)) -> 0.19995
A88: Capital Expenditure | B88: 1996 | C88: 1997 | D88: 1998 | E88: 1999
A89: Capex $m (MOD) | B89: =Input!J341 -> 9.428 | C89: =Input!K341 -> 18.856 | D89: =Input!L341 -> 22.477 | E89: =Input!M341 -> 16.978
B91: 1996 | C91: 1997 | D91: 1998 | E91: 1999 | F91: 2000 | G91: 2001 | H91: 2002 | I91: 2003 | J91: 2004 | K91: 2005 | L91: 2006 | M91: 2007 | N91: 2008 | O91: 2009 | P91: 2010 | Q91: 2011 | R91: 2012 | S91: 2013 | T91: 2014 | U91: 2015 | V91: 2016 | W91: 2017 | X91: =W91+1 -> 2018 | Y91: 2019 | Z91: 2020 | AA91: 2021 | AB91: 2022 | AC91: 2023 | AD91: 2024 | AE91: 2025 | AF91: 2026 | AG91: 2027 | AH91: 2028 | AI91: 2029 | AJ91: 2030 | AK91: 2031 | AL91: 2032 | AM91: 2033 | AN91: 2034 | AO91: 2035 | AP91: 2036 | AQ91: 2037 | AR91: 2038 | AS91: 2039 | AT91: 2040 | AU91: 2041 | AV91: 2042 | AW91: 2043 | AX91: 2044 | AY91: 2045 | AZ91: 2046 | BA91: 2047 | BB91: 2048 | BC91: 2049 | BD91: =BC91+1 -> 2050 | BE91: 2051 | BF91: 2052 | BG91: 2053 | BH91: 2054 | BI91: 2055 | BJ91: 2056 | BK91: 2057 | BL91: 2058 | BM91: 2059 | BN91: 2060 | BO91: 2061 | BP91: 2062 | BQ91: 2063 | BR91: 2064 | BS91: 2065 | BT91: 2066 | BU91: 2067
A92: Opening Asset Value | B92: =B83 -> 0 | C92: =B95 -> 8.4854357 | D92: 23.75964423 | E92: 39.23876529 | F92: 46.67359862 | G92: 37.34121258 | H92: 29.87483712 | I92: 23.90136344 | J92: 19.12228582 | K92: 15.29878477 | L92: 12.23979276 | M92: 9.792446194 | N92: =M95 -> 7.834446578 | O92: 6.267948984 | P92: 5.014672585 | Q92: 4.011988802 | R92: 3.209791641 | S92: 2.567993802 | T92: 2.054523441 | U92: 1.643721479 | V92: 1.31505937 | W92: 1.052113249 | X92: =W95 -> 0.8417432045 | Y92: 0.6734366508 | Z92: 0.5387829925 | AA92: 0.4310533331 | AB92: 0.3448642192 | AC92: 0.2759086185 | AD92: 0.2207406903 | AE92: 0.1766035892 | AF92: 0.1412917016 | AG92: 0.1130404258 | AH92: 0.0904379927 | AI92: 0.07235491606 | AJ92: 0.05788755059 | AK92: 0.04631293485 | AL92: 0.03705266353 | AM92: 0.02964398346 | AN92: 0.02371666896 | AO92: 0.018974521 | AP92: 0.01518056553 | AQ92: 0.01214521145 | AR92: 0.009716776422 | AS92: 0.007773906976 | AT92: 0.006219514277 | AU92: 0.004975922397 | AV92: 0.003980986714 | AW92: 0.00318498842 | AX92: 0.002548149986 | AY92: 0.002038647396 | AZ92: 0.001631019849 | BA92: 0.00130489743 | BB92: 0.001043983189 | BC92: 0.0008352387505 | BD92: =BC95 -> 0.0006682327623 | BE92: 0.0005346196215 | BF92: 0.0004277224282 | BG92: 0.0003421993287 | BH92: 0.0002737765729 | BI92: 0.0002190349471 | BJ92: 0.0001752389095 | BK92: 0.0001401998895 | BL92: 0.0001121669216 | BM92: 8.973914563e-05 | BN92: 7.179580346e-05 | BO92: 5.744023256e-05 | BP92: 4.595505806e-05 | BQ92: 3.67663442e-05 | BR92: 2.941491368e-05 | BS92: 2.353340169e-05 | BT92: 1.882789802e-05 | BU92: 1.506325981e-05
A93: Capex | B93: =B89 -> 9.428 | C93: =C89 -> 18.856 | D93: =D89 -> 22.477 | E93: =E89 -> 16.978 | F93: 0 | G93: 0 | H93: 0 | I93: 0 | J93: 0 | K93: 0 | L93: 0 | M93: 0 | N93: 0 | O93: 0 | P93: 0 | Q93: 0 | R93: 0 | S93: 0 | T93: 0 | U93: 0 | V93: 0 | W93: 0 | X93: 0 | Y93: 0 | Z93: 0 | AA93: 0 | AB93: 0 | AC93: 0 | AD93: 0 | AE93: 0 | AF93: 0 | AG93: 0 | AH93: 0 | AI93: 0 | AJ93: 0 | AK93: 0 | AL93: 0 | AM93: 0 | AN93: 0 | AO93: 0 | AP93: 0 | AQ93: 0 | AR93: 0 | AS93: 0 | AT93: 0 | AU93: 0 | AV93: 0 | AW93: 0 | AX93: 0 | AY93: 0 | AZ93: 0 | BA93: 0 | BB93: 0 | BC93: 0 | BD93: 0 | BE93: 0 | BF93: 0 | BG93: 0 | BH93: 0 | BI93: 0 | BJ93: 0 | BK93: 0 | BL93: 0 | BM93: 0 | BN93: 0 | BO93: 0 | BP93: 0 | BQ93: 0 | BR93: 0 | BS93: 0 | BT93: 0 | BU93: 0
A94: Tax Depn | B94: =IF($B86=1,B93+B92,B93*$B86*0.5) -> 0.9425643 | C94: =IF($B86=1,C93+C92,(C92+C93*0.5)*$B86) -> 3.581791468 | D94: =IF($B86=1,D93+D92,(D92+D93*0.5)*$B86) -> 6.997878939 | E94: 9.54316667 | F94: 9.332386045 | G94: 7.466375455 | H94: 5.973473683 | I94: 4.77907762 | J94: 3.82350105 | K94: 3.058992015 | L94: 2.447346561 | M94: 1.957999617 | N94: 1.566497593 | O94: 1.253276399 | P94: 1.002683783 | Q94: 0.8021971609 | R94: 0.6417978386 | S94: =IF($B86=1,S93+S92,(S92+S93*0.5)*$B86) -> 0.5134703607 | T94: =IF($B86=1,T93+T92,(T92+T93*0.5)*$B86) -> 0.4108019621 | U94: =IF($B86=1,U93+U92,(U92+U93*0.5)*$B86) -> 0.3286621098 | V94: =IF($B86=1,V93+V92,(V92+V93*0.5)*$B86) -> 0.2629461209 | W94: =IF($B86=1,W93+W92,(W92+W93*0.5)*$B86) -> 0.2103700441 | X94: 0.1683065537 | Y94: 0.1346536583 | Z94: 0.1077296593 | AA94: 0.08618911396 | AB94: 0.06895560062 | AC94: 0.05516792828 | AD94: 0.04413710102 | AE94: 0.03531188767 | AF94: 0.02825127573 | AG94: 0.02260243315 | AH94: 0.01808307664 | AI94: 0.01446736547 | AJ94: 0.01157461574 | AK94: 0.009260271324 | AL94: 0.007408680072 | AM94: 0.005927314492 | AN94: 0.004742147959 | AO94: 0.003793955475 | AP94: 0.003035354078 | AQ94: 0.00242843503 | AR94: 0.001942869446 | AS94: 0.0015543927 | AT94: 0.00124359188 | AU94: 0.0009949356833 | AV94: 0.0007959982934 | AW94: 0.0006368384346 | AX94: 0.0005095025896 | AY94: 0.0004076275468 | AZ94: 0.0003261224188 | BA94: 0.0002609142412 | BB94: 0.0002087444387 | BC94: 0.0001670059882 | BD94: 0.0001336131408 | BE94: 0.0001068971933 | BF94: 8.552309951e-05 | BG94: 6.842275577e-05 | BH94: 5.474162575e-05 | BI94: 4.379603768e-05 | BJ94: 3.503901995e-05 | BK94: 2.803296791e-05 | BL94: 2.242777598e-05 | BM94: 1.794334217e-05 | BN94: 1.43555709e-05 | BO94: 1.14851745e-05 | BP94: 9.188713859e-06 | BQ94: 7.351430523e-06 | BR94: 5.88151199e-06 | BS94: 4.705503667e-06 | BT94: 3.764638209e-06 | BU94: 3.011898799e-06
A95: Closing Asset Value | B95: =B92+B93-B94 -> 8.4854357 | C95: 23.75964423 | D95: 39.23876529 | E95: 46.67359862 | F95: 37.34121258 | G95: 29.87483712 | H95: 23.90136344 | I95: 19.12228582 | J95: 15.29878477 | K95: 12.23979276 | L95: 9.792446194 | M95: 7.834446578 | N95: 6.267948984 | O95: 5.014672585 | P95: 4.011988802 | Q95: 3.209791641 | R95: 2.567993802 | S95: =S92+S93-S94 -> 2.054523441 | T95: 1.643721479 | U95: 1.31505937 | V95: 1.052113249 | W95: 0.8417432045 | X95: 0.6734366508 | Y95: =Y92+Y93-Y94 -> 0.5387829925 | Z95: 0.4310533331 | AA95: 0.3448642192 | AB95: 0.2759086185 | AC95: 0.2207406903 | AD95: 0.1766035892 | AE95: 0.1412917016 | AF95: 0.1130404258 | AG95: 0.0904379927 | AH95: 0.07235491606 | AI95: 0.05788755059 | AJ95: 0.04631293485 | AK95: 0.03705266353 | AL95: 0.02964398346 | AM95: 0.02371666896 | AN95: 0.018974521 | AO95: 0.01518056553 | AP95: 0.01214521145 | AQ95: 0.009716776422 | AR95: 0.007773906976 | AS95: 0.006219514277 | AT95: 0.004975922397 | AU95: 0.003980986714 | AV95: 0.00318498842 | AW95: 0.002548149986 | AX95: 0.002038647396 | AY95: 0.001631019849 | AZ95: 0.00130489743 | BA95: 0.001043983189 | BB95: 0.0008352387505 | BC95: 0.0006682327623 | BD95: 0.0005346196215 | BE95: 0.0004277224282 | BF95: 0.0003421993287 | BG95: 0.0002737765729 | BH95: 0.0002190349471 | BI95: 0.0001752389095 | BJ95: 0.0001401998895 | BK95: 0.0001121669216 | BL95: 8.973914563e-05 | BM95: 7.179580346e-05 | BN95: 5.744023256e-05 | BO95: 4.595505806e-05 | BP95: 3.67663442e-05 | BQ95: 2.941491368e-05 | BR95: 2.353340169e-05 | BS95: 1.882789802e-05 | BT95: 1.506325981e-05 | BU95: 1.205136101e-05
A97: =A74 -> Meters
A98: OAV | B98: =B74 -> 0
A99: Depn Life | B99: =C74 -> 1
A100: Depn Method | B100: =D74 -> Fully Deductible
A101: Depn Rate | B101: =IF(B100="Straight Line",1/B99,IF(B100="Declining Balance",1/B99*1.5,1)) -> 1
A103: Capital Expenditure | B103: 1996 | C103: 1997 | D103: 1998 | E103: 1999
A104: Capex $m (MOD) | B104: =Input!J342 -> 1.475 | C104: =Input!K342 -> 2.95 | D104: =Input!L342 -> 3.991 | E104: =Input!M342 -> 2.188
B106: 1996 | C106: 1997 | D106: 1998 | E106: 1999 | F106: 2000 | G106: 2001 | H106: 2002 | I106: 2003 | J106: 2004 | K106: 2005 | L106: 2006 | M106: 2007 | N106: 2008 | O106: 2009 | P106: 2010 | Q106: 2011 | R106: 2012 | S106: 2013 | T106: 2014 | U106: 2015 | V106: 2016 | W106: 2017 | X106: =W106+1 -> 2018 | Y106: 2019 | Z106: 2020 | AA106: 2021 | AB106: 2022 | AC106: 2023 | AD106: 2024 | AE106: 2025 | AF106: 2026 | AG106: 2027 | AH106: 2028 | AI106: 2029 | AJ106: 2030 | AK106: 2031 | AL106: 2032 | AM106: 2033 | AN106: 2034 | AO106: 2035 | AP106: 2036 | AQ106: 2037 | AR106: 2038 | AS106: 2039 | AT106: 2040 | AU106: 2041 | AV106: 2042 | AW106: 2043 | AX106: 2044 | AY106: 2045 | AZ106: 2046 | BA106: 2047 | BB106: 2048 | BC106: 2049 | BD106: =BC106+1 -> 2050 | BE106: 2051 | BF106: 2052 | BG106: 2053 | BH106: 2054 | BI106: 2055 | BJ106: 2056 | BK106: 2057 | BL106: 2058 | BM106: 2059 | BN106: 2060 | BO106: 2061 | BP106: 2062 | BQ106: 2063 | BR106: 2064 | BS106: 2065 | BT106: 2066 | BU106: 2067
A107: Opening Asset Value | B107: =B98 -> 0 | C107: =B110 -> 0 | D107: 0 | E107: 0 | F107: 0 | G107: 0 | H107: 0 | I107: 0 | J107: 0 | K107: 0 | L107: 0 | M107: 0 | N107: =M110 -> 0 | O107: 0 | P107: 0 | Q107: 0 | R107: 0 | S107: 0 | T107: 0 | U107: 0 | V107: 0 | W107: 0 | X107: =W110 -> 0 | Y107: 0 | Z107: 0 | AA107: 0 | AB107: 0 | AC107: 0 | AD107: 0 | AE107: 0 | AF107: 0 | AG107: 0 | AH107: 0 | AI107: 0 | AJ107: 0 | AK107: 0 | AL107: 0 | AM107: 0 | AN107: 0 | AO107: 0 | AP107: 0 | AQ107: 0 | AR107: 0 | AS107: 0 | AT107: 0 | AU107: 0 | AV107: 0 | AW107: 0 | AX107: 0 | AY107: 0 | AZ107: 0 | BA107: 0 | BB107: 0 | BC107: 0 | BD107: =BC110 -> 0 | BE107: 0 | BF107: 0 | BG107: 0 | BH107: 0 | BI107: 0 | BJ107: 0 | BK107: 0 | BL107: 0 | BM107: 0 | BN107: 0 | BO107: 0 | BP107: 0 | BQ107: 0 | BR107: 0 | BS107: 0 | BT107: 0 | BU107: 0
A108: Capex | B108: =B104 -> 1.475 | C108: =C104 -> 2.95 | D108: =D104 -> 3.991 | E108: =E104 -> 2.188 | F108: 0 | G108: 0 | H108: 0 | I108: 0 | J108: 0 | K108: 0 | L108: 0 | M108: 0 | N108: 0 | O108: 0 | P108: 0 | Q108: 0 | R108: 0 | S108: 0 | T108: 0 | U108: 0 | V108: 0 | W108: 0 | X108: 0 | Y108: 0 | Z108: 0 | AA108: 0 | AB108: 0 | AC108: 0 | AD108: 0 | AE108: 0 | AF108: 0 | AG108: 0 | AH108: 0 | AI108: 0 | AJ108: 0 | AK108: 0 | AL108: 0 | AM108: 0 | AN108: 0 | AO108: 0 | AP108: 0 | AQ108: 0 | AR108: 0 | AS108: 0 | AT108: 0 | AU108: 0 | AV108: 0 | AW108: 0 | AX108: 0 | AY108: 0 | AZ108: 0 | BA108: 0 | BB108: 0 | BC108: 0 | BD108: 0 | BE108: 0 | BF108: 0 | BG108: 0 | BH108: 0 | BI108: 0 | BJ108: 0 | BK108: 0 | BL108: 0 | BM108: 0 | BN108: 0 | BO108: 0 | BP108: 0 | BQ108: 0 | BR108: 0 | BS108: 0 | BT108: 0 | BU108: 0
A109: Tax Depn | B109: =IF($B101=1,B108+B107,B108*$B101*0.5) -> 1.475 | C109: =IF($B101=1,C108+C107,(C107+C108*0.5)*$B101) -> 2.95 | D109: 3.991 | E109: 2.188 | F109: 0 | G109: 0 | H109: 0 | I109: 0 | J109: 0 | K109: 0 | L109: 0 | M109: 0 | N109: 0 | O109: 0 | P109: 0 | Q109: 0 | R109: 0 | S109: =IF($B101=1,S108+S107,(S107+S108*0.5)*$B101) -> 0 | T109: =IF($B101=1,T108+T107,(T107+T108*0.5)*$B101) -> 0 | U109: =IF($B101=1,U108+U107,(U107+U108*0.5)*$B101) -> 0 | V109: =IF($B101=1,V108+V107,(V107+V108*0.5)*$B101) -> 0 | W109: =IF($B101=1,W108+W107,(W107+W108*0.5)*$B101) -> 0 | X109: =IF($B101=1,X108+X107,(X107+X108*0.5)*$B101) -> 0 | Y109: 0 | Z109: 0 | AA109: 0 | AB109: 0 | AC109: 0 | AD109: 0 | AE109: 0 | AF109: 0 | AG109: 0 | AH109: 0 | AI109: 0 | AJ109: 0 | AK109: 0 | AL109: 0 | AM109: 0 | AN109: 0 | AO109: 0 | AP109: 0 | AQ109: 0 | AR109: 0 | AS109: 0 | AT109: 0 | AU109: 0 | AV109: 0 | AW109: 0 | AX109: 0 | AY109: 0 | AZ109: 0 | BA109: 0 | BB109: 0 | BC109: 0 | BD109: 0 | BE109: 0 | BF109: 0 | BG109: 0 | BH109: 0 | BI109: 0 | BJ109: 0 | BK109: 0 | BL109: 0 | BM109: 0 | BN109: 0 | BO109: 0 | BP109: 0 | BQ109: 0 | BR109: 0 | BS109: 0 | BT109: 0 | BU109: 0
A110: Closing Asset Value | B110: =B107+B108-B109 -> 0 | C110: 0 | D110: 0 | E110: 0 | F110: 0 | G110: 0 | H110: 0 | I110: 0 | J110: 0 | K110: 0 | L110: 0 | M110: 0 | N110: 0 | O110: 0 | P110: 0 | Q110: 0 | R110: 0 | S110: =S107+S108-S109 -> 0 | T110: =T107+T108-T109 -> 0 | U110: =U107+U108-U109 -> 0 | V110: =V107+V108-V109 -> 0 | W110: =W107+W108-W109 -> 0 | X110: =X107+X108-X109 -> 0 | Y110: 0 | Z110: 0 | AA110: 0 | AB110: 0 | AC110: 0 | AD110: 0 | AE110: 0 | AF110: 0 | AG110: 0 | AH110: 0 | AI110: 0 | AJ110: 0 | AK110: 0 | AL110: 0 | AM110: 0 | AN110: 0 | AO110: 0 | AP110: 0 | AQ110: 0 | AR110: 0 | AS110: 0 | AT110: 0 | AU110: 0 | AV110: 0 | AW110: 0 | AX110: 0 | AY110: 0 | AZ110: 0 | BA110: 0 | BB110: 0 | BC110: 0 | BD110: 0 | BE110: 0 | BF110: 0 | BG110: 0 | BH110: 0 | BI110: 0 | BJ110: 0 | BK110: 0 | BL110: 0 | BM110: 0 | BN110: 0 | BO110: 0 | BP110: 0 | BQ110: 0 | BR110: 0 | BS110: 0 | BT110: 0 | BU110: 0
A112: =A75 -> Land & Buildings
A113: OAV | B113: =B75 -> 0
A114: Depn Life | B114: =C75 -> 40
A115: Depn Method | B115: =D75 -> Straight Line
A116: Depn Rate | B116: =IF(B115="Straight Line",1/B114,IF(B115="Declining Balance",1/B114*1.5,1)) -> 0.025
A118: Capital Expenditure | B118: 1996 | C118: 1997 | D118: 1998 | E118: 1999
A119: Capex $m (MOD) | B119: =Input!J343 -> 0.083 | C119: =Input!K343 -> 0.167 | D119: =Input!L343 -> 0 | E119: =Input!M343 -> 0
B121: 1996 | C121: 1997 | D121: 1998 | E121: 1999 | F121: 2000 | G121: 2001 | H121: 2002 | I121: 2003 | J121: 2004 | K121: 2005 | L121: 2006 | M121: 2007 | N121: 2008 | O121: 2009 | P121: 2010 | Q121: 2011 | R121: 2012 | S121: 2013 | T121: 2014 | U121: 2015 | V121: 2016 | W121: 2017 | X121: =W121+1 -> 2018 | Y121: 2019 | Z121: 2020 | AA121: 2021 | AB121: 2022 | AC121: 2023 | AD121: 2024 | AE121: 2025 | AF121: 2026 | AG121: 2027 | AH121: 2028 | AI121: 2029 | AJ121: 2030 | AK121: 2031 | AL121: 2032 | AM121: 2033 | AN121: 2034 | AO121: 2035 | AP121: 2036 | AQ121: 2037 | AR121: 2038 | AS121: 2039 | AT121: 2040 | AU121: 2041 | AV121: 2042 | AW121: 2043 | AX121: 2044 | AY121: 2045 | AZ121: 2046 | BA121: 2047 | BB121: 2048 | BC121: 2049 | BD121: =BC121+1 -> 2050 | BE121: 2051 | BF121: 2052 | BG121: 2053 | BH121: 2054 | BI121: 2055 | BJ121: 2056 | BK121: 2057 | BL121: 2058 | BM121: 2059 | BN121: 2060 | BO121: 2061 | BP121: 2062 | BQ121: 2063 | BR121: 2064 | BS121: 2065 | BT121: 2066 | BU121: 2067
A122: Opening Asset Value | B122: =B113 -> 0 | C122: =B125 -> 0.0819625 | D122: 0.2448 | E122: 0.23855 | F122: 0.2323 | G122: 0.22605 | H122: 0.2198 | I122: 0.21355 | J122: 0.2073 | K122: 0.20105 | L122: 0.1948 | M122: 0.18855 | N122: =M125 -> 0.1823 | O122: 0.17605 | P122: 0.1698 | Q122: 0.16355 | R122: 0.1573 | S122: 0.15105 | T122: 0.1448 | U122: 0.13855 | V122: 0.1323 | W122: 0.12605 | X122: =W125 -> 0.1198 | Y122: 0.11355 | Z122: 0.1073 | AA122: 0.10105 | AB122: 0.0948 | AC122: 0.08855 | AD122: 0.0823 | AE122: 0.07605 | AF122: 0.0698 | AG122: 0.06355 | AH122: 0.0573 | AI122: 0.05105 | AJ122: 0.0448 | AK122: 0.03855 | AL122: 0.0323 | AM122: 0.02605 | AN122: 0.0198 | AO122: 0.01355 | AP122: 0.0073 | AQ122: 0.0020875 | AR122: -1.35742112e-16 | AS122: -1.35742112e-16 | AT122: -1.35742112e-16 | AU122: -1.35742112e-16 | AV122: -1.35742112e-16 | AW122: -1.35742112e-16 | AX122: -1.35742112e-16 | AY122: -1.35742112e-16 | AZ122: -1.35742112e-16 | BA122: -1.35742112e-16 | BB122: -1.35742112e-16 | BC122: -1.35742112e-16 | BD122: =BC125 -> -1.35742112e-16 | BE122: -1.35742112e-16 | BF122: -1.35742112e-16 | BG122: -1.35742112e-16 | BH122: -1.35742112e-16 | BI122: -1.35742112e-16 | BJ122: -1.35742112e-16 | BK122: -1.35742112e-16 | BL122: -1.35742112e-16 | BM122: -1.35742112e-16 | BN122: -1.35742112e-16 | BO122: -1.35742112e-16 | BP122: -1.35742112e-16 | BQ122: -1.35742112e-16 | BR122: -1.35742112e-16 | BS122: -1.35742112e-16 | BT122: -1.35742112e-16 | BU122: -1.35742112e-16
A123: Capex | B123: =B119 -> 0.083 | C123: =C119 -> 0.167 | D123: =D119 -> 0 | E123: =E119 -> 0 | F123: 0 | G123: 0 | H123: 0 | I123: 0 | J123: 0 | K123: 0 | L123: 0 | M123: 0 | N123: 0 | O123: 0 | P123: 0 | Q123: 0 | R123: 0 | S123: 0 | T123: 0 | U123: 0 | V123: 0 | W123: 0 | X123: 0 | Y123: 0 | Z123: 0 | AA123: 0 | AB123: 0 | AC123: 0 | AD123: 0 | AE123: 0 | AF123: 0 | AG123: 0 | AH123: 0 | AI123: 0 | AJ123: 0 | AK123: 0 | AL123: 0 | AM123: 0 | AN123: 0 | AO123: 0 | AP123: 0 | AQ123: 0 | AR123: 0 | AS123: 0 | AT123: 0 | AU123: 0 | AV123: 0 | AW123: 0 | AX123: 0 | AY123: 0 | AZ123: 0 | BA123: 0 | BB123: 0 | BC123: 0 | BD123: 0 | BE123: 0 | BF123: 0 | BG123: 0 | BH123: 0 | BI123: 0 | BJ123: 0 | BK123: 0 | BL123: 0 | BM123: 0 | BN123: 0 | BO123: 0 | BP123: 0 | BQ123: 0 | BR123: 0 | BS123: 0 | BT123: 0 | BU123: 0
A124: Tax Depn | B124: =B123*$B116*0.5 -> 0.0010375 | C124: =(SUM($B123:B123)+C123*0.5)*$B116 -> 0.0041625 | D124: =(SUM($B123:C123)+D123*0.5)*$B116 -> 0.00625 | E124: =(SUM($B123:D123)+E123*0.5)*$B116 -> 0.00625 | F124: =(SUM($B123:E123)+F123*0.5)*$B116 -> 0.00625 | G124: =(SUM($B123:F123)+G123*0.5)*$B116 -> 0.00625 | H124: =(SUM($B123:G123)+H123*0.5)*$B116 -> 0.00625 | I124: =(SUM($B123:H123)+I123*0.5)*$B116 -> 0.00625 | J124: =(SUM($B123:I123)+J123*0.5)*$B116 -> 0.00625 | K124: =(SUM($B123:J123)+K123*0.5)*$B116 -> 0.00625 | L124: =(SUM($B123:K123)+L123*0.5)*$B116 -> 0.00625 | M124: =(SUM($B123:L123)+M123*0.5)*$B116 -> 0.00625 | N124: =(SUM($B123:M123)+N123*0.5)*$B116 -> 0.00625 | O124: =(SUM($B123:N123)+O123*0.5)*$B116 -> 0.00625 | P124: =(SUM($B123:O123)+P123*0.5)*$B116 -> 0.00625 | Q124: =(SUM($B123:P123)+Q123*0.5)*$B116 -> 0.00625 | R124: =(SUM($B123:Q123)+R123*0.5)*$B116 -> 0.00625 | S124: =(SUM($B123:R123)+S123*0.5)*$B116 -> 0.00625 | T124: =(SUM($B123:S123)+T123*0.5)*$B116 -> 0.00625 | U124: =(SUM($B123:T123)+U123*0.5)*$B116 -> 0.00625 | V124: =(SUM($B123:U123)+V123*0.5)*$B116 -> 0.00625 | W124: =(SUM($B123:V123)+W123*0.5)*$B116 -> 0.00625 | X124: =(SUM($B123:W123)+X123*0.5)*$B116 -> 0.00625 | Y124: =(SUM($B123:X123)+Y123*0.5)*$B116 -> 0.00625 | Z124: =(SUM($B123:Y123)+Z123*0.5)*$B116 -> 0.00625 | AA124: =(SUM($B123:Z123)+AA123*0.5)*$B116 -> 0.00625 | AB124: =(SUM($B123:AA123)+AB123*0.5)*$B116 -> 0.00625 | AC124: =(SUM($B123:AB123)+AC123*0.5)*$B116 -> 0.00625 | AD124: =(SUM($B123:AC123)+AD123*0.5)*$B116 -> 0.00625 | AE124: =(SUM($B123:AD123)+AE123*0.5)*$B116 -> 0.00625 | AF124: =(SUM($B123:AE123)+AF123*0.5)*$B116 -> 0.00625 | AG124: =(SUM($B123:AF123)+AG123*0.5)*$B116 -> 0.00625 | AH124: =(SUM($B123:AG123)+AH123*0.5)*$B116 -> 0.00625 | AI124: =(SUM($B123:AH123)+AI123*0.5)*$B116 -> 0.00625 | AJ124: =(SUM($B123:AI123)+AJ123*0.5)*$B116 -> 0.00625 | AK124: =(SUM($B123:AJ123)+AK123*0.5)*$B116 -> 0.00625 | AL124: =(SUM($B123:AK123)+AL123*0.5)*$B116 -> 0.00625 | AM124: =(SUM($B123:AL123)+AM123*0.5)*$B116 -> 0.00625 | AN124: =(SUM($B123:AM123)+AN123*0.5)*$B116 -> 0.00625 | AO124: =(SUM($B123:AN123)+AO123*0.5)*$B116 -> 0.00625 | AP124: =(SUM(C123:AN123)+AO123*0.5+B123*0.5)*$B116 -> 0.0052125 | AQ124: =(SUM(D123:AO123)+AP123*0.5+C123*0.5)*$B116 -> 0.0020875 | AR124: 0 | AS124: 0 | AT124: 0 | AU124: 0 | AV124: 0 | AW124: 0 | AX124: 0 | AY124: 0 | AZ124: 0 | BA124: 0 | BB124: 0 | BC124: 0 | BD124: 0 | BE124: 0 | BF124: 0 | BG124: 0 | BH124: 0 | BI124: 0 | BJ124: 0 | BK124: 0 | BL124: 0 | BM124: 0 | BN124: 0 | BO124: 0 | BP124: 0 | BQ124: 0 | BR124: 0 | BS124: 0 | BT124: 0 | BU124: 0
A125: Closing Asset Value | B125: =B122+B123-B124 -> 0.0819625 | C125: 0.2448 | D125: 0.23855 | E125: 0.2323 | F125: 0.22605 | G125: 0.2198 | H125: 0.21355 | I125: 0.2073 | J125: 0.20105 | K125: 0.1948 | L125: 0.18855 | M125: 0.1823 | N125: 0.17605 | O125: 0.1698 | P125: 0.16355 | Q125: 0.1573 | R125: 0.15105 | S125: =S122+S123-S124 -> 0.1448 | T125: =T122+T123-T124 -> 0.13855 | U125: =U122+U123-U124 -> 0.1323 | V125: =V122+V123-V124 -> 0.12605 | W125: =W122+W123-W124 -> 0.1198 | X125: =X122+X123-X124 -> 0.11355 | Y125: 0.1073 | Z125: 0.10105 | AA125: 0.0948 | AB125: 0.08855 | AC125: 0.0823 | AD125: 0.07605 | AE125: 0.0698 | AF125: 0.06355 | AG125: 0.0573 | AH125: 0.05105 | AI125: 0.0448 | AJ125: 0.03855 | AK125: 0.0323 | AL125: 0.02605 | AM125: 0.0198 | AN125: 0.01355 | AO125: 0.0073 | AP125: 0.0020875 | AQ125: -1.35742112e-16 | AR125: -1.35742112e-16 | AS125: -1.35742112e-16 | AT125: -1.35742112e-16 | AU125: -1.35742112e-16 | AV125: -1.35742112e-16 | AW125: -1.35742112e-16 | AX125: -1.35742112e-16 | AY125: -1.35742112e-16 | AZ125: -1.35742112e-16 | BA125: -1.35742112e-16 | BB125: -1.35742112e-16 | BC125: -1.35742112e-16 | BD125: -1.35742112e-16 | BE125: -1.35742112e-16 | BF125: -1.35742112e-16 | BG125: -1.35742112e-16 | BH125: -1.35742112e-16 | BI125: -1.35742112e-16 | BJ125: -1.35742112e-16 | BK125: -1.35742112e-16 | BL125: -1.35742112e-16 | BM125: -1.35742112e-16 | BN125: -1.35742112e-16 | BO125: -1.35742112e-16 | BP125: -1.35742112e-16 | BQ125: -1.35742112e-16 | BR125: -1.35742112e-16 | BS125: -1.35742112e-16 | BT125: -1.35742112e-16 | BU125: -1.35742112e-16
A127: =A76 -> Other Assets
A128: OAV | B128: =B76 -> 0
A129: Depn Life | B129: =C76 -> 5
A130: Depn Method | B130: =D76 -> Declining Balance
A131: Depn Rate | B131: =IF(B130="Straight Line",1/B129,IF(B130="Declining Balance",1/B129*1.5,1)) -> 0.3
A133: Capital Expenditure | B133: 1996 | C133: 1997 | D133: 1998 | E133: 1999
A134: Capex $m (MOD) | B134: =Input!J344 -> 0.405 | C134: =Input!K344 -> 0.81 | D134: =Input!L344 -> 1.948 | E134: =Input!M344 -> 0.517
B136: 1996 | C136: 1997 | D136: 1998 | E136: 1999 | F136: 2000 | G136: 2001 | H136: 2002 | I136: 2003 | J136: 2004 | K136: 2005 | L136: 2006 | M136: 2007 | N136: 2008 | O136: 2009 | P136: 2010 | Q136: 2011 | R136: 2012 | S136: 2013 | T136: 2014 | U136: 2015 | V136: 2016 | W136: 2017 | X136: =W136+1 -> 2018 | Y136: 2019 | Z136: 2020 | AA136: 2021 | AB136: 2022 | AC136: 2023 | AD136: 2024 | AE136: 2025 | AF136: 2026 | AG136: 2027 | AH136: 2028 | AI136: 2029 | AJ136: 2030 | AK136: 2031 | AL136: 2032 | AM136: 2033 | AN136: 2034 | AO136: 2035 | AP136: 2036 | AQ136: 2037 | AR136: 2038 | AS136: 2039 | AT136: 2040 | AU136: 2041 | AV136: 2042 | AW136: 2043 | AX136: 2044 | AY136: 2045 | AZ136: 2046 | BA136: 2047 | BB136: 2048 | BC136: 2049 | BD136: =BC136+1 -> 2050 | BE136: 2051 | BF136: 2052 | BG136: 2053 | BH136: 2054 | BI136: 2055 | BJ136: 2056 | BK136: 2057 | BL136: 2058 | BM136: 2059 | BN136: 2060 | BO136: 2061 | BP136: 2062 | BQ136: 2063 | BR136: 2064 | BS136: 2065 | BT136: 2066 | BU136: 2067
A137: Opening Asset Value | B137: =B128 -> 0 | C137: =B140 -> 0.34425 | D137: 0.929475 | E137: 2.3064325 | F137: 2.05395275 | G137: 1.437766925 | H137: 1.006436847 | I137: 0.7045057932 | J137: 0.4931540553 | K137: 0.3452078387 | L137: 0.2416454871 | M137: 0.169151841 | N137: =M140 -> 0.1184062887 | O137: 0.08288440207 | P137: 0.05801908145 | Q137: 0.04061335701 | R137: 0.02842934991 | S137: 0.01990054494 | T137: 0.01393038146 | U137: 0.009751267019 | V137: 0.006825886913 | W137: 0.004778120839 | X137: =W140 -> 0.003344684588 | Y137: 0.002341279211 | Z137: 0.001638895448 | AA137: 0.001147226814 | AB137: 0.0008030587695 | AC137: 0.0005621411386 | AD137: 0.000393498797 | AE137: 0.0002754491579 | AF137: 0.0001928144106 | AG137: 0.0001349700874 | AH137: 9.447906117e-05 | AI137: 6.613534282e-05 | AJ137: 4.629473997e-05 | AK137: 3.240631798e-05 | AL137: 2.268442259e-05 | AM137: 1.587909581e-05 | AN137: 1.111536707e-05 | AO137: 7.780756947e-06 | AP137: 5.446529863e-06 | AQ137: 3.812570904e-06 | AR137: 2.668799633e-06 | AS137: 1.868159743e-06 | AT137: 1.30771182e-06 | AU137: 9.153982741e-07 | AV137: 6.407787919e-07 | AW137: 4.485451543e-07 | AX137: 3.13981608e-07 | AY137: 2.197871256e-07 | AZ137: 1.538509879e-07 | BA137: 1.076956915e-07 | BB137: 7.538698408e-08 | BC137: 5.277088886e-08 | BD137: =BC140 -> 3.69396222e-08 | BE137: 2.585773554e-08 | BF137: 1.810041488e-08 | BG137: 1.267029042e-08 | BH137: 8.869203291e-09 | BI137: 6.208442303e-09 | BJ137: 4.345909612e-09 | BK137: 3.042136729e-09 | BL137: 2.12949571e-09 | BM137: 1.490646997e-09 | BN137: 1.043452898e-09 | BO137: 7.304170285e-10 | BP137: 5.1129192e-10 | BQ137: 3.57904344e-10 | BR137: 2.505330408e-10 | BS137: 1.753731286e-10 | BT137: 1.2276119e-10 | BU137: 8.593283299e-11
A138: Capex | B138: =B134 -> 0.405 | C138: =C134 -> 0.81 | D138: =D134 -> 1.948 | E138: =E134 -> 0.517 | F138: 0 | G138: 0 | H138: 0 | I138: 0 | J138: 0 | K138: 0 | L138: 0 | M138: 0 | N138: 0 | O138: 0 | P138: 0 | Q138: 0 | R138: 0 | S138: 0 | T138: 0 | U138: 0 | V138: 0 | W138: 0 | X138: 0 | Y138: 0 | Z138: 0 | AA138: 0 | AB138: 0 | AC138: 0 | AD138: 0 | AE138: 0 | AF138: 0 | AG138: 0 | AH138: 0 | AI138: 0 | AJ138: 0 | AK138: 0 | AL138: 0 | AM138: 0 | AN138: 0 | AO138: 0 | AP138: 0 | AQ138: 0 | AR138: 0 | AS138: 0 | AT138: 0 | AU138: 0 | AV138: 0 | AW138: 0 | AX138: 0 | AY138: 0 | AZ138: 0 | BA138: 0 | BB138: 0 | BC138: 0 | BD138: 0 | BE138: 0 | BF138: 0 | BG138: 0 | BH138: 0 | BI138: 0 | BJ138: 0 | BK138: 0 | BL138: 0 | BM138: 0 | BN138: 0 | BO138: 0 | BP138: 0 | BQ138: 0 | BR138: 0 | BS138: 0 | BT138: 0 | BU138: 0
A139: Tax Depn | B139: =IF($B131=1,B138+B137,B138*$B131*0.5) -> 0.06075 | C139: =IF($B131=1,C138+C137,(C137+C138*0.5)*$B131) -> 0.224775 | D139: 0.5710425 | E139: 0.76947975 | F139: 0.616185825 | G139: 0.4313300775 | H139: 0.3019310542 | I139: 0.211351738 | J139: 0.1479462166 | K139: 0.1035623516 | L139: 0.07249364613 | M139: 0.05074555229 | N139: 0.0355218866 | O139: 0.02486532062 | P139: 0.01740572443 | Q139: 0.0121840071 | R139: 0.008528804973 | S139: =IF($B131=1,S138+S137,(S137+S138*0.5)*$B131) -> 0.005970163481 | T139: =IF($B131=1,T138+T137,(T137+T138*0.5)*$B131) -> 0.004179114437 | U139: =IF($B131=1,U138+U137,(U137+U138*0.5)*$B131) -> 0.002925380106 | V139: =IF($B131=1,V138+V137,(V137+V138*0.5)*$B131) -> 0.002047766074 | W139: =IF($B131=1,W138+W137,(W137+W138*0.5)*$B131) -> 0.001433436252 | X139: =IF($B131=1,X138+X137,(X137+X138*0.5)*$B131) -> 0.001003405376 | Y139: 0.0007023837634 | Z139: 0.0004916686344 | AA139: 0.0003441680441 | AB139: 0.0002409176308 | AC139: 0.0001686423416 | AD139: 0.0001180496391 | AE139: 8.263474738e-05 | AF139: 5.784432317e-05 | AG139: 4.049102622e-05 | AH139: 2.834371835e-05 | AI139: 1.984060285e-05 | AJ139: 1.388842199e-05 | AK139: 9.721895394e-06 | AL139: 6.805326776e-06 | AM139: 4.763728743e-06 | AN139: 3.33461012e-06 | AO139: 2.334227084e-06 | AP139: 1.633958959e-06 | AQ139: 1.143771271e-06 | AR139: 8.006398899e-07 | AS139: 5.604479229e-07 | AT139: 3.92313546e-07 | AU139: 2.746194822e-07 | AV139: 1.922336376e-07 | AW139: 1.345635463e-07 | AX139: 9.41944824e-08 | AY139: 6.593613768e-08 | AZ139: 4.615529638e-08 | BA139: 3.230870746e-08 | BB139: 2.261609523e-08 | BC139: 1.583126666e-08 | BD139: 1.108188666e-08 | BE139: 7.757320662e-09 | BF139: 5.430124464e-09 | BG139: 3.801087125e-09 | BH139: 2.660760987e-09 | BI139: 1.862532691e-09 | BJ139: 1.303772884e-09 | BK139: 9.126410186e-10 | BL139: 6.38848713e-10 | BM139: 4.471940991e-10 | BN139: 3.130358694e-10 | BO139: 2.191251086e-10 | BP139: 1.53387576e-10 | BQ139: 1.073713032e-10 | BR139: 7.515991224e-11 | BS139: 5.261193857e-11 | BT139: 3.6828357e-11 | BU139: 2.57798499e-11
A140: Closing Asset Value | B140: =B137+B138-B139 -> 0.34425 | C140: 0.929475 | D140: 2.3064325 | E140: 2.05395275 | F140: 1.437766925 | G140: 1.006436847 | H140: 0.7045057932 | I140: 0.4931540553 | J140: 0.3452078387 | K140: 0.2416454871 | L140: 0.169151841 | M140: 0.1184062887 | N140: 0.08288440207 | O140: 0.05801908145 | P140: 0.04061335701 | Q140: 0.02842934991 | R140: 0.01990054494 | S140: =S137+S138-S139 -> 0.01393038146 | T140: =T137+T138-T139 -> 0.009751267019 | U140: =U137+U138-U139 -> 0.006825886913 | V140: =V137+V138-V139 -> 0.004778120839 | W140: =W137+W138-W139 -> 0.003344684588 | X140: =X137+X138-X139 -> 0.002341279211 | Y140: 0.001638895448 | Z140: 0.001147226814 | AA140: 0.0008030587695 | AB140: 0.0005621411386 | AC140: 0.000393498797 | AD140: 0.0002754491579 | AE140: 0.0001928144106 | AF140: 0.0001349700874 | AG140: 9.447906117e-05 | AH140: 6.613534282e-05 | AI140: 4.629473997e-05 | AJ140: 3.240631798e-05 | AK140: 2.268442259e-05 | AL140: 1.587909581e-05 | AM140: 1.111536707e-05 | AN140: 7.780756947e-06 | AO140: 5.446529863e-06 | AP140: 3.812570904e-06 | AQ140: 2.668799633e-06 | AR140: 1.868159743e-06 | AS140: 1.30771182e-06 | AT140: 9.153982741e-07 | AU140: 6.407787919e-07 | AV140: 4.485451543e-07 | AW140: 3.13981608e-07 | AX140: 2.197871256e-07 | AY140: 1.538509879e-07 | AZ140: 1.076956915e-07 | BA140: 7.538698408e-08 | BB140: 5.277088886e-08 | BC140: 3.69396222e-08 | BD140: 2.585773554e-08 | BE140: 1.810041488e-08 | BF140: 1.267029042e-08 | BG140: 8.869203291e-09 | BH140: 6.208442303e-09 | BI140: 4.345909612e-09 | BJ140: 3.042136729e-09 | BK140: 2.12949571e-09 | BL140: 1.490646997e-09 | BM140: 1.043452898e-09 | BN140: 7.304170285e-10 | BO140: 5.1129192e-10 | BP140: 3.57904344e-10 | BQ140: 2.505330408e-10 | BR140: 1.753731286e-10 | BS140: 1.2276119e-10 | BT140: 8.593283299e-11 | BU140: 6.015298309e-11
A143: =A77 -> Repairs
A144: OAV | B144: =B77 -> 0
A145: Depn Life | B145: =C77 -> 0
A146: Depn Method | B146: =D77 -> Fully Deductible
A147: Depn Rate | B147: =IF(B146="Straight Line",1/B145,IF(B146="Declining Balance",1/B145*1.5,1)) -> 1
A149: Capital Expenditure | B149: 1996 | C149: 1997 | D149: 1998 | E149: 1999
A150: Capex $m (MOD) | B150: =Input!J345 -> 1 | C150: =Input!K345 -> 2 | D150: =Input!L345 -> 2 | E150: =Input!M345 -> 1.5
B152: 1996 | C152: 1997 | D152: 1998 | E152: 1999 | F152: 2000 | G152: 2001 | H152: 2002 | I152: 2003 | J152: 2004 | K152: 2005 | L152: 2006 | M152: 2007 | N152: 2008 | O152: 2009 | P152: 2010 | Q152: 2011 | R152: 2012 | S152: 2013 | T152: 2014 | U152: 2015 | V152: 2016 | W152: 2017 | X152: =W152+1 -> 2018 | Y152: 2019 | Z152: 2020 | AA152: 2021 | AB152: 2022 | AC152: 2023 | AD152: 2024 | AE152: 2025 | AF152: 2026 | AG152: 2027 | AH152: 2028 | AI152: 2029 | AJ152: 2030 | AK152: 2031 | AL152: 2032 | AM152: 2033 | AN152: 2034 | AO152: 2035 | AP152: 2036 | AQ152: 2037 | AR152: 2038 | AS152: 2039 | AT152: 2040 | AU152: 2041 | AV152: 2042 | AW152: 2043 | AX152: 2044 | AY152: 2045 | AZ152: 2046 | BA152: 2047 | BB152: 2048 | BC152: 2049 | BD152: =BC152+1 -> 2050 | BE152: 2051 | BF152: 2052 | BG152: 2053 | BH152: 2054 | BI152: 2055 | BJ152: 2056 | BK152: 2057 | BL152: 2058 | BM152: 2059 | BN152: 2060 | BO152: 2061 | BP152: 2062 | BQ152: 2063 | BR152: 2064 | BS152: 2065 | BT152: 2066 | BU152: 2067
A153: Opening Asset Value | B153: =B144 -> 0 | C153: =B156 -> 0 | D153: 0 | E153: 0 | F153: 0 | G153: 0 | H153: 0 | I153: 0 | J153: 0 | K153: 0 | L153: 0 | M153: 0 | N153: =M156 -> 0 | O153: 0 | P153: 0 | Q153: 0 | R153: 0 | S153: 0 | T153: 0 | U153: 0 | V153: 0 | W153: 0 | X153: =W156 -> 0 | Y153: 0 | Z153: 0 | AA153: 0 | AB153: 0 | AC153: 0 | AD153: 0 | AE153: 0 | AF153: 0 | AG153: 0 | AH153: 0 | AI153: 0 | AJ153: 0 | AK153: 0 | AL153: 0 | AM153: 0 | AN153: 0 | AO153: 0 | AP153: 0 | AQ153: 0 | AR153: 0 | AS153: 0 | AT153: 0 | AU153: 0 | AV153: 0 | AW153: 0 | AX153: 0 | AY153: 0 | AZ153: 0 | BA153: 0 | BB153: 0 | BC153: 0 | BD153: =BC156 -> 0 | BE153: 0 | BF153: 0 | BG153: 0 | BH153: 0 | BI153: 0 | BJ153: 0 | BK153: 0 | BL153: 0 | BM153: 0 | BN153: 0 | BO153: 0 | BP153: 0 | BQ153: 0 | BR153: 0 | BS153: 0 | BT153: 0 | BU153: 0
A154: Capex | B154: =B150 -> 1 | C154: =C150 -> 2 | D154: =D150 -> 2 | E154: =E150 -> 1.5 | F154: 0 | G154: 0 | H154: 0 | I154: 0 | J154: 0 | K154: 0 | L154: 0 | M154: 0 | N154: 0 | O154: 0 | P154: 0 | Q154: 0 | R154: 0 | S154: 0 | T154: 0 | U154: 0 | V154: 0 | W154: 0 | X154: 0 | Y154: 0 | Z154: 0 | AA154: 0 | AB154: 0 | AC154: 0 | AD154: 0 | AE154: 0 | AF154: 0 | AG154: 0 | AH154: 0 | AI154: 0 | AJ154: 0 | AK154: 0 | AL154: 0 | AM154: 0 | AN154: 0 | AO154: 0 | AP154: 0 | AQ154: 0 | AR154: 0 | AS154: 0 | AT154: 0 | AU154: 0 | AV154: 0 | AW154: 0 | AX154: 0 | AY154: 0 | AZ154: 0 | BA154: 0 | BB154: 0 | BC154: 0 | BD154: 0 | BE154: 0 | BF154: 0 | BG154: 0 | BH154: 0 | BI154: 0 | BJ154: 0 | BK154: 0 | BL154: 0 | BM154: 0 | BN154: 0 | BO154: 0 | BP154: 0 | BQ154: 0 | BR154: 0 | BS154: 0 | BT154: 0 | BU154: 0
A155: Tax Depn | B155: =IF($B147=1,B154+B153,B154*$B147*0.5) -> 1 | C155: =IF($B147=1,C154+C153,(C153+C154*0.5)*$B147) -> 2 | D155: 2 | E155: 1.5 | F155: 0 | G155: 0 | H155: 0 | I155: 0 | J155: 0 | K155: 0 | L155: 0 | M155: 0 | N155: 0 | O155: 0 | P155: 0 | Q155: 0 | R155: 0 | S155: =IF($B147=1,S154+S153,(S153+S154*0.5)*$B147) -> 0 | T155: =IF($B147=1,T154+T153,(T153+T154*0.5)*$B147) -> 0 | U155: =IF($B147=1,U154+U153,(U153+U154*0.5)*$B147) -> 0 | V155: =IF($B147=1,V154+V153,(V153+V154*0.5)*$B147) -> 0 | W155: =IF($B147=1,W154+W153,(W153+W154*0.5)*$B147) -> 0 | X155: =IF($B147=1,X154+X153,(X153+X154*0.5)*$B147) -> 0 | Y155: 0 | Z155: 0 | AA155: 0 | AB155: 0 | AC155: 0 | AD155: 0 | AE155: 0 | AF155: 0 | AG155: 0 | AH155: 0 | AI155: 0 | AJ155: 0 | AK155: 0 | AL155: 0 | AM155: 0 | AN155: 0 | AO155: 0 | AP155: 0 | AQ155: 0 | AR155: 0 | AS155: 0 | AT155: 0 | AU155: 0 | AV155: 0 | AW155: 0 | AX155: 0 | AY155: 0 | AZ155: 0 | BA155: 0 | BB155: 0 | BC155: 0 | BD155: 0 | BE155: 0 | BF155: 0 | BG155: 0 | BH155: 0 | BI155: 0 | BJ155: 0 | BK155: 0 | BL155: 0 | BM155: 0 | BN155: 0 | BO155: 0 | BP155: 0 | BQ155: 0 | BR155: 0 | BS155: 0 | BT155: 0 | BU155: 0
A156: Closing Asset Value | B156: =B153+B154-B155 -> 0 | C156: 0 | D156: 0 | E156: 0 | F156: 0 | G156: 0 | H156: 0 | I156: 0 | J156: 0 | K156: 0 | L156: 0 | M156: 0 | N156: 0 | O156: 0 | P156: 0 | Q156: 0 | R156: 0 | S156: =S153+S154-S155 -> 0 | T156: =T153+T154-T155 -> 0 | U156: =U153+U154-U155 -> 0 | V156: =V153+V154-V155 -> 0 | W156: =W153+W154-W155 -> 0 | X156: =X153+X154-X155 -> 0 | Y156: 0 | Z156: 0 | AA156: 0 | AB156: 0 | AC156: 0 | AD156: 0 | AE156: 0 | AF156: 0 | AG156: 0 | AH156: 0 | AI156: 0 | AJ156: 0 | AK156: 0 | AL156: 0 | AM156: 0 | AN156: 0 | AO156: 0 | AP156: 0 | AQ156: 0 | AR156: 0 | AS156: 0 | AT156: 0 | AU156: 0 | AV156: 0 | AW156: 0 | AX156: 0 | AY156: 0 | AZ156: 0 | BA156: 0 | BB156: 0 | BC156: 0 | BD156: 0 | BE156: 0 | BF156: 0 | BG156: 0 | BH156: 0 | BI156: 0 | BJ156: 0 | BK156: 0 | BL156: 0 | BM156: 0 | BN156: 0 | BO156: 0 | BP156: 0 | BQ156: 0 | BR156: 0 | BS156: 0 | BT156: 0 | BU156: 0
A159: Total Group 2 Asset Class Tax Depreciation
B161: 1996 | C161: 1997 | D161: 1998 | E161: 1999 | F161: 2000 | G161: 2001 | H161: 2002 | I161: 2003 | J161: 2004 | K161: 2005 | L161: 2006 | M161: 2007 | N161: 2008 | O161: 2009 | P161: 2010 | Q161: 2011 | R161: 2012 | S161: 2013 | T161: 2014 | U161: 2015 | V161: 2016 | W161: 2017 | X161: 2018 | Y161: 2019 | Z161: 2020 | AA161: 2021 | AB161: 2022 | AC161: 2023 | AD161: 2024 | AE161: 2025 | AF161: 2026 | AG161: 2027 | AH161: 2028 | AI161: 2029 | AJ161: 2030 | AK161: 2031 | AL161: 2032 | AM161: 2033 | AN161: 2034 | AO161: 2035 | AP161: 2036 | AQ161: 2037 | AR161: 2038 | AS161: 2039 | AT161: 2040 | AU161: 2041 | AV161: 2042 | AW161: 2043 | AX161: 2044 | AY161: 2045 | AZ161: 2046 | BA161: 2047 | BB161: 2048 | BC161: 2049 | BD161: 2050 | BE161: 2051 | BF161: 2052 | BG161: 2053 | BH161: 2054 | BI161: 2055 | BJ161: 2056 | BK161: 2057 | BL161: 2058 | BM161: 2059 | BN161: 2060 | BO161: 2061 | BP161: 2062 | BQ161: 2063 | BR161: 2064 | BS161: 2065 | BT161: 2066 | BU161: 2067
A162: Opening Asset Value | B162: =B92+B107+B122+B137+B153 -> 0 | C162: 8.9116482 | D162: 24.93391923 | E162: 41.78374779 | F162: 48.95985137 | G162: 39.0050295 | H162: 31.10107397 | I162: 24.81941923 | J162: 19.82273988 | K162: 15.84504261 | L162: 12.67623824 | M162: 10.15014804 | N162: 8.135152866 | O162: 6.526883387 | P162: 5.242491666 | Q162: 4.216152159 | R162: 3.395520991 | S162: =S92+S107+S122+S137+S153 -> 2.738944347 | T162: =T92+T107+T122+T137+T153 -> 2.213253823 | U162: =U92+U107+U122+U137+U153 -> 1.792022746 | V162: =V92+V107+V122+V137+V153 -> 1.454185256 | W162: =W92+W107+W122+W137+W153 -> 1.182941369 | X162: =X92+X107+X122+X137+X153 -> 0.9648878891 | Y162: 0.78932793 | Z162: 0.6477218879 | AA162: 0.5332505599 | AB162: 0.4404672779 | AC162: 0.3650207597 | AD162: 0.3034341891 | AE162: 0.2529290384 | AF162: 0.211284516 | AG162: 0.1767253959 | AH162: 0.1478324718 | AI162: 0.1234710514 | AJ162: 0.1027338453 | AK162: 0.08489534117 | AL162: 0.06937534795 | AM162: 0.05570986255 | AN162: 0.04352778433 | AO162: 0.03253230176 | AP162: 0.02248601206 | AQ162: 0.01423652402 | AR162: 0.009719445222 | AS162: 0.007775775136 | AT162: 0.006220821988 | AU162: 0.004976837795 | AV162: 0.003981627492 | AW162: 0.003185436965 | AX162: 0.002548463967 | AY162: 0.002038867183 | AZ162: 0.0016311737 | BA162: 0.001305005126 | BB162: 0.001044058576 | BC162: 0.0008352915214 | BD162: 0.0006682697019 | BE162: 0.0005346454792 | BF162: 0.0004277405286 | BG162: 0.0003422119989 | BH162: 0.0002737854421 | BI162: 0.0002190411556 | BJ162: 0.0001752432554 | BK162: 0.0001402029317 | BL162: 0.0001121690511 | BM162: 8.974063628e-05 | BN162: 7.179684692e-05 | BO162: 5.744096298e-05 | BP162: 4.595556935e-05 | BQ162: 3.67667021e-05 | BR162: 2.941516421e-05 | BS162: 2.353357706e-05 | BT162: 1.882802078e-05 | BU162: 1.506334574e-05
A163: Capital Expenditure | B163: =B93+B108+B123+B138+B154 -> 12.391 | C163: 24.783 | D163: 30.416 | E163: 21.183 | F163: 0 | G163: 0 | H163: 0 | I163: 0 | J163: 0 | K163: 0 | L163: 0 | M163: 0 | N163: 0 | O163: 0 | P163: 0 | Q163: 0 | R163: 0 | S163: 0 | T163: =T93+T108+T123+T138+T154 -> 0 | U163: 0 | V163: 0 | W163: 0 | X163: 0 | Y163: 0 | Z163: 0 | AA163: 0 | AB163: 0 | AC163: 0 | AD163: 0 | AE163: 0 | AF163: 0 | AG163: 0 | AH163: 0 | AI163: 0 | AJ163: 0 | AK163: 0 | AL163: 0 | AM163: 0 | AN163: 0 | AO163: 0 | AP163: 0 | AQ163: 0 | AR163: 0 | AS163: 0 | AT163: 0 | AU163: 0 | AV163: 0 | AW163: 0 | AX163: 0 | AY163: 0 | AZ163: 0 | BA163: 0 | BB163: 0 | BC163: 0 | BD163: 0 | BE163: 0 | BF163: 0 | BG163: 0 | BH163: 0 | BI163: 0 | BJ163: 0 | BK163: 0 | BL163: 0 | BM163: 0 | BN163: 0 | BO163: 0 | BP163: 0 | BQ163: 0 | BR163: 0 | BS163: 0 | BT163: 0 | BU163: 0
A164: Tax Depreciation | B164: =B94+B109+B124+B139+B155 -> 3.4793518 | C164: 8.760728968 | D164: 13.56617144 | E164: 14.00689642 | F164: 9.95482187 | G164: 7.903955532 | H164: 6.281654737 | I164: 4.996679358 | J164: 3.977697266 | K164: 3.168804366 | L164: 2.526090208 | M164: 2.014995169 | N164: 1.60826948 | O164: 1.28439172 | P164: 1.026339508 | Q164: 0.820631168 | R164: 0.6565766435 | S164: 0.5256905242 | T164: =T94+T109+T124+T139+T155 -> 0.4212310766 | U164: =U94+U109+U124+U139+U155 -> 0.3378374899 | V164: =V94+V109+V124+V139+V155 -> 0.271243887 | W164: =W94+W109+W124+W139+W155 -> 0.2180534803 | X164: =X94+X109+X124+X139+X155 -> 0.1755599591 | Y164: 0.1416060421 | Z164: 0.114471328 | AA164: 0.092783282 | AB164: 0.07544651825 | AC164: 0.06158657062 | AD164: 0.05050515066 | AE164: 0.04164452242 | AF164: 0.03455912005 | AG164: 0.02889292417 | AH164: 0.02436142036 | AI164: 0.02073720607 | AJ164: 0.01783850416 | AK164: 0.01551999322 | AL164: 0.0136654854 | AM164: 0.01218207822 | AN164: 0.01099548257 | AO164: 0.0100462897 | AP164: 0.008249488037 | AQ164: 0.004517078801 | AR164: 0.001943670085 | AS164: 0.001554953148 | AT164: 0.001243984193 | AU164: 0.0009952103027 | AV164: 0.000796190527 | AW164: 0.0006369729982 | AX164: 0.0005095967841 | AY164: 0.000407693483 | AZ164: 0.0003261685741 | BA164: 0.0002609465499 | BB164: 0.0002087670548 | BC164: 0.0001670218194 | BD164: 0.0001336242227 | BE164: 0.0001069049506 | BF164: 8.552852964e-05 | BG164: 6.842655685e-05 | BH164: 5.474428651e-05 | BI164: 4.379790021e-05 | BJ164: 3.504032372e-05 | BK164: 2.803388055e-05 | BL164: 2.242841482e-05 | BM164: 1.794378936e-05 | BN164: 1.435588394e-05 | BO164: 1.148539363e-05 | BP164: 9.188867247e-06 | BQ164: 7.351537894e-06 | BR164: 5.88158715e-06 | BS164: 4.705556279e-06 | BT164: 3.764675038e-06 | BU164: 3.011924579e-06
A165: Closing Asset Value | B165: =B162+B163-B164 -> 8.9116482 | C165: =C162+C163-C164 -> 24.93391923 | D165: 41.78374779 | E165: 48.95985137 | F165: 39.0050295 | G165: 31.10107397 | H165: 24.81941923 | I165: 19.82273988 | J165: 15.84504261 | K165: 12.67623824 | L165: 10.15014804 | M165: 8.135152866 | N165: =N162+N163-N164 -> 6.526883387 | O165: 5.242491666 | P165: 4.216152159 | Q165: 3.395520991 | R165: 2.738944347 | S165: 2.213253823 | T165: 1.792022746 | U165: 1.454185256 | V165: 1.182941369 | W165: 0.9648878891 | X165: =X162+X163-X164 -> 0.78932793 | Y165: 0.6477218879 | Z165: 0.5332505599 | AA165: 0.4404672779 | AB165: 0.3650207597 | AC165: 0.3034341891 | AD165: 0.2529290384 | AE165: 0.211284516 | AF165: 0.1767253959 | AG165: 0.1478324718 | AH165: 0.1234710514 | AI165: 0.1027338453 | AJ165: 0.08489534117 | AK165: 0.06937534795 | AL165: 0.05570986255 | AM165: 0.04352778433 | AN165: 0.03253230176 | AO165: 0.02248601206 | AP165: 0.01423652402 | AQ165: 0.009719445222 | AR165: 0.007775775136 | AS165: 0.006220821988 | AT165: 0.004976837795 | AU165: 0.003981627492 | AV165: 0.003185436965 | AW165: 0.002548463967 | AX165: 0.002038867183 | AY165: 0.0016311737 | AZ165: 0.001305005126 | BA165: 0.001044058576 | BB165: 0.0008352915214 | BC165: 0.0006682697019 | BD165: 0.0005346454792 | BE165: 0.0004277405286 | BF165: 0.0003422119989 | BG165: 0.0002737854421 | BH165: 0.0002190411556 | BI165: 0.0001752432554 | BJ165: 0.0001402029317 | BK165: 0.0001121690511 | BL165: 8.974063628e-05 | BM165: 7.179684692e-05 | BN165: 5.744096298e-05 | BO165: 4.595556935e-05 | BP165: 3.67667021e-05 | BQ165: 2.941516421e-05 | BR165: 2.353357706e-05 | BS165: 1.882802078e-05 | BT165: 1.506334574e-05 | BU165: 1.205142116e-05
A171: TAX DEPRECIATION - GROUP 3 ASSET CLASS
A173: Group 3 Asset Class | B173: OAV $m (MOD) | C173: Depn Life | D173: Depn Method
A174: Mains & Services | B174: 0 | C174: =Input!F351 -> 50 | D174: =Input!G351 -> Declining Balance
A175: Meters | B175: =B174 -> 0 | C175: =Input!F352 -> 4 | D175: =Input!G352 -> Declining Balance
A176: Land & Buildings | B176: =B175 -> 0 | C176: =Input!F353 -> 40 | D176: =Input!G353 -> Straight Line
A177: Other Assets | B177: =B176 -> 0 | C177: =Input!F354 -> 10 | D177: =Input!G354 -> Declining Balance
A178: Repairs | B178: =B177 -> 0 | C178: =Input!F355 -> 0 | D178: =Input!G355 -> Fully Deductible
B179: =SUM(B174:B178) -> 0
A181: Tax Depreciation Schedule $m (MOD)
A183: =A174 -> Mains & Services
A184: OAV | B184: =B174 -> 0
A185: Depn Life | B185: =C174 -> 50
A186: Depn Method | B186: =D174 -> Declining Balance
A187: Depn Rate | B187: =IF(B186="Straight Line",1/B185,IF(B186="Declining Balance",1/B185*1.5,1)) -> 0.03
A189: Capital Expenditure | B189: 1999 | C189: 2000 | D189: 2001 | E189: 2002
A190: Capex $m (MOD) | B190: =Input!J351 -> 6.667 | C190: =Input!K351 -> 21.589 | D190: =Input!L351 -> 17.022 | E190: =Input!M351 -> 13.32710726
B192: 1996 | C192: 1997 | D192: 1998 | E192: 1999 | F192: 2000 | G192: 2001 | H192: 2002 | I192: 2003 | J192: 2004 | K192: 2005 | L192: 2006 | M192: 2007 | N192: 2008 | O192: 2009 | P192: 2010 | Q192: 2011 | R192: 2012 | S192: 2013 | T192: 2014 | U192: 2015 | V192: 2016 | W192: 2017 | X192: =W192+1 -> 2018 | Y192: 2019 | Z192: 2020 | AA192: 2021 | AB192: 2022 | AC192: 2023 | AD192: 2024 | AE192: 2025 | AF192: 2026 | AG192: 2027 | AH192: 2028 | AI192: 2029 | AJ192: 2030 | AK192: 2031 | AL192: 2032 | AM192: 2033 | AN192: 2034 | AO192: 2035 | AP192: 2036 | AQ192: 2037 | AR192: 2038 | AS192: 2039 | AT192: 2040 | AU192: 2041 | AV192: 2042 | AW192: 2043 | AX192: 2044 | AY192: 2045 | AZ192: 2046 | BA192: 2047 | BB192: 2048 | BC192: 2049 | BD192: =BC192+1 -> 2050 | BE192: 2051 | BF192: 2052 | BG192: 2053 | BH192: 2054 | BI192: 2055 | BJ192: 2056 | BK192: 2057 | BL192: 2058 | BM192: 2059 | BN192: 2060 | BO192: 2061 | BP192: 2062 | BQ192: 2063 | BR192: 2064 | BS192: 2065 | BT192: 2066 | BU192: 2067
A193: Opening Asset Value | B193: =B184 -> 0 | C193: =B196 -> 0 | D193: 0 | E193: 0 | F193: 6.566995 | G193: 27.63515015 | H193: 43.57276565 | I193: 55.39278333 | J193: 53.73099983 | K193: 52.11906983 | L193: 50.55549774 | M193: 49.0388328 | N193: 47.56766782 | O193: 46.14063778 | P193: 44.75641865 | Q193: 43.41372609 | R193: 42.11131431 | S193: =R196 -> 40.84797488 | T193: 39.62253563 | U193: 38.43385956 | V193: 37.28084378 | W193: 36.16241846 | X193: 35.07754591 | Y193: 34.02521953 | Z193: 33.00446295 | AA193: 32.01432906 | AB193: 31.05389919 | AC193: 30.12228221 | AD193: 29.21861374 | AE193: 28.34205533 | AF193: 27.49179367 | AG193: 26.66703986 | AH193: 25.86702867 | AI193: 25.09101781 | AJ193: 24.33828727 | AK193: 23.60813865 | AL193: 22.89989449 | AM193: 22.21289766 | AN193: 21.54651073 | AO193: 20.90011541 | AP193: 20.27311195 | AQ193: 19.66491859 | AR193: 19.07497103 | AS193: 18.5027219 | AT193: 17.94764024 | AU193: 17.40921103 | AV193: 16.8869347 | AW193: 16.38032666 | AX193: 15.88891686 | AY193: =AX196 -> 15.41224936 | AZ193: 14.94988188 | BA193: 14.50138542 | BB193: 14.06634386 | BC193: 13.64435354 | BD193: 13.23502294 | BE193: 12.83797225 | BF193: 12.45283308 | BG193: 12.07924809 | BH193: 11.71687064 | BI193: 11.36536453 | BJ193: 11.02440359 | BK193: 10.69367148 | BL193: 10.37286134 | BM193: 10.0616755 | BN193: 9.759825232 | BO193: 9.467030475 | BP193: 9.183019561 | BQ193: 8.907528974 | BR193: 8.640303105 | BS193: 8.381094012 | BT193: 8.129661192 | BU193: 7.885771356
A194: Capex | B194: 0 | C194: 0 | D194: 0 | E194: =B190 -> 6.667 | F194: =C190 -> 21.589 | G194: =D190 -> 17.022 | H194: =E190 -> 13.32710726 | I194: 0 | J194: 0 | K194: 0 | L194: 0 | M194: 0 | N194: 0 | O194: 0 | P194: 0 | Q194: 0 | R194: 0 | S194: 0 | T194: 0 | U194: 0 | V194: 0 | W194: 0 | X194: 0 | Y194: 0 | Z194: 0 | AA194: 0 | AB194: 0 | AC194: 0 | AD194: 0 | AE194: 0 | AF194: 0 | AG194: 0 | AH194: 0 | AI194: 0 | AJ194: 0 | AK194: 0 | AL194: 0 | AM194: 0 | AN194: 0 | AO194: 0 | AP194: 0 | AQ194: 0 | AR194: 0 | AS194: 0 | AT194: 0 | AU194: 0 | AV194: 0 | AW194: 0 | AX194: 0 | AY194: 0 | AZ194: 0 | BA194: 0 | BB194: 0 | BC194: 0 | BD194: 0 | BE194: 0 | BF194: 0 | BG194: 0 | BH194: 0 | BI194: 0 | BJ194: 0 | BK194: 0 | BL194: 0 | BM194: 0 | BN194: 0 | BO194: 0 | BP194: 0 | BQ194: 0 | BR194: 0 | BS194: 0 | BT194: 0 | BU194: 0
A195: Tax Depn | B195: =IF($B187=1,B194+B193,B194*$B187*0.5) -> 0 | C195: =IF($B187=1,C194+C193,(C193+C194*0.5)*$B187) -> 0 | D195: 0 | E195: 0.100005 | F195: 0.52084485 | G195: 1.084384504 | H195: 1.507089578 | I195: 1.6617835 | J195: 1.611929995 | K195: 1.563572095 | L195: 1.516664932 | M195: 1.471164984 | N195: 1.427030035 | O195: 1.384219134 | P195: 1.34269256 | Q195: 1.302411783 | R195: 1.263339429 | S195: =IF($B187=1,S194+S193,(S193+S194*0.5)*$B187) -> 1.225439246 | T195: 1.188676069 | U195: 1.153015787 | V195: 1.118425313 | W195: 1.084872554 | X195: 1.052326377 | Y195: 1.020756586 | Z195: 0.9901338884 | AA195: 0.9604298718 | AB195: 0.9316169756 | AC195: 0.9036684663 | AD195: 0.8765584123 | AE195: 0.85026166 | AF195: 0.8247538102 | AG195: 0.8000111959 | AH195: 0.77601086 | AI195: 0.7527305342 | AJ195: 0.7301486182 | AK195: 0.7082441596 | AL195: 0.6869968348 | AM195: 0.6663869298 | AN195: 0.6463953219 | AO195: 0.6270034622 | AP195: 0.6081933584 | AQ195: 0.5899475576 | AR195: 0.5722491309 | AS195: 0.555081657 | AT195: 0.5384292073 | AU195: 0.522276331 | AV195: 0.5066080411 | AW195: 0.4914097999 | AX195: 0.4766675059 | AY195: =IF($B187=1,AY194+AY193,(AY193+AY194*0.5)*$B187) -> 0.4623674807 | AZ195: 0.4484964563 | BA195: 0.4350415626 | BB195: 0.4219903157 | BC195: 0.4093306062 | BD195: 0.3970506881 | BE195: 0.3851391674 | BF195: 0.3735849924 | BG195: 0.3623774426 | BH195: 0.3515061193 | BI195: 0.3409609358 | BJ195: 0.3307321077 | BK195: 0.3208101445 | BL195: 0.3111858401 | BM195: 0.3018502649 | BN195: 0.292794757 | BO195: 0.2840109143 | BP195: 0.2754905868 | BQ195: 0.2672258692 | BR195: 0.2592090932 | BS195: 0.2514328204 | BT195: 0.2438898357 | BU195: 0.2365731407
A196: Closing Asset Value | B196: =B193+B194-B195 -> 0 | C196: 0 | D196: 0 | E196: 6.566995 | F196: 27.63515015 | G196: 43.57276565 | H196: 55.39278333 | I196: 53.73099983 | J196: 52.11906983 | K196: 50.55549774 | L196: 49.0388328 | M196: 47.56766782 | N196: 46.14063778 | O196: 44.75641865 | P196: 43.41372609 | Q196: 42.11131431 | R196: 40.84797488 | S196: =S193+S194-S195 -> 39.62253563 | T196: 38.43385956 | U196: 37.28084378 | V196: 36.16241846 | W196: 35.07754591 | X196: 34.02521953 | Y196: 33.00446295 | Z196: 32.01432906 | AA196: 31.05389919 | AB196: 30.12228221 | AC196: 29.21861374 | AD196: 28.34205533 | AE196: 27.49179367 | AF196: 26.66703986 | AG196: 25.86702867 | AH196: 25.09101781 | AI196: 24.33828727 | AJ196: 23.60813865 | AK196: 22.89989449 | AL196: 22.21289766 | AM196: 21.54651073 | AN196: 20.90011541 | AO196: 20.27311195 | AP196: 19.66491859 | AQ196: 19.07497103 | AR196: 18.5027219 | AS196: 17.94764024 | AT196: 17.40921103 | AU196: 16.8869347 | AV196: 16.38032666 | AW196: 15.88891686 | AX196: 15.41224936 | AY196: =AY193+AY194-AY195 -> 14.94988188 | AZ196: 14.50138542 | BA196: 14.06634386 | BB196: 13.64435354 | BC196: 13.23502294 | BD196: 12.83797225 | BE196: 12.45283308 | BF196: 12.07924809 | BG196: 11.71687064 | BH196: 11.36536453 | BI196: 11.02440359 | BJ196: 10.69367148 | BK196: 10.37286134 | BL196: 10.0616755 | BM196: 9.759825232 | BN196: 9.467030475 | BO196: 9.183019561 | BP196: 8.907528974 | BQ196: 8.640303105 | BR196: 8.381094012 | BS196: 8.129661192 | BT196: 7.885771356 | BU196: 7.649198215
A198: =A175 -> Meters
A199: OAV | B199: =B175 -> 0
A200: Depn Life | B200: =C175 -> 4
A201: Depn Method | B201: =D175 -> Declining Balance
A202: Depn Rate | B202: =IF(AND(B200=0,B201=""),0,IF(B201="Straight Line",1/B200,IF(B201="Declining Balance",1/B200*1.5,1))) -> 0.375
A204: Capital Expenditure | B204: 1999 | C204: 2000 | D204: 2001 | E204: 2002
A205: Capex $m (MOD) | B205: =Input!J352 -> 0.848 | C205: 5.575 | D205: 9.715 | E205: 2.88087259
B207: 1996 | C207: 1997 | D207: 1998 | E207: 1999 | F207: 2000 | G207: 2001 | H207: 2002 | I207: 2003 | J207: 2004 | K207: 2005 | L207: 2006 | M207: 2007 | N207: 2008 | O207: 2009 | P207: 2010 | Q207: 2011 | R207: 2012 | S207: 2013 | T207: 2014 | U207: 2015 | V207: 2016 | W207: 2017 | X207: =W207+1 -> 2018 | Y207: 2019 | Z207: 2020 | AA207: 2021 | AB207: 2022 | AC207: 2023 | AD207: 2024 | AE207: 2025 | AF207: 2026 | AG207: 2027 | AH207: 2028 | AI207: 2029 | AJ207: 2030 | AK207: 2031 | AL207: 2032 | AM207: 2033 | AN207: 2034 | AO207: 2035 | AP207: 2036 | AQ207: 2037 | AR207: 2038 | AS207: 2039 | AT207: 2040 | AU207: 2041 | AV207: 2042 | AW207: 2043 | AX207: 2044 | AY207: 2045 | AZ207: 2046 | BA207: 2047 | BB207: 2048 | BC207: 2049 | BD207: =BC207+1 -> 2050 | BE207: 2051 | BF207: 2052 | BG207: 2053 | BH207: 2054 | BI207: 2055 | BJ207: 2056 | BK207: 2057 | BL207: 2058 | BM207: 2059 | BN207: 2060 | BO207: 2061 | BP207: 2062 | BQ207: 2063 | BR207: 2064 | BS207: 2065 | BT207: 2066 | BU207: 2067
A208: Opening Asset Value | B208: =B199 -> 0 | C208: =B211 -> 0 | D208: 0 | E208: 0 | F208: 0.689 | G208: 4.9603125 | H208: 10.99363281 | I208: 9.211729487 | J208: 5.75733093 | K208: 3.598331831 | L208: 2.248957394 | M208: 1.405598371 | N208: 0.8784989822 | O208: 0.5490618639 | P208: 0.3431636649 | Q208: 0.2144772906 | R208: 0.1340483066 | S208: =R211 -> 0.08378019163 | T208: 0.05236261977 | U208: 0.03272663736 | V208: 0.02045414835 | W208: 0.01278384272 | X208: 0.007989901698 | Y208: 0.004993688561 | Z208: 0.003121055351 | AA208: 0.001950659594 | AB208: 0.001219162246 | AC208: 0.000761976404 | AD208: 0.0004762352525 | AE208: 0.0002976470328 | AF208: 0.0001860293955 | AG208: 0.0001162683722 | AH208: 7.266773262e-05 | AI208: 4.541733289e-05 | AJ208: 2.838583305e-05 | AK208: 1.774114566e-05 | AL208: 1.108821604e-05 | AM208: 6.930135023e-06 | AN208: 4.331334389e-06 | AO208: 2.707083993e-06 | AP208: 1.691927496e-06 | AQ208: 1.057454685e-06 | AR208: 6.609091781e-07 | AS208: 4.130682363e-07 | AT208: 2.581676477e-07 | AU208: 1.613547798e-07 | AV208: 1.008467374e-07 | AW208: 6.302921086e-08 | AX208: 3.939325679e-08 | AY208: =AX211 -> 2.462078549e-08 | AZ208: 1.538799093e-08 | BA208: 9.617494333e-09 | BB208: 6.010933958e-09 | BC208: 3.756833724e-09 | BD208: 2.348021077e-09 | BE208: 1.467513173e-09 | BF208: 9.171957334e-10 | BG208: 5.732473334e-10 | BH208: 3.582795833e-10 | BI208: 2.239247396e-10 | BJ208: 1.399529622e-10 | BK208: 8.74706014e-11 | BL208: 5.466912588e-11 | BM208: 3.416820367e-11 | BN208: 2.13551273e-11 | BO208: 1.334695456e-11 | BP208: 8.3418466e-12 | BQ208: 5.213654125e-12 | BR208: 3.258533828e-12 | BS208: 2.036583643e-12 | BT208: 1.272864777e-12 | BU208: 7.955404854e-13
A209: Capex | B209: 0 | C209: 0 | D209: 0 | E209: =B205 -> 0.848 | F209: =C205 -> 5.575 | G209: =D205 -> 9.715 | H209: =E205 -> 2.88087259 | I209: 0 | J209: 0 | K209: 0 | L209: 0 | M209: 0 | N209: 0 | O209: 0 | P209: 0 | Q209: 0 | R209: 0 | S209: 0 | T209: 0 | U209: 0 | V209: 0 | W209: 0 | X209: 0 | Y209: 0 | Z209: 0 | AA209: 0 | AB209: 0 | AC209: 0 | AD209: 0 | AE209: 0 | AF209: 0 | AG209: 0 | AH209: 0 | AI209: 0 | AJ209: 0 | AK209: 0 | AL209: 0 | AM209: 0 | AN209: 0 | AO209: 0 | AP209: 0 | AQ209: 0 | AR209: 0 | AS209: 0 | AT209: 0 | AU209: 0 | AV209: 0 | AW209: 0 | AX209: 0 | AY209: 0 | AZ209: 0 | BA209: 0 | BB209: 0 | BC209: 0 | BD209: 0 | BE209: 0 | BF209: 0 | BG209: 0 | BH209: 0 | BI209: 0 | BJ209: 0 | BK209: 0 | BL209: 0 | BM209: 0 | BN209: 0 | BO209: 0 | BP209: 0 | BQ209: 0 | BR209: 0 | BS209: 0 | BT209: 0 | BU209: 0
A210: Tax Depn | B210: =IF($B202=1,B209+B208,B209*$B202*0.5) -> 0 | C210: =IF($B202=1,C209+C208,(C208+C209*0.5)*$B202) -> 0 | D210: 0 | E210: 0.159 | F210: 1.3036875 | G210: 3.681679687 | H210: 4.662775915 | I210: 3.454398558 | J210: 2.158999099 | K210: 1.349374437 | L210: 0.8433590229 | M210: 0.5270993893 | N210: 0.3294371183 | O210: 0.2058981989 | P210: 0.1286863743 | Q210: 0.08042898396 | R210: 0.05026811498 | S210: =IF($B202=1,S209+S208,(S208+S209*0.5)*$B202) -> 0.03141757186 | T210: 0.01963598241 | U210: 0.01227248901 | V210: 0.00767030563 | W210: 0.004793941019 | X210: 0.002996213137 | Y210: 0.00187263321 | Z210: 0.001170395757 | AA210: 0.0007314973478 | AB210: 0.0004571858424 | AC210: 0.0002857411515 | AD210: 0.0001785882197 | AE210: 0.0001116176373 | AF210: 6.976102332e-05 | AG210: 4.360063957e-05 | AH210: 2.725039973e-05 | AI210: 1.703149983e-05 | AJ210: 1.06446874e-05 | AK210: 6.652929622e-06 | AL210: 4.158081014e-06 | AM210: 2.598800634e-06 | AN210: 1.624250396e-06 | AO210: 1.015156498e-06 | AP210: 6.34472811e-07 | AQ210: 3.965455068e-07 | AR210: 2.478409418e-07 | AS210: 1.549005886e-07 | AT210: 9.681286788e-08 | AU210: 6.050804243e-08 | AV210: 3.781752652e-08 | AW210: 2.363595407e-08 | AX210: 1.47724713e-08 | AY210: =IF($B202=1,AY209+AY208,(AY208+AY209*0.5)*$B202) -> 9.23279456e-09 | AZ210: 5.7704966e-09 | BA210: 3.606560375e-09 | BB210: 2.254100234e-09 | BC210: 1.408812646e-09 | BD210: 8.80507904e-10 | BE210: 5.5031744e-10 | BF210: 3.439484e-10 | BG210: 2.1496775e-10 | BH210: 1.343548438e-10 | BI210: 8.397177735e-11 | BJ210: 5.248236084e-11 | BK210: 3.280147553e-11 | BL210: 2.05009222e-11 | BM210: 1.281307638e-11 | BN210: 8.008172736e-12 | BO210: 5.00510796e-12 | BP210: 3.128192475e-12 | BQ210: 1.955120297e-12 | BR210: 1.221950186e-12 | BS210: 7.63718866e-13 | BT210: 4.773242912e-13 | BU210: 2.98327682e-13
A211: Closing Asset Value | B211: =B208+B209-B210 -> 0 | C211: 0 | D211: 0 | E211: 0.689 | F211: 4.9603125 | G211: 10.99363281 | H211: 9.211729487 | I211: 5.75733093 | J211: 3.598331831 | K211: 2.248957394 | L211: 1.405598371 | M211: 0.8784989822 | N211: 0.5490618639 | O211: 0.3431636649 | P211: 0.2144772906 | Q211: 0.1340483066 | R211: 0.08378019163 | S211: =S208+S209-S210 -> 0.05236261977 | T211: 0.03272663736 | U211: 0.02045414835 | V211: 0.01278384272 | W211: 0.007989901698 | X211: 0.004993688561 | Y211: 0.003121055351 | Z211: 0.001950659594 | AA211: 0.001219162246 | AB211: 0.000761976404 | AC211: 0.0004762352525 | AD211: 0.0002976470328 | AE211: 0.0001860293955 | AF211: 0.0001162683722 | AG211: 7.266773262e-05 | AH211: 4.541733289e-05 | AI211: 2.838583305e-05 | AJ211: 1.774114566e-05 | AK211: 1.108821604e-05 | AL211: 6.930135023e-06 | AM211: 4.331334389e-06 | AN211: 2.707083993e-06 | AO211: 1.691927496e-06 | AP211: 1.057454685e-06 | AQ211: 6.609091781e-07 | AR211: 4.130682363e-07 | AS211: 2.581676477e-07 | AT211: 1.613547798e-07 | AU211: 1.008467374e-07 | AV211: 6.302921086e-08 | AW211: 3.939325679e-08 | AX211: 2.462078549e-08 | AY211: =AY208+AY209-AY210 -> 1.538799093e-08 | AZ211: 9.617494333e-09 | BA211: 6.010933958e-09 | BB211: 3.756833724e-09 | BC211: 2.348021077e-09 | BD211: 1.467513173e-09 | BE211: 9.171957334e-10 | BF211: 5.732473334e-10 | BG211: 3.582795833e-10 | BH211: 2.239247396e-10 | BI211: 1.399529622e-10 | BJ211: 8.74706014e-11 | BK211: 5.466912588e-11 | BL211: 3.416820367e-11 | BM211: 2.13551273e-11 | BN211: 1.334695456e-11 | BO211: 8.3418466e-12 | BP211: 5.213654125e-12 | BQ211: 3.258533828e-12 | BR211: 2.036583643e-12 | BS211: 1.272864777e-12 | BT211: 7.955404854e-13 | BU211: 4.972128034e-13
A213: =A176 -> Land & Buildings
A214: OAV | B214: =B176 -> 0
A215: Depn Life | B215: =C176 -> 40
A216: Depn Method | B216: =D176 -> Straight Line
A217: Depn Rate | B217: =IF(AND(B215=0,B216=""),0,IF(B216="Straight Line",1/B215,IF(B216="Declining Balance",1/B215*1.5,1))) -> 0.025
A219: Capital Expenditure | B219: 1999 | C219: 2000 | D219: 2001 | E219: 2002
A220: Capex $m (MOD) | B220: =Input!J353 -> 0 | C220: =Input!K353 -> 0 | D220: =Input!L353 -> 0 | E220: =Input!M353 -> 0
B222: 1996 | C222: 1997 | D222: 1998 | E222: 1999 | F222: 2000 | G222: 2001 | H222: 2002 | I222: 2003 | J222: 2004 | K222: 2005 | L222: 2006 | M222: 2007 | N222: 2008 | O222: 2009 | P222: 2010 | Q222: 2011 | R222: 2012 | S222: 2013 | T222: 2014 | U222: 2015 | V222: 2016 | W222: 2017 | X222: =W222+1 -> 2018 | Y222: 2019 | Z222: 2020 | AA222: 2021 | AB222: 2022 | AC222: 2023 | AD222: 2024 | AE222: 2025 | AF222: 2026 | AG222: 2027 | AH222: 2028 | AI222: 2029 | AJ222: 2030 | AK222: 2031 | AL222: 2032 | AM222: 2033 | AN222: 2034 | AO222: 2035 | AP222: 2036 | AQ222: 2037 | AR222: 2038 | AS222: 2039 | AT222: 2040 | AU222: 2041 | AV222: 2042 | AW222: 2043 | AX222: 2044 | AY222: 2045 | AZ222: 2046 | BA222: 2047 | BB222: 2048 | BC222: 2049 | BD222: =BC222+1 -> 2050 | BE222: 2051 | BF222: 2052 | BG222: 2053 | BH222: 2054 | BI222: 2055 | BJ222: 2056 | BK222: 2057 | BL222: 2058 | BM222: 2059 | BN222: 2060 | BO222: 2061 | BP222: 2062 | BQ222: 2063 | BR222: 2064 | BS222: 2065 | BT222: 2066 | BU222: 2067
A223: Opening Asset Value | B223: =B214 -> 0 | C223: =B226 -> 0 | D223: 0 | E223: 0 | F223: 0 | G223: 0 | H223: 0 | I223: 0 | J223: 0 | K223: 0 | L223: 0 | M223: 0 | N223: 0 | O223: 0 | P223: 0 | Q223: 0 | R223: 0 | S223: =R226 -> 0 | T223: =S226 -> 0 | U223: =T226 -> 0 | V223: =U226 -> 0 | W223: =V226 -> 0 | X223: =W226 -> 0 | Y223: 0 | Z223: 0 | AA223: 0 | AB223: 0 | AC223: 0 | AD223: 0 | AE223: 0 | AF223: 0 | AG223: 0 | AH223: 0 | AI223: 0 | AJ223: 0 | AK223: 0 | AL223: 0 | AM223: 0 | AN223: 0 | AO223: 0 | AP223: 0 | AQ223: 0 | AR223: 0 | AS223: 0 | AT223: 0 | AU223: 0 | AV223: 0 | AW223: 0 | AX223: 0 | AY223: 0 | AZ223: 0 | BA223: 0 | BB223: 0 | BC223: 0 | BD223: 0 | BE223: 0 | BF223: 0 | BG223: 0 | BH223: 0 | BI223: 0 | BJ223: 0 | BK223: 0 | BL223: 0 | BM223: 0 | BN223: 0 | BO223: 0 | BP223: 0 | BQ223: 0 | BR223: 0 | BS223: 0 | BT223: 0 | BU223: 0
A224: Capex | B224: 0 | C224: 0 | D224: 0 | E224: =B220 -> 0 | F224: =C220 -> 0 | G224: =D220 -> 0 | H224: =E220 -> 0 | I224: 0 | J224: 0 | K224: 0 | L224: 0 | M224: 0 | N224: 0 | O224: 0 | P224: 0 | Q224: 0 | R224: 0 | S224: 0 | T224: 0 | U224: 0 | V224: 0 | W224: 0 | X224: 0 | Y224: 0 | Z224: 0 | AA224: 0 | AB224: 0 | AC224: 0 | AD224: 0 | AE224: 0 | AF224: 0 | AG224: 0 | AH224: 0 | AI224: 0 | AJ224: 0 | AK224: 0 | AL224: 0 | AM224: 0 | AN224: 0 | AO224: 0 | AP224: 0 | AQ224: 0 | AR224: 0 | AS224: 0 | AT224: 0 | AU224: 0 | AV224: 0 | AW224: 0 | AX224: 0 | AY224: 0 | AZ224: 0 | BA224: 0 | BB224: 0 | BC224: 0 | BD224: 0 | BE224: 0 | BF224: 0 | BG224: 0 | BH224: 0 | BI224: 0 | BJ224: 0 | BK224: 0 | BL224: 0 | BM224: 0 | BN224: 0 | BO224: 0 | BP224: 0 | BQ224: 0 | BR224: 0 | BS224: 0 | BT224: 0 | BU224: 0
A225: Tax Depn | B225: =B224*$B217*0.5 -> 0 | C225: =(SUM($B224:B224)+C224*0.5)*$B217 -> 0 | D225: =(SUM($B224:C224)+D224*0.5)*$B217 -> 0 | E225: =(SUM($B224:D224)+E224*0.5)*$B217 -> 0 | F225: =(SUM($B224:E224)+F224*0.5)*$B217 -> 0 | G225: =(SUM($B224:F224)+G224*0.5)*$B217 -> 0 | H225: =(SUM($B224:G224)+H224*0.5)*$B217 -> 0 | I225: =(SUM($B224:H224)+I224*0.5)*$B217 -> 0 | J225: =(SUM($B224:I224)+J224*0.5)*$B217 -> 0 | K225: =(SUM($B224:J224)+K224*0.5)*$B217 -> 0 | L225: =(SUM($B224:K224)+L224*0.5)*$B217 -> 0 | M225: =(SUM($B224:L224)+M224*0.5)*$B217 -> 0 | N225: =(SUM($B224:M224)+N224*0.5)*$B217 -> 0 | O225: =(SUM($B224:N224)+O224*0.5)*$B217 -> 0 | P225: =(SUM($B224:O224)+P224*0.5)*$B217 -> 0 | Q225: =(SUM($B224:P224)+Q224*0.5)*$B217 -> 0 | R225: =(SUM($B224:Q224)+R224*0.5)*$B217 -> 0 | S225: =(SUM($B224:R224)+S224*0.5)*$B217 -> 0 | T225: =(SUM($B224:S224)+T224*0.5)*$B217 -> 0 | U225: =(SUM($B224:T224)+U224*0.5)*$B217 -> 0 | V225: =(SUM($B224:U224)+V224*0.5)*$B217 -> 0 | W225: =(SUM($B224:V224)+W224*0.5)*$B217 -> 0 | X225: =(SUM($B224:W224)+X224*0.5)*$B217 -> 0 | Y225: =(SUM($B224:X224)+Y224*0.5)*$B217 -> 0 | Z225: =(SUM($B224:Y224)+Z224*0.5)*$B217 -> 0 | AA225: =(SUM($B224:Z224)+AA224*0.5)*$B217 -> 0 | AB225: =(SUM($B224:AA224)+AB224*0.5)*$B217 -> 0 | AC225: =(SUM($B224:AB224)+AC224*0.5)*$B217 -> 0 | AD225: =(SUM($B224:AC224)+AD224*0.5)*$B217 -> 0 | AE225: =(SUM($B224:AD224)+AE224*0.5)*$B217 -> 0 | AF225: =(SUM($B224:AE224)+AF224*0.5)*$B217 -> 0 | AG225: =(SUM($B224:AF224)+AG224*0.5)*$B217 -> 0 | AH225: =(SUM($B224:AG224)+AH224*0.5)*$B217 -> 0 | AI225: =(SUM($B224:AH224)+AI224*0.5)*$B217 -> 0 | AJ225: =(SUM($B224:AI224)+AJ224*0.5)*$B217 -> 0 | AK225: =(SUM($B224:AJ224)+AK224*0.5)*$B217 -> 0 | AL225: =(SUM($B224:AK224)+AL224*0.5)*$B217 -> 0 | AM225: =(SUM($B224:AL224)+AM224*0.5)*$B217 -> 0 | AN225: =(SUM($B224:AM224)+AN224*0.5)*$B217 -> 0 | AO225: =(SUM($B224:AN224)+AO224*0.5)*$B217 -> 0 | AP225: =(SUM(C224:AN224)+AO224*0.5+B224*0.5)*$B217 -> 0 | AQ225: =(SUM(D224:AO224)+AP224*0.5+C224*0.5)*$B217 -> 0 | AR225: 0 | AS225: 0 | AT225: 0 | AU225: 0 | AV225: 0 | AW225: 0 | AX225: 0 | AY225: 0 | AZ225: 0 | BA225: 0 | BB225: 0 | BC225: 0 | BD225: 0 | BE225: 0 | BF225: 0 | BG225: 0 | BH225: 0 | BI225: 0 | BJ225: 0 | BK225: 0 | BL225: 0 | BM225: 0 | BN225: 0 | BO225: 0 | BP225: 0 | BQ225: 0 | BR225: 0 | BS225: 0 | BT225: 0 | BU225: 0
A226: Closing Asset Value | B226: =B223+B224-B225 -> 0 | C226: 0 | D226: 0 | E226: 0 | F226: 0 | G226: 0 | H226: 0 | I226: 0 | J226: 0 | K226: 0 | L226: 0 | M226: 0 | N226: 0 | O226: 0 | P226: 0 | Q226: 0 | R226: 0 | S226: =S223+S224-S225 -> 0 | T226: =T223+T224-T225 -> 0 | U226: =U223+U224-U225 -> 0 | V226: =V223+V224-V225 -> 0 | W226: =W223+W224-W225 -> 0 | X226: =X223+X224-X225 -> 0 | Y226: 0 | Z226: 0 | AA226: 0 | AB226: 0 | AC226: 0 | AD226: 0 | AE226: 0 | AF226: 0 | AG226: 0 | AH226: 0 | AI226: 0 | AJ226: 0 | AK226: 0 | AL226: 0 | AM226: 0 | AN226: 0 | AO226: 0 | AP226: 0 | AQ226: 0 | AR226: 0 | AS226: 0 | AT226: 0 | AU226: 0 | AV226: 0 | AW226: 0 | AX226: 0 | AY226: 0 | AZ226: 0 | BA226: 0 | BB226: 0 | BC226: 0 | BD226: 0 | BE226: 0 | BF226: 0 | BG226: 0 | BH226: 0 | BI226: 0 | BJ226: 0 | BK226: 0 | BL226: 0 | BM226: 0 | BN226: 0 | BO226: 0 | BP226: 0 | BQ226: 0 | BR226: 0 | BS226: 0 | BT226: 0 | BU226: 0
A228: =A177 -> Other Assets
A229: OAV | B229: =B177 -> 0
A230: Depn Life | B230: =C177 -> 10
A231: Depn Method | B231: =D177 -> Declining Balance
A232: Depn Rate | B232: =IF(AND(B230=0,B231=""),0,IF(B231="Straight Line",1/B230,IF(B231="Declining Balance",1/B230*1.5,1))) -> 0.15
A234: Capital Expenditure | B234: 1999 | C234: 2000 | D234: 2001 | E234: 2002
A235: Capex $m (MOD) | B235: =Input!J354 -> 0.201 | C235: =Input!K354 -> 3.221 | D235: =Input!L354 -> 3.25 | E235: =Input!M354 -> 0.553548759
B237: 1996 | C237: 1997 | D237: 1998 | E237: 1999 | F237: 2000 | G237: 2001 | H237: 2002 | I237: 2003 | J237: 2004 | K237: 2005 | L237: 2006 | M237: 2007 | N237: 2008 | O237: 2009 | P237: 2010 | Q237: 2011 | R237: 2012 | S237: 2013 | T237: 2014 | U237: 2015 | V237: 2016 | W237: 2017 | X237: =W237+1 -> 2018 | Y237: 2019 | Z237: 2020 | AA237: 2021 | AB237: 2022 | AC237: 2023 | AD237: 2024 | AE237: 2025 | AF237: 2026 | AG237: 2027 | AH237: 2028 | AI237: 2029 | AJ237: 2030 | AK237: 2031 | AL237: 2032 | AM237: 2033 | AN237: 2034 | AO237: 2035 | AP237: 2036 | AQ237: 2037 | AR237: 2038 | AS237: 2039 | AT237: 2040 | AU237: 2041 | AV237: 2042 | AW237: 2043 | AX237: 2044 | AY237: 2045 | AZ237: 2046 | BA237: 2047 | BB237: 2048 | BC237: 2049 | BD237: =BC237+1 -> 2050 | BE237: 2051 | BF237: 2052 | BG237: 2053 | BH237: 2054 | BI237: 2055 | BJ237: 2056 | BK237: 2057 | BL237: 2058 | BM237: 2059 | BN237: 2060 | BO237: 2061 | BP237: 2062 | BQ237: 2063 | BR237: 2064 | BS237: 2065 | BT237: 2066 | BU237: 2067
A238: Opening Asset Value | B238: =B229 -> 0 | C238: =B241 -> 0 | D238: 0 | E238: 0 | F238: 0.185925 | G238: 3.13746125 | H238: 5.673092063 | I238: 5.334160855 | J238: 4.534036727 | K238: 3.853931218 | L238: 3.275841535 | M238: 2.784465305 | N238: 2.366795509 | O238: 2.011776183 | P238: 1.710009755 | Q238: 1.453508292 | R238: 1.235482048 | S238: =R241 -> 1.050159741 | T238: 0.8926357799 | U238: 0.7587404129 | V238: 0.644929351 | W238: 0.5481899483 | X238: 0.4659614561 | Y238: 0.3960672377 | Z238: 0.336657152 | AA238: 0.2861585792 | AB238: 0.2432347923 | AC238: 0.2067495735 | AD238: 0.1757371375 | AE238: 0.1493765668 | AF238: 0.1269700818 | AG238: 0.1079245695 | AH238: 0.09173588411 | AI238: 0.07797550149 | AJ238: 0.06627917627 | AK238: 0.05633729983 | AL238: 0.04788670485 | AM238: 0.04070369913 | AN238: 0.03459814426 | AO238: 0.02940842262 | AP238: 0.02499715923 | AQ238: 0.02124758534 | AR238: 0.01806044754 | AS238: 0.01535138041 | AT238: 0.01304867335 | AU238: 0.01109137235 | AV238: 0.009427666494 | AW238: 0.00801351652 | AX238: 0.006811489042 | AY238: =AX241 -> 0.005789765686 | AZ238: 0.004921300833 | BA238: 0.004183105708 | BB238: 0.003555639852 | BC238: 0.003022293874 | BD238: 0.002568949793 | BE238: 0.002183607324 | BF238: 0.001856066225 | BG238: 0.001577656292 | BH238: 0.001341007848 | BI238: 0.001139856671 | BJ238: 0.00096887817 | BK238: 0.0008235464445 | BL238: 0.0007000144778 | BM238: 0.0005950123062 | BN238: 0.0005057604602 | BO238: 0.0004298963912 | BP238: 0.0003654119325 | BQ238: 0.0003106001426 | BR238: 0.0002640101213 | BS238: 0.0002244086031 | BT238: 0.0001907473126 | BU238: 0.0001621352157
A239: Capex | B239: 0 | C239: 0 | D239: 0 | E239: =B235 -> 0.201 | F239: =C235 -> 3.221 | G239: =D235 -> 3.25 | H239: =E235 -> 0.553548759 | I239: 0 | J239: 0 | K239: 0 | L239: 0 | M239: 0 | N239: 0 | O239: 0 | P239: 0 | Q239: 0 | R239: 0 | S239: 0 | T239: 0 | U239: 0 | V239: 0 | W239: 0 | X239: 0 | Y239: 0 | Z239: 0 | AA239: 0 | AB239: 0 | AC239: 0 | AD239: 0 | AE239: 0 | AF239: 0 | AG239: 0 | AH239: 0 | AI239: 0 | AJ239: 0 | AK239: 0 | AL239: 0 | AM239: 0 | AN239: 0 | AO239: 0 | AP239: 0 | AQ239: 0 | AR239: 0 | AS239: 0 | AT239: 0 | AU239: 0 | AV239: 0 | AW239: 0 | AX239: 0 | AY239: 0 | AZ239: 0 | BA239: 0 | BB239: 0 | BC239: 0 | BD239: 0 | BE239: 0 | BF239: 0 | BG239: 0 | BH239: 0 | BI239: 0 | BJ239: 0 | BK239: 0 | BL239: 0 | BM239: 0 | BN239: 0 | BO239: 0 | BP239: 0 | BQ239: 0 | BR239: 0 | BS239: 0 | BT239: 0 | BU239: 0
A240: Tax Depn | B240: =IF($B232=1,B239+B238,B239*$B232*0.5) -> 0 | C240: =IF($B232=1,C239+C238,(C238+C239*0.5)*$B232) -> 0 | D240: 0 | E240: 0.015075 | F240: 0.26946375 | G240: 0.7143691875 | H240: 0.8924799663 | I240: 0.8001241283 | J240: 0.680105509 | K240: 0.5780896827 | L240: 0.4913762303 | M240: 0.4176697957 | N240: 0.3550193264 | O240: 0.3017664274 | P240: 0.2565014633 | Q240: 0.2180262438 | R240: 0.1853223072 | S240: =IF($B232=1,S239+S238,(S238+S239*0.5)*$B232) -> 0.1575239612 | T240: 0.133895367 | U240: 0.1138110619 | V240: 0.09673940264 | W240: 0.08222849225 | X240: 0.06989421841 | Y240: 0.05941008565 | Z240: 0.0504985728 | AA240: 0.04292378688 | AB240: 0.03648521885 | AC240: 0.03101243602 | AD240: 0.02636057062 | AE240: 0.02240648503 | AF240: 0.01904551227 | AG240: 0.01618868543 | AH240: 0.01376038262 | AI240: 0.01169632522 | AJ240: 0.00994187644 | AK240: 0.008450594974 | AL240: 0.007183005728 | AM240: 0.006105554869 | AN240: 0.005189721639 | AO240: 0.004411263393 | AP240: 0.003749573884 | AQ240: 0.003187137801 | AR240: 0.002709067131 | AS240: 0.002302707061 | AT240: 0.001957301002 | AU240: 0.001663705852 | AV240: 0.001414149974 | AW240: 0.001202027478 | AX240: 0.001021723356 | AY240: =IF($B232=1,AY239+AY238,(AY238+AY239*0.5)*$B232) -> 0.0008684648528 | AZ240: 0.0007381951249 | BA240: 0.0006274658562 | BB240: 0.0005333459778 | BC240: 0.0004533440811 | BD240: 0.0003853424689 | BE240: 0.0003275410986 | BF240: 0.0002784099338 | BG240: 0.0002366484437 | BH240: 0.0002011511772 | BI240: 0.0001709785006 | BJ240: 0.0001453317255 | BK240: 0.0001235319667 | BL240: 0.0001050021717 | BM240: 8.925184593e-05 | BN240: 7.586406904e-05 | BO240: 6.448445868e-05 | BP240: 5.481178988e-05 | BQ240: 4.65900214e-05 | BR240: 3.960151819e-05 | BS240: 3.366129046e-05 | BT240: 2.861209689e-05 | BU240: 2.432028236e-05
A241: Closing Asset Value | B241: =B238+B239-B240 -> 0 | C241: 0 | D241: 0 | E241: 0.185925 | F241: 3.13746125 | G241: 5.673092063 | H241: 5.334160855 | I241: 4.534036727 | J241: 3.853931218 | K241: 3.275841535 | L241: 2.784465305 | M241: 2.366795509 | N241: 2.011776183 | O241: 1.710009755 | P241: 1.453508292 | Q241: 1.235482048 | R241: 1.050159741 | S241: =S238+S239-S240 -> 0.8926357799 | T241: 0.7587404129 | U241: 0.644929351 | V241: 0.5481899483 | W241: 0.4659614561 | X241: 0.3960672377 | Y241: 0.336657152 | Z241: 0.2861585792 | AA241: 0.2432347923 | AB241: 0.2067495735 | AC241: 0.1757371375 | AD241: 0.1493765668 | AE241: 0.1269700818 | AF241: 0.1079245695 | AG241: 0.09173588411 | AH241: 0.07797550149 | AI241: 0.06627917627 | AJ241: 0.05633729983 | AK241: 0.04788670485 | AL241: 0.04070369913 | AM241: 0.03459814426 | AN241: 0.02940842262 | AO241: 0.02499715923 | AP241: 0.02124758534 | AQ241: 0.01806044754 | AR241: 0.01535138041 | AS241: 0.01304867335 | AT241: 0.01109137235 | AU241: 0.009427666494 | AV241: 0.00801351652 | AW241: 0.006811489042 | AX241: 0.005789765686 | AY241: =AY238+AY239-AY240 -> 0.004921300833 | AZ241: 0.004183105708 | BA241: 0.003555639852 | BB241: 0.003022293874 | BC241: 0.002568949793 | BD241: 0.002183607324 | BE241: 0.001856066225 | BF241: 0.001577656292 | BG241: 0.001341007848 | BH241: 0.001139856671 | BI241: 0.00096887817 | BJ241: 0.0008235464445 | BK241: 0.0007000144778 | BL241: 0.0005950123062 | BM241: 0.0005057604602 | BN241: 0.0004298963912 | BO241: 0.0003654119325 | BP241: 0.0003106001426 | BQ241: 0.0002640101213 | BR241: 0.0002244086031 | BS241: 0.0001907473126 | BT241: 0.0001621352157 | BU241: 0.0001378149334
A244: =A178 -> Repairs
A245: OAV | B245: =B178 -> 0
A246: Depn Life | B246: =C178 -> 0
A247: Depn Method | B247: =D178 -> Fully Deductible
A248: Depn Rate | B248: =IF(AND(B246=0,B247=""),0,IF(B247="Straight Line",1/B246,IF(B247="Declining Balance",1/B246*1.5,1))) -> 1
A250: Capital Expenditure | B250: 1999 | C250: 2000 | D250: 2001 | E250: 2002
A251: Capex $m (MOD) | B251: =Input!J355 -> 0.5 | C251: =Input!K355 -> 2 | D251: =Input!L355 -> 2 | E251: =Input!M355 -> 0
B253: 1996 | C253: 1997 | D253: 1998 | E253: 1999 | F253: 2000 | G253: 2001 | H253: 2002 | I253: 2003 | J253: 2004 | K253: 2005 | L253: 2006 | M253: 2007 | N253: 2008 | O253: 2009 | P253: 2010 | Q253: 2011 | R253: 2012 | S253: 2013 | T253: 2014 | U253: 2015 | V253: 2016 | W253: 2017 | X253: =W253+1 -> 2018 | Y253: 2019 | Z253: 2020 | AA253: 2021 | AB253: 2022 | AC253: 2023 | AD253: 2024 | AE253: 2025 | AF253: 2026 | AG253: 2027 | AH253: 2028 | AI253: 2029 | AJ253: 2030 | AK253: 2031 | AL253: 2032 | AM253: 2033 | AN253: 2034 | AO253: 2035 | AP253: 2036 | AQ253: 2037 | AR253: 2038 | AS253: 2039 | AT253: 2040 | AU253: 2041 | AV253: 2042 | AW253: 2043 | AX253: 2044 | AY253: 2045 | AZ253: 2046 | BA253: 2047 | BB253: 2048 | BC253: 2049 | BD253: =BC253+1 -> 2050 | BE253: 2051 | BF253: 2052 | BG253: 2053 | BH253: 2054 | BI253: 2055 | BJ253: 2056 | BK253: 2057 | BL253: 2058 | BM253: 2059 | BN253: 2060 | BO253: 2061 | BP253: 2062 | BQ253: 2063 | BR253: 2064 | BS253: 2065 | BT253: 2066 | BU253: 2067
A254: Opening Asset Value | B254: =B245 -> 0 | C254: =B257 -> 0 | D254: 0 | E254: 0 | F254: 0 | G254: 0 | H254: 0 | I254: 0 | J254: 0 | K254: 0 | L254: 0 | M254: 0 | N254: 0 | O254: 0 | P254: 0 | Q254: 0 | R254: 0 | S254: =R257 -> 0 | T254: 0 | U254: 0 | V254: 0 | W254: 0 | X254: 0 | Y254: 0 | Z254: 0 | AA254: 0 | AB254: 0 | AC254: 0 | AD254: 0 | AE254: 0 | AF254: 0 | AG254: 0 | AH254: 0 | AI254: 0 | AJ254: 0 | AK254: 0 | AL254: 0 | AM254: 0 | AN254: 0 | AO254: 0 | AP254: 0 | AQ254: 0 | AR254: 0 | AS254: 0 | AT254: 0 | AU254: 0 | AV254: 0 | AW254: 0 | AX254: 0 | AY254: =AX257 -> 0 | AZ254: 0 | BA254: 0 | BB254: 0 | BC254: 0 | BD254: 0 | BE254: 0 | BF254: 0 | BG254: 0 | BH254: 0 | BI254: 0 | BJ254: 0 | BK254: 0 | BL254: 0 | BM254: 0 | BN254: 0 | BO254: 0 | BP254: 0 | BQ254: 0 | BR254: 0 | BS254: 0 | BT254: 0 | BU254: 0
A255: Capex | B255: 0 | C255: 0 | D255: 0 | E255: =B251 -> 0.5 | F255: =C251 -> 2 | G255: =D251 -> 2 | H255: =E251 -> 0 | I255: 0 | J255: 0 | K255: 0 | L255: 0 | M255: 0 | N255: 0 | O255: 0 | P255: 0 | Q255: 0 | R255: 0 | S255: 0 | T255: 0 | U255: 0 | V255: 0 | W255: 0 | X255: 0 | Y255: 0 | Z255: 0 | AA255: 0 | AB255: 0 | AC255: 0 | AD255: 0 | AE255: 0 | AF255: 0 | AG255: 0 | AH255: 0 | AI255: 0 | AJ255: 0 | AK255: 0 | AL255: 0 | AM255: 0 | AN255: 0 | AO255: 0 | AP255: 0 | AQ255: 0 | AR255: 0 | AS255: 0 | AT255: 0 | AU255: 0 | AV255: 0 | AW255: 0 | AX255: 0 | AY255: 0 | AZ255: 0 | BA255: 0 | BB255: 0 | BC255: 0 | BD255: 0 | BE255: 0 | BF255: 0 | BG255: 0 | BH255: 0 | BI255: 0 | BJ255: 0 | BK255: 0 | BL255: 0 | BM255: 0 | BN255: 0 | BO255: 0 | BP255: 0 | BQ255: 0 | BR255: 0 | BS255: 0 | BT255: 0 | BU255: 0
A256: Tax Depn | B256: =IF($B248=1,B255+B254,B255*$B248*0.5) -> 0 | C256: =IF($B248=1,C255+C254,(C254+C255*0.5)*$B248) -> 0 | D256: 0 | E256: 0.5 | F256: 2 | G256: 2 | H256: 0 | I256: 0 | J256: 0 | K256: 0 | L256: 0 | M256: 0 | N256: 0 | O256: 0 | P256: 0 | Q256: 0 | R256: 0 | S256: =IF($B248=1,S255+S254,(S254+S255*0.5)*$B248) -> 0 | T256: 0 | U256: 0 | V256: 0 | W256: 0 | X256: 0 | Y256: 0 | Z256: 0 | AA256: 0 | AB256: 0 | AC256: 0 | AD256: 0 | AE256: 0 | AF256: 0 | AG256: 0 | AH256: 0 | AI256: 0 | AJ256: 0 | AK256: 0 | AL256: 0 | AM256: 0 | AN256: 0 | AO256: 0 | AP256: 0 | AQ256: 0 | AR256: 0 | AS256: 0 | AT256: 0 | AU256: 0 | AV256: 0 | AW256: 0 | AX256: 0 | AY256: =IF($B248=1,AY255+AY254,(AY254+AY255*0.5)*$B248) -> 0 | AZ256: 0 | BA256: 0 | BB256: 0 | BC256: 0 | BD256: 0 | BE256: 0 | BF256: 0 | BG256: 0 | BH256: 0 | BI256: 0 | BJ256: 0 | BK256: 0 | BL256: 0 | BM256: 0 | BN256: 0 | BO256: 0 | BP256: 0 | BQ256: 0 | BR256: 0 | BS256: 0 | BT256: 0 | BU256: 0
A257: Closing Asset Value | B257: =B254+B255-B256 -> 0 | C257: 0 | D257: 0 | E257: 0 | F257: 0 | G257: 0 | H257: 0 | I257: 0 | J257: 0 | K257: 0 | L257: 0 | M257: 0 | N257: 0 | O257: 0 | P257: 0 | Q257: 0 | R257: 0 | S257: =S254+S255-S256 -> 0 | T257: 0 | U257: 0 | V257: 0 | W257: 0 | X257: 0 | Y257: 0 | Z257: 0 | AA257: 0 | AB257: 0 | AC257: 0 | AD257: 0 | AE257: 0 | AF257: 0 | AG257: 0 | AH257: 0 | AI257: 0 | AJ257: 0 | AK257: 0 | AL257: 0 | AM257: 0 | AN257: 0 | AO257: 0 | AP257: 0 | AQ257: 0 | AR257: 0 | AS257: 0 | AT257: 0 | AU257: 0 | AV257: 0 | AW257: 0 | AX257: 0 | AY257: =AY254+AY255-AY256 -> 0 | AZ257: 0 | BA257: 0 | BB257: 0 | BC257: 0 | BD257: 0 | BE257: 0 | BF257: 0 | BG257: 0 | BH257: 0 | BI257: 0 | BJ257: 0 | BK257: 0 | BL257: 0 | BM257: 0 | BN257: 0 | BO257: 0 | BP257: 0 | BQ257: 0 | BR257: 0 | BS257: 0 | BT257: 0 | BU257: 0
A260: Total Group 3 Asset Class Tax Depreciation
B262: 1996 | C262: 1997 | D262: 1998 | E262: 1999 | F262: 2000 | G262: 2001 | H262: 2002 | I262: 2003 | J262: 2004 | K262: 2005 | L262: 2006 | M262: 2007 | N262: 2008 | O262: 2009 | P262: 2010 | Q262: 2011 | R262: 2012 | S262: 2013 | T262: 2014 | U262: 2015 | V262: 2016 | W262: 2017 | X262: =W262+1 -> 2018 | Y262: 2019 | Z262: 2020 | AA262: 2021 | AB262: 2022 | AC262: 2023 | AD262: 2024 | AE262: 2025 | AF262: 2026 | AG262: 2027 | AH262: 2028 | AI262: 2029 | AJ262: 2030 | AK262: 2031 | AL262: 2032 | AM262: 2033 | AN262: 2034 | AO262: 2035 | AP262: 2036 | AQ262: 2037 | AR262: 2038 | AS262: 2039 | AT262: 2040 | AU262: 2041 | AV262: 2042 | AW262: 2043 | AX262: 2044 | AY262: 2045 | AZ262: 2046 | BA262: 2047 | BB262: 2048 | BC262: 2049 | BD262: =BC262+1 -> 2050 | BE262: 2051 | BF262: 2052 | BG262: 2053 | BH262: 2054 | BI262: 2055 | BJ262: 2056 | BK262: 2057 | BL262: 2058 | BM262: 2059 | BN262: 2060 | BO262: 2061 | BP262: 2062 | BQ262: 2063 | BR262: 2064 | BS262: 2065 | BT262: 2066 | BU262: 2067
A263: Opening Asset Value | B263: =B193+B208+B223+B238+B254 -> 0 | C263: 0 | D263: 0 | E263: 0 | F263: 7.44192 | G263: 35.7329239 | H263: 60.23949052 | I263: 69.93867367 | J263: 64.02236748 | K263: 59.57133288 | L263: 56.08029667 | M263: 53.22889648 | N263: 50.81296231 | O263: 48.70147583 | P263: 46.80959207 | Q263: 45.08171167 | R263: 43.48084466 | S263: 41.98191481 | T263: =T193+T208+T223+T238+T254 -> 40.56753403 | U263: 39.22532661 | V263: 37.94622728 | W263: 36.72339226 | X263: =X193+X208+X223+X238+X254 -> 35.55149727 | Y263: 34.42628046 | Z263: 33.34424115 | AA263: 32.3024383 | AB263: 31.29835314 | AC263: 30.32979376 | AD263: 29.39482712 | AE263: 28.49172955 | AF263: 27.61894978 | AG263: 26.7750807 | AH263: 25.95883722 | AI263: 25.16903873 | AJ263: 24.40459483 | AK263: 23.6644937 | AL263: 22.94779229 | AM263: 22.25360829 | AN263: 21.58111321 | AO263: 20.92952654 | AP263: 20.2981108 | AQ263: 19.68616723 | AR263: 19.09303214 | AS263: 18.51807369 | AT263: 17.96068917 | AU263: 17.42030257 | AV263: 16.89636247 | AW263: 16.38834024 | AX263: 15.89572839 | AY263: 15.41803915 | AZ263: 14.95480319 | BA263: 14.50556854 | BB263: 14.0698995 | BC263: 13.64737584 | BD263: 13.23759189 | BE263: 12.84015586 | BF263: 12.45468915 | BG263: 12.08082574 | BH263: 11.71821165 | BI263: 11.36650438 | BJ263: 11.02537247 | BK263: 10.69449503 | BL263: 10.37356135 | BM263: 10.06227051 | BN263: 9.760330993 | BO263: 9.467460372 | BP263: 9.183384973 | BQ263: 8.907839574 | BR263: 8.640567115 | BS263: 8.381318421 | BT263: 8.129851939 | BU263: 7.885933491
A264: Capital Expenditure | B264: =B194+B209+B224+B239+B255 -> 0 | C264: 0 | D264: 0 | E264: 8.216 | F264: 32.385 | G264: 31.987 | H264: 16.76152861 | I264: 0 | J264: 0 | K264: 0 | L264: 0 | M264: 0 | N264: 0 | O264: 0 | P264: 0 | Q264: 0 | R264: 0 | S264: 0 | T264: 0 | U264: 0 | V264: 0 | W264: 0 | X264: =X194+X209+X224+X239+X255 -> 0 | Y264: 0 | Z264: 0 | AA264: 0 | AB264: 0 | AC264: 0 | AD264: 0 | AE264: 0 | AF264: 0 | AG264: 0 | AH264: 0 | AI264: 0 | AJ264: 0 | AK264: 0 | AL264: 0 | AM264: 0 | AN264: 0 | AO264: 0 | AP264: 0 | AQ264: 0 | AR264: 0 | AS264: 0 | AT264: 0 | AU264: 0 | AV264: 0 | AW264: 0 | AX264: 0 | AY264: 0 | AZ264: 0 | BA264: 0 | BB264: 0 | BC264: 0 | BD264: 0 | BE264: 0 | BF264: 0 | BG264: 0 | BH264: 0 | BI264: 0 | BJ264: 0 | BK264: 0 | BL264: 0 | BM264: 0 | BN264: 0 | BO264: 0 | BP264: 0 | BQ264: 0 | BR264: 0 | BS264: 0 | BT264: 0 | BU264: 0
A265: Tax Depreciation | B265: =B195+B210+B225+B240+B256 -> 0 | C265: 0 | D265: 0 | E265: 0.77408 | F265: 4.0939961 | G265: 7.480433379 | H265: 7.06234546 | I265: 5.916306186 | J265: 4.451034602 | K265: 3.491036214 | L265: 2.851400185 | M265: 2.415934169 | N265: 2.111486479 | O265: 1.89188376 | P265: 1.727880397 | Q265: 1.600867011 | R265: 1.498929851 | S265: =S195+S210+S225+S240+S256 -> 1.414380779 | T265: =T195+T210+T225+T240+T256 -> 1.342207418 | U265: =U195+U210+U225+U240+U256 -> 1.279099338 | V265: =V195+V210+V225+V240+V256 -> 1.222835022 | W265: =W195+W210+W225+W240+W256 -> 1.171894987 | X265: =X195+X210+X225+X240+X256 -> 1.125216809 | Y265: 1.082039305 | Z265: 1.041802857 | AA265: 1.004085156 | AB265: 0.9685593803 | AC265: 0.9349666435 | AD265: 0.9030975712 | AE265: 0.8727797626 | AF265: 0.8438690835 | AG265: 0.8162434819 | AH265: 0.789798493 | AI265: 0.7644438909 | AJ265: 0.7401011393 | AK265: 0.7167014075 | AL265: 0.6941839986 | AM265: 0.6724950835 | AN265: 0.6515866678 | AO265: 0.6314157408 | AP265: 0.6119435667 | AQ265: 0.593135092 | AR265: 0.5749584459 | AS265: 0.5573845189 | AT265: 0.5403866051 | AU265: 0.5239400974 | AV265: 0.5080222289 | AW265: 0.492611851 | AX265: 0.477689244 | AY265: 0.4632359548 | AZ265: 0.4492346572 | BA265: 0.4356690321 | BB265: 0.4225236639 | BC265: 0.4097839517 | BD265: 0.3974360314 | BE265: 0.3854667091 | BF265: 0.3738634027 | BG265: 0.3626140913 | BH265: 0.3517072707 | BI265: 0.3411319143 | BJ265: 0.3308774395 | BK265: 0.3209336765 | BL265: 0.3112908423 | BM265: 0.3019395168 | BN265: 0.292870621 | BO265: 0.2840753987 | BP265: 0.2755453986 | BQ265: 0.2672724593 | BR265: 0.2592486947 | BS265: 0.2514664816 | BT265: 0.2439184478 | BU265: 0.236597461
A266: Closing Asset Value | B266: =B263+B264-B265 -> 0 | C266: 0 | D266: 0 | E266: 7.44192 | F266: 35.7329239 | G266: 60.23949052 | H266: 69.93867367 | I266: 64.02236748 | J266: 59.57133288 | K266: 56.08029667 | L266: 53.22889648 | M266: 50.81296231 | N266: 48.70147583 | O266: 46.80959207 | P266: 45.08171167 | Q266: 43.48084466 | R266: 41.98191481 | S266: =S263+S264-S265 -> 40.56753403 | T266: =T263+T264-T265 -> 39.22532661 | U266: =U263+U264-U265 -> 37.94622728 | V266: =V263+V264-V265 -> 36.72339226 | W266: =W263+W264-W265 -> 35.55149727 | X266: =X263+X264-X265 -> 34.42628046 | Y266: 33.34424115 | Z266: 32.3024383 | AA266: 31.29835314 | AB266: 30.32979376 | AC266: 29.39482712 | AD266: 28.49172955 | AE266: 27.61894978 | AF266: 26.7750807 | AG266: 25.95883722 | AH266: 25.16903873 | AI266: 24.40459483 | AJ266: 23.6644937 | AK266: 22.94779229 | AL266: 22.25360829 | AM266: 21.58111321 | AN266: 20.92952654 | AO266: 20.2981108 | AP266: 19.68616723 | AQ266: 19.09303214 | AR266: 18.51807369 | AS266: 17.96068917 | AT266: 17.42030257 | AU266: 16.89636247 | AV266: 16.38834024 | AW266: 15.89572839 | AX266: 15.41803915 | AY266: 14.95480319 | AZ266: 14.50556854 | BA266: 14.0698995 | BB266: 13.64737584 | BC266: 13.23759189 | BD266: 12.84015586 | BE266: 12.45468915 | BF266: 12.08082574 | BG266: 11.71821165 | BH266: 11.36650438 | BI266: 11.02537247 | BJ266: 10.69449503 | BK266: 10.37356135 | BL266: 10.06227051 | BM266: 9.760330993 | BN266: 9.467460372 | BO266: 9.183384973 | BP266: 8.907839574 | BQ266: 8.640567115 | BR266: 8.381318421 | BS266: 8.129851939 | BT266: 7.885933491 | BU266: 7.64933603
A272: TAX DEPRECIATION - GROUP 4 ASSET CLASS
... 402 more rows

Sheet WACC
B2: Cost of Capital Parameters
F6: Input Data & Calculated Inputs | G6: Basic Building Block Model | H6: Equity
B7: Nominal Risk Free Rate | D7: Rf | F7: =Rf -> 0.031428 | H7: =Input!H187 -> 0.031428
B8: Real Risk Free Rate | D8: Rrf | F8: =(1+F7)/(1+F9)-1 -> 0.006271219512
B9: Inflation Rate | D9: f | F9: =f -> 0.025
B10: Cost of Debt Margin | D10: DRP | F10: =Drp -> 0.033535
B11: Nominal Pre-tax Cost of Debt | D11: Rd | F11: =F7+F10 -> 0.064963
B12: Real Pre-tax Cost of Debt | D12: Rrd | F12: =(1+F11)/(1+F9)-1 -> 0.03898829268
B13: Market Risk Premium | D13: MRP | F13: =Mrp -> 0.06
B14: Corporate Tax Rate | D14: T | F14: 0.3
B15: Effective Tax Rate for Equity (From Relevant Cash flows) | D15: Te | F15: 0.2413781783 | G15: =Analysis!$D$63 -> 0.2413781783
B16: Effective Tax Rate for Debt (Effective Debt Shield) | D16: Td | F16: =Td -> 0.3 | G16: =Analysis!$D$73 -> 0.3
B17: Utilisation of Imputation (Franking) Credits | D17: g | F17: =g -> 0.25
B18: Proportion of Equity Funding | D18: E/V | F18: =1-F19 -> 0.4
B19: Proportion of Debt Funding | D19: D/V | F19: =Dv -> 0.6
B20: Equity Beta | D20: βe | F20: =Be -> 0.8
B22: WACC Analysis
F24: Formula Approximation
B25: Post-tax Nominal Return on Equity(pre-imp) | F25: =H7+F20*(F13) -> 0.079428 | G25: =Analysis!$E$65 -> 0.079428
B26: Post-tax Real Return on Equity(pre-imp) | F26: =(1+F25)/(1+F9)-1 -> 0.0531004878 | G26: =Analysis!$E$69 -> 0.0531004878
B27: Nominal Vanilla WACC | F27: =F18*F25+F19*F11 -> 0.070749 | G27: =Analysis!$E$79 -> 0.070749
B28: Real Vanilla WACC | F28: =F18*F26+F19*F12 -> 0.04463317073 | G28: =Analysis!$E$80 -> 0.04463317073
B29: Post-tax Nominal WACC | F29: =F25*((1-F15)/(1-F15*(1-F17)))*F18+F11*F19*(1-F16) -> 0.05671463762 | G29: =Analysis!$E$76 -> 0.06810242385
B30: Post-tax Real WACC | F30: =(1+F29)/(1+F9)-1 -> 0.03094110987 | G30: =Analysis!$E$78 -> 0.04205114522
B31: Pre-tax Nominal WACC | F31: =F25*(1/(1-F15*(1-F17)))*F18+F11*F19 -> 0.07777206715 | G31: =Analysis!$E$75 -> 0.07820494429
B32: Pre-tax Real WACC | F32: =(1+F31)/(1+F9)-1 -> 0.05148494356 | G32: =Analysis!$E$77 -> 0.05190726273
B33: Nominal Tax Allowance | F33: =F31-F27 -> 0.007023067151 | G33: =G31-$F$27 -> 0.007455944295
B34: Real Tax Allowance | F34: =F32-F28 -> 0.00685177283 | G34: =G32-$F$28 -> 0.007274091995
F37: Numbers in White cells are calculated on this sheet from input parameters.
F38: Numbers in Orange cells are transferred from relevant sheets

Sheet SPI depreciation
A1: All Dollar figures are in $'000 | C1: Input | E1: NT
C2: Output | H2: Please leave this worksheet saved with 'real 2012' chosen
A3: CPI Conversion | O3: Forecasted with 2.50% inflation rate
A4: 4 | B4: 1996-09-01 | C4: 1997-03-01 | D4: 1997-09-01 | E4: 1998-09-01 | F4: 1999-09-01 | G4: 2000-09-01 | H4: 2001-09-01 | I4: 2002-09-01 | J4: 2003-09-01 | K4: 2004-09-01 | L4: 2005-09-01 | M4: 2006-09-01 | N4: 2007-09-01 | O4: 2008-09-01 | P4: 2009-09-01 | Q4: 2010-09-01 | R4: 2011-09-01 | S4: 2012-09-01 | T4: 2013-09-01 | U4: 2014-09-01 | V4: 2015-09-01 | W4: 2016-09-01
B5: 1997 | C5: 1998-01-01 | D5: 1998 | E5: 1999 | F5: 2000 | G5: 2001 | H5: 2002 | I5: 2003 | J5: 2004 | K5: 2005 | L5: 2006 | M5: 2007 | N5: 2008 | O5: 2009 | P5: 2010 | Q5: 2011 | R5: 2012 | S5: 2013 | T5: 2014 | U5: 2015 | V5: 2016 | W5: 2017 | X5: 2018 | Y5: 2019 | Z5: 2020 | AA5: 2021 | AB5: 2022
A6: CPI | B6: 120.1 | C6: 120.5 | D6: 119.7 | E6: 121.3 | F6: 123.4 | G6: 130.9 | H6: 134.2 | I6: 138.5 | J6: 142.1 | K6: 145.4 | L6: 149.8 | M6: 155.7 | N6: 158.6 | O6: 166.5 | P6: 168.6 | Q6: 173.3 | R6: 179.4 | S6: =R6*Assets!$G$7 -> 183.885 | T6: =S6*Assets!$G$7 -> 188.482125 | U6: =T6*Assets!$G$7 -> 193.1941781 | V6: =U6*Assets!$G$7 -> 198.0240326 | W6: =V6*Assets!$G$7 -> 202.9746334
A7: real 1998 | B7: =$D$6/B6 -> 0.9966694421 | C7: 0.9933609959 | D7: 1 | E7: 0.9868095631 | F7: 0.9700162075 | G7: 0.9144385027 | H7: 0.89195231 | I7: 0.8642599278 | J7: 0.842364532 | K7: 0.8232462173 | L7: 0.7990654206 | M7: 0.7687861272 | N7: 0.7547288777 | O7: 0.7189189189 | P7: 0.7099644128 | Q7: 0.6907097519 | R7: 0.6672240803 | S7: =$D$6/S6 -> 0.6509503222 | T7: =$D$6/T6 -> 0.6350734851 | U7: =$D$6/U6 -> 0.6195838879 | V7: =$D$6/V6 -> 0.6044720857 | W7: =$D$6/W6 -> 0.5897288641
A8: real 2001 | B8: =$G$6/B6 -> 1.089925062 | C8: 1.086307054 | D8: 1.093567251 | E8: 1.079142622 | F8: 1.060777958 | G8: 1 | H8: 0.9754098361 | I8: 0.9451263538 | J8: 0.921182266 | K8: 0.9002751032 | L8: 0.8738317757 | M8: 0.840719332 | N8: 0.8253467844 | O8: 0.7861861862 | P8: 0.7763938316 | Q8: 0.7553375649 | R8: 0.7296544036 | S8: =$G$6/S6 -> 0.7118579547 | T8: =$G$6/T6 -> 0.6944955656 | U8: =$G$6/U6 -> 0.6775566493 | V8: =$G$6/V6 -> 0.6610308774 | W8: =$G$6/W6 -> 0.6449081731
A9: real 2006 | B9: =$L$6/B6 -> 1.247293922 | C9: 1.243153527 | D9: =$L$6/D6 -> 1.251461988 | E9: 1.234954658 | F9: 1.213938412 | G9: 1.144385027 | H9: 1.116244411 | I9: 1.081588448 | J9: 1.054187192 | K9: 1.030261348 | L9: =$L$6/L6 -> 1 | M9: 0.9621066153 | N9: 0.9445145019 | O9: 0.8996996997 | P9: 0.8884934757 | Q9: 0.8643969994 | R9: 0.8350055741 | S9: 0.8146395845 | T9: 0.7947703264 | U9: 0.7753856843 | V9: 0.7564738383 | W9: 0.7380232569
A10: real 2012 | B10: =$R$6/B6 -> 1.493755204 | C10: 1.48879668 | D10: =$R$6/D6 -> 1.498746867 | E10: 1.478977741 | F10: 1.453808752 | G10: 1.370511841 | H10: 1.33681073 | I10: 1.295306859 | J10: 1.262491203 | K10: 1.233837689 | L10: 1.197596796 | M10: =$R$6/M6 -> 1.1522158 | N10: 1.131147541 | O10: 1.077477477 | P10: 1.06405694 | Q10: =$R$6/Q6 -> 1.035199077 | R10: 1 | S10: 0.9756097561 | T10: 0.9518143962 | U10: 0.9285994109 | V10: 0.9059506448 | W10: 0.8838542876
A11: real 2016 | O11: 6 months adjustment to bring mid year dollars to the end of year | R11: =0 -> 0
A13: Asset Valuation Categories | B13: ODRC (1/7/97) Land and building, Other - non It categories not included | C13: ODRC (1//1/98) Land and building, Other - non It categories not included | D13: Adjusted ODRC (1/1/98) | E13: Run up | F13: Run up to separate between low preasure mains and other mains | G13: Adjust ODRC (real) | Q13: 1997 RAB ($ 1997)
A14: Mains | B14: 302.215 | C14: =B14*(120.1/120.5) -> 301.2117967 | D14: =C14-$D$33*(C14/$B$33) -> 280.1784302 | E14: 280.2 | H14: In the 1998 Victorian Gas Access Arrangements Determinations, both the ORG and the | O14: High pressure distribution | P14: 167976.2766 | Q14: 0.5558171388
A15: Other mains | F15: =E14-F16 -> 185.8147701 | G15: =IF($A$4=1,F15,IF($A$4=2,F15*$C$8,IF($A$4=3,F15*$C$9,IF($A$4=4,F15*$C$10,IF($A$4=5,F15*$C$11))))) -> 276.640413 | H15: ACCC adopted the Depreciated Optimised Replacement Cost (DORC) methodology | O15: Medium pressure distribution | P15: 32437.75181 | Q15: 0.1073333614
A16: Low preasure | F16: =E14*Q16 -> 94.38522985 | G16: =IF($A$4=1,F16,IF($A$4=2,F16*$C$8,IF($A$4=3,F16*$C$9,IF($A$4=4,F16*$C$10,IF($A$4=5,F16*$C$11))))) -> 140.5204169 | H16: for valuing the Initial Capital Base for regulatory purposes. | O16: Low pressure distirbution | P16: 101800.9716 | Q16: 0.3368494998
A17: Security of Supply | B17: 16.75 | C17: 16.69439834 | D17: =C17-$D$33*(C17/$B$33) -> 15.52864254 | E17: 15.5 | F17: =E17 -> 15.5 | G17: =IF($A$4=1,F17,IF($A$4=2,F17*$C$8,IF($A$4=3,F17*$C$9,IF($A$4=4,F17*$C$10,IF($A$4=5,F17*$C$11))))) -> 23.07634855
A18: Services | B18: 210.276 | C18: 209.5779884 | D18: =C18-$D$33*(C18/$B$33) -> 194.9433337 | E18: 194.9 | F18: =E18 -> 194.9 | G18: =IF($A$4=1,F18,IF($A$4=2,F18*$C$8,IF($A$4=3,F18*$C$9,IF($A$4=4,F18*$C$10,IF($A$4=5,F18*$C$11))))) -> 290.166473 | M18: 1
A19: Transmission Pressure | B19: 58.475 | C19: 58.28089212 | D19: =C19-$D$33*(C19/$B$33) -> 54.21118643 | E19: 54.2 | F19: 54.2 | G19: =IF($A$4=1,F19,IF($A$4=2,F19*$C$8,IF($A$4=3,F19*$C$9,IF($A$4=4,F19*$C$10,IF($A$4=5,F19*$C$11))))) -> 80.69278008 | M19: Shortfall in Reg allowance IN
A20: Domestic Meters | B20: 52.713 | C20: 52.53801909 | D20: =C20-D34-(C21-C35) -> 40.04694523 | E20: 40 | F20: 40 | G20: =IF($A$4=1,F20,IF($A$4=2,F20*$C$8,IF($A$4=3,F20*$C$9,IF($A$4=4,F20*$C$10,IF($A$4=5,F20*$C$11))))) -> 59.55186722 | M20: Shortfall in Reg allowanceOUT
A21: Meter/Regulators | B21: 15.944 | C21: 15.89107386 | D21: =B35 -> 15.8 | E21: 15.8 | F21: 15.8 | G21: 23.52298755
A22: Field Regulators | B22: 5.026 | C22: 5.009316183 | D22: =C22-$D$33*(C22/$B$33) -> 4.659519846 | E22: 4.7 | F22: 4.7 | G22: 6.997344398
A23: City Gate | B23: 6.061 | C23: 6.040880498 | D23: =C23-$D$33*(C23/$B$33) -> 5.619050893 | E23: 5.6 | F23: 5.6 | G23: 8.337261411
A24: Other Regulator | B24: 4.089 | C24: 4.075426556 | D24: =C24-$D$33*(C24/$B$33) -> 3.790842947 | E24: 3.8 | F24: 3.8 | G24: 5.657427386
A25: SCADA | B25: 2.009 | C25: 2.00233112 | D25: =C25-$D$33*(C25/$B$33) -> 1.862510022 | E25: 1.9 | F25: 1.9 | G25: 2.828713693
A26: Land and Building | D26: =C32 -> 11.5 | E26: 11.5 | F26: 11.5 | G26: 17.12116183
A27: Other - IT | F27: 0 | G27: 0
A28: Other - non IT | D28: 3.6 | E28: 3.6 | F28: 3.6 | G28: 5.35966805
A29: Total | B29: =SUM(B14:B28) -> 673.558 | C29: 671.3221228 | D29: 631.7404618 | E29: 631.7 | F29: 631.7 | G29: 940.4728631
A31: Aggregated Asset Categories as at 1/1/98 | B31: ODRC $m | C31: Adjusted ODRC | D31: Value Written Off | F31: Domestic/Other Meter Split
A32: Land and Building | B32: 11.5 | C32: 11.5 | D32: =B32-C32 -> 0
A33: Mains and Services | B33: 602.9 | C33: 560.8 | D33: =B33-C33 -> 42.1
A34: Meters - Domestic | B34: 52.4 | C34: 40 | D34: 12.4 | F34: =C34/(C34+C35) -> 0.7168458781
A35: Meters - Others | B35: 15.8 | C35: 15.8 | D35: 0 | F35: =1-F34 -> 0.2831541219
A36: Other Assets | B36: 3.6 | C36: 3.6 | D36: 0
A37: Total | B37: =SUM(B32:B36) -> 686.2 | C37: =SUM(C32:C36) -> 631.7 | D37: 54.5
A40: Asset Life | B40: OAV Eco.Life | C40: OAV RL (98-02) | D40: CapEx (98-02) | E40: Capex (03-07) | F40: Capex (08-12) | G40: Capex (13-17) | I40: RL (AER) | J40: Original | K40: change | L40: CPI adjustment
A41: Transmission Pipelines | B41: 60 | C41: 39 | D41: =B41 -> 60 | E41: =D41 -> 60 | F41: 60 | G41: =F41 -> 60 | I41: =A1value/AVERAGE(S59:W59) -> 24.45374964 | J41: 24.53072383 | K41: =J41-I41 -> 0.07697419122 | L41: 2006-06-30 | M41: 154.3
A42: Distribution Pipelines | B42: 60 | C42: 39 | D42: =B42 -> 60 | E42: 60 | F42: 60 | G42: =F42 -> 60 | I42: =A2value/AVERAGE(S60:W60) -> 32.45401241 | J42: 32.64336745 | K42: =J42-I42 -> 0.1893550346 | L42: 2006-12-31 | M42: 155.5
A43: Service Pipes | B43: 60 | C43: 39 | D43: =B43 -> 60 | E43: 60 | F43: 60 | G43: 60 | I43: =A3value/AVERAGE(S61:W61) -> 35.77178969 | J43: 35.98333706 | K43: 0.2115473704 | M43: 1.007777058
A44: Cathodic Protection | B44: 60 | C44: 39 | D44: =B44 -> 60 | E44: 60 | F44: 60 | G44: 60 | I44: =A4value/AVERAGE(S62:W62) -> 26.69228535 | J44: 26.80749687 | K44: 0.1152115206
A45: Supply Regulators/Valve Stations | B45: 50 | C45: 39 | D45: =B45 -> 50 | E45: 50 | F45: 50 | G45: 50 | I45: =A5value/AVERAGE(S63:W63) -> 33.31033236 | J45: 33.49198855 | K45: 0.1816561927
A46: Meters | B46: 25 | C46: 17 | D46: 20 | E46: 20 | F46: 20 | G46: 20 | I46: =A6value/AVERAGE(S64:W64) -> 11.20465696 | J46: 11.249527 | K46: 0.04487004959
A47: SCADA and remote control | B47: 7 | C47: 5 | D47: =B47 -> 7 | E47: 7 | F47: 15 | G47: 15 | I47: =A7value/AVERAGE(S65:W65) -> 11.09376523 | J47: 11.20511507 | K47: 0.1113498384
A48: Land and Building | B48: 36 | C48: 40 | D48: =C48 -> 40 | E48: 40 | F48: =E48 -> 40 | G48: 40 | I48: =A8value/AVERAGE(S66:W66) -> 25.23331173 | J48: 25.31057091 | K48: 0.07725918375
A49: Other - IT | B49: 5 | C49: 5 | D49: =B49 -> 5 | E49: 5 | F49: 5 | G49: 5 | I49: =A9value/AVERAGE(S67:W67) -> 4.885511947 | J49: 4.914496716 | K49: 0.02898476847
A50: Other - non IT | B50: 5 | C50: 5 | D50: 5 | E50: 5 | F50: 5 | G50: 5 | I50: =A10value/AVERAGE(S68:W68) -> 4.732015086 | J50: 4.55530785 | K50: -0.1767072359
A51: New Town Eco Depn | B51: 1 | C51: 1 | D51: 1 | E51: 1 | F51: 5 | G51: 5
B52: 1 | C52: 1 | D52: 1 | E52: 1 | F52: 1 | G52: 1
B53: 1 | C53: 1 | D53: 1 | E53: 1 | F53: 1 | G53: 1
B54: 1 | C54: 1 | D54: 1 | E54: 1 | F54: 1 | G54: 1
A58: Total Reg. Depreciation (real) | D58: 1998 | E58: 1999 | F58: 2000 | G58: 2001 | H58: 2002 | I58: 2003 | J58: 2004 | K58: 2005 | L58: 2006 | M58: 2007 | N58: 2008 | O58: 2009 | P58: 2010 | Q58: 2011 | R58: 2012 | S58: 2013 | T58: 2014 | U58: 2015 | V58: 2016 | W58: 2017 | X58: 2018 | Y58: 2019 | Z58: 2020 | AA58: 2021 | AB58: 2022 | AC58: 2023 | AD58: 2024 | AE58: 2025 | AF58: 2026 | AG58: 2027
A59: Transmission Pipelines | D59: =D88+D447 -> 2.069045643 | E59: 2.069045643 | F59: 2.069045643 | G59: 2.069046547 | H59: 2.069047451 | I59: 2.069047451 | J59: 2.069047451 | K59: 2.069047451 | L59: 2.069047451 | M59: 2.085138539 | N59: 2.069047451 | O59: 2.069469125 | P59: 2.069946566 | Q59: =Q88+Q447 -> 2.070958133 | R59: 2.077323573 | S59: =(S88+S447+F489)*(1+$R$11) -> 2.082848822 | T59: =(T88+T447+G489)*(1+$R$11) -> 2.082848822 | U59: =(U88+U447+H489)*(1+$R$11) -> 2.082848822 | V59: =(V88+V447+I489)*(1+$R$11) -> 2.082848822 | W59: =(W88+W447+J489)*(1+$R$11) -> 2.082848822 | X59: =(X88+X447)*(1+$R$11) -> 2.082733215 | Y59: 2.082733215 | Z59: 2.082733215 | AA59: 2.082733215 | AB59: 0.01368757149 | AC59: 0.01368757149 | AD59: 0.01368757149 | AE59: 0.01368757149 | AF59: 0.01368757149 | AG59: 0.01368757149
A60: Distribution Pipelines | D60: =D89+D448+D90 -> 10.8239852 | E60: 11.08667917 | F60: 11.34678589 | G60: 11.56572519 | H60: 11.80462871 | I60: 12.16481943 | J60: 12.55963162 | K60: 12.89429677 | L60: 13.24499564 | M60: 13.73380572 | N60: 14.55216142 | O60: 14.98896436 | P60: 15.44848765 | Q60: 16.02689199 | R60: =R89+R448+R90 -> 16.63208619 | S60: =(S89+S448+S90+F490)*(1+$R$11) -> 18.57441521 | T60: =(T89+T448+T90+G490)*(1+$R$11) -> 18.57441521 | U60: =(U89+U448+U90+H490)*(1+$R$11) -> 18.57441521 | V60: =(V89+V448+V90+I490)*(1+$R$11) -> 18.57441521 | W60: =(W89+W448+W90+J490)*(1+$R$11) -> 18.57441521 | X60: =(X89+X448+X90)*$R$11 -> 0 | Y60: 0 | Z60: 0 | AA60: 0 | AB60: 0 | AC60: 0 | AD60: 0 | AE60: 0 | AF60: 0 | AG60: 0
A61: Service Pipes | D61: =D91+D449 -> 7.601774115 | E61: 7.929716496 | F61: 8.249862686 | G61: 8.519338932 | H61: 8.753401213 | I61: 9.034697542 | J61: 9.365304546 | K61: 9.693577283 | L61: 10.00811359 | M61: 10.34340893 | N61: 10.6626032 | O61: 11.11597729 | P61: 11.53278607 | Q61: 11.90894894 | R61: 12.28172094 | S61: =(S91+S449+F491)*(1+$R$11) -> 12.51206856 | T61: 12.51206856 | U61: 12.51206856 | V61: 12.51206856 | W61: 12.51206856 | X61: =(X91+X449)*(1+$R$11) -> 12.46521081 | Y61: 12.46521081 | Z61: 12.46521081 | AA61: 12.46521081 | AB61: 5.025044835 | AC61: 5.025044835 | AD61: 5.025044835 | AE61: 5.025044835 | AF61: 5.025044835 | AG61: 5.025044835
A62: Cathodic Protection | D62: =D92+D450 -> 0.5917012448 | E62: 0.5917012448 | F62: 0.5917012448 | G62: 0.5917012448 | H62: 0.5919008453 | I62: 0.5928244828 | J62: 0.594331706 | K62: 0.5959855983 | L62: 0.5977277252 | M62: 0.6038796331 | N62: 0.6026483319 | O62: 0.609663336 | P62: 0.6147127894 | Q62: 0.6212365611 | R62: 0.6339468747 | S62: 0.6405511703 | T62: 0.6405511703 | U62: 0.6405511703 | V62: 0.6405511703 | W62: 0.6405511703 | X62: =(X92+X450)*(1+$R$11) -> 0.6401334165 | Y62: 0.6401334165 | Z62: 0.6401334165 | AA62: 0.6401334165 | AB62: 0.04843217172 | AC62: 0.04843217172 | AD62: 0.04843217172 | AE62: 0.04843217172 | AF62: 0.04843217172 | AG62: 0.04843217172
A63: Supply Regulators/Valve Stations | D63: =D93+D451 -> 0.5575181188 | E63: 0.5867714004 | F63: 0.5996117526 | G63: 0.690284408 | H63: 0.7852110617 | I63: 0.8093328495 | J63: 0.8443175833 | K63: 0.8708008769 | L63: 0.8935075323 | M63: 0.93318847 | N63: 1.042391306 | O63: 1.075721602 | P63: 1.093280893 | Q63: 1.10939087 | R63: 1.125642545 | S63: 1.134793352 | T63: 1.134793352 | U63: 1.134793352 | V63: 1.134793352 | W63: 1.134793352 | X63: =(X93+X451)*(1+$R$11) -> 1.129657009 | Y63: 1.129657009 | Z63: 1.129657009 | AA63: 1.129657009 | AB63: 0.5913997478 | AC63: 0.5913997478 | AD63: 0.5913997478 | AE63: 0.5913997478 | AF63: 0.5913997478 | AG63: 0.5913997478
A64: Meters | D64: =D94+D452 -> 4.983893068 | E64: 5.168038473 | F64: 5.451970669 | G64: 5.778536705 | H64: 6.047154607 | I64: 6.385569781 | J64: 6.803280171 | K64: 7.205693827 | L64: 7.514723776 | M64: 7.903338917 | N64: 8.391019878 | O64: 8.829616205 | P64: 9.172948398 | Q64: 9.548482141 | R64: 10.04148555 | S64: 10.40757758 | T64: 10.369573 | U64: 5.520821418 | V64: 5.520821418 | W64: 5.520821418 | X64: =(X94+X452)*(1+$R$11) -> 5.361989385 | Y64: 5.17784398 | Z64: 4.893911783 | AA64: 4.567345747 | AB64: 4.298727845 | AC64: 3.960312671 | AD64: 3.542602281 | AE64: 3.140188625 | AF64: 2.831158677 | AG64: 2.480548119
A65: SCADA and remote control | D65: =D95+D453 -> 0.649724692 | E65: 0.7337137069 | F65: 0.8722657359 | G65: 1.043058022 | H65: 1.090131452 | I65: 0.5677831279 | J65: 0.6302020612 | K65: 0.5970918571 | L65: 0.5542267924 | M65: 0.4786467211 | N65: 0.3472503687 | O65: 0.3538939007 | P65: 0.3911162569 | Q65: 0.3812307743 | R65: 0.3692580986 | S65: 0.3596722542 | T65: 0.2967002964 | U65: 0.2578311696 | V65: 0.2578311696 | W65: 0.2471836493 | X65: =(X95+X453)*(1+$R$11) -> 0.2400853024 | Y65: 0.2400853024 | Z65: 0.2400853024 | AA65: 0.2400853024 | AB65: 0.2400853024 | AC65: 0.2395584954 | AD65: 0.1858415335 | AE65: 0.105224763 | AF65: 0.05269131226 | AG65: 0.01379223862
A66: Land and Building | D66: =D96+D454 -> 0.4280290456 | E66: 0.4280290456 | F66: 0.4280290456 | G66: 0.4280290456 | H66: 0.4280290456 | I66: 0.4280290456 | J66: 0.4280290456 | K66: 0.4280290456 | L66: 0.4280290456 | M66: 0.4313578522 | N66: 0.4280290456 | O66: 0.4280290456 | P66: 0.4280290456 | Q66: 0.4280290456 | R66: 0.4280290456 | S66: 0.4280290456 | T66: 0.4280290456 | U66: 0.4280290456 | V66: 0.4280290456 | W66: 0.4280290456 | X66: =(X96+X454)*(1+$R$11) -> 0.4280290456 | Y66: 0.4280290456 | Z66: 0.4280290456 | AA66: 0.4280290456 | AB66: 0 | AC66: 0 | AD66: 0 | AE66: 0 | AF66: 0 | AG66: 0
A67: Other - IT | D67: =D97+D455 -> 0.1742462471 | E67: 0.4544344006 | F67: 0.7774181927 | G67: 1.108767869 | H67: 1.323409119 | I67: 1.411576208 | J67: 1.663655584 | K67: 3.242606696 | L67: 4.950226486 | M67: 5.482847077 | N67: 5.622476059 | O67: 6.323958241 | P67: 6.516425922 | Q67: 6.54654879 | R67: 7.361069908 | S67: 7.674500422 | T67: 6.44075071 | U67: 4.346348126 | V67: 2.097141815 | W67: 0.5153461918 | X67: =(X97+X455)*(1+$R$11) -> 0 | Y67: 0 | Z67: 0 | AA67: 0 | AB67: 0 | AC67: 0 | AD67: 0 | AE67: 0 | AF67: 0 | AG67: 0
A68: Other - non IT | D68: =D98+D456 -> 1.07193361 | E68: 1.07193361 | F68: 1.07193361 | G68: 1.07193361 | H68: 1.119598135 | I68: 0.1385209394 | J68: 0.1989879444 | K68: 0.667541981 | L68: 1.352516902 | M68: 1.67380822 | N68: 1.747719424 | O68: 1.750313538 | P68: 1.352808289 | Q68: 0.7487342628 | R68: 0.444560063 | S68: 0.3306846831 | T68: 0.2676235641 | U68: 0.1965747764 | V68: 0.08910943976 | W68: 0.02137619232 | X68: =(X98+X456)*(1+$R$11) -> 0 | Y68: 0 | Z68: 0 | AA68: 0 | AB68: 0 | AC68: 0 | AD68: 0 | AE68: 0 | AF68: 0 | AG68: 0
A69: Economic Depreciation - NT | D69: =D99+D457 -> 0 | E69: 0 | F69: 0 | G69: 0 | H69: 0 | I69: 0 | J69: 0 | K69: 0 | L69: 0 | M69: 0 | N69: 0.9222305685 | O69: 0.9222305685 | P69: 0.9222305685 | Q69: 0.9222305685 | R69: 0.9222305685 | S69: =(S99+S457)*(1+$R$11) -> 0 | T69: 0 | U69: 0 | V69: 0 | W69: 0 | X69: 0 | Y69: 0 | Z69: 0 | AA69: 0 | AB69: 0 | AC69: 0 | AD69: 0 | AE69: 0 | AF69: 0 | AG69: 0
A72: Total | D72: =SUM(D59:D68) -> 28.95185098 | E72: =SUM(E59:E71) -> 30.12006319 | F72: =SUM(F59:F71) -> 31.45862447 | G72: 32.86642158 | H72: 34.01251164 | I72: 33.60220086 | J72: 35.15678771 | K72: 38.26467139 | L72: =SUM(L59:L71) -> 41.61311494 | M72: 43.66942008 | N72: =SUM(N59:N71) -> 46.38757705 | O72: 48.46783721 | P72: =SUM(P59:P71) -> 49.54277245 | Q72: 50.31268207 | R72: =SUM(R59:R71) -> 52.31735336 | S72: =SUM(S59:S71) -> 54.1451411 | T72: 52.74735373 | U72: 45.69428165 | V72: =SUM(V59:V71) -> 43.33761 | W72: 41.67743361 | X72: 22.34783818 | Y72: 22.16369278 | Z72: 21.87976058 | AA72: 21.55319455 | AB72: 10.21737747 | AC72: 9.878435493 | AD72: 9.40700814 | AE72: 8.923977714 | AF72: 8.562414315 | AG72: 8.172904684
A74: Strategic Depn - Dist. Pipelines | D74: =D81 -> 0.3537605028 | E74: =E81 -> 0.1328144316 | F74: 0.09297497463 | G74: 0.3446719096 | H74: 0.8113428954 | I74: 0.2453390166 | J74: 1.316520008 | K74: 3.95699127 | L74: 6.853486726 | M74: 8.199070274 | N74: -0.9988734697 | O74: -2.877586061 | P74: -4.489036871 | Q74: -3.750255425 | R74: -2.861065164 | S74: 0 | T74: 0 | U74: 0 | V74: 0 | W74: 0 | X74: 0 | Y74: 0 | Z74: 0 | AA74: 0 | AB74: 0 | AC74: 0 | AD74: 0 | AE74: 0 | AF74: 0 | AG74: 0
A76: Reg Depreciation Allowed | D76: 1998 | E76: 1999 | F76: 2000 | G76: 2001 | H76: 2002 | I76: 2003 | J76: 2004 | K76: 2005 | L76: 2006 | M76: 2007 | N76: 2008 | O76: 2009 | P76: 2010 | Q76: 2011 | R76: 2012 | S76: 2013 | T76: 2014 | U76: 2015 | V76: 2016 | W76: 2017 | X76: 2018 | Y76: 2019 | Z76: 2020 | AA76: 2021 | AB76: 2022 | AC76: 2023 | AD76: 2024 | AE76: 2025 | AF76: 2026 | AG76: 2027
A77: real 2001 | D77: 20.86672265 | E77: 21.88032811 | F77: 22.88608427 | G77: 23.72963786 | H77: 24.22537898 | I77: 24.33898113 | J77: 24.69170035 | K77: 25.03274987 | L77: 25.36251579 | M77: 25.68137142 | N77: =N78*$L$8 -> 34.57573229 | O77: =O78*$L$8 -> 37.4644142 | P77: =P78*$L$8 -> 39.42454761 | Q77: =Q78*$L$8 -> 39.44726042 | R77: =R78*$L$8 -> 40.26117606
A78: real 2006 | D78: =D77*$G$9 -> 23.87956496 | E78: 25.03951986 | F78: 26.19049216 | G78: 27.15584225 | H78: 27.72316097 | I78: 27.85316557 | J78: 28.25681216 | K78: 28.64710413 | L78: 29.02448331 | M78: =M77*$G$9 -> 29.38937692 | N78: 39.56795032 | O78: 42.87371464 | P78: 45.11686197 | Q78: 45.14285417 | R78: 46.07428704
A79: real 2012 | D79: =D77*$G$10 -> 28.59809048 | E79: =E77*$G$10 -> 29.98724876 | F79: 31.3656495 | G79: 32.52174967 | H79: 33.20116875 | I79: 33.35686184 | J79: 33.84026771 | K79: 34.30768012 | L79: 34.75962821 | M79: =(M77*$G$10)*M43 -> 35.4703498 | N79: =N78*$L$10 -> 47.38645052 | O79: =O78*$L$10 -> 51.34542328 | P79: =P78*$L$10 -> 54.03180933 | Q79: =Q78*$L$10 -> 54.0629375 | R79: =R78*$L$10 -> 55.17841852
A80: real 2016
A81: (Excess)/Shortfall in Reg Allowance | D81: =IF($A$4=1,"0'",IF($A$4=2,D$72-D77,IF($A$4=3,D$72-D78,IF($A$4=4,D$72-D79,D$72-D80)))) -> 0.3537605028 | E81: 0.1328144316 | F81: 0.09297497463 | G81: 0.3446719096 | H81: 0.8113428954 | I81: 0.2453390166 | J81: 1.316520008 | K81: 3.95699127 | L81: 6.853486726 | M81: 8.199070274 | N81: -0.9988734697 | O81: -2.877586061 | P81: -4.489036871 | Q81: -3.750255425 | R81: -2.861065164
A82: Accumulated | D82: =SUM($D$81:D81) -> 0.3537605028 | E82: =SUM($D$81:E81) -> 0.4865749344 | F82: =SUM($D$81:F81) -> 0.579549909 | G82: =SUM($D$81:G81) -> 0.9242218187 | H82: =SUM($D$81:H81) -> 1.735564714 | I82: =SUM($D$81:I81) -> 1.980903731 | J82: =SUM($D$81:J81) -> 3.297423738 | K82: =SUM($D$81:K81) -> 7.254415008 | L82: =SUM($D$81:L81) -> 14.10790173 | M82: =SUM($D$81:M81) -> 22.30697201 | N82: =SUM($D$81:N81) -> 21.30809854 | O82: =SUM($D$81:O81) -> 18.43051248 | P82: =SUM($D$81:P81) -> 13.94147561 | Q82: =SUM($D$81:Q81) -> 10.19122018 | R82: =SUM($D$81:R81) -> 7.330155017
A87: OAV & Depreciation | B87: Life | C87: OAV(real) | D87: 1998 | E87: 1999 | F87: 2000 | G87: 2001 | H87: 2002 | I87: 2003 | J87: 2004 | K87: 2005 | L87: 2006 | M87: 2007 | N87: 2008 | O87: 2009 | P87: 2010 | Q87: 2011 | R87: 2012 | S87: 2013 | T87: 2014 | U87: 2015 | V87: 2016 | W87: 2017 | X87: 2018 | Y87: 2019 | Z87: 2020 | AA87: 2021 | AB87: 2022 | AC87: 2023 | AD87: 2024 | AE87: 2025 | AF87: 2026 | AG87: 2027
A88: Transmission Pipelines | B88: =C41 -> 39 | C88: =G19 -> 80.69278008 | D88: =C88/$B88 -> 2.069045643 | E88: =MIN($C88/$B88,$C88-SUM($D88:D88)) -> 2.069045643 | F88: =MIN(($C88+SUM($D105:E105))/$B88,$C88-SUM($D88:E88)) -> 2.069045643 | G88: =MIN(($C88+SUM($D105:F105))/$B88,$C88-SUM($D88:F88)) -> 2.069045643 | H88: =MIN(($C88+SUM($D105:G105))/$B88,$C88-SUM($D88:G88)) -> 2.069045643 | I88: =MIN(($C88+SUM($D105:H105))/$B88,$C88-SUM($D88:H88)) -> 2.069045643 | J88: =MIN(($C88+SUM($D105:I105))/$B88,$C88-SUM($D88:I88)) -> 2.069045643 | K88: =MIN(($C88+SUM($D105:J105))/$B88,$C88-SUM($D88:J88)) -> 2.069045643 | L88: =MIN(($C88+SUM($D105:K105))/$B88,$C88-SUM($D88:K88)) -> 2.069045643 | M88: =MIN(($C88+SUM($D105:L105))/$B88,$C88-SUM($D88:L88))*M43 -> 2.08513673 | N88: =MIN(($C88+SUM($D105:M105))/$B88,$C88-SUM($D88:M88)) -> 2.069045643 | O88: =MIN(($C88+SUM($D105:N105))/$B88,$C88-SUM($D88:N88)) -> 2.069045643 | P88: =MIN(($C88+SUM($D105:O105))/$B88,$C88-SUM($D88:O88)) -> 2.069045643 | Q88: =MIN(($C88+SUM($D105:P105))/$B88,$C88-SUM($D88:P88)) -> 2.069045643 | R88: =MIN(($C88+SUM($D105:Q105))/$B88,$C88-SUM($D88:Q88)) -> 2.069045643 | S88: =MIN(($C88+SUM($D105:R105))/$B88,$C88-SUM($D88:R88)) -> 2.069045643 | T88: =MIN(($C88+SUM($D105:S105))/$B88,$C88-SUM($D88:S88)) -> 2.069045643 | U88: =MIN(($C88+SUM($D105:T105))/$B88,$C88-SUM($D88:T88)) -> 2.069045643 | V88: =MIN(($C88+SUM($D105:U105))/$B88,$C88-SUM($D88:U88)) -> 2.069045643 | W88: =MIN(($C88+SUM($D105:V105))/$B88,$C88-SUM($D88:V88)) -> 2.069045643 | X88: =MIN(($C88+SUM($D105:W105))/$B88,$C88-SUM($D88:W88)) -> 2.069045643 | Y88: =MIN(($C88+SUM($D105:X105))/$B88,$C88-SUM($D88:X88)) -> 2.069045643 | Z88: =MIN(($C88+SUM($D105:Y105))/$B88,$C88-SUM($D88:Y88)) -> 2.069045643 | AA88: =MIN(($C88+SUM($D105:Z105))/$B88,$C88-SUM($D88:Z88)) -> 2.069045643
A89: Distribution Pipelines other mains | B89: =C42 -> 39 | C89: =G15 -> 276.640413 | D89: 7.093343923 | E89: =MIN($C89/$B89,$C89-SUM($D89:D89)) -> 7.093343923 | F89: =MIN($C89/$B89,$C89-SUM($D89:E89)) -> 7.093343923 | G89: =MIN($C89/$B89,$C89-SUM($D89:F89)) -> 7.093343923 | H89: =MIN($C89/$B89,$C89-SUM($D89:G89)) -> 7.093343923 | I89: =MIN($C89/$B89,$C89-SUM($D89:H89)) -> 7.093343923 | J89: =MIN($C89/$B89,$C89-SUM($D89:I89)) -> 7.093343923 | K89: =MIN($C89/$B89,$C89-SUM($D89:J89)) -> 7.093343923 | L89: =MIN($C89/$B89,$C89-SUM($D89:K89)) -> 7.093343923 | M89: =MIN($C89/$B89,$C89-SUM($D89:L89))*M43 -> 7.148509267 | N89: =MIN($C89/$B89,$C89-SUM($D89:M89)) -> 7.093343923 | O89: =MIN($C89/$B89,$C89-SUM($D89:N89)) -> 7.093343923 | P89: =MIN($C89/$B89,$C89-SUM($D89:O89)) -> 7.093343923 | Q89: =MIN($C89/$B89,$C89-SUM($D89:P89)) -> 7.093343923 | R89: =MIN($C89/$B89,$C89-SUM($D89:Q89)) -> 7.093343923 | S89: =MIN($C89/$B89,$C89-SUM($D89:R89)) -> 7.093343923 | T89: =MIN($C89/$B89,$C89-SUM($D89:S89)) -> 7.093343923 | U89: =MIN($C89/$B89,$C89-SUM($D89:T89)) -> 7.093343923 | V89: =MIN($C89/$B89,$C89-SUM($D89:U89)) -> 7.093343923 | W89: =MIN($C89/$B89,$C89-SUM($D89:V89)) -> 7.093343923 | X89: =MIN($C89/$B89,$C89-SUM($D89:W89)) -> 7.093343923 | Y89: =MIN($C89/$B89,$C89-SUM($D89:X89)) -> 7.093343923 | Z89: =MIN($C89/$B89,$C89-SUM($D89:Y89)) -> 7.093343923 | AA89: =MIN($C89/$B89,$C89-SUM($D89:Z89)) -> 7.093343923
A90: Distribution Pipelines Low pressure mains | B90: 27 | C90: =G16 -> 140.5204169 | D90: =C90/$B89 -> 3.603087613 | E90: =MIN($C90/$B89,$C90-SUM($D90:D90)) -> 3.603087613 | F90: =MIN($C90/$B89,$C90-SUM($D90:E90)) -> 3.603087613 | G90: =MIN($C90/$B89,$C90-SUM($D90:F90)) -> 3.603087613 | H90: =MIN($C90/$B89,$C90-SUM($D90:G90)) -> 3.603087613 | I90: =MIN($C90/$B89,$C90-SUM($D90:H90)) -> 3.603087613 | J90: =MIN($C90/$B89,$C90-SUM($D90:I90)) -> 3.603087613 | K90: =MIN($C90/$B89,$C90-SUM($D90:J90)) -> 3.603087613 | L90: =MIN($C90/$B89,$C90-SUM($D90:K90)) -> 3.603087613 | M90: =MIN($C90/$B89,$C90-SUM($D90:L90))*M43 -> 3.631109033 | N90: =MIN($C90/$B89,$C90-SUM($D90:M90)) -> 3.603087613 | O90: =MIN($C90/$B89,$C90-SUM($D90:N90)) -> 3.603087613 | P90: =MIN($C90/$B89,$C90-SUM($D90:O90)) -> 3.603087613 | Q90: =MIN($C90/$B89,$C90-SUM($D90:P90)) -> 3.603087613 | R90: =MIN($C90/$B89,$C90-SUM($D90:Q90)) -> 3.603087613 | S90: =MIN($C90/$B90,$C90-SUM($D90:R90)) -> 5.204459885 | T90: =MIN($C90/$B90,$C90-SUM($D90:S90)) -> 5.204459885 | U90: =MIN($C90/$B90,$C90-SUM($D90:T90)) -> 5.204459885 | V90: =MIN($C90/$B90,$C90-SUM($D90:U90)) -> 5.204459885 | W90: =MIN($C90/$B90,$C90-SUM($D90:V90)) -> 5.204459885 | X90: =MIN($C90/$B90,$C90-SUM($D90:W90)) -> 5.204459885 | Y90: =MIN($C90/$B90,$C90-SUM($D90:X90)) -> 5.204459885 | Z90: =MIN($C90/$B90,$C90-SUM($D90:Y90)) -> 5.204459885 | AA90: =MIN($C90/$B90,$C90-SUM($D90:Z90)) -> 5.204459885
A91: Service Pipes | B91: =C43 -> 39 | C91: =G18 -> 290.166473 | D91: 7.440165975 | E91: =MIN($C91/$B91,$C91-SUM($D91:D91)) -> 7.440165975 | F91: =MIN($C91/$B91,$C91-SUM($D91:E91)) -> 7.440165975 | G91: =MIN($C91/$B91,$C91-SUM($D91:F91)) -> 7.440165975 | H91: =MIN($C91/$B91,$C91-SUM($D91:G91)) -> 7.440165975 | I91: =MIN($C91/$B91,$C91-SUM($D91:H91)) -> 7.440165975 | J91: =MIN($C91/$B91,$C91-SUM($D91:I91)) -> 7.440165975 | K91: =MIN($C91/$B91,$C91-SUM($D91:J91)) -> 7.440165975 | L91: =MIN($C91/$B91,$C91-SUM($D91:K91)) -> 7.440165975 | M91: =MIN($C91/$B91,$C91-SUM($D91:L91))*M43 -> 7.498028575 | N91: =MIN($C91/$B91,$C91-SUM($D91:M91)) -> 7.440165975 | O91: =MIN($C91/$B91,$C91-SUM($D91:N91)) -> 7.440165975 | P91: =MIN($C91/$B91,$C91-SUM($D91:O91)) -> 7.440165975 | Q91: =MIN($C91/$B91,$C91-SUM($D91:P91)) -> 7.440165975 | R91: =MIN($C91/$B91,$C91-SUM($D91:Q91)) -> 7.440165975 | S91: =MIN($C91/$B91,$C91-SUM($D91:R91)) -> 7.440165975 | T91: =MIN($C91/$B91,$C91-SUM($D91:S91)) -> 7.440165975 | U91: =MIN($C91/$B91,$C91-SUM($D91:T91)) -> 7.440165975 | V91: =MIN($C91/$B91,$C91-SUM($D91:U91)) -> 7.440165975 | W91: =MIN($C91/$B91,$C91-SUM($D91:V91)) -> 7.440165975 | X91: =MIN($C91/$B91,$C91-SUM($D91:W91)) -> 7.440165975 | Y91: =MIN($C91/$B91,$C91-SUM($D91:X91)) -> 7.440165975 | Z91: =MIN($C91/$B91,$C91-SUM($D91:Y91)) -> 7.440165975 | AA91: =MIN($C91/$B91,$C91-SUM($D91:Z91)) -> 7.440165975
A92: Cathodic Protection | B92: 39 | C92: =G17 -> 23.07634855 | D92: 0.5917012448 | E92: =MIN($C92/$B92,$C92-SUM($D92:D92)) -> 0.5917012448 | F92: =MIN($C92/$B92,$C92-SUM($D92:E92)) -> 0.5917012448 | G92: =MIN($C92/$B92,$C92-SUM($D92:F92)) -> 0.5917012448 | H92: =MIN($C92/$B92,$C92-SUM($D92:G92)) -> 0.5917012448 | I92: =MIN($C92/$B92,$C92-SUM($D92:H92)) -> 0.5917012448 | J92: =MIN($C92/$B92,$C92-SUM($D92:I92)) -> 0.5917012448 | K92: =MIN($C92/$B92,$C92-SUM($D92:J92)) -> 0.5917012448 | L92: =MIN($C92/$B92,$C92-SUM($D92:K92)) -> 0.5917012448 | M92: =MIN($C92/$B92,$C92-SUM($D92:L92))*M43 -> 0.5963029395 | N92: =MIN($C92/$B92,$C92-SUM($D92:M92)) -> 0.5917012448 | O92: =MIN($C92/$B92,$C92-SUM($D92:N92)) -> 0.5917012448 | P92: =MIN($C92/$B92,$C92-SUM($D92:O92)) -> 0.5917012448 | Q92: =MIN($C92/$B92,$C92-SUM($D92:P92)) -> 0.5917012448 | R92: =MIN($C92/$B92,$C92-SUM($D92:Q92)) -> 0.5917012448 | S92: =MIN($C92/$B92,$C92-SUM($D92:R92)) -> 0.5917012448 | T92: =MIN($C92/$B92,$C92-SUM($D92:S92)) -> 0.5917012448 | U92: =MIN($C92/$B92,$C92-SUM($D92:T92)) -> 0.5917012448 | V92: =MIN($C92/$B92,$C92-SUM($D92:U92)) -> 0.5917012448 | W92: =MIN($C92/$B92,$C92-SUM($D92:V92)) -> 0.5917012448 | X92: =MIN($C92/$B92,$C92-SUM($D92:W92)) -> 0.5917012448 | Y92: =MIN($C92/$B92,$C92-SUM($D92:X92)) -> 0.5917012448 | Z92: =MIN($C92/$B92,$C92-SUM($D92:Y92)) -> 0.5917012448 | AA92: =MIN($C92/$B92,$C92-SUM($D92:Z92)) -> 0.5917012448
A93: Supply Regulators/Valve Stations | B93: 39 | C93: =G22+G24+G23 -> 20.9920332 | D93: 0.5382572614 | E93: =MIN($C93/$B93,$C93-SUM($D93:D93)) -> 0.5382572614 | F93: =MIN($C93/$B93,$C93-SUM($D93:E93)) -> 0.5382572614 | G93: =MIN($C93/$B93,$C93-SUM($D93:F93)) -> 0.5382572614 | H93: =MIN($C93/$B93,$C93-SUM($D93:G93)) -> 0.5382572614 | I93: =MIN($C93/$B93,$C93-SUM($D93:H93)) -> 0.5382572614 | J93: =MIN($C93/$B93,$C93-SUM($D93:I93)) -> 0.5382572614 | K93: =MIN($C93/$B93,$C93-SUM($D93:J93)) -> 0.5382572614 | L93: =MIN($C93/$B93,$C93-SUM($D93:K93)) -> 0.5382572614 | M93: =MIN($C93/$B93,$C93-SUM($D93:L93))*M43 -> 0.5424433192 | N93: =MIN($C93/$B93,$C93-SUM($D93:M93)) -> 0.5382572614 | O93: =MIN($C93/$B93,$C93-SUM($D93:N93)) -> 0.5382572614 | P93: =MIN($C93/$B93,$C93-SUM($D93:O93)) -> 0.5382572614 | Q93: =MIN($C93/$B93,$C93-SUM($D93:P93)) -> 0.5382572614 | R93: =MIN($C93/$B93,$C93-SUM($D93:Q93)) -> 0.5382572614 | S93: =MIN($C93/$B93,$C93-SUM($D93:R93)) -> 0.5382572614 | T93: =MIN($C93/$B93,$C93-SUM($D93:S93)) -> 0.5382572614 | U93: =MIN($C93/$B93,$C93-SUM($D93:T93)) -> 0.5382572614 | V93: =MIN($C93/$B93,$C93-SUM($D93:U93)) -> 0.5382572614 | W93: =MIN($C93/$B93,$C93-SUM($D93:V93)) -> 0.5382572614 | X93: =MIN($C93/$B93,$C93-SUM($D93:W93)) -> 0.5382572614 | Y93: =MIN($C93/$B93,$C93-SUM($D93:X93)) -> 0.5382572614 | Z93: =MIN($C93/$B93,$C93-SUM($D93:Y93)) -> 0.5382572614 | AA93: =MIN($C93/$B93,$C93-SUM($D93:Z93)) -> 0.5382572614
A94: Meters | B94: 17 | C94: =G20+G21 -> 83.07485477 | D94: 4.886756163 | E94: =MIN($C94/$B94,$C94-SUM($D94:D94)) -> 4.886756163 | F94: =MIN($C94/$B94,$C94-SUM($D94:E94)) -> 4.886756163 | G94: =MIN($C94/$B94,$C94-SUM($D94:F94)) -> 4.886756163 | H94: =MIN($C94/$B94,$C94-SUM($D94:G94)) -> 4.886756163 | I94: =MIN($C94/$B94,$C94-SUM($D94:H94)) -> 4.886756163 | J94: =MIN($C94/$B94,$C94-SUM($D94:I94)) -> 4.886756163 | K94: =MIN($C94/$B94,$C94-SUM($D94:J94)) -> 4.886756163 | L94: =MIN($C94/$B94,$C94-SUM($D94:K94)) -> 4.886756163 | M94: =MIN($C94/$B94,$C94-SUM($D94:L94))*M43 -> 4.924760748 | N94: =MIN($C94/$B94,$C94-SUM($D94:M94)) -> 4.886756163 | O94: =MIN($C94/$B94,$C94-SUM($D94:N94)) -> 4.886756163 | P94: =MIN($C94/$B94,$C94-SUM($D94:O94)) -> 4.886756163 | Q94: =MIN($C94/$B94,$C94-SUM($D94:P94)) -> 4.886756163 | R94: =MIN($C94/$B94,$C94-SUM($D94:Q94)) -> 4.886756163 | S94: =MIN($C94/$B94,$C94-SUM($D94:R94)) -> 4.886756163 | T94: =MIN($C94/$B94,$C94-SUM($D94:S94)) -> 4.848751578 | U94: =MIN($C94/$B94,$C94-SUM($D94:T94)) -> 0 | V94: =MIN($C94/$B94,$C94-SUM($D94:U94)) -> 0 | W94: =MIN($C94/$B94,$C94-SUM($D94:V94)) -> 0 | X94: =MIN($C94/$B94,$C94-SUM($D94:W94)) -> 0 | Y94: =MIN($C94/$B94,$C94-SUM($D94:X94)) -> 0 | Z94: =MIN($C94/$B94,$C94-SUM($D94:Y94)) -> 0 | AA94: =MIN($C94/$B94,$C94-SUM($D94:Z94)) -> 0
A95: SCADA and remote control | B95: 5 | C95: =G25 -> 2.828713693 | D95: 0.5657427386 | E95: =MIN($C95/$B95,$C95-SUM($D95:D95)) -> 0.5657427386 | F95: =MIN($C95/$B95,$C95-SUM($D95:E95)) -> 0.5657427386 | G95: =MIN($C95/$B95,$C95-SUM($D95:F95)) -> 0.5657427386 | H95: =MIN($C95/$B95,$C95-SUM($D95:G95)) -> 0.5657427386 | I95: =MIN($C95/$B95,$C95-SUM($D95:H95)) -> 4.440892099e-16 | J95: =MIN($C95/$B95,$C95-SUM($D95:I95)) -> 0 | K95: =MIN($C95/$B95,$C95-SUM($D95:J95)) -> 0 | L95: =MIN($C95/$B95,$C95-SUM($D95:K95)) -> 0 | M95: =MIN($C95/$B95,$C95-SUM($D95:L95))*M43 -> 0 | N95: =MIN($C95/$B95,$C95-SUM($D95:M95)) -> 0 | O95: =MIN($C95/$B95,$C95-SUM($D95:N95)) -> 0 | P95: =MIN($C95/$B95,$C95-SUM($D95:O95)) -> 0 | Q95: =MIN($C95/$B95,$C95-SUM($D95:P95)) -> 0 | R95: =MIN($C95/$B95,$C95-SUM($D95:Q95)) -> 0 | S95: =MIN($C95/$B95,$C95-SUM($D95:R95)) -> 0 | T95: =MIN($C95/$B95,$C95-SUM($D95:S95)) -> 0 | U95: =MIN($C95/$B95,$C95-SUM($D95:T95)) -> 0 | V95: =MIN($C95/$B95,$C95-SUM($D95:U95)) -> 0 | W95: =MIN($C95/$B95,$C95-SUM($D95:V95)) -> 0 | X95: =MIN($C95/$B95,$C95-SUM($D95:W95)) -> 0 | Y95: =MIN($C95/$B95,$C95-SUM($D95:X95)) -> 0 | Z95: =MIN($C95/$B95,$C95-SUM($D95:Y95)) -> 0 | AA95: =MIN($C95/$B95,$C95-SUM($D95:Z95)) -> 0
A96: Land and Building | B96: 40 | C96: =G26 -> 17.12116183 | D96: 0.4280290456 | E96: =MIN($C96/$B96,$C96-SUM($D96:D96)) -> 0.4280290456 | F96: =MIN($C96/$B96,$C96-SUM($D96:E96)) -> 0.4280290456 | G96: =MIN($C96/$B96,$C96-SUM($D96:F96)) -> 0.4280290456 | H96: =MIN($C96/$B96,$C96-SUM($D96:G96)) -> 0.4280290456 | I96: =MIN($C96/$B96,$C96-SUM($D96:H96)) -> 0.4280290456 | J96: =MIN($C96/$B96,$C96-SUM($D96:I96)) -> 0.4280290456 | K96: =MIN($C96/$B96,$C96-SUM($D96:J96)) -> 0.4280290456 | L96: =MIN($C96/$B96,$C96-SUM($D96:K96)) -> 0.4280290456 | M96: =MIN($C96/$B96,$C96-SUM($D96:L96))*M43 -> 0.4313578522 | N96: =MIN($C96/$B96,$C96-SUM($D96:M96)) -> 0.4280290456 | O96: =MIN($C96/$B96,$C96-SUM($D96:N96)) -> 0.4280290456 | P96: =MIN($C96/$B96,$C96-SUM($D96:O96)) -> 0.4280290456 | Q96: =MIN($C96/$B96,$C96-SUM($D96:P96)) -> 0.4280290456 | R96: =MIN($C96/$B96,$C96-SUM($D96:Q96)) -> 0.4280290456 | S96: =MIN($C96/$B96,$C96-SUM($D96:R96)) -> 0.4280290456 | T96: =MIN($C96/$B96,$C96-SUM($D96:S96)) -> 0.4280290456 | U96: =MIN($C96/$B96,$C96-SUM($D96:T96)) -> 0.4280290456 | V96: =MIN($C96/$B96,$C96-SUM($D96:U96)) -> 0.4280290456 | W96: =MIN($C96/$B96,$C96-SUM($D96:V96)) -> 0.4280290456 | X96: =MIN($C96/$B96,$C96-SUM($D96:W96)) -> 0.4280290456 | Y96: =MIN($C96/$B96,$C96-SUM($D96:X96)) -> 0.4280290456 | Z96: =MIN($C96/$B96,$C96-SUM($D96:Y96)) -> 0.4280290456 | AA96: =MIN($C96/$B96,$C96-SUM($D96:Z96)) -> 0.4280290456
A97: Other - IT | D97: 0 | E97: =D97 -> 0 | F97: =E97 -> 0 | G97: =F97 -> 0 | H97: =G97 -> 0 | I97: =H97 -> 0 | J97: 0 | K97: 0 | L97: 0 | M97: 0 | N97: 0 | O97: 0 | P97: 0 | Q97: 0 | R97: 0 | S97: 0 | T97: 0 | U97: 0 | V97: 0 | W97: 0 | X97: 0 | Y97: 0 | Z97: 0 | AA97: 0
A98: Other - non IT | B98: =C49 -> 5 | C98: =G28 -> 5.35966805 | D98: =C98/$B98 -> 1.07193361 | E98: =MIN($C98/$B98,$C98-SUM($D98:D98)) -> 1.07193361 | F98: =MIN($C98/$B98,$C98-SUM($D98:E98)) -> 1.07193361 | G98: =MIN($C98/$B98,$C98-SUM($D98:F98)) -> 1.07193361 | H98: =MIN($C98/$B98,$C98-SUM($D98:G98)) -> 1.07193361 | I98: =MIN($C98/$B98,$C98-SUM($D98:H98)) -> 0 | J98: =MIN($C98/$B98,$C98-SUM($D98:I98)) -> 0 | K98: =MIN($C98/$B98,$C98-SUM($D98:J98)) -> 0 | L98: =MIN($C98/$B98,$C98-SUM($D98:K98)) -> 0 | M98: =MIN($C98/$B98,$C98-SUM($D98:L98))*M43 -> 0 | N98: =MIN($C98/$B98,$C98-SUM($D98:M98)) -> 0 | O98: =MIN($C98/$B98,$C98-SUM($D98:N98)) -> 0 | P98: =MIN($C98/$B98,$C98-SUM($D98:O98)) -> 0 | Q98: =MIN($C98/$B98,$C98-SUM($D98:P98)) -> 0 | R98: =MIN($C98/$B98,$C98-SUM($D98:Q98)) -> 0 | S98: =MIN($C98/$B98,$C98-SUM($D98:R98)) -> 0 | T98: =MIN($C98/$B98,$C98-SUM($D98:S98)) -> 0 | U98: =MIN($C98/$B98,$C98-SUM($D98:T98)) -> 0 | V98: =MIN($C98/$B98,$C98-SUM($D98:U98)) -> 0 | W98: =MIN($C98/$B98,$C98-SUM($D98:V98)) -> 0 | X98: =MIN($C98/$B98,$C98-SUM($D98:W98)) -> 0 | Y98: =MIN($C98/$B98,$C98-SUM($D98:X98)) -> 0 | Z98: =MIN($C98/$B98,$C98-SUM($D98:Y98)) -> 0 | AA98: =MIN($C98/$B98,$C98-SUM($D98:Z98)) -> 0
A101: Total | C101: =SUM(C88:C100) -> 940.4728631 | D101: 28.28806322 | E101: 28.28806322 | F101: 28.28806322 | G101: 28.28806322 | H101: 28.28806322 | I101: 26.65038687 | J101: 26.65038687 | K101: 26.65038687 | L101: 26.65038687 | M101: 26.85764846 | N101: 26.65038687 | O101: 26.65038687 | P101: 26.65038687 | Q101: 26.65038687 | R101: 26.65038687 | S101: 28.25175914 | T101: 28.21375456 | U101: 23.36500298 | V101: 23.36500298 | W101: 23.36500298 | X101: 23.36500298 | Y101: 23.36500298 | Z101: 23.36500298 | AA101: 23.36500298 | AB101: 0 | AC101: 0 | AD101: 0 | AE101: 0 | AF101: 0 | AG101: 0
A104: Disposal ($real 2012) | D104: 1998 | E104: 1999 | F104: 2000 | G104: 2001 | H104: 2002 | I104: 2003 | J104: 2004 | K104: 2005 | L104: 2006 | M104: 2007 | N104: 2008 | O104: 2009 | P104: 2010 | Q104: 2011 | R104: 2012 | S104: 2013 | T104: 2014 | U104: 2015 | V104: 2016 | W104: 2017 | X104: 2018 | Y104: 2019 | Z104: 2020 | AA104: 2021 | AB104: 2022 | AC104: 2023 | AD104: 2024 | AE104: 2025 | AF104: 2026 | AG104: 2027
A105: Transmission Pipelines
A106: Distribution Pipelines | D106: -0.4496240602
A107: Service Pipes
A108: Cathodic Protection
A109: Supply Regulators/Valve Stations
A110: Meters
A111: SCADA and remote control
A112: Land and Building
A113: Other - IT | L113: -1.031631626
A114: Other - non IT | J114: -0.02617712507 | K114: -0.01643496107
A118: Total | C118: =SUM(C105:C117) -> 0 | D118: -0.4496240602 | E118: 0 | F118: 0 | G118: 0 | H118: 0 | I118: 0 | J118: -0.02617712507 | K118: -0.01643496107 | L118: -1.031631626 | M118: 0 | N118: 0 | O118: 0 | P118: 0 | Q118: 0 | R118: 0 | S118: 0 | T118: 0 | U118: 0 | V118: 0 | W118: 0 | X118: 0 | Y118: 0 | Z118: 0 | AA118: 0 | AB118: 0 | AC118: 0 | AD118: 0 | AE118: 0 | AF118: 0 | AG118: 0
A122: New Town CapEx ($real) | N122: Amount to be rolled into 2008
A123: Transmission Pipelines
A124: Distribution Pipelines | N124: =26.9915319801169*M43 -> 27.20144668
A125: Service Pipes | N125: =1.79505915424429*M43 -> 1.809019433
A126: Cathodic Protection | N126: =0.043226861092124*M43 -> 0.04356303888
A127: Supply Regulators/Valve Stations | N127: =3.59397325129111*M43 -> 3.621923789
A128: Meters | N128: =0.352671190131391*M43 -> 0.3554139343
A129: SCADA and remote control
A130: Land and Building
A131: Other - IT
A132: Other - non IT
A133: Economic Depreciation - NT | N133: =4.57556838322636*M43 -> 4.611152842
A134: Other Asset 2
A136: Total | D136: =SUM(D123:D135) -> 0 | E136: 0 | F136: 0 | G136: 0 | H136: 0 | I136: 0 | J136: 0 | K136: 0 | L136: 0 | M136: 0 | N136: 37.64251972 | O136: 0 | P136: 0 | Q136: 0 | R136: 0
A138: Net Reg Capex (real 2012) | B138: Life (98-01) | D138: 1998 | E138: 1999 | F138: 2000 | G138: 2001 | H138: 2002 | I138: 2003 | J138: 2004 | K138: 2005 | L138: 2006 | M138: 2007 | N138: 2008 | O138: 2009 | P138: 2010 | Q138: 2011 | R138: 2012 | S138: 2013 | T138: 2014 | U138: 2015 | V138: 2016 | W138: 2017 | X138: 2018 | Y138: 2019 | Z138: 2020 | AA138: 2021 | AB138: 2022 | AC138: 2023 | AD138: 2024 | AE138: 2025 | AF138: 2026 | AG138: 2027
A139: Transmission Pipelines | B139: =B41 -> 60 | D139: 0 | E139: 0 | F139: 0 | G139: 0.0001084977289 | H139: 0 | I139: 0 | J139: 0 | K139: 0 | L139: 0 | M139: =0*M43 -> 0 | N139: 0 | O139: 0.05060077206 | P139: 0.006692224997 | Q139: 0.114695804 | R139: 0.6491569908 | S139: =Input!G143*(1+rvanilla)^0.5 -> 0 | T139: =Input!H143*(1+rvanilla)^0.5 -> 3.133261468 | U139: =Input!I143*(1+rvanilla)^0.5 -> 0 | V139: =Input!J143*(1+rvanilla)^0.5 -> 0 | W139: =Input!K143*(1+rvanilla)^0.5 -> 0
A140: Distribution Pipelines | B140: 60 | D140: 15.75606346 | E140: 16.21683691 | F140: 14.99597 | G140: 11.27674639 | H140: 17.39167573 | I140: 25.83121033 | J140: 21.54625254 | K140: 18.61356541 | L140: 23.47029865 | M140: =25.009994998878*M43 -> 25.20449917 | N140: 28.57770378 | O140: 23.83864933 | P140: 31.30414502 | Q140: 38.10437589 | R140: 34.51892789 | S140: =Input!G144*(1+rvanilla)^0.5 -> 49.97611731 | T140: =Input!H144*(1+rvanilla)^0.5 -> 45.1341444 | U140: =Input!I144*(1+rvanilla)^0.5 -> 51.17983472 | V140: =Input!J144*(1+rvanilla)^0.5 -> 43.08569951 | W140: =Input!K144*(1+rvanilla)^0.5 -> 36.54213793
A141: Service Pipes | B141: 60 | D141: 19.39297683 | E141: 19.9601089 | F141: 18.45743383 | G141: 13.87971571 | H141: 14.20775803 | I141: =19.5478187076742-0.0000173240816110365 -> 19.54780138 | J141: 20.12503918 | K141: 19.26768923 | L141: 18.47666774 | M141: =14.7009310696908*M43 -> 14.81526106 | N141: 26.81352428 | O141: 27.59136648 | P141: 22.42568782 | Q141: 22.7138557 | R141: 22.0187845 | S141: =Input!G145*(1+rvanilla)^0.5 -> 20.7366919 | T141: =Input!H145*(1+rvanilla)^0.5 -> 20.98092896 | U141: =Input!I145*(1+rvanilla)^0.5 -> 21.82135815 | V141: =Input!J145*(1+rvanilla)^0.5 -> 21.29018501 | W141: =Input!K145*(1+rvanilla)^0.5 -> 20.71287532
A142: Cathodic Protection | B142: 60 | D142: 0 | E142: 0 | F142: 0 | G142: 0 | H142: 0.02395206416 | I142: 0.08688442516 | J142: 0.09398236405 | K142: 0.1044847065 | L142: 0.1045705255 | M142: =0.0808264716857083*M43 -> 0.08145506382 | N142: 0.2358660784 | O142: 0.6059344067 | P142: 0 | Q142: 0.7828526104 | R142: 0.7423850196 | S142: =Input!G146*(1+rvanilla)^0.5 -> 0.339664066 | T142: =Input!H146*(1+rvanilla)^0.5 -> 0.3292629638 | U142: =Input!I146*(1+rvanilla)^0.5 -> 0.3380789756 | V142: =Input!J146*(1+rvanilla)^0.5 -> 0.3202762888 | W142: =Input!K146*(1+rvanilla)^0.5 -> 0.3029262094
A143: Supply Regulators/Valve Stations | B143: 50 | D143: 1.926085739 | E143: 0.9992424216 | F143: 0.2847927966 | G143: 8.782472741 | H143: 0.7101926325 | I143: 1.701986148 | J143: 1.796487235 | K143: 0.8518421256 | L143: 1.418823407 | M143: =2.11422216267144*M43 -> 2.13066459 | N143: 1.9643772 | O143: 1.368652438 | P143: 0.3872766469 | Q143: 1.223721056 | R143: 0.4014464248 | S143: =Input!G147*(1+rvanilla)^0.5 -> 3.581937647 | T143: =Input!H147*(1+rvanilla)^0.5 -> 5.491437022 | U143: =Input!I147*(1+rvanilla)^0.5 -> 7.66075147 | V143: =Input!J147*(1+rvanilla)^0.5 -> 4.703794939 | W143: =Input!K147*(1+rvanilla)^0.5 -> 2.749271734
A144: Meters | B144: 25 | D144: 3.885476184 | E144: 3.480340012 | F144: 7.876947841 | G144: 5.185693604 | H144: 5.559022468 | I144: 7.97758449 | J144: 8.730831128 | K144: 7.365715117 | L144: 4.99548281 | M144: =8.95926278015627*M43 -> 9.028939484 | N144: 11.28765444 | O144: 6.256198671 | P144: 7.477089045 | Q144: 7.544260668 | R144: 12.17587589 | S144: =Input!G148*(1+rvanilla)^0.5 -> 10.48837923 | T144: =Input!H148*(1+rvanilla)^0.5 -> 11.04258897 | U144: =Input!I148*(1+rvanilla)^0.5 -> 10.46674897 | V144: =Input!J148*(1+rvanilla)^0.5 -> 10.33163945 | W144: =Input!K148*(1+rvanilla)^0.5 -> 10.11230889
A145: SCADA and remote control | B145: 7 | D145: 1.175747348 | E145: 9.886067833e-05 | F145: 1.939629545 | G145: 0.4514624636 | H145: 0.2075655547 | I145: 0.3999562453 | J145: 0.4739088209 | K145: 0.2382956696 | L145: 0.3374396333 | M145: =0.539968410095605*M43 -> 0.5441677756 | N145: 0.01580421173 | O145: 1.595704645 | P145: 0.8227984699 | Q145: 0.7532050508 | R145: 0.4137671585 | S145: =Input!G149*(1+rvanilla)^0.5 -> 1.031321297 | T145: =Input!H149*(1+rvanilla)^0.5 -> 0.9880597669 | U145: =Input!I149*(1+rvanilla)^0.5 -> 1.011267312 | V145: =Input!J149*(1+rvanilla)^0.5 -> 0.9150015955 | W145: =Input!K149*(1+rvanilla)^0.5 -> 0.9674071321
A146: Land and Building | B146: 36 | D146: 0 | E146: 0 | F146: 0 | G146: 0 | H146: 0 | I146: 0 | J146: 0 | K146: 0 | L146: 0 | M146: =0*M43 -> 0 | N146: 0 | O146: 0 | P146: 0 | Q146: 0 | R146: 0 | S146: =Input!G150*(1+rvanilla)^0.5 -> 0 | T146: =Input!H150*(1+rvanilla)^0.5 -> 0 | U146: =Input!I150*(1+rvanilla)^0.5 -> 0 | V146: =Input!J150*(1+rvanilla)^0.5 -> 0 | W146: =Input!K150*(1+rvanilla)^0.5 -> 0
A147: Other - IT | B147: 5 | D147: 1.742462471 | E147: 1.059419064 | F147: 2.170418856 | G147: 1.143077908 | H147: 1.003334594 | I147: 1.620798762 | J147: 3.70187654 | K147: 15.31747249 | L147: 6.103853803 | M147: =2.38187227380457*M43 -> 2.400396232 | N147: 1.620026945 | O147: 10.71747018 | P147: 10.22655567 | Q147: 10.46436767 | R147: 5.153461918 | S147: =Input!G151*(1+rvanilla)^0.5 -> 15.7655864 | T147: =Input!H151*(1+rvanilla)^0.5 -> 15.01935209 | U147: =Input!I151*(1+rvanilla)^0.5 -> 7.961785348 | V147: =Input!J151*(1+rvanilla)^0.5 -> 8.850328936 | W147: =Input!K151*(1+rvanilla)^0.5 -> 9.056081593
A148: Other - non IT | B148: 5 | D148: 0 | E148: 0 | F148: 0 | G148: 0 | H148: 0.4766452479 | I148: 0.4319188987 | J148: 0.1989282758 | K148: 4.529224177 | L148: 2.336959996 | M148: =1.34216037222152*M43 -> 1.352598431 | N148: 0.2950777559 | O148: 0.335533434 | P148: 0.3749544433 | Q148: 0.4340545046 | R148: 0.2137619232 | S148: =Input!G152*(1+rvanilla)^0.5 -> 0.3945333336 | T148: =Input!H152*(1+rvanilla)^0.5 -> 0.3940594528 | U148: =Input!I152*(1+rvanilla)^0.5 -> 0.3959677015 | V148: =Input!J152*(1+rvanilla)^0.5 -> 0.4016134217 | W148: =Input!K152*(1+rvanilla)^0.5 -> 0.407569325
A149: Economic Depreciation - NT | B149: 5
A150: Other Asset 2 | B150: =B52 -> 1
A152: Total | D152: =SUM(D139:D151) -> 43.87881203 | E152: 41.71604617 | F152: 45.72519287 | G152: 40.71927731 | H152: =SUM(H139:H151) -> 39.58014633 | I152: 57.59814068 | J152: 56.66730608 | K152: 66.28828893 | L152: 57.24409656 | M152: 55.55798181 | N152: 70.81003469 | O152: 72.36011035 | P152: 73.02519934 | Q152: 82.13538896 | R152: =SUM(R139:R151) -> 76.28756772 | S152: 102.3142312 | T152: 102.5130951 | U152: 100.8357926 | V152: 89.89853915 | W152: 80.85057813
A153: Reg Depreciation on Capex
A154: Reg Depreciation on Capex | D154: 1998 | E154: 1999 | F154: 2000 | G154: 2001 | H154: 2002 | I154: 2003 | J154: 2004 | K154: 2005 | L154: 2006 | M154: 2007 | N154: 2008 | O154: 2009 | P154: 2010 | Q154: 2011 | R154: 2012 | S154: 2013 | T154: 2014 | U154: 2015 | V154: 2016 | W154: 2017 | X154: 2018 | Y154: 2019 | Z154: 2020 | AA154: 2021 | AB154: 2022 | AC154: 2023 | AD154: 2024 | AE154: 2025 | AF154: 2026 | AG154: 2027
A156: =A139 -> Transmission Pipelines | B156: Capex Life | C156: =B139 -> 60 | S156: New capex is not included in the calculation as it is calculated in 'Assets' worksheet
C157: Capex | D157: =D139+D105 -> 0 | E157: =E139+E105 -> 0 | F157: 0 | G157: 0.0001084977289 | H157: 0 | I157: 0 | J157: 0 | K157: 0 | L157: 0 | M157: 0 | N157: =N139+N105+N123 -> 0 | O157: 0.05060077206 | P157: 0.006692224997 | Q157: 0.114695804 | R157: 0.6491569908 | S157: =S139 -> 0 | T157: 3.133261468 | U157: 0 | V157: 0 | W157: 0 | X157: 0 | Y157: 0 | Z157: 0 | AA157: 0 | AB157: 0 | AC157: 0 | AD157: 0 | AE157: 0 | AF157: 0 | AG157: 0
B158: =D41 -> 60 | C158: 1998 | D158: =0.5*D$157/$B158 -> 0 | E158: =MIN($D157/$B158,$D157-SUM($D158:D158)) -> 0 | F158: =MIN($D157/$B158,$D157-SUM($D158:E158)) -> 0 | G158: =MIN($D157/$B158,$D157-SUM($D158:F158)) -> 0 | H158: =MIN($D157/$B158,$D157-SUM($D158:G158)) -> 0 | I158: =MIN($D157/$B158,$D157-SUM($D158:H158)) -> 0 | J158: =MIN($D157/$B158,$D157-SUM($D158:I158)) -> 0 | K158: =MIN($D157/$B158,$D157-SUM($D158:J158)) -> 0 | L158: =MIN($D157/$B158,$D157-SUM($D158:K158)) -> 0 | M158: =MIN($D157/$B158,$D157-SUM($D158:L158)) -> 0 | N158: =MIN($D157/$B158,$D157-SUM($D158:M158)) -> 0 | O158: =MIN($D157/$B158,$D157-SUM($D158:N158)) -> 0 | P158: =MIN($D157/$B158,$D157-SUM($D158:O158)) -> 0 | Q158: =MIN($D157/$B158,$D157-SUM($D158:P158)) -> 0 | R158: =MIN($D157/$B158,$D157-SUM($D158:Q158)) -> 0 | S158: =MIN($D157/$B158,$D157-SUM($D158:R158)) -> 0 | T158: =MIN($D157/$B158,$D157-SUM($D158:S158)) -> 0 | U158: =MIN($D157/$B158,$D157-SUM($D158:T158)) -> 0 | V158: =MIN($D157/$B158,$D157-SUM($D158:U158)) -> 0 | W158: =MIN($D157/$B158,$D157-SUM($D158:V158)) -> 0 | X158: =MIN($D157/$B158,$D157-SUM($D158:W158)) -> 0 | Y158: =MIN($D157/$B158,$D157-SUM($D158:X158)) -> 0 | Z158: =MIN($D157/$B158,$D157-SUM($D158:Y158)) -> 0 | AA158: =MIN($D157/$B158,$D157-SUM($D158:Z158)) -> 0 | AB158: =MIN($D157/$B158,$D157-SUM($D158:AA158)) -> 0 | AC158: =MIN($D157/$B158,$D157-SUM($D158:AB158)) -> 0 | AD158: =MIN($D157/$B158,$D157-SUM($D158:AC158)) -> 0 | AE158: =MIN($D157/$B158,$D157-SUM($D158:AD158)) -> 0 | AF158: =MIN($D157/$B158,$D157-SUM($D158:AE158)) -> 0 | AG158: =MIN($D157/$B158,$D157-SUM($D158:AF158)) -> 0
B159: =B158 -> 60 | C159: 1999 | E159: =0.5*E$157/$B159 -> 0 | F159: =MIN($E157/$B159,$E157-SUM($E159:E159)) -> 0 | G159: =MIN($E157/$B159,$E157-SUM($E159:F159)) -> 0 | H159: =MIN($E157/$B159,$E157-SUM($E159:G159)) -> 0 | I159: =MIN($E157/$B159,$E157-SUM($E159:H159)) -> 0 | J159: =MIN($E157/$B159,$E157-SUM($E159:I159)) -> 0 | K159: =MIN($E157/$B159,$E157-SUM($E159:J159)) -> 0 | L159: =MIN($E157/$B159,$E157-SUM($E159:K159)) -> 0 | M159: =MIN($E157/$B159,$E157-SUM($E159:L159)) -> 0 | N159: =MIN($E157/$B159,$E157-SUM($E159:M159)) -> 0 | O159: =MIN($E157/$B159,$E157-SUM($E159:N159)) -> 0 | P159: =MIN($E157/$B159,$E157-SUM($E159:O159)) -> 0 | Q159: =MIN($E157/$B159,$E157-SUM($E159:P159)) -> 0 | R159: =MIN($E157/$B159,$E157-SUM($E159:Q159)) -> 0 | S159: =MIN($E157/$B159,$E157-SUM($E159:R159)) -> 0 | T159: =MIN($E157/$B159,$E157-SUM($E159:S159)) -> 0 | U159: =MIN($E157/$B159,$E157-SUM($E159:T159)) -> 0 | V159: =MIN($E157/$B159,$E157-SUM($E159:U159)) -> 0 | W159: =MIN($E157/$B159,$E157-SUM($E159:V159)) -> 0 | X159: =MIN($E157/$B159,$E157-SUM($E159:W159)) -> 0 | Y159: =MIN($E157/$B159,$E157-SUM($E159:X159)) -> 0 | Z159: =MIN($E157/$B159,$E157-SUM($E159:Y159)) -> 0 | AA159: =MIN($E157/$B159,$E157-SUM($E159:Z159)) -> 0 | AB159: =MIN($E157/$B159,$E157-SUM($E159:AA159)) -> 0 | AC159: =MIN($E157/$B159,$E157-SUM($E159:AB159)) -> 0 | AD159: =MIN($E157/$B159,$E157-SUM($E159:AC159)) -> 0 | AE159: =MIN($E157/$B159,$E157-SUM($E159:AD159)) -> 0 | AF159: =MIN($E157/$B159,$E157-SUM($E159:AE159)) -> 0 | AG159: =MIN($E157/$B159,$E157-SUM($E159:AF159)) -> 0
B160: =B159 -> 60 | C160: 2000 | F160: =0.5*F$157/$B160 -> 0 | G160: =MIN($F157/$B160,$F157-SUM($F160:F160)) -> 0 | H160: =MIN($F157/$B160,$F157-SUM($F160:G160)) -> 0 | I160: =MIN($F157/$B160,$F157-SUM($F160:H160)) -> 0 | J160: =MIN($F157/$B160,$F157-SUM($F160:I160)) -> 0 | K160: =MIN($F157/$B160,$F157-SUM($F160:J160)) -> 0 | L160: =MIN($F157/$B160,$F157-SUM($F160:K160)) -> 0 | M160: =MIN($F157/$B160,$F157-SUM($F160:L160)) -> 0 | N160: =MIN($F157/$B160,$F157-SUM($F160:M160)) -> 0 | O160: =MIN($F157/$B160,$F157-SUM($F160:N160)) -> 0 | P160: =MIN($F157/$B160,$F157-SUM($F160:O160)) -> 0 | Q160: =MIN($F157/$B160,$F157-SUM($F160:P160)) -> 0 | R160: =MIN($F157/$B160,$F157-SUM($F160:Q160)) -> 0 | S160: =MIN($F157/$B160,$F157-SUM($F160:R160)) -> 0 | T160: =MIN($F157/$B160,$F157-SUM($F160:S160)) -> 0 | U160: =MIN($F157/$B160,$F157-SUM($F160:T160)) -> 0 | V160: =MIN($F157/$B160,$F157-SUM($F160:U160)) -> 0 | W160: =MIN($F157/$B160,$F157-SUM($F160:V160)) -> 0 | X160: =MIN($F157/$B160,$F157-SUM($F160:W160)) -> 0 | Y160: =MIN($F157/$B160,$F157-SUM($F160:X160)) -> 0 | Z160: =MIN($F157/$B160,$F157-SUM($F160:Y160)) -> 0 | AA160: =MIN($F157/$B160,$F157-SUM($F160:Z160)) -> 0 | AB160: =MIN($F157/$B160,$F157-SUM($F160:AA160)) -> 0 | AC160: =MIN($F157/$B160,$F157-SUM($F160:AB160)) -> 0 | AD160: =MIN($F157/$B160,$F157-SUM($F160:AC160)) -> 0 | AE160: =MIN($F157/$B160,$F157-SUM($F160:AD160)) -> 0 | AF160: =MIN($F157/$B160,$F157-SUM($F160:AE160)) -> 0 | AG160: =MIN($F157/$B160,$F157-SUM($F160:AF160)) -> 0
B161: =B160 -> 60 | C161: 2001 | G161: =0.5*G$157/$B161 -> 9.04147741e-07 | H161: =MIN($G157/$B161,$G157-SUM($G161:G161)) -> 1.808295482e-06 | I161: =MIN($G157/$B161,$G157-SUM($G161:H161)) -> 1.808295482e-06 | J161: =MIN($G157/$B161,$G157-SUM($G161:I161)) -> 1.808295482e-06 | K161: =MIN($G157/$B161,$G157-SUM($G161:J161)) -> 1.808295482e-06 | L161: =MIN($G157/$B161,$G157-SUM($G161:K161)) -> 1.808295482e-06 | M161: =MIN($G157/$B161,$G157-SUM($G161:L161)) -> 1.808295482e-06 | N161: =MIN($G157/$B161,$G157-SUM($G161:M161)) -> 1.808295482e-06 | O161: =MIN($G157/$B161,$G157-SUM($G161:N161)) -> 1.808295482e-06 | P161: =MIN($G157/$B161,$G157-SUM($G161:O161)) -> 1.808295482e-06 | Q161: =MIN($G157/$B161,$G157-SUM($G161:P161)) -> 1.808295482e-06 | R161: =MIN($G157/$B161,$G157-SUM($G161:Q161)) -> 1.808295482e-06 | S161: =MIN($G157/$B161,$G157-SUM($G161:R161)) -> 1.808295482e-06 | T161: =MIN($G157/$B161,$G157-SUM($G161:S161)) -> 1.808295482e-06 | U161: =MIN($G157/$B161,$G157-SUM($G161:T161)) -> 1.808295482e-06 | V161: =MIN($G157/$B161,$G157-SUM($G161:U161)) -> 1.808295482e-06 | W161: =MIN($G157/$B161,$G157-SUM($G161:V161)) -> 1.808295482e-06 | X161: =MIN($G157/$B161,$G157-SUM($G161:W161)) -> 1.808295482e-06 | Y161: =MIN($G157/$B161,$G157-SUM($G161:X161)) -> 1.808295482e-06 | Z161: =MIN($G157/$B161,$G157-SUM($G161:Y161)) -> 1.808295482e-06 | AA161: =MIN($G157/$B161,$G157-SUM($G161:Z161)) -> 1.808295482e-06 | AB161: =MIN($G157/$B161,$G157-SUM($G161:AA161)) -> 1.808295482e-06 | AC161: =MIN($G157/$B161,$G157-SUM($G161:AB161)) -> 1.808295482e-06 | AD161: =MIN($G157/$B161,$G157-SUM($G161:AC161)) -> 1.808295482e-06 | AE161: =MIN($G157/$B161,$G157-SUM($G161:AD161)) -> 1.808295482e-06 | AF161: =MIN($G157/$B161,$G157-SUM($G161:AE161)) -> 1.808295482e-06 | AG161: =MIN($G157/$B161,$G157-SUM($G161:AF161)) -> 1.808295482e-06
B162: =B161 -> 60 | C162: 2002 | H162: =0.5*H$157/$B162 -> 0 | I162: =MIN($H157/$B162,$H157-SUM($H162:H162)) -> 0 | J162: =MIN($H157/$B162,$H157-SUM($H162:I162)) -> 0 | K162: =MIN($H157/$B162,$H157-SUM($H162:J162)) -> 0 | L162: =MIN($H157/$B162,$H157-SUM($H162:K162)) -> 0 | M162: =MIN($H157/$B162,$H157-SUM($H162:L162)) -> 0 | N162: =MIN($H157/$B162,$H157-SUM($H162:M162)) -> 0 | O162: =MIN($H157/$B162,$H157-SUM($H162:N162)) -> 0 | P162: =MIN($H157/$B162,$H157-SUM($H162:O162)) -> 0 | Q162: =MIN($H157/$B162,$H157-SUM($H162:P162)) -> 0 | R162: =MIN($H157/$B162,$H157-SUM($H162:Q162)) -> 0 | S162: =MIN($H157/$B162,$H157-SUM($H162:R162)) -> 0 | T162: =MIN($H157/$B162,$H157-SUM($H162:S162)) -> 0 | U162: =MIN($H157/$B162,$H157-SUM($H162:T162)) -> 0 | V162: =MIN($H157/$B162,$H157-SUM($H162:U162)) -> 0 | W162: =MIN($H157/$B162,$H157-SUM($H162:V162)) -> 0 | X162: =MIN($H157/$B162,$H157-SUM($H162:W162)) -> 0 | Y162: =MIN($H157/$B162,$H157-SUM($H162:X162)) -> 0 | Z162: =MIN($H157/$B162,$H157-SUM($H162:Y162)) -> 0 | AA162: =MIN($H157/$B162,$H157-SUM($H162:Z162)) -> 0 | AB162: =MIN($H157/$B162,$H157-SUM($H162:AA162)) -> 0 | AC162: =MIN($H157/$B162,$H157-SUM($H162:AB162)) -> 0 | AD162: =MIN($H157/$B162,$H157-SUM($H162:AC162)) -> 0 | AE162: =MIN($H157/$B162,$H157-SUM($H162:AD162)) -> 0 | AF162: =MIN($H157/$B162,$H157-SUM($H162:AE162)) -> 0 | AG162: =MIN($H157/$B162,$H157-SUM($H162:AF162)) -> 0
B163: =E41 -> 60 | C163: 2003 | I163: =0.5*I$157/$B163 -> 0 | J163: =MIN($I157/$B163,$I157-SUM($I163:I163)) -> 0 | K163: =MIN($I157/$B163,$I157-SUM($I163:J163)) -> 0 | L163: =MIN($I157/$B163,$I157-SUM($I163:K163)) -> 0 | M163: =MIN($I157/$B163,$I157-SUM($I163:L163)) -> 0 | N163: =MIN($I157/$B163,$I157-SUM($I163:M163)) -> 0 | O163: =MIN($I157/$B163,$I157-SUM($I163:N163)) -> 0 | P163: =MIN($I157/$B163,$I157-SUM($I163:O163)) -> 0 | Q163: =MIN($I157/$B163,$I157-SUM($I163:P163)) -> 0 | R163: =MIN($I157/$B163,$I157-SUM($I163:Q163)) -> 0 | S163: =MIN($I157/$B163,$I157-SUM($I163:R163)) -> 0 | T163: =MIN($I157/$B163,$I157-SUM($I163:S163)) -> 0 | U163: =MIN($I157/$B163,$I157-SUM($I163:T163)) -> 0 | V163: =MIN($I157/$B163,$I157-SUM($I163:U163)) -> 0 | W163: =MIN($I157/$B163,$I157-SUM($I163:V163)) -> 0 | X163: =MIN($I157/$B163,$I157-SUM($I163:W163)) -> 0 | Y163: =MIN($I157/$B163,$I157-SUM($I163:X163)) -> 0 | Z163: =MIN($I157/$B163,$I157-SUM($I163:Y163)) -> 0 | AA163: =MIN($I157/$B163,$I157-SUM($I163:Z163)) -> 0 | AB163: =MIN($I157/$B163,$I157-SUM($I163:AA163)) -> 0 | AC163: =MIN($I157/$B163,$I157-SUM($I163:AB163)) -> 0 | AD163: =MIN($I157/$B163,$I157-SUM($I163:AC163)) -> 0 | AE163: =MIN($I157/$B163,$I157-SUM($I163:AD163)) -> 0 | AF163: =MIN($I157/$B163,$I157-SUM($I163:AE163)) -> 0 | AG163: =MIN($I157/$B163,$I157-SUM($I163:AF163)) -> 0
B164: =B163 -> 60 | C164: 2004 | J164: =0.5*J$157/$B164 -> 0 | K164: =MIN($J157/$B164,$J157-SUM($J164:J164)) -> 0 | L164: =MIN($J157/$B164,$J157-SUM($J164:K164)) -> 0 | M164: =MIN($J157/$B164,$J157-SUM($J164:L164)) -> 0 | N164: =MIN($J157/$B164,$J157-SUM($J164:M164)) -> 0 | O164: =MIN($J157/$B164,$J157-SUM($J164:N164)) -> 0 | P164: =MIN($J157/$B164,$J157-SUM($J164:O164)) -> 0 | Q164: =MIN($J157/$B164,$J157-SUM($J164:P164)) -> 0 | R164: =MIN($J157/$B164,$J157-SUM($J164:Q164)) -> 0 | S164: =MIN($J157/$B164,$J157-SUM($J164:R164)) -> 0 | T164: =MIN($J157/$B164,$J157-SUM($J164:S164)) -> 0 | U164: =MIN($J157/$B164,$J157-SUM($J164:T164)) -> 0 | V164: =MIN($J157/$B164,$J157-SUM($J164:U164)) -> 0 | W164: =MIN($J157/$B164,$J157-SUM($J164:V164)) -> 0 | X164: =MIN($J157/$B164,$J157-SUM($J164:W164)) -> 0 | Y164: =MIN($J157/$B164,$J157-SUM($J164:X164)) -> 0 | Z164: =MIN($J157/$B164,$J157-SUM($J164:Y164)) -> 0 | AA164: =MIN($J157/$B164,$J157-SUM($J164:Z164)) -> 0 | AB164: =MIN($J157/$B164,$J157-SUM($J164:AA164)) -> 0 | AC164: =MIN($J157/$B164,$J157-SUM($J164:AB164)) -> 0 | AD164: =MIN($J157/$B164,$J157-SUM($J164:AC164)) -> 0 | AE164: =MIN($J157/$B164,$J157-SUM($J164:AD164)) -> 0 | AF164: =MIN($J157/$B164,$J157-SUM($J164:AE164)) -> 0 | AG164: =MIN($J157/$B164,$J157-SUM($J164:AF164)) -> 0
B165: =B164 -> 60 | C165: 2005 | K165: =0.5*K$157/$B165 -> 0 | L165: =MIN($K157/$B165,$K157-SUM($K165:K165)) -> 0 | M165: =MIN($K157/$B165,$K157-SUM($K165:L165)) -> 0 | N165: =MIN($K157/$B165,$K157-SUM($K165:M165)) -> 0 | O165: =MIN($K157/$B165,$K157-SUM($K165:N165)) -> 0 | P165: =MIN($K157/$B165,$K157-SUM($K165:O165)) -> 0 | Q165: =MIN($K157/$B165,$K157-SUM($K165:P165)) -> 0 | R165: =MIN($K157/$B165,$K157-SUM($K165:Q165)) -> 0 | S165: =MIN($K157/$B165,$K157-SUM($K165:R165)) -> 0 | T165: =MIN($K157/$B165,$K157-SUM($K165:S165)) -> 0 | U165: =MIN($K157/$B165,$K157-SUM($K165:T165)) -> 0 | V165: =MIN($K157/$B165,$K157-SUM($K165:U165)) -> 0 | W165: =MIN($K157/$B165,$K157-SUM($K165:V165)) -> 0 | X165: =MIN($K157/$B165,$K157-SUM($K165:W165)) -> 0 | Y165: =MIN($K157/$B165,$K157-SUM($K165:X165)) -> 0 | Z165: =MIN($K157/$B165,$K157-SUM($K165:Y165)) -> 0 | AA165: =MIN($K157/$B165,$K157-SUM($K165:Z165)) -> 0 | AB165: =MIN($K157/$B165,$K157-SUM($K165:AA165)) -> 0 | AC165: =MIN($K157/$B165,$K157-SUM($K165:AB165)) -> 0 | AD165: =MIN($K157/$B165,$K157-SUM($K165:AC165)) -> 0 | AE165: =MIN($K157/$B165,$K157-SUM($K165:AD165)) -> 0 | AF165: =MIN($K157/$B165,$K157-SUM($K165:AE165)) -> 0 | AG165: =MIN($K157/$B165,$K157-SUM($K165:AF165)) -> 0
B166: =B165 -> 60 | C166: 2006 | L166: =0.5*L$157/$B166 -> 0 | M166: =MIN($L157/$B166,$L157-SUM($L166:L166)) -> 0 | N166: =MIN($L157/$B166,$L157-SUM($L166:M166)) -> 0 | O166: =MIN($L157/$B166,$L157-SUM($L166:N166)) -> 0 | P166: =MIN($L157/$B166,$L157-SUM($L166:O166)) -> 0 | Q166: =MIN($L157/$B166,$L157-SUM($L166:P166)) -> 0 | R166: =MIN($L157/$B166,$L157-SUM($L166:Q166)) -> 0 | S166: =MIN($L157/$B166,$L157-SUM($L166:R166)) -> 0 | T166: =MIN($L157/$B166,$L157-SUM($L166:S166)) -> 0 | U166: =MIN($L157/$B166,$L157-SUM($L166:T166)) -> 0 | V166: =MIN($L157/$B166,$L157-SUM($L166:U166)) -> 0 | W166: =MIN($L157/$B166,$L157-SUM($L166:V166)) -> 0 | X166: =MIN($L157/$B166,$L157-SUM($L166:W166)) -> 0 | Y166: =MIN($L157/$B166,$L157-SUM($L166:X166)) -> 0 | Z166: =MIN($L157/$B166,$L157-SUM($L166:Y166)) -> 0 | AA166: =MIN($L157/$B166,$L157-SUM($L166:Z166)) -> 0 | AB166: =MIN($L157/$B166,$L157-SUM($L166:AA166)) -> 0 | AC166: =MIN($L157/$B166,$L157-SUM($L166:AB166)) -> 0 | AD166: =MIN($L157/$B166,$L157-SUM($L166:AC166)) -> 0 | AE166: =MIN($L157/$B166,$L157-SUM($L166:AD166)) -> 0 | AF166: =MIN($L157/$B166,$L157-SUM($L166:AE166)) -> 0 | AG166: =MIN($L157/$B166,$L157-SUM($L166:AF166)) -> 0
B167: =B166 -> 60 | C167: 2007 | M167: =0.5*M$157/$B167 -> 0 | N167: =MIN($M157/$B167,$M157-SUM($M167:M167)) -> 0 | O167: =MIN($M157/$B167,$M157-SUM($M167:N167)) -> 0 | P167: =MIN($M157/$B167,$M157-SUM($M167:O167)) -> 0 | Q167: =MIN($M157/$B167,$M157-SUM($M167:P167)) -> 0 | R167: =MIN($M157/$B167,$M157-SUM($M167:Q167)) -> 0 | S167: =MIN($M157/$B167,$M157-SUM($M167:R167)) -> 0 | T167: =MIN($M157/$B167,$M157-SUM($M167:S167)) -> 0 | U167: =MIN($M157/$B167,$M157-SUM($M167:T167)) -> 0 | V167: =MIN($M157/$B167,$M157-SUM($M167:U167)) -> 0 | W167: =MIN($M157/$B167,$M157-SUM($M167:V167)) -> 0 | X167: =MIN($M157/$B167,$M157-SUM($M167:W167)) -> 0 | Y167: =MIN($M157/$B167,$M157-SUM($M167:X167)) -> 0 | Z167: =MIN($M157/$B167,$M157-SUM($M167:Y167)) -> 0 | AA167: =MIN($M157/$B167,$M157-SUM($M167:Z167)) -> 0 | AB167: =MIN($M157/$B167,$M157-SUM($M167:AA167)) -> 0 | AC167: =MIN($M157/$B167,$M157-SUM($M167:AB167)) -> 0 | AD167: =MIN($M157/$B167,$M157-SUM($M167:AC167)) -> 0 | AE167: =MIN($M157/$B167,$M157-SUM($M167:AD167)) -> 0 | AF167: =MIN($M157/$B167,$M157-SUM($M167:AE167)) -> 0 | AG167: =MIN($M157/$B167,$M157-SUM($M167:AF167)) -> 0
B168: =F41 -> 60 | C168: 2008 | N168: =0.5*N$157/$B168 -> 0 | O168: =MIN($N157/$B168, $N157-SUM($N168:N168)) -> 0 | P168: =MIN($N157/$B168, $N157-SUM($N168:O168)) -> 0 | Q168: =MIN($N157/$B168, $N157-SUM($N168:P168)) -> 0 | R168: =MIN($N157/$B168, $N157-SUM($N168:Q168)) -> 0 | S168: =MIN($N157/$B168, $N157-SUM($N168:R168)) -> 0 | T168: =MIN($N157/$B168, $N157-SUM($N168:S168)) -> 0 | U168: =MIN($N157/$B168, $N157-SUM($N168:T168)) -> 0 | V168: =MIN($N157/$B168, $N157-SUM($N168:U168)) -> 0 | W168: =MIN($N157/$B168, $N157-SUM($N168:V168)) -> 0 | X168: =MIN($N157/$B168, $N157-SUM($N168:W168)) -> 0 | Y168: =MIN($N157/$B168, $N157-SUM($N168:X168)) -> 0 | Z168: =MIN($N157/$B168, $N157-SUM($N168:Y168)) -> 0 | AA168: =MIN($N157/$B168, $N157-SUM($N168:Z168)) -> 0 | AB168: =MIN($N157/$B168, $N157-SUM($N168:AA168)) -> 0 | AC168: =MIN($N157/$B168, $N157-SUM($N168:AB168)) -> 0 | AD168: =MIN($N157/$B168, $N157-SUM($N168:AC168)) -> 0 | AE168: =MIN($N157/$B168, $N157-SUM($N168:AD168)) -> 0 | AF168: =MIN($N157/$B168, $N157-SUM($N168:AE168)) -> 0 | AG168: =MIN($N157/$B168, $N157-SUM($N168:AF168)) -> 0
B169: =B168 -> 60 | C169: 2009 | O169: =0.5*O$157/$B169 -> 0.0004216731005 | P169: =IF(ABS($O157-SUM($O169:O169))<ABS($O157/$B169),$O157-SUM($O169:O169),$O157/$B169) -> 0.0008433462011 | Q169: =IF(ABS($O157-SUM($O169:P169))<ABS($O157/$B169),$O157-SUM($O169:P169),$O157/$B169) -> 0.0008433462011 | R169: =IF(ABS($O157-SUM($O169:Q169))<ABS($O157/$B169),$O157-SUM($O169:Q169),$O157/$B169) -> 0.0008433462011 | S169: =IF(ABS($O157-SUM($O169:R169))<ABS($O157/$B169),$O157-SUM($O169:R169),$O157/$B169) -> 0.0008433462011 | T169: =IF(ABS($O157-SUM($O169:S169))<ABS($O157/$B169),$O157-SUM($O169:S169),$O157/$B169) -> 0.0008433462011 | U169: =IF(ABS($O157-SUM($O169:T169))<ABS($O157/$B169),$O157-SUM($O169:T169),$O157/$B169) -> 0.0008433462011 | V169: =IF(ABS($O157-SUM($O169:U169))<ABS($O157/$B169),$O157-SUM($O169:U169),$O157/$B169) -> 0.0008433462011 | W169: =IF(ABS($O157-SUM($O169:V169))<ABS($O157/$B169),$O157-SUM($O169:V169),$O157/$B169) -> 0.0008433462011 | X169: =IF(ABS($O157-SUM($O169:W169))<ABS($O157/$B169),$O157-SUM($O169:W169),$O157/$B169) -> 0.0008433462011 | Y169: =IF(ABS($O157-SUM($O169:X169))<ABS($O157/$B169),$O157-SUM($O169:X169),$O157/$B169) -> 0.0008433462011 | Z169: =IF(ABS($O157-SUM($O169:Y169))<ABS($O157/$B169),$O157-SUM($O169:Y169),$O157/$B169) -> 0.0008433462011 | AA169: =IF(ABS($O157-SUM($O169:Z169))<ABS($O157/$B169),$O157-SUM($O169:Z169),$O157/$B169) -> 0.0008433462011 | AB169: =IF(ABS($O157-SUM($O169:AA169))<ABS($O157/$B169),$O157-SUM($O169:AA169),$O157/$B169) -> 0.0008433462011 | AC169: =IF(ABS($O157-SUM($O169:AB169))<ABS($O157/$B169),$O157-SUM($O169:AB169),$O157/$B169) -> 0.0008433462011 | AD169: =IF(ABS($O157-SUM($O169:AC169))<ABS($O157/$B169),$O157-SUM($O169:AC169),$O157/$B169) -> 0.0008433462011 | AE169: =IF(ABS($O157-SUM($O169:AD169))<ABS($O157/$B169),$O157-SUM($O169:AD169),$O157/$B169) -> 0.0008433462011 | AF169: =IF(ABS($O157-SUM($O169:AE169))<ABS($O157/$B169),$O157-SUM($O169:AE169),$O157/$B169) -> 0.0008433462011 | AG169: =IF(ABS($O157-SUM($O169:AF169))<ABS($O157/$B169),$O157-SUM($O169:AF169),$O157/$B169) -> 0.0008433462011
B170: =B169 -> 60 | C170: 2010 | P170: =0.5*P$157/$B170 -> 5.576854164e-05 | Q170: =MIN($P157/$B170,$P157-SUM($P170:P170)) -> 0.0001115370833 | R170: =MIN($P157/$B170,$P157-SUM($P170:Q170)) -> 0.0001115370833 | S170: =MIN($P157/$B170,$P157-SUM($P170:R170)) -> 0.0001115370833 | T170: =MIN($P157/$B170,$P157-SUM($P170:S170)) -> 0.0001115370833 | U170: =MIN($P157/$B170,$P157-SUM($P170:T170)) -> 0.0001115370833 | V170: =MIN($P157/$B170,$P157-SUM($P170:U170)) -> 0.0001115370833 | W170: =MIN($P157/$B170,$P157-SUM($P170:V170)) -> 0.0001115370833 | X170: =MIN($P157/$B170,$P157-SUM($P170:W170)) -> 0.0001115370833 | Y170: =MIN($P157/$B170,$P157-SUM($P170:X170)) -> 0.0001115370833 | Z170: =MIN($P157/$B170,$P157-SUM($P170:Y170)) -> 0.0001115370833 | AA170: =MIN($P157/$B170,$P157-SUM($P170:Z170)) -> 0.0001115370833 | AB170: =MIN($P157/$B170,$P157-SUM($P170:AA170)) -> 0.0001115370833 | AC170: =MIN($P157/$B170,$P157-SUM($P170:AB170)) -> 0.0001115370833 | AD170: =MIN($P157/$B170,$P157-SUM($P170:AC170)) -> 0.0001115370833 | AE170: =MIN($P157/$B170,$P157-SUM($P170:AD170)) -> 0.0001115370833 | AF170: =MIN($P157/$B170,$P157-SUM($P170:AE170)) -> 0.0001115370833 | AG170: =MIN($P157/$B170,$P157-SUM($P170:AF170)) -> 0.0001115370833
B171: =B170 -> 60 | C171: 2011 | Q171: =0.5*Q$157/$B171 -> 0.0009557983669 | R171: =IF(ABS($Q157-SUM($Q171:Q171))<ABS($Q157/$B171),$Q157-SUM($Q171:Q171),$Q157/$B171) -> 0.001911596734 | S171: =IF(ABS($Q157-SUM($Q171:R171))<ABS($Q157/$B171),$Q157-SUM($Q171:R171),$Q157/$B171) -> 0.001911596734 | T171: =IF(ABS($Q157-SUM($Q171:S171))<ABS($Q157/$B171),$Q157-SUM($Q171:S171),$Q157/$B171) -> 0.001911596734 | U171: =IF(ABS($Q157-SUM($Q171:T171))<ABS($Q157/$B171),$Q157-SUM($Q171:T171),$Q157/$B171) -> 0.001911596734 | V171: =IF(ABS($Q157-SUM($Q171:U171))<ABS($Q157/$B171),$Q157-SUM($Q171:U171),$Q157/$B171) -> 0.001911596734 | W171: =IF(ABS($Q157-SUM($Q171:V171))<ABS($Q157/$B171),$Q157-SUM($Q171:V171),$Q157/$B171) -> 0.001911596734 | X171: =IF(ABS($Q157-SUM($Q171:W171))<ABS($Q157/$B171),$Q157-SUM($Q171:W171),$Q157/$B171) -> 0.001911596734 | Y171: =IF(ABS($Q157-SUM($Q171:X171))<ABS($Q157/$B171),$Q157-SUM($Q171:X171),$Q157/$B171) -> 0.001911596734 | Z171: =IF(ABS($Q157-SUM($Q171:Y171))<ABS($Q157/$B171),$Q157-SUM($Q171:Y171),$Q157/$B171) -> 0.001911596734 | AA171: =IF(ABS($Q157-SUM($Q171:Z171))<ABS($Q157/$B171),$Q157-SUM($Q171:Z171),$Q157/$B171) -> 0.001911596734 | AB171: =IF(ABS($Q157-SUM($Q171:AA171))<ABS($Q157/$B171),$Q157-SUM($Q171:AA171),$Q157/$B171) -> 0.001911596734 | AC171: =IF(ABS($Q157-SUM($Q171:AB171))<ABS($Q157/$B171),$Q157-SUM($Q171:AB171),$Q157/$B171) -> 0.001911596734 | AD171: =IF(ABS($Q157-SUM($Q171:AC171))<ABS($Q157/$B171),$Q157-SUM($Q171:AC171),$Q157/$B171) -> 0.001911596734 | AE171: =IF(ABS($Q157-SUM($Q171:AD171))<ABS($Q157/$B171),$Q157-SUM($Q171:AD171),$Q157/$B171) -> 0.001911596734 | AF171: =IF(ABS($Q157-SUM($Q171:AE171))<ABS($Q157/$B171),$Q157-SUM($Q171:AE171),$Q157/$B171) -> 0.001911596734 | AG171: =IF(ABS($Q157-SUM($Q171:AF171))<ABS($Q157/$B171),$Q157-SUM($Q171:AF171),$Q157/$B171) -> 0.001911596734
B172: =B171 -> 60 | C172: 2012 | R172: =0.5*R$157/$B172 -> 0.00540964159 | S172: =MIN($R157/$B172,$R157-SUM($R172:R172)) -> 0.01081928318 | T172: =MIN($R157/$B172,$R157-SUM($R172:S172)) -> 0.01081928318 | U172: =MIN($R157/$B172,$R157-SUM($R172:T172)) -> 0.01081928318 | V172: =MIN($R157/$B172,$R157-SUM($R172:U172)) -> 0.01081928318 | W172: =MIN($R157/$B172,$R157-SUM($R172:V172)) -> 0.01081928318 | X172: =MIN($R157/$B172,$R157-SUM($R172:W172)) -> 0.01081928318 | Y172: =MIN($R157/$B172,$R157-SUM($R172:X172)) -> 0.01081928318 | Z172: =MIN($R157/$B172,$R157-SUM($R172:Y172)) -> 0.01081928318 | AA172: =MIN($R157/$B172,$R157-SUM($R172:Z172)) -> 0.01081928318 | AB172: =MIN($R157/$B172,$R157-SUM($R172:AA172)) -> 0.01081928318 | AC172: =MIN($R157/$B172,$R157-SUM($R172:AB172)) -> 0.01081928318 | AD172: =MIN($R157/$B172,$R157-SUM($R172:AC172)) -> 0.01081928318 | AE172: =MIN($R157/$B172,$R157-SUM($R172:AD172)) -> 0.01081928318 | AF172: =MIN($R157/$B172,$R157-SUM($R172:AE172)) -> 0.01081928318 | AG172: =MIN($R157/$B172,$R157-SUM($R172:AF172)) -> 0.01081928318
B173: =G41 -> 60 | C173: 2013 | T173: =S$157/$B173 -> 0 | U173: =MIN($S157/$B173,$S157-SUM($T173:T173)) -> 0 | V173: =MIN($S157/$B173,$S157-SUM($T173:U173)) -> 0 | W173: =MIN($S157/$B173,$S157-SUM($T173:V173)) -> 0 | X173: =MIN($S157/$B173,$S157-SUM($T173:W173)) -> 0 | Y173: =MIN($S157/$B173,$S157-SUM($T173:X173)) -> 0 | Z173: =MIN($S157/$B173,$S157-SUM($T173:Y173)) -> 0 | AA173: =MIN($S157/$B173,$S157-SUM($T173:Z173)) -> 0 | AB173: =MIN($S157/$B173,$S157-SUM($T173:AA173)) -> 0 | AC173: =MIN($S157/$B173,$S157-SUM($T173:AB173)) -> 0 | AD173: =MIN($S157/$B173,$S157-SUM($T173:AC173)) -> 0 | AE173: =MIN($S157/$B173,$S157-SUM($T173:AD173)) -> 0 | AF173: =MIN($S157/$B173,$S157-SUM($T173:AE173)) -> 0 | AG173: =MIN($S157/$B173,$S157-SUM($T173:AF173)) -> 0
B174: =B173 -> 60 | C174: 2014 | U174: =T$157/$B174 -> 0.05222102446 | V174: =MIN($T157/$B174,$T157-SUM($U174:U174)) -> 0.05222102446 | W174: =MIN($T157/$B174,$T157-SUM($U174:V174)) -> 0.05222102446 | X174: =MIN($T157/$B174,$T157-SUM($U174:W174)) -> 0.05222102446 | Y174: =MIN($T157/$B174,$T157-SUM($U174:X174)) -> 0.05222102446 | Z174: =MIN($T157/$B174,$T157-SUM($U174:Y174)) -> 0.05222102446 | AA174: =MIN($T157/$B174,$T157-SUM($U174:Z174)) -> 0.05222102446 | AB174: =MIN($T157/$B174,$T157-SUM($U174:AA174)) -> 0.05222102446 | AC174: =MIN($T157/$B174,$T157-SUM($U174:AB174)) -> 0.05222102446 | AD174: =MIN($T157/$B174,$T157-SUM($U174:AC174)) -> 0.05222102446 | AE174: =MIN($T157/$B174,$T157-SUM($U174:AD174)) -> 0.05222102446 | AF174: =MIN($T157/$B174,$T157-SUM($U174:AE174)) -> 0.05222102446 | AG174: =MIN($T157/$B174,$T157-SUM($U174:AF174)) -> 0.05222102446
B175: =B174 -> 60 | C175: 2015 | V175: =U$157/$B175 -> 0 | W175: =MIN($U157/$B175,$U157-SUM($V175:V175)) -> 0 | X175: =MIN($U157/$B175,$U157-SUM($V175:W175)) -> 0 | Y175: =MIN($U157/$B175,$U157-SUM($V175:X175)) -> 0 | Z175: =MIN($U157/$B175,$U157-SUM($V175:Y175)) -> 0 | AA175: =MIN($U157/$B175,$U157-SUM($V175:Z175)) -> 0 | AB175: =MIN($U157/$B175,$U157-SUM($V175:AA175)) -> 0 | AC175: =MIN($U157/$B175,$U157-SUM($V175:AB175)) -> 0 | AD175: =MIN($U157/$B175,$U157-SUM($V175:AC175)) -> 0 | AE175: =MIN($U157/$B175,$U157-SUM($V175:AD175)) -> 0 | AF175: =MIN($U157/$B175,$U157-SUM($V175:AE175)) -> 0 | AG175: =MIN($U157/$B175,$U157-SUM($V175:AF175)) -> 0
B176: =B175 -> 60 | C176: 2016 | W176: =V$157/$B176 -> 0 | X176: =MIN($V157/$B176,$V157-SUM($W176:W176)) -> 0 | Y176: =MIN($V157/$B176,$V157-SUM($W176:X176)) -> 0 | Z176: =MIN($V157/$B176,$V157-SUM($W176:Y176)) -> 0 | AA176: =MIN($V157/$B176,$V157-SUM($W176:Z176)) -> 0 | AB176: =MIN($V157/$B176,$V157-SUM($W176:AA176)) -> 0 | AC176: =MIN($V157/$B176,$V157-SUM($W176:AB176)) -> 0 | AD176: =MIN($V157/$B176,$V157-SUM($W176:AC176)) -> 0 | AE176: =MIN($V157/$B176,$V157-SUM($W176:AD176)) -> 0 | AF176: =MIN($V157/$B176,$V157-SUM($W176:AE176)) -> 0 | AG176: =MIN($V157/$B176,$V157-SUM($W176:AF176)) -> 0
B177: =B176 -> 60 | C177: 2017 | X177: =W$157/$B177 -> 0 | Y177: =MIN($W157/$B177,$W157-SUM($X177:X177)) -> 0 | Z177: =MIN($W157/$B177,$W157-SUM($X177:Y177)) -> 0 | AA177: =MIN($W157/$B177,$W157-SUM($X177:Z177)) -> 0 | AB177: =MIN($W157/$B177,$W157-SUM($X177:AA177)) -> 0 | AC177: =MIN($W157/$B177,$W157-SUM($X177:AB177)) -> 0 | AD177: =MIN($W157/$B177,$W157-SUM($X177:AC177)) -> 0 | AE177: =MIN($W157/$B177,$W157-SUM($X177:AD177)) -> 0 | AF177: =MIN($W157/$B177,$W157-SUM($X177:AE177)) -> 0 | AG177: =MIN($W157/$B177,$W157-SUM($X177:AF177)) -> 0
C178: Total | D178: =SUM(D158:D177) -> 0 | E178: 0 | F178: 0 | G178: 9.04147741e-07 | H178: 1.808295482e-06 | I178: 1.808295482e-06 | J178: 1.808295482e-06 | K178: 1.808295482e-06 | L178: 1.808295482e-06 | M178: 1.808295482e-06 | N178: 1.808295482e-06 | O178: 0.000423481396 | P178: 0.0009009230382 | Q178: 0.001912489947 | R178: 0.008277929904 | S178: =SUM(S158:S172) -> 0.01368757149 | T178: =SUM(T158:T172) -> 0.01368757149 | U178: =SUM(U158:U172) -> 0.01368757149 | V178: =SUM(V158:V172) -> 0.01368757149 | W178: =SUM(W158:W172) -> 0.01368757149 | X178: =SUM(X158:X172) -> 0.01368757149 | Y178: 0.01368757149 | Z178: 0.01368757149 | AA178: 0.01368757149 | AB178: 0.01368757149 | AC178: 0.01368757149 | AD178: 0.01368757149 | AE178: 0.01368757149 | AF178: 0.01368757149 | AG178: 0.01368757149
A180: =A140 -> Distribution Pipelines | C180: =B140 -> 60
C181: Capex | D181: =D140+D106 -> 15.3064394 | E181: =E140+E106 -> 16.21683691 | F181: =F140+F106 -> 14.99597 | G181: 11.27674639 | H181: 17.39167573 | I181: 25.83121033 | J181: 21.54625254 | K181: 18.61356541 | L181: 23.47029865 | M181: 25.20449917 | N181: =N140+N106+N124 -> 55.77915047 | O181: 23.83864933 | P181: 31.30414502 | Q181: 38.10437589 | R181: 34.51892789 | S181: =S140 -> 49.97611731 | T181: 45.1341444 | U181: 51.17983472 | V181: 43.08569951 | W181: 36.54213793 | X181: 0 | Y181: 0 | Z181: 0 | AA181: 0 | AB181: 0 | AC181: 0 | AD181: 0 | AE181: 0 | AF181: 0 | AG181: 0
B182: =D42 -> 60 | C182: 1998 | D182: =0.5*D$181/$B182 -> 0.1275536617 | E182: =MIN($D181/$B182,$D181-SUM($D182:D182)) -> 0.2551073233 | F182: =MIN($D181/$B182,$D181-SUM($D182:E182)) -> 0.2551073233 | G182: =MIN($D181/$B182,$D181-SUM($D182:F182)) -> 0.2551073233 | H182: =MIN($D181/$B182,$D181-SUM($D182:G182)) -> 0.2551073233 | I182: =MIN($D181/$B182,$D181-SUM($D182:H182)) -> 0.2551073233 | J182: =MIN($D181/$B182,$D181-SUM($D182:I182)) -> 0.2551073233 | K182: =MIN($D181/$B182,$D181-SUM($D182:J182)) -> 0.2551073233 | L182: =MIN($D181/$B182,$D181-SUM($D182:K182)) -> 0.2551073233 | M182: =MIN($D181/$B182,$D181-SUM($D182:L182)) -> 0.2551073233 | N182: =MIN($D181/$B182,$D181-SUM($D182:M182)) -> 0.2551073233 | O182: =MIN($D181/$B182,$D181-SUM($D182:N182)) -> 0.2551073233 | P182: =MIN($D181/$B182,$D181-SUM($D182:O182)) -> 0.2551073233 | Q182: =MIN($D181/$B182,$D181-SUM($D182:P182)) -> 0.2551073233 | R182: =MIN($D181/$B182,$D181-SUM($D182:Q182)) -> 0.2551073233 | S182: =MIN($D181/$B182,$D181-SUM($D182:R182)) -> 0.2551073233 | T182: =MIN($D181/$B182,$D181-SUM($D182:S182)) -> 0.2551073233 | U182: =MIN($D181/$B182,$D181-SUM($D182:T182)) -> 0.2551073233 | V182: =MIN($D181/$B182,$D181-SUM($D182:U182)) -> 0.2551073233 | W182: =MIN($D181/$B182,$D181-SUM($D182:V182)) -> 0.2551073233 | X182: =MIN($D181/$B182,$D181-SUM($D182:W182)) -> 0.2551073233 | Y182: =MIN($D181/$B182,$D181-SUM($D182:X182)) -> 0.2551073233 | Z182: =MIN($D181/$B182,$D181-SUM($D182:Y182)) -> 0.2551073233 | AA182: =MIN($D181/$B182,$D181-SUM($D182:Z182)) -> 0.2551073233 | AB182: =MIN($D181/$B182,$D181-SUM($D182:AA182)) -> 0.2551073233 | AC182: =MIN($D181/$B182,$D181-SUM($D182:AB182)) -> 0.2551073233 | AD182: =MIN($D181/$B182,$D181-SUM($D182:AC182)) -> 0.2551073233 | AE182: =MIN($D181/$B182,$D181-SUM($D182:AD182)) -> 0.2551073233 | AF182: =MIN($D181/$B182,$D181-SUM($D182:AE182)) -> 0.2551073233 | AG182: =MIN($D181/$B182,$D181-SUM($D182:AF182)) -> 0.2551073233
B183: =B182 -> 60 | C183: 1999 | E183: =0.5*E$181/$B183 -> 0.1351403076 | F183: =MIN($E181/$B183,$E181-SUM($E183:E183)) -> 0.2702806152 | G183: =MIN($E181/$B183,$E181-SUM($E183:F183)) -> 0.2702806152 | H183: =MIN($E181/$B183,$E181-SUM($E183:G183)) -> 0.2702806152 | I183: =MIN($E181/$B183,$E181-SUM($E183:H183)) -> 0.2702806152 | J183: =MIN($E181/$B183,$E181-SUM($E183:I183)) -> 0.2702806152 | K183: =MIN($E181/$B183,$E181-SUM($E183:J183)) -> 0.2702806152 | L183: =MIN($E181/$B183,$E181-SUM($E183:K183)) -> 0.2702806152 | M183: =MIN($E181/$B183,$E181-SUM($E183:L183)) -> 0.2702806152 | N183: =MIN($E181/$B183,$E181-SUM($E183:M183)) -> 0.2702806152 | O183: =MIN($E181/$B183,$E181-SUM($E183:N183)) -> 0.2702806152 | P183: =MIN($E181/$B183,$E181-SUM($E183:O183)) -> 0.2702806152 | Q183: =MIN($E181/$B183,$E181-SUM($E183:P183)) -> 0.2702806152 | R183: =MIN($E181/$B183,$E181-SUM($E183:Q183)) -> 0.2702806152 | S183: =MIN($E181/$B183,$E181-SUM($E183:R183)) -> 0.2702806152 | T183: =MIN($E181/$B183,$E181-SUM($E183:S183)) -> 0.2702806152 | U183: =MIN($E181/$B183,$E181-SUM($E183:T183)) -> 0.2702806152 | V183: =MIN($E181/$B183,$E181-SUM($E183:U183)) -> 0.2702806152 | W183: =MIN($E181/$B183,$E181-SUM($E183:V183)) -> 0.2702806152 | X183: =MIN($E181/$B183,$E181-SUM($E183:W183)) -> 0.2702806152 | Y183: =MIN($E181/$B183,$E181-SUM($E183:X183)) -> 0.2702806152 | Z183: =MIN($E181/$B183,$E181-SUM($E183:Y183)) -> 0.2702806152 | AA183: =MIN($E181/$B183,$E181-SUM($E183:Z183)) -> 0.2702806152 | AB183: =MIN($E181/$B183,$E181-SUM($E183:AA183)) -> 0.2702806152 | AC183: =MIN($E181/$B183,$E181-SUM($E183:AB183)) -> 0.2702806152 | AD183: =MIN($E181/$B183,$E181-SUM($E183:AC183)) -> 0.2702806152 | AE183: =MIN($E181/$B183,$E181-SUM($E183:AD183)) -> 0.2702806152 | AF183: =MIN($E181/$B183,$E181-SUM($E183:AE183)) -> 0.2702806152 | AG183: =MIN($E181/$B183,$E181-SUM($E183:AF183)) -> 0.2702806152
B184: =B183 -> 60 | C184: 2000 | F184: =0.5*F$181/$B184 -> 0.1249664167 | G184: =MIN($F181/$B184,$F181-SUM($F184:F184)) -> 0.2499328333 | H184: =MIN($F181/$B184,$F181-SUM($F184:G184)) -> 0.2499328333 | I184: =MIN($F181/$B184,$F181-SUM($F184:H184)) -> 0.2499328333 | J184: =MIN($F181/$B184,$F181-SUM($F184:I184)) -> 0.2499328333 | K184: =MIN($F181/$B184,$F181-SUM($F184:J184)) -> 0.2499328333 | L184: =MIN($F181/$B184,$F181-SUM($F184:K184)) -> 0.2499328333 | M184: =MIN($F181/$B184,$F181-SUM($F184:L184)) -> 0.2499328333 | N184: =MIN($F181/$B184,$F181-SUM($F184:M184)) -> 0.2499328333 | O184: =MIN($F181/$B184,$F181-SUM($F184:N184)) -> 0.2499328333 | P184: =MIN($F181/$B184,$F181-SUM($F184:O184)) -> 0.2499328333 | Q184: =MIN($F181/$B184,$F181-SUM($F184:P184)) -> 0.2499328333 | R184: =MIN($F181/$B184,$F181-SUM($F184:Q184)) -> 0.2499328333 | S184: =MIN($F181/$B184,$F181-SUM($F184:R184)) -> 0.2499328333 | T184: =MIN($F181/$B184,$F181-SUM($F184:S184)) -> 0.2499328333 | U184: =MIN($F181/$B184,$F181-SUM($F184:T184)) -> 0.2499328333 | V184: =MIN($F181/$B184,$F181-SUM($F184:U184)) -> 0.2499328333 | W184: =MIN($F181/$B184,$F181-SUM($F184:V184)) -> 0.2499328333 | X184: =MIN($F181/$B184,$F181-SUM($F184:W184)) -> 0.2499328333 | Y184: =MIN($F181/$B184,$F181-SUM($F184:X184)) -> 0.2499328333 | Z184: =MIN($F181/$B184,$F181-SUM($F184:Y184)) -> 0.2499328333 | AA184: =MIN($F181/$B184,$F181-SUM($F184:Z184)) -> 0.2499328333 | AB184: =MIN($F181/$B184,$F181-SUM($F184:AA184)) -> 0.2499328333 | AC184: =MIN($F181/$B184,$F181-SUM($F184:AB184)) -> 0.2499328333 | AD184: =MIN($F181/$B184,$F181-SUM($F184:AC184)) -> 0.2499328333 | AE184: =MIN($F181/$B184,$F181-SUM($F184:AD184)) -> 0.2499328333 | AF184: =MIN($F181/$B184,$F181-SUM($F184:AE184)) -> 0.2499328333 | AG184: =MIN($F181/$B184,$F181-SUM($F184:AF184)) -> 0.2499328333
B185: =B184 -> 60 | C185: 2001 | G185: =0.5*G$181/$B185 -> 0.09397288659 | H185: =MIN($G181/$B185,$G181-SUM($G185:G185)) -> 0.1879457732 | I185: =MIN($G181/$B185,$G181-SUM($G185:H185)) -> 0.1879457732 | J185: =MIN($G181/$B185,$G181-SUM($G185:I185)) -> 0.1879457732 | K185: =MIN($G181/$B185,$G181-SUM($G185:J185)) -> 0.1879457732 | L185: =MIN($G181/$B185,$G181-SUM($G185:K185)) -> 0.1879457732 | M185: =MIN($G181/$B185,$G181-SUM($G185:L185)) -> 0.1879457732 | N185: =MIN($G181/$B185,$G181-SUM($G185:M185)) -> 0.1879457732 | O185: =MIN($G181/$B185,$G181-SUM($G185:N185)) -> 0.1879457732 | P185: =MIN($G181/$B185,$G181-SUM($G185:O185)) -> 0.1879457732 | Q185: =MIN($G181/$B185,$G181-SUM($G185:P185)) -> 0.1879457732 | R185: =MIN($G181/$B185,$G181-SUM($G185:Q185)) -> 0.1879457732 | S185: =MIN($G181/$B185,$G181-SUM($G185:R185)) -> 0.1879457732 | T185: =MIN($G181/$B185,$G181-SUM($G185:S185)) -> 0.1879457732 | U185: =MIN($G181/$B185,$G181-SUM($G185:T185)) -> 0.1879457732 | V185: =MIN($G181/$B185,$G181-SUM($G185:U185)) -> 0.1879457732 | W185: =MIN($G181/$B185,$G181-SUM($G185:V185)) -> 0.1879457732 | X185: =MIN($G181/$B185,$G181-SUM($G185:W185)) -> 0.1879457732 | Y185: =MIN($G181/$B185,$G181-SUM($G185:X185)) -> 0.1879457732 | Z185: =MIN($G181/$B185,$G181-SUM($G185:Y185)) -> 0.1879457732 | AA185: =MIN($G181/$B185,$G181-SUM($G185:Z185)) -> 0.1879457732 | AB185: =MIN($G181/$B185,$G181-SUM($G185:AA185)) -> 0.1879457732 | AC185: =MIN($G181/$B185,$G181-SUM($G185:AB185)) -> 0.1879457732 | AD185: =MIN($G181/$B185,$G181-SUM($G185:AC185)) -> 0.1879457732 | AE185: =MIN($G181/$B185,$G181-SUM($G185:AD185)) -> 0.1879457732 | AF185: =MIN($G181/$B185,$G181-SUM($G185:AE185)) -> 0.1879457732 | AG185: =MIN($G181/$B185,$G181-SUM($G185:AF185)) -> 0.1879457732
B186: =B185 -> 60 | C186: 2002 | H186: =0.5*H$181/$B186 -> 0.1449306311 | I186: =MIN($H181/$B186,$H181-SUM($H186:H186)) -> 0.2898612622 | J186: =MIN($H181/$B186,$H181-SUM($H186:I186)) -> 0.2898612622 | K186: =MIN($H181/$B186,$H181-SUM($H186:J186)) -> 0.2898612622 | L186: =MIN($H181/$B186,$H181-SUM($H186:K186)) -> 0.2898612622 | M186: =MIN($H181/$B186,$H181-SUM($H186:L186)) -> 0.2898612622 | N186: =MIN($H181/$B186,$H181-SUM($H186:M186)) -> 0.2898612622 | O186: =MIN($H181/$B186,$H181-SUM($H186:N186)) -> 0.2898612622 | P186: =MIN($H181/$B186,$H181-SUM($H186:O186)) -> 0.2898612622 | Q186: =MIN($H181/$B186,$H181-SUM($H186:P186)) -> 0.2898612622 | R186: =MIN($H181/$B186,$H181-SUM($H186:Q186)) -> 0.2898612622 | S186: =MIN($H181/$B186,$H181-SUM($H186:R186)) -> 0.2898612622 | T186: =MIN($H181/$B186,$H181-SUM($H186:S186)) -> 0.2898612622 | U186: =MIN($H181/$B186,$H181-SUM($H186:T186)) -> 0.2898612622 | V186: =MIN($H181/$B186,$H181-SUM($H186:U186)) -> 0.2898612622 | W186: =MIN($H181/$B186,$H181-SUM($H186:V186)) -> 0.2898612622 | X186: =MIN($H181/$B186,$H181-SUM($H186:W186)) -> 0.2898612622 | Y186: =MIN($H181/$B186,$H181-SUM($H186:X186)) -> 0.2898612622 | Z186: =MIN($H181/$B186,$H181-SUM($H186:Y186)) -> 0.2898612622 | AA186: =MIN($H181/$B186,$H181-SUM($H186:Z186)) -> 0.2898612622 | AB186: =MIN($H181/$B186,$H181-SUM($H186:AA186)) -> 0.2898612622 | AC186: =MIN($H181/$B186,$H181-SUM($H186:AB186)) -> 0.2898612622 | AD186: =MIN($H181/$B186,$H181-SUM($H186:AC186)) -> 0.2898612622 | AE186: =MIN($H181/$B186,$H181-SUM($H186:AD186)) -> 0.2898612622 | AF186: =MIN($H181/$B186,$H181-SUM($H186:AE186)) -> 0.2898612622 | AG186: =MIN($H181/$B186,$H181-SUM($H186:AF186)) -> 0.2898612622
B187: =E42 -> 60 | C187: 2003 | I187: =0.5*I$181/$B187 -> 0.2152600861 | J187: =MIN($I181/$B187,$I181-SUM($I187:I187)) -> 0.4305201722 | K187: =MIN($I181/$B187,$I181-SUM($I187:J187)) -> 0.4305201722 | L187: =MIN($I181/$B187,$I181-SUM($I187:K187)) -> 0.4305201722 | M187: =MIN($I181/$B187,$I181-SUM($I187:L187)) -> 0.4305201722 | N187: =MIN($I181/$B187,$I181-SUM($I187:M187)) -> 0.4305201722 | O187: =MIN($I181/$B187,$I181-SUM($I187:N187)) -> 0.4305201722 | P187: =MIN($I181/$B187,$I181-SUM($I187:O187)) -> 0.4305201722 | Q187: =MIN($I181/$B187,$I181-SUM($I187:P187)) -> 0.4305201722 | R187: =MIN($I181/$B187,$I181-SUM($I187:Q187)) -> 0.4305201722 | S187: =MIN($I181/$B187,$I181-SUM($I187:R187)) -> 0.4305201722 | T187: =MIN($I181/$B187,$I181-SUM($I187:S187)) -> 0.4305201722 | U187: =MIN($I181/$B187,$I181-SUM($I187:T187)) -> 0.4305201722 | V187: =MIN($I181/$B187,$I181-SUM($I187:U187)) -> 0.4305201722 | W187: =MIN($I181/$B187,$I181-SUM($I187:V187)) -> 0.4305201722 | X187: =MIN($I181/$B187,$I181-SUM($I187:W187)) -> 0.4305201722 | Y187: =MIN($I181/$B187,$I181-SUM($I187:X187)) -> 0.4305201722 | Z187: =MIN($I181/$B187,$I181-SUM($I187:Y187)) -> 0.4305201722 | AA187: =MIN($I181/$B187,$I181-SUM($I187:Z187)) -> 0.4305201722 | AB187: =MIN($I181/$B187,$I181-SUM($I187:AA187)) -> 0.4305201722 | AC187: =MIN($I181/$B187,$I181-SUM($I187:AB187)) -> 0.4305201722 | AD187: =MIN($I181/$B187,$I181-SUM($I187:AC187)) -> 0.4305201722 | AE187: =MIN($I181/$B187,$I181-SUM($I187:AD187)) -> 0.4305201722 | AF187: =MIN($I181/$B187,$I181-SUM($I187:AE187)) -> 0.4305201722 | AG187: =MIN($I181/$B187,$I181-SUM($I187:AF187)) -> 0.4305201722
B188: =B187 -> 60 | C188: 2004 | J188: =0.5*J$181/$B188 -> 0.1795521045 | K188: =MIN($J181/$B188,$J181-SUM($J188:J188)) -> 0.359104209 | L188: =MIN($J181/$B188,$J181-SUM($J188:K188)) -> 0.359104209 | M188: =MIN($J181/$B188,$J181-SUM($J188:L188)) -> 0.359104209 | N188: =MIN($J181/$B188,$J181-SUM($J188:M188)) -> 0.359104209 | O188: =MIN($J181/$B188,$J181-SUM($J188:N188)) -> 0.359104209 | P188: =MIN($J181/$B188,$J181-SUM($J188:O188)) -> 0.359104209 | Q188: =MIN($J181/$B188,$J181-SUM($J188:P188)) -> 0.359104209 | R188: =MIN($J181/$B188,$J181-SUM($J188:Q188)) -> 0.359104209 | S188: =MIN($J181/$B188,$J181-SUM($J188:R188)) -> 0.359104209 | T188: =MIN($J181/$B188,$J181-SUM($J188:S188)) -> 0.359104209 | U188: =MIN($J181/$B188,$J181-SUM($J188:T188)) -> 0.359104209 | V188: =MIN($J181/$B188,$J181-SUM($J188:U188)) -> 0.359104209 | W188: =MIN($J181/$B188,$J181-SUM($J188:V188)) -> 0.359104209 | X188: =MIN($J181/$B188,$J181-SUM($J188:W188)) -> 0.359104209 | Y188: =MIN($J181/$B188,$J181-SUM($J188:X188)) -> 0.359104209 | Z188: =MIN($J181/$B188,$J181-SUM($J188:Y188)) -> 0.359104209 | AA188: =MIN($J181/$B188,$J181-SUM($J188:Z188)) -> 0.359104209 | AB188: =MIN($J181/$B188,$J181-SUM($J188:AA188)) -> 0.359104209 | AC188: =MIN($J181/$B188,$J181-SUM($J188:AB188)) -> 0.359104209 | AD188: =MIN($J181/$B188,$J181-SUM($J188:AC188)) -> 0.359104209 | AE188: =MIN($J181/$B188,$J181-SUM($J188:AD188)) -> 0.359104209 | AF188: =MIN($J181/$B188,$J181-SUM($J188:AE188)) -> 0.359104209 | AG188: =MIN($J181/$B188,$J181-SUM($J188:AF188)) -> 0.359104209
B189: =B188 -> 60 | C189: 2005 | K189: =0.5*K$181/$B189 -> 0.1551130451 | L189: =MIN($K181/$B189,$K181-SUM($K189:K189)) -> 0.3102260902 | M189: =MIN($K181/$B189,$K181-SUM($K189:L189)) -> 0.3102260902 | N189: =MIN($K181/$B189,$K181-SUM($K189:M189)) -> 0.3102260902 | O189: =MIN($K181/$B189,$K181-SUM($K189:N189)) -> 0.3102260902 | P189: =MIN($K181/$B189,$K181-SUM($K189:O189)) -> 0.3102260902 | Q189: =MIN($K181/$B189,$K181-SUM($K189:P189)) -> 0.3102260902 | R189: =MIN($K181/$B189,$K181-SUM($K189:Q189)) -> 0.3102260902 | S189: =MIN($K181/$B189,$K181-SUM($K189:R189)) -> 0.3102260902 | T189: =MIN($K181/$B189,$K181-SUM($K189:S189)) -> 0.3102260902 | U189: =MIN($K181/$B189,$K181-SUM($K189:T189)) -> 0.3102260902 | V189: =MIN($K181/$B189,$K181-SUM($K189:U189)) -> 0.3102260902 | W189: =MIN($K181/$B189,$K181-SUM($K189:V189)) -> 0.3102260902 | X189: =MIN($K181/$B189,$K181-SUM($K189:W189)) -> 0.3102260902 | Y189: =MIN($K181/$B189,$K181-SUM($K189:X189)) -> 0.3102260902 | Z189: =MIN($K181/$B189,$K181-SUM($K189:Y189)) -> 0.3102260902 | AA189: =MIN($K181/$B189,$K181-SUM($K189:Z189)) -> 0.3102260902 | AB189: =MIN($K181/$B189,$K181-SUM($K189:AA189)) -> 0.3102260902 | AC189: =MIN($K181/$B189,$K181-SUM($K189:AB189)) -> 0.3102260902 | AD189: =MIN($K181/$B189,$K181-SUM($K189:AC189)) -> 0.3102260902 | AE189: =MIN($K181/$B189,$K181-SUM($K189:AD189)) -> 0.3102260902 | AF189: =MIN($K181/$B189,$K181-SUM($K189:AE189)) -> 0.3102260902 | AG189: =MIN($K181/$B189,$K181-SUM($K189:AF189)) -> 0.3102260902
B190: =B189 -> 60 | C190: 2006 | L190: =0.5*L$181/$B190 -> 0.1955858221 | M190: =MIN($L181/$B190,$L181-SUM($L190:L190)) -> 0.3911716441 | N190: =MIN($L181/$B190,$L181-SUM($L190:M190)) -> 0.3911716441 | O190: =MIN($L181/$B190,$L181-SUM($L190:N190)) -> 0.3911716441 | P190: =MIN($L181/$B190,$L181-SUM($L190:O190)) -> 0.3911716441 | Q190: =MIN($L181/$B190,$L181-SUM($L190:P190)) -> 0.3911716441 | R190: =MIN($L181/$B190,$L181-SUM($L190:Q190)) -> 0.3911716441 | S190: =MIN($L181/$B190,$L181-SUM($L190:R190)) -> 0.3911716441 | T190: =MIN($L181/$B190,$L181-SUM($L190:S190)) -> 0.3911716441 | U190: =MIN($L181/$B190,$L181-SUM($L190:T190)) -> 0.3911716441 | V190: =MIN($L181/$B190,$L181-SUM($L190:U190)) -> 0.3911716441 | W190: =MIN($L181/$B190,$L181-SUM($L190:V190)) -> 0.3911716441 | X190: =MIN($L181/$B190,$L181-SUM($L190:W190)) -> 0.3911716441 | Y190: =MIN($L181/$B190,$L181-SUM($L190:X190)) -> 0.3911716441 | Z190: =MIN($L181/$B190,$L181-SUM($L190:Y190)) -> 0.3911716441 | AA190: =MIN($L181/$B190,$L181-SUM($L190:Z190)) -> 0.3911716441 | AB190: =MIN($L181/$B190,$L181-SUM($L190:AA190)) -> 0.3911716441 | AC190: =MIN($L181/$B190,$L181-SUM($L190:AB190)) -> 0.3911716441 | AD190: =MIN($L181/$B190,$L181-SUM($L190:AC190)) -> 0.3911716441 | AE190: =MIN($L181/$B190,$L181-SUM($L190:AD190)) -> 0.3911716441 | AF190: =MIN($L181/$B190,$L181-SUM($L190:AE190)) -> 0.3911716441 | AG190: =MIN($L181/$B190,$L181-SUM($L190:AF190)) -> 0.3911716441
B191: =B190 -> 60 | C191: 2007 | M191: =0.5*M$181/$B191 -> 0.2100374931 | N191: =MIN($M181/$B191,$M181-SUM($M191:M191)) -> 0.4200749862 | O191: =MIN($M181/$B191,$M181-SUM($M191:N191)) -> 0.4200749862 | P191: =MIN($M181/$B191,$M181-SUM($M191:O191)) -> 0.4200749862 | Q191: =MIN($M181/$B191,$M181-SUM($M191:P191)) -> 0.4200749862 | R191: =MIN($M181/$B191,$M181-SUM($M191:Q191)) -> 0.4200749862 | S191: =MIN($M181/$B191,$M181-SUM($M191:R191)) -> 0.4200749862 | T191: =MIN($M181/$B191,$M181-SUM($M191:S191)) -> 0.4200749862 | U191: =MIN($M181/$B191,$M181-SUM($M191:T191)) -> 0.4200749862 | V191: =MIN($M181/$B191,$M181-SUM($M191:U191)) -> 0.4200749862 | W191: =MIN($M181/$B191,$M181-SUM($M191:V191)) -> 0.4200749862 | X191: =MIN($M181/$B191,$M181-SUM($M191:W191)) -> 0.4200749862 | Y191: =MIN($M181/$B191,$M181-SUM($M191:X191)) -> 0.4200749862 | Z191: =MIN($M181/$B191,$M181-SUM($M191:Y191)) -> 0.4200749862 | AA191: =MIN($M181/$B191,$M181-SUM($M191:Z191)) -> 0.4200749862 | AB191: =MIN($M181/$B191,$M181-SUM($M191:AA191)) -> 0.4200749862 | AC191: =MIN($M181/$B191,$M181-SUM($M191:AB191)) -> 0.4200749862 | AD191: =MIN($M181/$B191,$M181-SUM($M191:AC191)) -> 0.4200749862 | AE191: =MIN($M181/$B191,$M181-SUM($M191:AD191)) -> 0.4200749862 | AF191: =MIN($M181/$B191,$M181-SUM($M191:AE191)) -> 0.4200749862 | AG191: =MIN($M181/$B191,$M181-SUM($M191:AF191)) -> 0.4200749862
B192: =F42 -> 60 | C192: 2008 | N192: =0.5*N$181/$B192+0.5*N124/$B192 -> 0.6915049762 | O192: =MIN($N181/$B192, $N181-SUM($N192:N192)) -> 0.9296525078 | P192: =MIN($N181/$B192, $N181-SUM($N192:O192)) -> 0.9296525078 | Q192: =MIN($N181/$B192, $N181-SUM($N192:P192)) -> 0.9296525078 | R192: =MIN($N181/$B192, $N181-SUM($N192:Q192)) -> 0.9296525078 | S192: =MIN($N181/$B192, $N181-SUM($N192:R192)) -> 0.9296525078 | T192: =MIN($N181/$B192, $N181-SUM($N192:S192)) -> 0.9296525078 | U192: =MIN($N181/$B192, $N181-SUM($N192:T192)) -> 0.9296525078 | V192: =MIN($N181/$B192, $N181-SUM($N192:U192)) -> 0.9296525078 | W192: =MIN($N181/$B192, $N181-SUM($N192:V192)) -> 0.9296525078 | X192: =MIN($N181/$B192, $N181-SUM($N192:W192)) -> 0.9296525078 | Y192: =MIN($N181/$B192, $N181-SUM($N192:X192)) -> 0.9296525078 | Z192: =MIN($N181/$B192, $N181-SUM($N192:Y192)) -> 0.9296525078 | AA192: =MIN($N181/$B192, $N181-SUM($N192:Z192)) -> 0.9296525078 | AB192: =MIN($N181/$B192, $N181-SUM($N192:AA192)) -> 0.9296525078 | AC192: =MIN($N181/$B192, $N181-SUM($N192:AB192)) -> 0.9296525078 | AD192: =MIN($N181/$B192, $N181-SUM($N192:AC192)) -> 0.9296525078 | AE192: =MIN($N181/$B192, $N181-SUM($N192:AD192)) -> 0.9296525078 | AF192: =MIN($N181/$B192, $N181-SUM($N192:AE192)) -> 0.9296525078 | AG192: =MIN($N181/$B192, $N181-SUM($N192:AF192)) -> 0.9296525078
B193: =B192 -> 60 | C193: 2009 | O193: =0.5*O$181/$B193 -> 0.1986554111 | P193: =MIN($O181/$B193,$O181-SUM($O193:O193)) -> 0.3973108222 | Q193: =MIN($O181/$B193,$O181-SUM($O193:P193)) -> 0.3973108222 | R193: =MIN($O181/$B193,$O181-SUM($O193:Q193)) -> 0.3973108222 | S193: =MIN($O181/$B193,$O181-SUM($O193:R193)) -> 0.3973108222 | T193: =MIN($O181/$B193,$O181-SUM($O193:S193)) -> 0.3973108222 | U193: =MIN($O181/$B193,$O181-SUM($O193:T193)) -> 0.3973108222 | V193: =MIN($O181/$B193,$O181-SUM($O193:U193)) -> 0.3973108222 | W193: =MIN($O181/$B193,$O181-SUM($O193:V193)) -> 0.3973108222 | X193: =MIN($O181/$B193,$O181-SUM($O193:W193)) -> 0.3973108222 | Y193: =MIN($O181/$B193,$O181-SUM($O193:X193)) -> 0.3973108222 | Z193: =MIN($O181/$B193,$O181-SUM($O193:Y193)) -> 0.3973108222 | AA193: =MIN($O181/$B193,$O181-SUM($O193:Z193)) -> 0.3973108222 | AB193: =MIN($O181/$B193,$O181-SUM($O193:AA193)) -> 0.3973108222 | AC193: =MIN($O181/$B193,$O181-SUM($O193:AB193)) -> 0.3973108222 | AD193: =MIN($O181/$B193,$O181-SUM($O193:AC193)) -> 0.3973108222 | AE193: =MIN($O181/$B193,$O181-SUM($O193:AD193)) -> 0.3973108222 | AF193: =MIN($O181/$B193,$O181-SUM($O193:AE193)) -> 0.3973108222 | AG193: =MIN($O181/$B193,$O181-SUM($O193:AF193)) -> 0.3973108222
B194: =B193 -> 60 | C194: 2010 | P194: =0.5*P$181/$B194 -> 0.2608678752 | Q194: =MIN($P181/$B194,$P181-SUM($P194:P194)) -> 0.5217357503 | R194: =MIN($P181/$B194,$P181-SUM($P194:Q194)) -> 0.5217357503 | S194: =MIN($P181/$B194,$P181-SUM($P194:R194)) -> 0.5217357503 | T194: =MIN($P181/$B194,$P181-SUM($P194:S194)) -> 0.5217357503 | U194: =MIN($P181/$B194,$P181-SUM($P194:T194)) -> 0.5217357503 | V194: =MIN($P181/$B194,$P181-SUM($P194:U194)) -> 0.5217357503 | W194: =MIN($P181/$B194,$P181-SUM($P194:V194)) -> 0.5217357503 | X194: =MIN($P181/$B194,$P181-SUM($P194:W194)) -> 0.5217357503 | Y194: =MIN($P181/$B194,$P181-SUM($P194:X194)) -> 0.5217357503 | Z194: =MIN($P181/$B194,$P181-SUM($P194:Y194)) -> 0.5217357503 | AA194: =MIN($P181/$B194,$P181-SUM($P194:Z194)) -> 0.5217357503 | AB194: =MIN($P181/$B194,$P181-SUM($P194:AA194)) -> 0.5217357503 | AC194: =MIN($P181/$B194,$P181-SUM($P194:AB194)) -> 0.5217357503 | AD194: =MIN($P181/$B194,$P181-SUM($P194:AC194)) -> 0.5217357503 | AE194: =MIN($P181/$B194,$P181-SUM($P194:AD194)) -> 0.5217357503 | AF194: =MIN($P181/$B194,$P181-SUM($P194:AE194)) -> 0.5217357503 | AG194: =MIN($P181/$B194,$P181-SUM($P194:AF194)) -> 0.5217357503
B195: =B194 -> 60 | C195: 2011 | Q195: =0.5*Q$181/$B195 -> 0.3175364658 | R195: =MIN($Q181/$B195,$Q181-SUM($Q195:Q195)) -> 0.6350729315 | S195: =MIN($Q181/$B195,$Q181-SUM($Q195:R195)) -> 0.6350729315 | T195: =MIN($Q181/$B195,$Q181-SUM($Q195:S195)) -> 0.6350729315 | U195: =MIN($Q181/$B195,$Q181-SUM($Q195:T195)) -> 0.6350729315 | V195: =MIN($Q181/$B195,$Q181-SUM($Q195:U195)) -> 0.6350729315 | W195: =MIN($Q181/$B195,$Q181-SUM($Q195:V195)) -> 0.6350729315 | X195: =MIN($Q181/$B195,$Q181-SUM($Q195:W195)) -> 0.6350729315 | Y195: =MIN($Q181/$B195,$Q181-SUM($Q195:X195)) -> 0.6350729315 | Z195: =MIN($Q181/$B195,$Q181-SUM($Q195:Y195)) -> 0.6350729315 | AA195: =MIN($Q181/$B195,$Q181-SUM($Q195:Z195)) -> 0.6350729315 | AB195: =MIN($Q181/$B195,$Q181-SUM($Q195:AA195)) -> 0.6350729315 | AC195: =MIN($Q181/$B195,$Q181-SUM($Q195:AB195)) -> 0.6350729315 | AD195: =MIN($Q181/$B195,$Q181-SUM($Q195:AC195)) -> 0.6350729315 | AE195: =MIN($Q181/$B195,$Q181-SUM($Q195:AD195)) -> 0.6350729315 | AF195: =MIN($Q181/$B195,$Q181-SUM($Q195:AE195)) -> 0.6350729315 | AG195: =MIN($Q181/$B195,$Q181-SUM($Q195:AF195)) -> 0.6350729315
B196: =B195 -> 60 | C196: 2012 | R196: =0.5*R$181/$B196 -> 0.2876577324 | S196: =MIN($R181/$B196,$R181-SUM($R196:R196)) -> 0.5753154649 | T196: =MIN($R181/$B196,$R181-SUM($R196:S196)) -> 0.5753154649 | U196: =MIN($R181/$B196,$R181-SUM($R196:T196)) -> 0.5753154649 | V196: =MIN($R181/$B196,$R181-SUM($R196:U196)) -> 0.5753154649 | W196: =MIN($R181/$B196,$R181-SUM($R196:V196)) -> 0.5753154649 | X196: =MIN($R181/$B196,$R181-SUM($R196:W196)) -> 0.5753154649 | Y196: =MIN($R181/$B196,$R181-SUM($R196:X196)) -> 0.5753154649 | Z196: =MIN($R181/$B196,$R181-SUM($R196:Y196)) -> 0.5753154649 | AA196: =MIN($R181/$B196,$R181-SUM($R196:Z196)) -> 0.5753154649 | AB196: =MIN($R181/$B196,$R181-SUM($R196:AA196)) -> 0.5753154649 | AC196: =MIN($R181/$B196,$R181-SUM($R196:AB196)) -> 0.5753154649 | AD196: =MIN($R181/$B196,$R181-SUM($R196:AC196)) -> 0.5753154649 | AE196: =MIN($R181/$B196,$R181-SUM($R196:AD196)) -> 0.5753154649 | AF196: =MIN($R181/$B196,$R181-SUM($R196:AE196)) -> 0.5753154649 | AG196: =MIN($R181/$B196,$R181-SUM($R196:AF196)) -> 0.5753154649
B197: =G42 -> 60 | C197: 2013 | T197: =S$181/$B197 -> 0.8329352885 | U197: =MIN($S181/$B197,$S181-SUM($T197:T197)) -> 0.8329352885 | V197: =MIN($S181/$B197,$S181-SUM($T197:U197)) -> 0.8329352885 | W197: =MIN($S181/$B197,$S181-SUM($T197:V197)) -> 0.8329352885 | X197: =MIN($S181/$B197,$S181-SUM($T197:W197)) -> 0.8329352885 | Y197: =MIN($S181/$B197,$S181-SUM($T197:X197)) -> 0.8329352885 | Z197: =MIN($S181/$B197,$S181-SUM($T197:Y197)) -> 0.8329352885 | AA197: =MIN($S181/$B197,$S181-SUM($T197:Z197)) -> 0.8329352885 | AB197: =MIN($S181/$B197,$S181-SUM($T197:AA197)) -> 0.8329352885 | AC197: =MIN($S181/$B197,$S181-SUM($T197:AB197)) -> 0.8329352885 | AD197: =MIN($S181/$B197,$S181-SUM($T197:AC197)) -> 0.8329352885 | AE197: =MIN($S181/$B197,$S181-SUM($T197:AD197)) -> 0.8329352885 | AF197: =MIN($S181/$B197,$S181-SUM($T197:AE197)) -> 0.8329352885 | AG197: =MIN($S181/$B197,$S181-SUM($T197:AF197)) -> 0.8329352885
B198: =B197 -> 60 | C198: 2014 | U198: =T$181/$B198 -> 0.75223574 | V198: =MIN($T181/$B198,$T181-SUM($U198:U198)) -> 0.75223574 | W198: =MIN($T181/$B198,$T181-SUM($U198:V198)) -> 0.75223574 | X198: =MIN($T181/$B198,$T181-SUM($U198:W198)) -> 0.75223574 | Y198: =MIN($T181/$B198,$T181-SUM($U198:X198)) -> 0.75223574 | Z198: =MIN($T181/$B198,$T181-SUM($U198:Y198)) -> 0.75223574 | AA198: =MIN($T181/$B198,$T181-SUM($U198:Z198)) -> 0.75223574 | AB198: =MIN($T181/$B198,$T181-SUM($U198:AA198)) -> 0.75223574 | AC198: =MIN($T181/$B198,$T181-SUM($U198:AB198)) -> 0.75223574 | AD198: =MIN($T181/$B198,$T181-SUM($U198:AC198)) -> 0.75223574 | AE198: =MIN($T181/$B198,$T181-SUM($U198:AD198)) -> 0.75223574 | AF198: =MIN($T181/$B198,$T181-SUM($U198:AE198)) -> 0.75223574 | AG198: =MIN($T181/$B198,$T181-SUM($U198:AF198)) -> 0.75223574
B199: =B198 -> 60 | C199: 2015 | V199: =U$181/$B199 -> 0.8529972454 | W199: =MIN($U181/$B199,$U181-SUM($V199:V199)) -> 0.8529972454 | X199: =MIN($U181/$B199,$U181-SUM($V199:W199)) -> 0.8529972454 | Y199: =MIN($U181/$B199,$U181-SUM($V199:X199)) -> 0.8529972454 | Z199: =MIN($U181/$B199,$U181-SUM($V199:Y199)) -> 0.8529972454 | AA199: =MIN($U181/$B199,$U181-SUM($V199:Z199)) -> 0.8529972454 | AB199: =MIN($U181/$B199,$U181-SUM($V199:AA199)) -> 0.8529972454 | AC199: =MIN($U181/$B199,$U181-SUM($V199:AB199)) -> 0.8529972454 | AD199: =MIN($U181/$B199,$U181-SUM($V199:AC199)) -> 0.8529972454 | AE199: =MIN($U181/$B199,$U181-SUM($V199:AD199)) -> 0.8529972454 | AF199: =MIN($U181/$B199,$U181-SUM($V199:AE199)) -> 0.8529972454 | AG199: =MIN($U181/$B199,$U181-SUM($V199:AF199)) -> 0.8529972454
B200: =B199 -> 60 | C200: 2016 | W200: =V$181/$B200 -> 0.7180949919 | X200: =MIN($V181/$B200,$V181-SUM($W200:W200)) -> 0.7180949919 | Y200: =MIN($V181/$B200,$V181-SUM($W200:X200)) -> 0.7180949919 | Z200: =MIN($V181/$B200,$V181-SUM($W200:Y200)) -> 0.7180949919 | AA200: =MIN($V181/$B200,$V181-SUM($W200:Z200)) -> 0.7180949919 | AB200: =MIN($V181/$B200,$V181-SUM($W200:AA200)) -> 0.7180949919 | AC200: =MIN($V181/$B200,$V181-SUM($W200:AB200)) -> 0.7180949919 | AD200: =MIN($V181/$B200,$V181-SUM($W200:AC200)) -> 0.7180949919 | AE200: =MIN($V181/$B200,$V181-SUM($W200:AD200)) -> 0.7180949919 | AF200: =MIN($V181/$B200,$V181-SUM($W200:AE200)) -> 0.7180949919 | AG200: =MIN($V181/$B200,$V181-SUM($W200:AF200)) -> 0.7180949919
B201: =B200 -> 60 | C201: 2017 | X201: =W$181/$B201 -> 0.6090356321 | Y201: =MIN($W181/$B201,$W181-SUM($X201:X201)) -> 0.6090356321 | Z201: =MIN($W181/$B201,$W181-SUM($X201:Y201)) -> 0.6090356321 | AA201: =MIN($W181/$B201,$W181-SUM($X201:Z201)) -> 0.6090356321 | AB201: =MIN($W181/$B201,$W181-SUM($X201:AA201)) -> 0.6090356321 | AC201: =MIN($W181/$B201,$W181-SUM($X201:AB201)) -> 0.6090356321 | AD201: =MIN($W181/$B201,$W181-SUM($X201:AC201)) -> 0.6090356321 | AE201: =MIN($W181/$B201,$W181-SUM($X201:AD201)) -> 0.6090356321 | AF201: =MIN($W181/$B201,$W181-SUM($X201:AE201)) -> 0.6090356321 | AG201: =MIN($W181/$B201,$W181-SUM($X201:AF201)) -> 0.6090356321
C202: Total | D202: =SUM(D182:D196) -> 0.1275536617 | E202: 0.3902476309 | F202: 0.6503543551 | G202: 0.8692936584 | H202: 1.108197176 | I202: 1.468387893 | J202: 1.863200084 | K202: 2.197865234 | L202: 2.548564101 | M202: 2.954187416 | N202: 3.855729885 | O202: 4.292532828 | P202: 4.752056114 | Q202: 5.330460455 | R202: 5.935654653 | S202: =SUM(S182:S196) -> 6.223312386 | T202: =SUM(T182:T196) -> 6.223312386 | U202: =SUM(U182:U196) -> 6.223312386 | V202: =SUM(V182:V196) -> 6.223312386 | W202: =SUM(W182:W196) -> 6.223312386 | X202: =SUM(X182:X196) -> 6.223312386 | Y202: 6.223312386 | Z202: 6.223312386 | AA202: 6.223312386 | AB202: 6.223312386 | AC202: 6.223312386 | AD202: 6.223312386 | AE202: 6.223312386 | AF202: 6.223312386 | AG202: 6.223312386
A204: =A141 -> Service Pipes | C204: =B141 -> 60
C205: Capex | D205: =D141+D107 -> 19.39297683 | E205: =E141+E107 -> 19.9601089 | F205: 18.45743383 | G205: 13.87971571 | H205: 14.20775803 | I205: 19.54780138 | J205: 20.12503918 | K205: 19.26768923 | L205: 18.47666774 | M205: 14.81526106 | N205: =N141+N107+N125 -> 28.62254371 | O205: 27.59136648 | P205: 22.42568782 | Q205: 22.7138557 | R205: 22.0187845 | S205: =S141 -> 20.7366919 | T205: 20.98092896 | U205: 21.82135815 | V205: 21.29018501 | W205: 20.71287532 | X205: 0 | Y205: 0 | Z205: 0 | AA205: 0 | AB205: 0 | AC205: 0 | AD205: 0 | AE205: 0 | AF205: 0 | AG205: 0
B206: =D43 -> 60 | C206: 1998 | D206: =0.5*D$205/$B206 -> 0.1616081402 | E206: =MIN($D205/$B206,$D205-SUM($D206:D206)) -> 0.3232162805 | F206: =MIN($D205/$B206,$D205-SUM($D206:E206)) -> 0.3232162805 | G206: =MIN($D205/$B206,$D205-SUM($D206:F206)) -> 0.3232162805 | H206: =MIN($D205/$B206,$D205-SUM($D206:G206)) -> 0.3232162805 | I206: =MIN($D205/$B206,$D205-SUM($D206:H206)) -> 0.3232162805 | J206: =MIN($D205/$B206,$D205-SUM($D206:I206)) -> 0.3232162805 | K206: =MIN($D205/$B206,$D205-SUM($D206:J206)) -> 0.3232162805 | L206: =MIN($D205/$B206,$D205-SUM($D206:K206)) -> 0.3232162805 | M206: =MIN($D205/$B206,$D205-SUM($D206:L206)) -> 0.3232162805 | N206: =MIN($D205/$B206,$D205-SUM($D206:M206)) -> 0.3232162805 | O206: =MIN($D205/$B206,$D205-SUM($D206:N206)) -> 0.3232162805 | P206: =MIN($D205/$B206,$D205-SUM($D206:O206)) -> 0.3232162805 | Q206: =MIN($D205/$B206,$D205-SUM($D206:P206)) -> 0.3232162805 | R206: =MIN($D205/$B206,$D205-SUM($D206:Q206)) -> 0.3232162805 | S206: =MIN($D205/$B206,$D205-SUM($D206:R206)) -> 0.3232162805 | T206: =MIN($D205/$B206,$D205-SUM($D206:S206)) -> 0.3232162805 | U206: =MIN($D205/$B206,$D205-SUM($D206:T206)) -> 0.3232162805 | V206: =MIN($D205/$B206,$D205-SUM($D206:U206)) -> 0.3232162805 | W206: =MIN($D205/$B206,$D205-SUM($D206:V206)) -> 0.3232162805 | X206: =MIN($D205/$B206,$D205-SUM($D206:W206)) -> 0.3232162805 | Y206: =MIN($D205/$B206,$D205-SUM($D206:X206)) -> 0.3232162805 | Z206: =MIN($D205/$B206,$D205-SUM($D206:Y206)) -> 0.3232162805 | AA206: =MIN($D205/$B206,$D205-SUM($D206:Z206)) -> 0.3232162805 | AB206: =MIN($D205/$B206,$D205-SUM($D206:AA206)) -> 0.3232162805 | AC206: =MIN($D205/$B206,$D205-SUM($D206:AB206)) -> 0.3232162805 | AD206: =MIN($D205/$B206,$D205-SUM($D206:AC206)) -> 0.3232162805 | AE206: =MIN($D205/$B206,$D205-SUM($D206:AD206)) -> 0.3232162805 | AF206: =MIN($D205/$B206,$D205-SUM($D206:AE206)) -> 0.3232162805 | AG206: =MIN($D205/$B206,$D205-SUM($D206:AF206)) -> 0.3232162805
B207: =B206 -> 60 | C207: 1999 | E207: =0.5*E$205/$B207 -> 0.1663342408 | F207: =MIN($E205/$B207,$E205-SUM($E207:E207)) -> 0.3326684816 | G207: =MIN($E205/$B207,$E205-SUM($E207:F207)) -> 0.3326684816 | H207: =MIN($E205/$B207,$E205-SUM($E207:G207)) -> 0.3326684816 | I207: =MIN($E205/$B207,$E205-SUM($E207:H207)) -> 0.3326684816 | J207: =MIN($E205/$B207,$E205-SUM($E207:I207)) -> 0.3326684816 | K207: =MIN($E205/$B207,$E205-SUM($E207:J207)) -> 0.3326684816 | L207: =MIN($E205/$B207,$E205-SUM($E207:K207)) -> 0.3326684816 | M207: =MIN($E205/$B207,$E205-SUM($E207:L207)) -> 0.3326684816 | N207: =MIN($E205/$B207,$E205-SUM($E207:M207)) -> 0.3326684816 | O207: =MIN($E205/$B207,$E205-SUM($E207:N207)) -> 0.3326684816 | P207: =MIN($E205/$B207,$E205-SUM($E207:O207)) -> 0.3326684816 | Q207: =MIN($E205/$B207,$E205-SUM($E207:P207)) -> 0.3326684816 | R207: =MIN($E205/$B207,$E205-SUM($E207:Q207)) -> 0.3326684816 | S207: =MIN($E205/$B207,$E205-SUM($E207:R207)) -> 0.3326684816 | T207: =MIN($E205/$B207,$E205-SUM($E207:S207)) -> 0.3326684816 | U207: =MIN($E205/$B207,$E205-SUM($E207:T207)) -> 0.3326684816 | V207: =MIN($E205/$B207,$E205-SUM($E207:U207)) -> 0.3326684816 | W207: =MIN($E205/$B207,$E205-SUM($E207:V207)) -> 0.3326684816 | X207: =MIN($E205/$B207,$E205-SUM($E207:W207)) -> 0.3326684816 | Y207: =MIN($E205/$B207,$E205-SUM($E207:X207)) -> 0.3326684816 | Z207: =MIN($E205/$B207,$E205-SUM($E207:Y207)) -> 0.3326684816 | AA207: =MIN($E205/$B207,$E205-SUM($E207:Z207)) -> 0.3326684816 | AB207: =MIN($E205/$B207,$E205-SUM($E207:AA207)) -> 0.3326684816 | AC207: =MIN($E205/$B207,$E205-SUM($E207:AB207)) -> 0.3326684816 | AD207: =MIN($E205/$B207,$E205-SUM($E207:AC207)) -> 0.3326684816 | AE207: =MIN($E205/$B207,$E205-SUM($E207:AD207)) -> 0.3326684816 | AF207: =MIN($E205/$B207,$E205-SUM($E207:AE207)) -> 0.3326684816 | AG207: =MIN($E205/$B207,$E205-SUM($E207:AF207)) -> 0.3326684816
B208: =B207 -> 60 | C208: 2000 | F208: =0.5*F$205/$B208 -> 0.1538119486 | G208: =MIN($F205/$B208,$F205-SUM($F208:F208)) -> 0.3076238972 | H208: =MIN($F205/$B208,$F205-SUM($F208:G208)) -> 0.3076238972 | I208: =MIN($F205/$B208,$F205-SUM($F208:H208)) -> 0.3076238972 | J208: =MIN($F205/$B208,$F205-SUM($F208:I208)) -> 0.3076238972 | K208: =MIN($F205/$B208,$F205-SUM($F208:J208)) -> 0.3076238972 | L208: =MIN($F205/$B208,$F205-SUM($F208:K208)) -> 0.3076238972 | M208: =MIN($F205/$B208,$F205-SUM($F208:L208)) -> 0.3076238972 | N208: =MIN($F205/$B208,$F205-SUM($F208:M208)) -> 0.3076238972 | O208: =MIN($F205/$B208,$F205-SUM($F208:N208)) -> 0.3076238972 | P208: =MIN($F205/$B208,$F205-SUM($F208:O208)) -> 0.3076238972 | Q208: =MIN($F205/$B208,$F205-SUM($F208:P208)) -> 0.3076238972 | R208: =MIN($F205/$B208,$F205-SUM($F208:Q208)) -> 0.3076238972 | S208: =MIN($F205/$B208,$F205-SUM($F208:R208)) -> 0.3076238972 | T208: =MIN($F205/$B208,$F205-SUM($F208:S208)) -> 0.3076238972 | U208: =MIN($F205/$B208,$F205-SUM($F208:T208)) -> 0.3076238972 | V208: =MIN($F205/$B208,$F205-SUM($F208:U208)) -> 0.3076238972 | W208: =MIN($F205/$B208,$F205-SUM($F208:V208)) -> 0.3076238972 | X208: =MIN($F205/$B208,$F205-SUM($F208:W208)) -> 0.3076238972 | Y208: =MIN($F205/$B208,$F205-SUM($F208:X208)) -> 0.3076238972 | Z208: =MIN($F205/$B208,$F205-SUM($F208:Y208)) -> 0.3076238972 | AA208: =MIN($F205/$B208,$F205-SUM($F208:Z208)) -> 0.3076238972 | AB208: =MIN($F205/$B208,$F205-SUM($F208:AA208)) -> 0.3076238972 | AC208: =MIN($F205/$B208,$F205-SUM($F208:AB208)) -> 0.3076238972 | AD208: =MIN($F205/$B208,$F205-SUM($F208:AC208)) -> 0.3076238972 | AE208: =MIN($F205/$B208,$F205-SUM($F208:AD208)) -> 0.3076238972 | AF208: =MIN($F205/$B208,$F205-SUM($F208:AE208)) -> 0.3076238972 | AG208: =MIN($F205/$B208,$F205-SUM($F208:AF208)) -> 0.3076238972
B209: =B208 -> 60 | C209: 2001 | G209: =0.5*G$205/$B209 -> 0.1156642975 | H209: =MIN($G205/$B209,$G205-SUM($G209:G209)) -> 0.2313285951 | I209: =MIN($G205/$B209,$G205-SUM($G209:H209)) -> 0.2313285951 | J209: =MIN($G205/$B209,$G205-SUM($G209:I209)) -> 0.2313285951 | K209: =MIN($G205/$B209,$G205-SUM($G209:J209)) -> 0.2313285951 | L209: =MIN($G205/$B209,$G205-SUM($G209:K209)) -> 0.2313285951 | M209: =MIN($G205/$B209,$G205-SUM($G209:L209)) -> 0.2313285951 | N209: =MIN($G205/$B209,$G205-SUM($G209:M209)) -> 0.2313285951 | O209: =MIN($G205/$B209,$G205-SUM($G209:N209)) -> 0.2313285951 | P209: =MIN($G205/$B209,$G205-SUM($G209:O209)) -> 0.2313285951 | Q209: =MIN($G205/$B209,$G205-SUM($G209:P209)) -> 0.2313285951 | R209: =MIN($G205/$B209,$G205-SUM($G209:Q209)) -> 0.2313285951 | S209: =MIN($G205/$B209,$G205-SUM($G209:R209)) -> 0.2313285951 | T209: =MIN($G205/$B209,$G205-SUM($G209:S209)) -> 0.2313285951 | U209: =MIN($G205/$B209,$G205-SUM($G209:T209)) -> 0.2313285951 | V209: =MIN($G205/$B209,$G205-SUM($G209:U209)) -> 0.2313285951 | W209: =MIN($G205/$B209,$G205-SUM($G209:V209)) -> 0.2313285951 | X209: =MIN($G205/$B209,$G205-SUM($G209:W209)) -> 0.2313285951 | Y209: =MIN($G205/$B209,$G205-SUM($G209:X209)) -> 0.2313285951 | Z209: =MIN($G205/$B209,$G205-SUM($G209:Y209)) -> 0.2313285951 | AA209: =MIN($G205/$B209,$G205-SUM($G209:Z209)) -> 0.2313285951 | AB209: =MIN($G205/$B209,$G205-SUM($G209:AA209)) -> 0.2313285951 | AC209: =MIN($G205/$B209,$G205-SUM($G209:AB209)) -> 0.2313285951 | AD209: =MIN($G205/$B209,$G205-SUM($G209:AC209)) -> 0.2313285951 | AE209: =MIN($G205/$B209,$G205-SUM($G209:AD209)) -> 0.2313285951 | AF209: =MIN($G205/$B209,$G205-SUM($G209:AE209)) -> 0.2313285951 | AG209: =MIN($G205/$B209,$G205-SUM($G209:AF209)) -> 0.2313285951
B210: =B209 -> 60 | C210: 2002 | H210: =0.5*H$205/$B210 -> 0.1183979836 | I210: =MIN($H205/$B210,$H205-SUM($H210:H210)) -> 0.2367959672 | J210: =MIN($H205/$B210,$H205-SUM($H210:I210)) -> 0.2367959672 | K210: =MIN($H205/$B210,$H205-SUM($H210:J210)) -> 0.2367959672 | L210: =MIN($H205/$B210,$H205-SUM($H210:K210)) -> 0.2367959672 | M210: =MIN($H205/$B210,$H205-SUM($H210:L210)) -> 0.2367959672 | N210: =MIN($H205/$B210,$H205-SUM($H210:M210)) -> 0.2367959672 | O210: =MIN($H205/$B210,$H205-SUM($H210:N210)) -> 0.2367959672 | P210: =MIN($H205/$B210,$H205-SUM($H210:O210)) -> 0.2367959672 | Q210: =MIN($H205/$B210,$H205-SUM($H210:P210)) -> 0.2367959672 | R210: =MIN($H205/$B210,$H205-SUM($H210:Q210)) -> 0.2367959672 | S210: =MIN($H205/$B210,$H205-SUM($H210:R210)) -> 0.2367959672 | T210: =MIN($H205/$B210,$H205-SUM($H210:S210)) -> 0.2367959672 | U210: =MIN($H205/$B210,$H205-SUM($H210:T210)) -> 0.2367959672 | V210: =MIN($H205/$B210,$H205-SUM($H210:U210)) -> 0.2367959672 | W210: =MIN($H205/$B210,$H205-SUM($H210:V210)) -> 0.2367959672 | X210: =MIN($H205/$B210,$H205-SUM($H210:W210)) -> 0.2367959672 | Y210: =MIN($H205/$B210,$H205-SUM($H210:X210)) -> 0.2367959672 | Z210: =MIN($H205/$B210,$H205-SUM($H210:Y210)) -> 0.2367959672 | AA210: =MIN($H205/$B210,$H205-SUM($H210:Z210)) -> 0.2367959672 | AB210: =MIN($H205/$B210,$H205-SUM($H210:AA210)) -> 0.2367959672 | AC210: =MIN($H205/$B210,$H205-SUM($H210:AB210)) -> 0.2367959672 | AD210: =MIN($H205/$B210,$H205-SUM($H210:AC210)) -> 0.2367959672 | AE210: =MIN($H205/$B210,$H205-SUM($H210:AD210)) -> 0.2367959672 | AF210: =MIN($H205/$B210,$H205-SUM($H210:AE210)) -> 0.2367959672 | AG210: =MIN($H205/$B210,$H205-SUM($H210:AF210)) -> 0.2367959672
B211: =E43 -> 60 | C211: 2003 | I211: =0.5*I$205/$B211 -> 0.1628983449 | J211: =MIN($I205/$B211,$I205-SUM($I211:I211)) -> 0.3257966897 | K211: =MIN($I205/$B211,$I205-SUM($I211:J211)) -> 0.3257966897 | L211: =MIN($I205/$B211,$I205-SUM($I211:K211)) -> 0.3257966897 | M211: =MIN($I205/$B211,$I205-SUM($I211:L211)) -> 0.3257966897 | N211: =MIN($I205/$B211,$I205-SUM($I211:M211)) -> 0.3257966897 | O211: =MIN($I205/$B211,$I205-SUM($I211:N211)) -> 0.3257966897 | P211: =MIN($I205/$B211,$I205-SUM($I211:O211)) -> 0.3257966897 | Q211: =MIN($I205/$B211,$I205-SUM($I211:P211)) -> 0.3257966897 | R211: =MIN($I205/$B211,$I205-SUM($I211:Q211)) -> 0.3257966897 | S211: =MIN($I205/$B211,$I205-SUM($I211:R211)) -> 0.3257966897 | T211: =MIN($I205/$B211,$I205-SUM($I211:S211)) -> 0.3257966897 | U211: =MIN($I205/$B211,$I205-SUM($I211:T211)) -> 0.3257966897 | V211: =MIN($I205/$B211,$I205-SUM($I211:U211)) -> 0.3257966897 | W211: =MIN($I205/$B211,$I205-SUM($I211:V211)) -> 0.3257966897 | X211: =MIN($I205/$B211,$I205-SUM($I211:W211)) -> 0.3257966897 | Y211: =MIN($I205/$B211,$I205-SUM($I211:X211)) -> 0.3257966897 | Z211: =MIN($I205/$B211,$I205-SUM($I211:Y211)) -> 0.3257966897 | AA211: =MIN($I205/$B211,$I205-SUM($I211:Z211)) -> 0.3257966897 | AB211: =MIN($I205/$B211,$I205-SUM($I211:AA211)) -> 0.3257966897 | AC211: =MIN($I205/$B211,$I205-SUM($I211:AB211)) -> 0.3257966897 | AD211: =MIN($I205/$B211,$I205-SUM($I211:AC211)) -> 0.3257966897 | AE211: =MIN($I205/$B211,$I205-SUM($I211:AD211)) -> 0.3257966897 | AF211: =MIN($I205/$B211,$I205-SUM($I211:AE211)) -> 0.3257966897 | AG211: =MIN($I205/$B211,$I205-SUM($I211:AF211)) -> 0.3257966897
B212: =B211 -> 60 | C212: 2004 | J212: =0.5*J$205/$B212 -> 0.1677086598 | K212: =MIN($J205/$B212,$J205-SUM($J212:J212)) -> 0.3354173196 | L212: =MIN($J205/$B212,$J205-SUM($J212:K212)) -> 0.3354173196 | M212: =MIN($J205/$B212,$J205-SUM($J212:L212)) -> 0.3354173196 | N212: =MIN($J205/$B212,$J205-SUM($J212:M212)) -> 0.3354173196 | O212: =MIN($J205/$B212,$J205-SUM($J212:N212)) -> 0.3354173196 | P212: =MIN($J205/$B212,$J205-SUM($J212:O212)) -> 0.3354173196 | Q212: =MIN($J205/$B212,$J205-SUM($J212:P212)) -> 0.3354173196 | R212: =MIN($J205/$B212,$J205-SUM($J212:Q212)) -> 0.3354173196 | S212: =MIN($J205/$B212,$J205-SUM($J212:R212)) -> 0.3354173196 | T212: =MIN($J205/$B212,$J205-SUM($J212:S212)) -> 0.3354173196 | U212: =MIN($J205/$B212,$J205-SUM($J212:T212)) -> 0.3354173196 | V212: =MIN($J205/$B212,$J205-SUM($J212:U212)) -> 0.3354173196 | W212: =MIN($J205/$B212,$J205-SUM($J212:V212)) -> 0.3354173196 | X212: =MIN($J205/$B212,$J205-SUM($J212:W212)) -> 0.3354173196 | Y212: =MIN($J205/$B212,$J205-SUM($J212:X212)) -> 0.3354173196 | Z212: =MIN($J205/$B212,$J205-SUM($J212:Y212)) -> 0.3354173196 | AA212: =MIN($J205/$B212,$J205-SUM($J212:Z212)) -> 0.3354173196 | AB212: =MIN($J205/$B212,$J205-SUM($J212:AA212)) -> 0.3354173196 | AC212: =MIN($J205/$B212,$J205-SUM($J212:AB212)) -> 0.3354173196 | AD212: =MIN($J205/$B212,$J205-SUM($J212:AC212)) -> 0.3354173196 | AE212: =MIN($J205/$B212,$J205-SUM($J212:AD212)) -> 0.3354173196 | AF212: =MIN($J205/$B212,$J205-SUM($J212:AE212)) -> 0.3354173196 | AG212: =MIN($J205/$B212,$J205-SUM($J212:AF212)) -> 0.3354173196
B213: =B212 -> 60 | C213: 2005 | K213: =0.5*K$205/$B213 -> 0.1605640769 | L213: =MIN($K205/$B213,$K205-SUM($K213:K213)) -> 0.3211281539 | M213: =MIN($K205/$B213,$K205-SUM($K213:L213)) -> 0.3211281539 | N213: =MIN($K205/$B213,$K205-SUM($K213:M213)) -> 0.3211281539 | O213: =MIN($K205/$B213,$K205-SUM($K213:N213)) -> 0.3211281539 | P213: =MIN($K205/$B213,$K205-SUM($K213:O213)) -> 0.3211281539 | Q213: =MIN($K205/$B213,$K205-SUM($K213:P213)) -> 0.3211281539 | R213: =MIN($K205/$B213,$K205-SUM($K213:Q213)) -> 0.3211281539 | S213: =MIN($K205/$B213,$K205-SUM($K213:R213)) -> 0.3211281539 | T213: =MIN($K205/$B213,$K205-SUM($K213:S213)) -> 0.3211281539 | U213: =MIN($K205/$B213,$K205-SUM($K213:T213)) -> 0.3211281539 | V213: =MIN($K205/$B213,$K205-SUM($K213:U213)) -> 0.3211281539 | W213: =MIN($K205/$B213,$K205-SUM($K213:V213)) -> 0.3211281539 | X213: =MIN($K205/$B213,$K205-SUM($K213:W213)) -> 0.3211281539 | Y213: =MIN($K205/$B213,$K205-SUM($K213:X213)) -> 0.3211281539 | Z213: =MIN($K205/$B213,$K205-SUM($K213:Y213)) -> 0.3211281539 | AA213: =MIN($K205/$B213,$K205-SUM($K213:Z213)) -> 0.3211281539 | AB213: =MIN($K205/$B213,$K205-SUM($K213:AA213)) -> 0.3211281539 | AC213: =MIN($K205/$B213,$K205-SUM($K213:AB213)) -> 0.3211281539 | AD213: =MIN($K205/$B213,$K205-SUM($K213:AC213)) -> 0.3211281539 | AE213: =MIN($K205/$B213,$K205-SUM($K213:AD213)) -> 0.3211281539 | AF213: =MIN($K205/$B213,$K205-SUM($K213:AE213)) -> 0.3211281539 | AG213: =MIN($K205/$B213,$K205-SUM($K213:AF213)) -> 0.3211281539
B214: =B213 -> 60 | C214: 2006 | L214: =0.5*L$205/$B214 -> 0.1539722312 | M214: =MIN($L205/$B214,$L205-SUM($L214:L214)) -> 0.3079444624 | N214: =MIN($L205/$B214,$L205-SUM($L214:M214)) -> 0.3079444624 | O214: =MIN($L205/$B214,$L205-SUM($L214:N214)) -> 0.3079444624 | P214: =MIN($L205/$B214,$L205-SUM($L214:O214)) -> 0.3079444624 | Q214: =MIN($L205/$B214,$L205-SUM($L214:P214)) -> 0.3079444624 | R214: =MIN($L205/$B214,$L205-SUM($L214:Q214)) -> 0.3079444624 | S214: =MIN($L205/$B214,$L205-SUM($L214:R214)) -> 0.3079444624 | T214: =MIN($L205/$B214,$L205-SUM($L214:S214)) -> 0.3079444624 | U214: =MIN($L205/$B214,$L205-SUM($L214:T214)) -> 0.3079444624 | V214: =MIN($L205/$B214,$L205-SUM($L214:U214)) -> 0.3079444624 | W214: =MIN($L205/$B214,$L205-SUM($L214:V214)) -> 0.3079444624 | X214: =MIN($L205/$B214,$L205-SUM($L214:W214)) -> 0.3079444624 | Y214: =MIN($L205/$B214,$L205-SUM($L214:X214)) -> 0.3079444624 | Z214: =MIN($L205/$B214,$L205-SUM($L214:Y214)) -> 0.3079444624 | AA214: =MIN($L205/$B214,$L205-SUM($L214:Z214)) -> 0.3079444624 | AB214: =MIN($L205/$B214,$L205-SUM($L214:AA214)) -> 0.3079444624 | AC214: =MIN($L205/$B214,$L205-SUM($L214:AB214)) -> 0.3079444624 | AD214: =MIN($L205/$B214,$L205-SUM($L214:AC214)) -> 0.3079444624 | AE214: =MIN($L205/$B214,$L205-SUM($L214:AD214)) -> 0.3079444624 | AF214: =MIN($L205/$B214,$L205-SUM($L214:AE214)) -> 0.3079444624 | AG214: =MIN($L205/$B214,$L205-SUM($L214:AF214)) -> 0.3079444624
B215: =B214 -> 60 | C215: 2007 | M215: =0.5*M$205/$B215 -> 0.1234605088 | N215: =MIN($M205/$B215,$M205-SUM($M215:M215)) -> 0.2469210176 | O215: =MIN($M205/$B215,$M205-SUM($M215:N215)) -> 0.2469210176 | P215: =MIN($M205/$B215,$M205-SUM($M215:O215)) -> 0.2469210176 | Q215: =MIN($M205/$B215,$M205-SUM($M215:P215)) -> 0.2469210176 | R215: =MIN($M205/$B215,$M205-SUM($M215:Q215)) -> 0.2469210176 | S215: =MIN($M205/$B215,$M205-SUM($M215:R215)) -> 0.2469210176 | T215: =MIN($M205/$B215,$M205-SUM($M215:S215)) -> 0.2469210176 | U215: =MIN($M205/$B215,$M205-SUM($M215:T215)) -> 0.2469210176 | V215: =MIN($M205/$B215,$M205-SUM($M215:U215)) -> 0.2469210176 | W215: =MIN($M205/$B215,$M205-SUM($M215:V215)) -> 0.2469210176 | X215: =MIN($M205/$B215,$M205-SUM($M215:W215)) -> 0.2469210176 | Y215: =MIN($M205/$B215,$M205-SUM($M215:X215)) -> 0.2469210176 | Z215: =MIN($M205/$B215,$M205-SUM($M215:Y215)) -> 0.2469210176 | AA215: =MIN($M205/$B215,$M205-SUM($M215:Z215)) -> 0.2469210176 | AB215: =MIN($M205/$B215,$M205-SUM($M215:AA215)) -> 0.2469210176 | AC215: =MIN($M205/$B215,$M205-SUM($M215:AB215)) -> 0.2469210176 | AD215: =MIN($M205/$B215,$M205-SUM($M215:AC215)) -> 0.2469210176 | AE215: =MIN($M205/$B215,$M205-SUM($M215:AD215)) -> 0.2469210176 | AF215: =MIN($M205/$B215,$M205-SUM($M215:AE215)) -> 0.2469210176 | AG215: =MIN($M205/$B215,$M205-SUM($M215:AF215)) -> 0.2469210176
B216: =F43 -> 60 | C216: 2008 | N216: =0.5*N$205/$B216+0.5*N125/B216 -> 0.2535963595 | O216: =MIN($N205/$B216, $N205-SUM($N216:N216)) -> 0.4770423952 | P216: =MIN($N205/$B216, $N205-SUM($N216:O216)) -> 0.4770423952 | Q216: =MIN($N205/$B216, $N205-SUM($N216:P216)) -> 0.4770423952 | R216: =MIN($N205/$B216, $N205-SUM($N216:Q216)) -> 0.4770423952 | S216: =MIN($N205/$B216, $N205-SUM($N216:R216)) -> 0.4770423952 | T216: =MIN($N205/$B216, $N205-SUM($N216:S216)) -> 0.4770423952 | U216: =MIN($N205/$B216, $N205-SUM($N216:T216)) -> 0.4770423952 | V216: =MIN($N205/$B216, $N205-SUM($N216:U216)) -> 0.4770423952 | W216: =MIN($N205/$B216, $N205-SUM($N216:V216)) -> 0.4770423952 | X216: =MIN($N205/$B216, $N205-SUM($N216:W216)) -> 0.4770423952 | Y216: =MIN($N205/$B216, $N205-SUM($N216:X216)) -> 0.4770423952 | Z216: =MIN($N205/$B216, $N205-SUM($N216:Y216)) -> 0.4770423952 | AA216: =MIN($N205/$B216, $N205-SUM($N216:Z216)) -> 0.4770423952 | AB216: =MIN($N205/$B216, $N205-SUM($N216:AA216)) -> 0.4770423952 | AC216: =MIN($N205/$B216, $N205-SUM($N216:AB216)) -> 0.4770423952 | AD216: =MIN($N205/$B216, $N205-SUM($N216:AC216)) -> 0.4770423952 | AE216: =MIN($N205/$B216, $N205-SUM($N216:AD216)) -> 0.4770423952 | AF216: =MIN($N205/$B216, $N205-SUM($N216:AE216)) -> 0.4770423952 | AG216: =MIN($N205/$B216, $N205-SUM($N216:AF216)) -> 0.4770423952
B217: =B216 -> 60 | C217: 2009 | O217: =0.5*O$205/$B217 -> 0.229928054 | P217: =MIN($O205/$B217,$O205-SUM($O217:O217)) -> 0.459856108 | Q217: =MIN($O205/$B217,$O205-SUM($O217:P217)) -> 0.459856108 | R217: =MIN($O205/$B217,$O205-SUM($O217:Q217)) -> 0.459856108 | S217: =MIN($O205/$B217,$O205-SUM($O217:R217)) -> 0.459856108 | T217: =MIN($O205/$B217,$O205-SUM($O217:S217)) -> 0.459856108 | U217: =MIN($O205/$B217,$O205-SUM($O217:T217)) -> 0.459856108 | V217: =MIN($O205/$B217,$O205-SUM($O217:U217)) -> 0.459856108 | W217: =MIN($O205/$B217,$O205-SUM($O217:V217)) -> 0.459856108 | X217: =MIN($O205/$B217,$O205-SUM($O217:W217)) -> 0.459856108 | Y217: =MIN($O205/$B217,$O205-SUM($O217:X217)) -> 0.459856108 | Z217: =MIN($O205/$B217,$O205-SUM($O217:Y217)) -> 0.459856108 | AA217: =MIN($O205/$B217,$O205-SUM($O217:Z217)) -> 0.459856108 | AB217: =MIN($O205/$B217,$O205-SUM($O217:AA217)) -> 0.459856108 | AC217: =MIN($O205/$B217,$O205-SUM($O217:AB217)) -> 0.459856108 | AD217: =MIN($O205/$B217,$O205-SUM($O217:AC217)) -> 0.459856108 | AE217: =MIN($O205/$B217,$O205-SUM($O217:AD217)) -> 0.459856108 | AF217: =MIN($O205/$B217,$O205-SUM($O217:AE217)) -> 0.459856108 | AG217: =MIN($O205/$B217,$O205-SUM($O217:AF217)) -> 0.459856108
B218: =B217 -> 60 | C218: 2010 | P218: =0.5*P$205/$B218 -> 0.1868807318 | Q218: =MIN($P205/$B218,$P205-SUM($P218:P218)) -> 0.3737614637 | R218: =MIN($P205/$B218,$P205-SUM($P218:Q218)) -> 0.3737614637 | S218: =MIN($P205/$B218,$P205-SUM($P218:R218)) -> 0.3737614637 | T218: =MIN($P205/$B218,$P205-SUM($P218:S218)) -> 0.3737614637 | U218: =MIN($P205/$B218,$P205-SUM($P218:T218)) -> 0.3737614637 | V218: =MIN($P205/$B218,$P205-SUM($P218:U218)) -> 0.3737614637 | W218: =MIN($P205/$B218,$P205-SUM($P218:V218)) -> 0.3737614637 | X218: =MIN($P205/$B218,$P205-SUM($P218:W218)) -> 0.3737614637 | Y218: =MIN($P205/$B218,$P205-SUM($P218:X218)) -> 0.3737614637 | Z218: =MIN($P205/$B218,$P205-SUM($P218:Y218)) -> 0.3737614637 | AA218: =MIN($P205/$B218,$P205-SUM($P218:Z218)) -> 0.3737614637 | AB218: =MIN($P205/$B218,$P205-SUM($P218:AA218)) -> 0.3737614637 | AC218: =MIN($P205/$B218,$P205-SUM($P218:AB218)) -> 0.3737614637 | AD218: =MIN($P205/$B218,$P205-SUM($P218:AC218)) -> 0.3737614637 | AE218: =MIN($P205/$B218,$P205-SUM($P218:AD218)) -> 0.3737614637 | AF218: =MIN($P205/$B218,$P205-SUM($P218:AE218)) -> 0.3737614637 | AG218: =MIN($P205/$B218,$P205-SUM($P218:AF218)) -> 0.3737614637
B219: =B218 -> 60 | C219: 2011 | Q219: =0.5*Q$205/$B219 -> 0.1892821308 | R219: =MIN($Q205/$B219,$Q205-SUM($Q219:Q219)) -> 0.3785642616 | S219: =MIN($Q205/$B219,$Q205-SUM($Q219:R219)) -> 0.3785642616 | T219: =MIN($Q205/$B219,$Q205-SUM($Q219:S219)) -> 0.3785642616 | U219: =MIN($Q205/$B219,$Q205-SUM($Q219:T219)) -> 0.3785642616 | V219: =MIN($Q205/$B219,$Q205-SUM($Q219:U219)) -> 0.3785642616 | W219: =MIN($Q205/$B219,$Q205-SUM($Q219:V219)) -> 0.3785642616 | X219: =MIN($Q205/$B219,$Q205-SUM($Q219:W219)) -> 0.3785642616 | Y219: =MIN($Q205/$B219,$Q205-SUM($Q219:X219)) -> 0.3785642616 | Z219: =MIN($Q205/$B219,$Q205-SUM($Q219:Y219)) -> 0.3785642616 | AA219: =MIN($Q205/$B219,$Q205-SUM($Q219:Z219)) -> 0.3785642616 | AB219: =MIN($Q205/$B219,$Q205-SUM($Q219:AA219)) -> 0.3785642616 | AC219: =MIN($Q205/$B219,$Q205-SUM($Q219:AB219)) -> 0.3785642616 | AD219: =MIN($Q205/$B219,$Q205-SUM($Q219:AC219)) -> 0.3785642616 | AE219: =MIN($Q205/$B219,$Q205-SUM($Q219:AD219)) -> 0.3785642616 | AF219: =MIN($Q205/$B219,$Q205-SUM($Q219:AE219)) -> 0.3785642616 | AG219: =MIN($Q205/$B219,$Q205-SUM($Q219:AF219)) -> 0.3785642616
B220: =B219 -> 60 | C220: 2012 | R220: =0.5*R$205/$B220 -> 0.1834898708 | S220: =MIN($R205/$B220,$R205-SUM($R220:R220)) -> 0.3669797416 | T220: =MIN($R205/$B220,$R205-SUM($R220:S220)) -> 0.3669797416 | U220: =MIN($R205/$B220,$R205-SUM($R220:T220)) -> 0.3669797416 | V220: =MIN($R205/$B220,$R205-SUM($R220:U220)) -> 0.3669797416 | W220: =MIN($R205/$B220,$R205-SUM($R220:V220)) -> 0.3669797416 | X220: =MIN($R205/$B220,$R205-SUM($R220:W220)) -> 0.3669797416 | Y220: =MIN($R205/$B220,$R205-SUM($R220:X220)) -> 0.3669797416 | Z220: =MIN($R205/$B220,$R205-SUM($R220:Y220)) -> 0.3669797416 | AA220: =MIN($R205/$B220,$R205-SUM($R220:Z220)) -> 0.3669797416 | AB220: =MIN($R205/$B220,$R205-SUM($R220:AA220)) -> 0.3669797416 | AC220: =MIN($R205/$B220,$R205-SUM($R220:AB220)) -> 0.3669797416 | AD220: =MIN($R205/$B220,$R205-SUM($R220:AC220)) -> 0.3669797416 | AE220: =MIN($R205/$B220,$R205-SUM($R220:AD220)) -> 0.3669797416 | AF220: =MIN($R205/$B220,$R205-SUM($R220:AE220)) -> 0.3669797416 | AG220: =MIN($R205/$B220,$R205-SUM($R220:AF220)) -> 0.3669797416
B221: =G43 -> 60 | C221: 2013 | T221: =S$205/$B221 -> 0.3456115317 | U221: =MIN($S205/$B221,$S205-SUM($T221:T221)) -> 0.3456115317 | V221: =MIN($S205/$B221,$S205-SUM($T221:U221)) -> 0.3456115317 | W221: =MIN($S205/$B221,$S205-SUM($T221:V221)) -> 0.3456115317 | X221: =MIN($S205/$B221,$S205-SUM($T221:W221)) -> 0.3456115317 | Y221: =MIN($S205/$B221,$S205-SUM($T221:X221)) -> 0.3456115317 | Z221: =MIN($S205/$B221,$S205-SUM($T221:Y221)) -> 0.3456115317 | AA221: =MIN($S205/$B221,$S205-SUM($T221:Z221)) -> 0.3456115317 | AB221: =MIN($S205/$B221,$S205-SUM($T221:AA221)) -> 0.3456115317 | AC221: =MIN($S205/$B221,$S205-SUM($T221:AB221)) -> 0.3456115317 | AD221: =MIN($S205/$B221,$S205-SUM($T221:AC221)) -> 0.3456115317 | AE221: =MIN($S205/$B221,$S205-SUM($T221:AD221)) -> 0.3456115317 | AF221: =MIN($S205/$B221,$S205-SUM($T221:AE221)) -> 0.3456115317 | AG221: =MIN($S205/$B221,$S205-SUM($T221:AF221)) -> 0.3456115317
B222: =B221 -> 60 | C222: 2014 | U222: =T$205/$B222 -> 0.3496821493 | V222: =MIN($T205/$B222,$T205-SUM($U222:U222)) -> 0.3496821493 | W222: =MIN($T205/$B222,$T205-SUM($U222:V222)) -> 0.3496821493 | X222: =MIN($T205/$B222,$T205-SUM($U222:W222)) -> 0.3496821493 | Y222: =MIN($T205/$B222,$T205-SUM($U222:X222)) -> 0.3496821493 | Z222: =MIN($T205/$B222,$T205-SUM($U222:Y222)) -> 0.3496821493 | AA222: =MIN($T205/$B222,$T205-SUM($U222:Z222)) -> 0.3496821493 | AB222: =MIN($T205/$B222,$T205-SUM($U222:AA222)) -> 0.3496821493 | AC222: =MIN($T205/$B222,$T205-SUM($U222:AB222)) -> 0.3496821493 | AD222: =MIN($T205/$B222,$T205-SUM($U222:AC222)) -> 0.3496821493 | AE222: =MIN($T205/$B222,$T205-SUM($U222:AD222)) -> 0.3496821493 | AF222: =MIN($T205/$B222,$T205-SUM($U222:AE222)) -> 0.3496821493 | AG222: =MIN($T205/$B222,$T205-SUM($U222:AF222)) -> 0.3496821493
B223: =B222 -> 60 | C223: 2015 | V223: =U$205/$B223 -> 0.3636893025 | W223: =MIN($U205/$B223,$U205-SUM($V223:V223)) -> 0.3636893025 | X223: =MIN($U205/$B223,$U205-SUM($V223:W223)) -> 0.3636893025 | Y223: =MIN($U205/$B223,$U205-SUM($V223:X223)) -> 0.3636893025 | Z223: =MIN($U205/$B223,$U205-SUM($V223:Y223)) -> 0.3636893025 | AA223: =MIN($U205/$B223,$U205-SUM($V223:Z223)) -> 0.3636893025 | AB223: =MIN($U205/$B223,$U205-SUM($V223:AA223)) -> 0.3636893025 | AC223: =MIN($U205/$B223,$U205-SUM($V223:AB223)) -> 0.3636893025 | AD223: =MIN($U205/$B223,$U205-SUM($V223:AC223)) -> 0.3636893025 | AE223: =MIN($U205/$B223,$U205-SUM($V223:AD223)) -> 0.3636893025 | AF223: =MIN($U205/$B223,$U205-SUM($V223:AE223)) -> 0.3636893025 | AG223: =MIN($U205/$B223,$U205-SUM($V223:AF223)) -> 0.3636893025
B224: =B223 -> 60 | C224: 2016 | W224: =V$205/$B224 -> 0.3548364169 | X224: =MIN($V205/$B224,$V205-SUM($W224:W224)) -> 0.3548364169 | Y224: =MIN($V205/$B224,$V205-SUM($W224:X224)) -> 0.3548364169 | Z224: =MIN($V205/$B224,$V205-SUM($W224:Y224)) -> 0.3548364169 | AA224: =MIN($V205/$B224,$V205-SUM($W224:Z224)) -> 0.3548364169 | AB224: =MIN($V205/$B224,$V205-SUM($W224:AA224)) -> 0.3548364169 | AC224: =MIN($V205/$B224,$V205-SUM($W224:AB224)) -> 0.3548364169 | AD224: =MIN($V205/$B224,$V205-SUM($W224:AC224)) -> 0.3548364169 | AE224: =MIN($V205/$B224,$V205-SUM($W224:AD224)) -> 0.3548364169 | AF224: =MIN($V205/$B224,$V205-SUM($W224:AE224)) -> 0.3548364169 | AG224: =MIN($V205/$B224,$V205-SUM($W224:AF224)) -> 0.3548364169
B225: =B224 -> 60 | C225: 2017 | X225: =W$205/$B225 -> 0.3452145886 | Y225: =MIN($W205/$B225,$W205-SUM($X225:X225)) -> 0.3452145886 | Z225: =MIN($W205/$B225,$W205-SUM($X225:Y225)) -> 0.3452145886 | AA225: =MIN($W205/$B225,$W205-SUM($X225:Z225)) -> 0.3452145886 | AB225: =MIN($W205/$B225,$W205-SUM($X225:AA225)) -> 0.3452145886 | AC225: =MIN($W205/$B225,$W205-SUM($X225:AB225)) -> 0.3452145886 | AD225: =MIN($W205/$B225,$W205-SUM($X225:AC225)) -> 0.3452145886 | AE225: =MIN($W205/$B225,$W205-SUM($X225:AD225)) -> 0.3452145886 | AF225: =MIN($W205/$B225,$W205-SUM($X225:AE225)) -> 0.3452145886 | AG225: =MIN($W205/$B225,$W205-SUM($X225:AF225)) -> 0.3452145886
C226: Total | D226: =SUM(D206:D220) -> 0.1616081402 | E226: 0.4895505213 | F226: 0.8096967107 | G226: 1.079172957 | H226: 1.313235238 | I226: 1.594531566 | J226: 1.925138571 | K226: 2.253411308 | L226: 2.567947616 | M226: 2.845380356 | N226: 3.222437224 | O226: 3.675811314 | P226: 4.0926201 | Q226: 4.468782963 | R226: 4.841554964 | S226: =SUM(S206:S220) -> 5.025044835 | T226: =SUM(T206:T220) -> 5.025044835 | U226: =SUM(U206:U220) -> 5.025044835 | V226: =SUM(V206:V220) -> 5.025044835 | W226: =SUM(W206:W220) -> 5.025044835 | X226: =SUM(X206:X220) -> 5.025044835 | Y226: 5.025044835 | Z226: 5.025044835 | AA226: 5.025044835 | AB226: 5.025044835 | AC226: 5.025044835 | AD226: 5.025044835 | AE226: 5.025044835 | AF226: =SUM(AF206:AF220) -> 5.025044835 | AG226: 5.025044835
A228: =A142 -> Cathodic Protection | C228: =B142 -> 60
C229: Capex | D229: =D142+D108 -> 0 | E229: =E142+E108 -> 0 | F229: 0 | G229: 0 | H229: 0.02395206416 | I229: 0.08688442516 | J229: 0.09398236405 | K229: 0.1044847065 | L229: 0.1045705255 | M229: 0.08145506382 | N229: =N142+N108+N126 -> 0.2794291172 | O229: 0.6059344067 | P229: 0 | Q229: 0.7828526104 | R229: 0.7423850196 | S229: =S142 -> 0.339664066 | T229: 0.3292629638 | U229: 0.3380789756 | V229: 0.3202762888 | W229: 0.3029262094 | X229: 0 | Y229: 0 | Z229: 0 | AA229: 0 | AB229: 0 | AC229: 0 | AD229: 0 | AE229: 0 | AF229: 0 | AG229: 0
B230: =D44 -> 60 | C230: 1998 | D230: =0.5*D$229/$B230 -> 0 | E230: =MIN($D229/$B230,$D229-SUM($D230:D230)) -> 0 | F230: =MIN($D229/$B230,$D229-SUM($D230:E230)) -> 0 | G230: =MIN($D229/$B230,$D229-SUM($D230:F230)) -> 0 | H230: =MIN($D229/$B230,$D229-SUM($D230:G230)) -> 0 | I230: =MIN($D229/$B230,$D229-SUM($D230:H230)) -> 0 | J230: =MIN($D229/$B230,$D229-SUM($D230:I230)) -> 0 | K230: =MIN($D229/$B230,$D229-SUM($D230:J230)) -> 0 | L230: =MIN($D229/$B230,$D229-SUM($D230:K230)) -> 0 | M230: =MIN($D229/$B230,$D229-SUM($D230:L230)) -> 0 | N230: =MIN($D229/$B230,$D229-SUM($D230:M230)) -> 0 | O230: =MIN($D229/$B230,$D229-SUM($D230:N230)) -> 0 | P230: =MIN($D229/$B230,$D229-SUM($D230:O230)) -> 0 | Q230: =MIN($D229/$B230,$D229-SUM($D230:P230)) -> 0 | R230: =MIN($D229/$B230,$D229-SUM($D230:Q230)) -> 0 | S230: =MIN($D229/$B230,$D229-SUM($D230:R230)) -> 0 | T230: =MIN($D229/$B230,$D229-SUM($D230:S230)) -> 0 | U230: =MIN($D229/$B230,$D229-SUM($D230:T230)) -> 0 | V230: =MIN($D229/$B230,$D229-SUM($D230:U230)) -> 0 | W230: =MIN($D229/$B230,$D229-SUM($D230:V230)) -> 0 | X230: =MIN($D229/$B230,$D229-SUM($D230:W230)) -> 0 | Y230: =MIN($D229/$B230,$D229-SUM($D230:X230)) -> 0 | Z230: =MIN($D229/$B230,$D229-SUM($D230:Y230)) -> 0 | AA230: =MIN($D229/$B230,$D229-SUM($D230:Z230)) -> 0 | AB230: =MIN($D229/$B230,$D229-SUM($D230:AA230)) -> 0 | AC230: =MIN($D229/$B230,$D229-SUM($D230:AB230)) -> 0 | AD230: =MIN($D229/$B230,$D229-SUM($D230:AC230)) -> 0 | AE230: =MIN($D229/$B230,$D229-SUM($D230:AD230)) -> 0 | AF230: =MIN($D229/$B230,$D229-SUM($D230:AE230)) -> 0 | AG230: =MIN($D229/$B230,$D229-SUM($D230:AF230)) -> 0
B231: =B230 -> 60 | C231: 1999 | E231: =0.5*E$229/$B231 -> 0 | F231: =MIN($E229/$B231,$E229-SUM($E231:E231)) -> 0 | G231: =MIN($E229/$B231,$E229-SUM($E231:F231)) -> 0 | H231: =MIN($E229/$B231,$E229-SUM($E231:G231)) -> 0 | I231: =MIN($E229/$B231,$E229-SUM($E231:H231)) -> 0 | J231: =MIN($E229/$B231,$E229-SUM($E231:I231)) -> 0 | K231: =MIN($E229/$B231,$E229-SUM($E231:J231)) -> 0 | L231: =MIN($E229/$B231,$E229-SUM($E231:K231)) -> 0 | M231: =MIN($E229/$B231,$E229-SUM($E231:L231)) -> 0 | N231: =MIN($E229/$B231,$E229-SUM($E231:M231)) -> 0 | O231: =MIN($E229/$B231,$E229-SUM($E231:N231)) -> 0 | P231: =MIN($E229/$B231,$E229-SUM($E231:O231)) -> 0 | Q231: =MIN($E229/$B231,$E229-SUM($E231:P231)) -> 0 | R231: =MIN($E229/$B231,$E229-SUM($E231:Q231)) -> 0 | S231: =MIN($E229/$B231,$E229-SUM($E231:R231)) -> 0 | T231: =MIN($E229/$B231,$E229-SUM($E231:S231)) -> 0 | U231: =MIN($E229/$B231,$E229-SUM($E231:T231)) -> 0 | V231: =MIN($E229/$B231,$E229-SUM($E231:U231)) -> 0 | W231: =MIN($E229/$B231,$E229-SUM($E231:V231)) -> 0 | X231: =MIN($E229/$B231,$E229-SUM($E231:W231)) -> 0 | Y231: =MIN($E229/$B231,$E229-SUM($E231:X231)) -> 0 | Z231: =MIN($E229/$B231,$E229-SUM($E231:Y231)) -> 0 | AA231: =MIN($E229/$B231,$E229-SUM($E231:Z231)) -> 0 | AB231: =MIN($E229/$B231,$E229-SUM($E231:AA231)) -> 0 | AC231: =MIN($E229/$B231,$E229-SUM($E231:AB231)) -> 0 | AD231: =MIN($E229/$B231,$E229-SUM($E231:AC231)) -> 0 | AE231: =MIN($E229/$B231,$E229-SUM($E231:AD231)) -> 0 | AF231: =MIN($E229/$B231,$E229-SUM($E231:AE231)) -> 0 | AG231: =MIN($E229/$B231,$E229-SUM($E231:AF231)) -> 0
B232: =B231 -> 60 | C232: 2000 | F232: =0.5*F$229/$B232 -> 0 | G232: =MIN($F229/$B232,$F229-SUM($F232:F232)) -> 0 | H232: =MIN($F229/$B232,$F229-SUM($F232:G232)) -> 0 | I232: =MIN($F229/$B232,$F229-SUM($F232:H232)) -> 0 | J232: =MIN($F229/$B232,$F229-SUM($F232:I232)) -> 0 | K232: =MIN($F229/$B232,$F229-SUM($F232:J232)) -> 0 | L232: =MIN($F229/$B232,$F229-SUM($F232:K232)) -> 0 | M232: =MIN($F229/$B232,$F229-SUM($F232:L232)) -> 0 | N232: =MIN($F229/$B232,$F229-SUM($F232:M232)) -> 0 | O232: =MIN($F229/$B232,$F229-SUM($F232:N232)) -> 0 | P232: =MIN($F229/$B232,$F229-SUM($F232:O232)) -> 0 | Q232: =MIN($F229/$B232,$F229-SUM($F232:P232)) -> 0 | R232: =MIN($F229/$B232,$F229-SUM($F232:Q232)) -> 0 | S232: =MIN($F229/$B232,$F229-SUM($F232:R232)) -> 0 | T232: =MIN($F229/$B232,$F229-SUM($F232:S232)) -> 0 | U232: =MIN($F229/$B232,$F229-SUM($F232:T232)) -> 0 | V232: =MIN($F229/$B232,$F229-SUM($F232:U232)) -> 0 | W232: =MIN($F229/$B232,$F229-SUM($F232:V232)) -> 0 | X232: =MIN($F229/$B232,$F229-SUM($F232:W232)) -> 0 | Y232: =MIN($F229/$B232,$F229-SUM($F232:X232)) -> 0 | Z232: =MIN($F229/$B232,$F229-SUM($F232:Y232)) -> 0 | AA232: =MIN($F229/$B232,$F229-SUM($F232:Z232)) -> 0 | AB232: =MIN($F229/$B232,$F229-SUM($F232:AA232)) -> 0 | AC232: =MIN($F229/$B232,$F229-SUM($F232:AB232)) -> 0 | AD232: =MIN($F229/$B232,$F229-SUM($F232:AC232)) -> 0 | AE232: =MIN($F229/$B232,$F229-SUM($F232:AD232)) -> 0 | AF232: =MIN($F229/$B232,$F229-SUM($F232:AE232)) -> 0 | AG232: =MIN($F229/$B232,$F229-SUM($F232:AF232)) -> 0
... 266 more rows

Sheet Assets
B2: Asset Roll Forward
F3: 0 | G3: =F3+1 -> 1 | H3: 2 | I3: 3 | J3: 4 | K3: 5 | L3: 6 | M3: 7 | N3: 8 | O3: 9 | P3: 10 | Q3: 11 | R3: 12 | S3: 13 | T3: 14 | U3: 15 | V3: 16 | W3: 17 | X3: 18 | Y3: 19 | Z3: 20 | AA3: 21 | AB3: 22 | AC3: 23 | AD3: 24 | AE3: 25 | AF3: 26 | AG3: 27 | AH3: 28 | AI3: 29 | AJ3: 30 | AK3: 31 | AL3: 32 | AM3: =AL3+1 -> 33 | AN3: 34 | AO3: 35 | AP3: 36 | AQ3: 37 | AR3: 38 | AS3: 39 | AT3: 40 | AU3: 41 | AV3: 42 | AW3: 43 | AX3: 44 | AY3: 45 | AZ3: 46 | BA3: 47 | BB3: 48 | BC3: 49 | BD3: 50 | BE3: 51 | BF3: 52 | BG3: 53 | BH3: 54 | BI3: 55
B4: Year | F4: =Input!F203 -> 2012 | G4: =Input!G203 -> 2013 | H4: =Input!H203 -> 2014 | I4: =Input!I203 -> 2015 | J4: =Input!J203 -> 2016 | K4: =Input!K203 -> 2017 | L4: =Input!L203 -> 2018 | M4: =Input!M203 -> 2019 | N4: =Input!N203 -> 2020 | O4: =Input!O203 -> 2021 | P4: =Input!P203 -> 2022 | Q4: =P4+1 -> 2023 | R4: =Q4+1 -> 2024 | S4: 2025 | T4: 2026 | U4: 2027 | V4: 2028 | W4: 2029 | X4: 2030 | Y4: 2031 | Z4: 2032 | AA4: 2033 | AB4: 2034 | AC4: 2035 | AD4: 2036 | AE4: 2037 | AF4: 2038 | AG4: 2039 | AH4: 2040 | AI4: 2041 | AJ4: 2042 | AK4: 2043 | AL4: 2044 | AM4: 2045 | AN4: 2046 | AO4: 2047 | AP4: 2048 | AQ4: 2049 | AR4: 2050 | AS4: 2051 | AT4: 2052 | AU4: 2053 | AV4: 2054 | AW4: 2055 | AX4: 2056 | AY4: 2057 | AZ4: 2058 | BA4: 2059 | BB4: 2060 | BC4: 2061 | BD4: 2062 | BE4: 2063 | BF4: 2064 | BG4: 2065 | BH4: 2066 | BI4: 2067
B6: Inflation Assumption (CPI % increase) | D6: =f -> 0.025 | G6: =$D$6 -> 0.025 | H6: =$D$6 -> 0.025 | I6: 0.025 | J6: 0.025 | K6: 0.025 | L6: 0.025 | M6: 0.025 | N6: 0.025 | O6: 0.025 | P6: 0.025 | Q6: 0.025 | R6: 0.025 | S6: 0.025 | T6: 0.025 | U6: 0.025 | V6: 0.025 | W6: 0.025 | X6: 0.025 | Y6: 0.025 | Z6: 0.025 | AA6: 0.025 | AB6: 0.025 | AC6: 0.025 | AD6: 0.025 | AE6: 0.025 | AF6: 0.025 | AG6: 0.025 | AH6: 0.025 | AI6: 0.025 | AJ6: 0.025 | AK6: 0.025 | AL6: 0.025 | AM6: 0.025 | AN6: 0.025 | AO6: 0.025 | AP6: 0.025 | AQ6: 0.025 | AR6: 0.025 | AS6: 0.025 | AT6: 0.025 | AU6: 0.025 | AV6: 0.025 | AW6: 0.025 | AX6: 0.025 | AY6: 0.025 | AZ6: 0.025 | BA6: 0.025 | BB6: 0.025 | BC6: 0.025 | BD6: 0.025 | BE6: 0.025 | BF6: 0.025 | BG6: 0.025 | BH6: 0.025 | BI6: 0.025
B7: Cumulative Inflation Index (CPI end period) | F7: 1 | G7: =F7*(1+G6) -> 1.025 | H7: =G7*(1+H6) -> 1.050625 | I7: =H7*(1+I6) -> 1.076890625 | J7: =I7*(1+J6) -> 1.103812891 | K7: 1.131408213 | L7: 1.159693418 | M7: 1.188685754 | N7: 1.218402898 | O7: 1.24886297 | P7: =O7*(1+P6) -> 1.280084544 | Q7: 1.312086658 | R7: 1.344888824 | S7: 1.378511045 | T7: 1.412973821 | U7: 1.448298166 | V7: 1.484505621 | W7: 1.521618261 | X7: 1.559658718 | Y7: 1.598650186 | Z7: 1.63861644 | AA7: 1.679581851 | AB7: 1.721571398 | AC7: 1.764610683 | AD7: 1.80872595 | AE7: 1.853944098 | AF7: 1.900292701 | AG7: 1.947800018 | AH7: 1.996495019 | AI7: 2.046407394 | AJ7: 2.097567579 | AK7: 2.150006769 | AL7: 2.203756938 | AM7: 2.258850861 | AN7: 2.315322133 | AO7: 2.373205186 | AP7: 2.432535316 | AQ7: 2.493348699 | AR7: 2.555682416 | AS7: 2.619574476 | AT7: 2.685063838 | AU7: 2.752190434 | AV7: 2.820995195 | AW7: 2.891520075 | AX7: 2.963808077 | AY7: 3.037903279 | AZ7: 3.113850861 | BA7: 3.191697132 | BB7: 3.271489561 | BC7: 3.3532768 | BD7: 3.43710872 | BE7: 3.523036438 | BF7: 3.611112349 | BG7: 3.701390157 | BH7: 3.793924911 | BI7: 3.888773034
B9: Opening Regulated Asset Base | F9: =RAB -> 1275.298354
B10: Real Capex | G10: =SUM(G11:G40) -> 102.3142312 | H10: =SUM(H11:H40) -> 102.5130951 | I10: =SUM(I11:I40) -> 100.8357926 | J10: 89.89853915 | K10: 80.85057813 | L10: 0 | M10: 0 | N10: 0 | O10: 0 | P10: 0
C11: =Asset1 -> Transmission Pipelines | G11: =Input!G143*(1+rvanilla)^0.5 -> 0 | H11: =Input!H143*(1+rvanilla)^0.5 -> 3.133261468 | I11: =Input!I143*(1+rvanilla)^0.5 -> 0 | J11: =Input!J143*(1+rvanilla)^0.5 -> 0 | K11: =Input!K143*(1+rvanilla)^0.5 -> 0 | L11: =Input!L143*(1+rvanilla)^0.5 -> 0 | M11: =Input!M143*(1+rvanilla)^0.5 -> 0 | N11: =Input!N143*(1+rvanilla)^0.5 -> 0 | O11: =Input!O143*(1+rvanilla)^0.5 -> 0 | P11: =Input!P143*(1+rvanilla)^0.5 -> 0
C12: =Asset2 -> Distribution Pipelines | G12: =Input!G144*(1+rvanilla)^0.5 -> 49.97611731 | H12: =Input!H144*(1+rvanilla)^0.5 -> 45.1341444 | I12: =Input!I144*(1+rvanilla)^0.5 -> 51.17983472 | J12: =Input!J144*(1+rvanilla)^0.5 -> 43.08569951 | K12: =Input!K144*(1+rvanilla)^0.5 -> 36.54213793 | L12: =Input!L144*(1+rvanilla)^0.5 -> 0 | M12: =Input!M144*(1+rvanilla)^0.5 -> 0 | N12: =Input!N144*(1+rvanilla)^0.5 -> 0 | O12: =Input!O144*(1+rvanilla)^0.5 -> 0 | P12: =Input!P144*(1+rvanilla)^0.5 -> 0
C13: =Asset3 -> Service Pipes | G13: =Input!G145*(1+rvanilla)^0.5 -> 20.7366919 | H13: =Input!H145*(1+rvanilla)^0.5 -> 20.98092896 | I13: =Input!I145*(1+rvanilla)^0.5 -> 21.82135815 | J13: =Input!J145*(1+rvanilla)^0.5 -> 21.29018501 | K13: =Input!K145*(1+rvanilla)^0.5 -> 20.71287532 | L13: =Input!L145*(1+rvanilla)^0.5 -> 0 | M13: =Input!M145*(1+rvanilla)^0.5 -> 0 | N13: =Input!N145*(1+rvanilla)^0.5 -> 0 | O13: =Input!O145*(1+rvanilla)^0.5 -> 0 | P13: =Input!P145*(1+rvanilla)^0.5 -> 0
C14: =Asset4 -> Cathodic Protection | G14: =Input!G146*(1+rvanilla)^0.5 -> 0.339664066 | H14: =Input!H146*(1+rvanilla)^0.5 -> 0.3292629638 | I14: =Input!I146*(1+rvanilla)^0.5 -> 0.3380789756 | J14: =Input!J146*(1+rvanilla)^0.5 -> 0.3202762888 | K14: =Input!K146*(1+rvanilla)^0.5 -> 0.3029262094 | L14: =Input!L146*(1+rvanilla)^0.5 -> 0 | M14: =Input!M146*(1+rvanilla)^0.5 -> 0 | N14: =Input!N146*(1+rvanilla)^0.5 -> 0 | O14: =Input!O146*(1+rvanilla)^0.5 -> 0 | P14: =Input!P146*(1+rvanilla)^0.5 -> 0
